Workbook

Sheet Accueil
E3: BF Manufacturiers Génie Civil
E4: Actualisation au 04/04/2024
B26: Profil Plus France - 19b Avenue Léon Gambetta - 92120 MONTROUGE
B27: Version : 1.0 - YB - Février 2024

Sheet Tutoriel
D3: Tutoriel
C7: Vous trouverez ici comment utiliser le fichier de synthèse des BF
C8: et toutes les astuces disponibles
C10: Entrer les remises
C12: Nous vous invitons à entrer les remises en premier,
C13: ainsi les tarifs affichés correspondront au prix qui vous sera facturé.
C15: Sur l'onglet "Accueil", cliquer sur
C16: Par manufacturier, vous pourrez alors entrer les remises négociées.
C18: Vous avez ensuite intérêt à enregistrer le fichier.
C19: Cela vous évitera d'entrer à nouveau les remises lors de la prochaine utilisation.
C21: Si vous souhaitez ré-initialiser les remises, il vous suffit de cliquer sur le bouton :
C22: Toutes les remises seront alors remises à 0.
C24: Retour à l'accueil
C26: Sur chaque onglet figure le bouton suivant :
C27: En cliquant dessus, vous retournez à l'accueil.
C29: Trouver les pneumatiques disponibles dans la dimension voulue
C31: Depuis l'accueil, cliquer sur
C33: Entrer les caractéristiques du pneumatique dans le tableau suivant :
C36: Toutes les informations ne sont pas indispensables.
C37: Vous pouvez par exemple n'entrer que le diamètre.
C39: Cliquez ensuite sur
C40: L'ensemble des pneumatiques correspondants aux caractéristiques saisies s'affichent en dessous.
C42: Pour supprimer le filtre, et afficher tous les pneumatiques, cliquer sur
C44: Consulter le barème d'un manufacturier
C46: Depuis l'accueil cliquer sur
C47: Pour accéder au barème de l'un des manufacturiers, cliquer sur son logo
C48: Depuis l'onglet présentant le barème d'un manufacturier, vous pouvez :
C49: Consulter les tarifs,
C50: Revenir à l'accueil en cliquant sur le bouton
C51: Consulter le barème d'un autre manufacturier
C52: en cliquant sur le bouton
C54: Modifier la remise en cliquant sur le bouton

Sheet Index
D3: Index Génie Civil
D7: ABREVIATION | F7: DEFINITION
D9: CAI | F9: Code Article International
D10: EAN | F10: European Article Number (code Barre)
D11: BF | F11: Barème de Facturation
D12: TD | F12: Tarif de distribution
D13: IC | F13: Indice de Charge
D14: IV | F14: Indice de Vitesse
D15: GC | F15: Génie Civil
D16: PG | F16: Petit Génie Civil
D17: GG | F17: Gros Génie Civil

Sheet Remises
B2: GENIE CIVIL - Remises
B6: GENIE CIVIL / NEUF | L6: GENIE CIVIL / RECHAPE
E8: 0.4 | J8: 0.28 | O8: 0.23
E10: 0.28 | J10: 0.31
E12: 0.43 | J12: 0.4

Sheet Manufacturiers
B2: BF Manufacturiers Génie Civil
B3: Actualisation au 04/04/2024
B6: GENIE CIVIL / NEUF | J6: GENIE CIVIL / RECHAPE

Sheet Pneus par dim.
F2: BF Manufacturiers Génie Civil
F3: Actualisation au 04/04/2024
B4: Largeur | C4: Hauteur | D4: Diamètre | E4: Charge | F4: Vitesse
A7: REFERENCES PNEUMATIQUES
A8: Manufacturier | B8: Largeur | C8: Hauteur | D8: Diam. | E8: IC | F8: IV | G8: Désignation | H8: Profil | I8: Prix BF ou TD | J8: Prix remisé | K8: CAI | L8: EAN/Gencode | M8: Type Rechapage | N8: Catégorie
A9: BRIDGESTONE | B9: 505 | C9: 95 | D9: 25 | E9: 186 | F9: E | G9: PN BRI 505/95R25 *3 VHS | H9: BS V-STEEL HIGHWAY | I9: 6107 | J9: =I9*(1-VLOOKUP(A9,Datas_Remises,4,0)) -> 3664.2 | K9: 69507 | L9: 3286346950712 | M9: Neuf | N9: PETIT GENIE CIVIL
A10: BRIDGESTONE | B10: 29.5 | D10: 25 | G10: PN BRI 29.5R25 VSNTZ DE2 | H10: BS V-STEEL N-TRACT | I10: 12019 | J10: 7211.4 | K10: 69485 | L10: 3286346948511 | M10: Neuf | N10: GROS GENIE CIVIL
A11: BRIDGESTONE | B11: 20.5 | D11: 25 | E11: * | G11: PN BRI 20.5R25 *1 VJT D2A TL | H11: BS V-STEEL J-TRACT | I11: 4201 | J11: 2520.6 | K11: 1050 | L11: 3286340105019 | M11: Neuf | N11: PETIT GENIE CIVIL
A12: BRIDGESTONE | B12: 29.5 | D12: 25 | E12: ** | G12: PN BRI 29.5R25 *2 VSDL D2A | H12: BS VSDL D2A | I12: 18928 | J12: 11356.8 | K12: 69410 | L12: 3286346941017 | M12: Neuf | N12: GROS GENIE CIVIL
A13: BRIDGESTONE | B13: 26.5 | D13: 25 | E13: 202 | F13: A2 | G13: PN BRI 26.5R25 VJT MS DE2 TL | H13: BS V-STEEL J-TRACT | I13: 7343 | J13: 4405.8 | K13: 1015 | L13: 3286340101516 | M13: Neuf | N13: GROS GENIE CIVIL
A14: BRIDGESTONE | B14: 14 | D14: 24 | G14: PN BRI 14.00 -24 R-LUG TT | H14: BS R-LUG | I14: 2303 | J14: 1381.8 | K14: 64224 | L14: 3286346422417 | M14: Neuf | N14: PETIT GENIE CIVIL
A15: BRIDGESTONE | B15: 26.5 | D15: 25 | E15: ** | G15: PN BRI 26.5R25 *2 VSDL D2A | H15: BS VSDL D2A | I15: 13395 | J15: 8037 | K15: 69360 | L15: 3286346936013 | M15: Neuf | N15: GROS GENIE CIVIL
A16: BRIDGESTONE | B16: 14 | D16: 24 | E16: *** | G16: PN BRI 14.00R24 *3 1DU VCH TT | H16: BS VCH | I16: 4619 | J16: 2771.4 | K16: 64311 | L16: 3286346431112 | M16: Neuf | N16: PETIT GENIE CIVIL
A17: BRIDGESTONE | B17: 450 | C17: 95 | D17: 25 | E17: 204 | F17: A5 | G17: PN BRI 450/95R25 VCHPZ | H17: BS VCHPZ | I17: 5228 | J17: 3136.8 | K17: 23301 | L17: 3286342330112 | M17: Neuf | N17: PETIT GENIE CIVIL
A18: BRIDGESTONE | B18: 29.5 | D18: 25 | E18: ** | G18: PN BRI 29.5R25 *2 VSNT D2A TL | H18: BS V-STEEL N-TRACT | I18: 12019 | J18: 7211.4 | K18: 2766 | L18: 3286340276610 | M18: Neuf | N18: GROS GENIE CIVIL
A19: BRIDGESTONE | B19: 23.5 | D19: 25 | E19: 195 | F19: A2 | G19: PN BRI 23.5R25 MS VJTZ D2A TL | H19: BS V-STEEL J-TRACT | I19: 5470 | J19: 3282 | K19: 69535 | L19: 3286346953515 | M19: Neuf | N19: PETIT GENIE CIVIL
A20: BRIDGESTONE | B20: 24 | D20: 35 | E20: ** | G20: PN BRI 24.00R35 *2 VMTP E2A S2 7 TL | H20: BS V-STEEL M TRAC | I20: 14248 | J20: 8548.8 | K20: 69482 | L20: 3286346948214 | M20: Neuf | N20: GROS GENIE CIVIL
A21: BRIDGESTONE | B21: 27 | D21: 49 | E21: ** | G21: PN BRI 27.00R49 *2 VMTP E2A LS TL | H21: BS V-STEEL M TRAC | I21: 27524 | J21: 16514.4 | K21: 5500 | L21: 3286340550017 | M21: Neuf | N21: GROS GENIE CIVIL
A22: BRIDGESTONE | B22: 20.5 | D22: 25 | E22: 186 | F22: A2 | G22: PN BRI 20.5R25 DE2 VLTSZ TL | H22: BS V-STEEL L-TRACT | I22: 5069 | J22: 3041.4 | K22: 69512 | L22: 3286346951214 | M22: Neuf | N22: PETIT GENIE CIVIL
A23: BRIDGESTONE | B23: 23.5 | D23: 25 | E23: 195 | F23: A2 | G23: PN BRI 23.5R25 DE2 VLTSZ | H23: BS V-STEEL L-TRACT | I23: 6362 | J23: 3817.2 | K23: 69513 | L23: 3286346951313 | M23: Neuf | N23: PETIT GENIE CIVIL
A24: BRIDGESTONE | B24: 18 | D24: 33 | E24: ** | G24: PN BRI 18.00R33 VRQP | H24: BS V-STEEL ROCK QU | I24: 8438 | J24: 5062.8 | K24: 69555 | L24: 3286346955519 | M24: Neuf | N24: GROS GENIE CIVIL
A25: BRIDGESTONE | B25: 29.5 | D25: 25 | G25: PN BRI 29.5 R25 VSMS2 *2 D2A | H25: BS V-STEEL SMOOTH | I25: 20592 | J25: 12355.2 | K25: 17685 | L25: 3286341768510 | M25: Neuf | N25: GROS GENIE CIVIL
A26: BRIDGESTONE | B26: 750 | C26: 65 | D26: 25 | E26: 190 | F26: B | G26: PN BRI 750/65R25 *2 VLTSZ E2A | H26: BS V-STEEL L-TRACT | I26: 8392 | J26: 5035.2 | K26: 69527 | L26: 3286346952716 | M26: Neuf | N26: GROS GENIE CIVIL
A27: BRIDGESTONE | B27: 29.5 | D27: 29 | G27: PN BRI 29.5R29 *1 VSNTZ DE2 TL | H27: BS V-STEEL N-TRACT | I27: 16035 | J27: 9621 | K27: 69488 | L27: 3286346948818 | M27: Neuf | N27: GROS GENIE CIVIL
A28: BRIDGESTONE | B28: 26.5 | D28: 25 | G28: PN BRI 26.5R25 VSNTZ DE2 TL | H28: BS V-STEEL N-TRACT | I28: 8785 | J28: 5271 | K28: 69487 | L28: 3286346948719 | M28: Neuf | N28: GROS GENIE CIVIL
A29: BRIDGESTONE | B29: 23.5 | D29: 25 | E29: ** | G29: PN BRI 23.5R25 *2 VSDL D2A TL | H29: BS VSDL D2A | I29: 9787 | J29: 5872.2 | K29: 69372 | L29: 3286346937218 | M29: Neuf | N29: PETIT GENIE CIVIL
A30: BRIDGESTONE | B30: 45 | C30: 65 | D30: 45 | E30: ** | G30: PN BRI 45/65R45 *2 VSDL D2A TL | H30: BS VSDL D2A | I30: 56645 | J30: 33987 | K30: 69456 | L30: 3286346945619 | M30: Neuf | N30: GROS GENIE CIVIL
A31: BRIDGESTONE | B31: 24 | D31: 35 | E31: ** | G31: PN BRI 24.00R35 *2 VMTP E1A TL | H31: BS VMTP E1A | I31: 14248 | J31: 8548.8 | K31: 69402 | L31: 3286346940218 | M31: Neuf | N31: GROS GENIE CIVIL
A32: BRIDGESTONE | B32: 18 | D32: 33 | E32: 219 | F32: A5 | G32: PN BRI 18.00R33 *3 VCHSZ 1DU TL | H32: BS VCHS | I32: 7708 | J32: 4624.8 | K32: 69470 | L32: 3286346947019 | M32: Neuf | N32: GROS GENIE CIVIL
A33: BRIDGESTONE | B33: 29.5 | D33: 25 | E33: 200 | F33: B | G33: PN BRI 29.5R25 *2 VLTSZ E2A TL | H33: BS VLTSZ E2A | I33: 11561 | J33: 6936.6 | K33: 75318 | L33: 3286347531811 | M33: Neuf | N33: GROS GENIE CIVIL
A34: BRIDGESTONE | B34: 12 | D34: 24 | E34: ** | G34: PN BRI 12.00R24 *2 1DU VCH TT | H34: BS VCH | I34: 2391 | J34: 1434.6 | K34: 64366 | L34: 3286346436612 | M34: Neuf | N34: PETIT GENIE CIVIL
A35: BRIDGESTONE | B35: 24 | D35: 35 | E35: *** | G35: PN BRI 24.00 R35 VMTD 3E | H35: BS V-STEEL M-TRACT | I35: 14864 | J35: 8918.4 | K35: 30859 | L35: 3286343085912 | M35: Neuf | N35: GROS GENIE CIVIL
A36: BRIDGESTONE | B36: 35 | C36: 65 | D36: 33 | E36: ** | G36: PN BRI 35/65R33 V-STEEL D-LUG 2E | H36: BS VSDL D2A | I36: 21479 | J36: 12887.4 | K36: 77867 | L36: 3286347786716 | M36: Neuf | N36: GROS GENIE CIVIL
A37: BRIDGESTONE | B37: 445 | C37: 95 | D37: 25 | E37: 174 | F37: F | G37: PN BRI 445/95R25 174 F VHS2 | H37: BS V-ST HWAY S2 | I37: 4184 | J37: 2510.4 | K37: 9135 | L37: 3286340913515 | M37: Neuf | N37: PETIT GENIE CIVIL
A38: BRIDGESTONE | B38: 15.5 | D38: 25 | E38: * | G38: PN BRI 15.5R25 *1 D2A LA VKT TL | H38: BS VKT | I38: 1871 | J38: 1122.6 | K38: 48370 | L38: 3286344837015 | M38: Neuf | N38: PETIT GENIE CIVIL
A39: BRIDGESTONE | B39: 14 | D39: 24 | E39: 196 | F39: A5 | G39: PN BRI 14.00R24 *3 1DU VCH SZ TT | H39: BS VCHS | I39: 4580 | J39: 2748 | K39: 64364 | L39: 3286346436414 | M39: Neuf | N39: PETIT GENIE CIVIL
A40: BRIDGESTONE | B40: 26.5 | D40: 25 | E40: 202 | F40: A2 | G40: PN BRI 26.5 R25 VLT DE2 202A | H40: BS V-STEEL L-TRACT | I40: 8040 | J40: 4824 | K40: 75243 | L40: 3286347524318 | M40: Neuf | N40: PETIT GENIE CIVIL
A41: BRIDGESTONE | B41: 18 | D41: 25 | G41: PN BRI 18.00R25 ** VSMS D2A | H41: BS V-STEEL SMOOTH | I41: 8907 | J41: 5344.2 | K41: 69429 | L41: 3286346942915 | M41: Neuf | N41: PETIT GENIE CIVIL
A42: BRIDGESTONE | B42: 33 | C42: 65 | D42: 29 | E42: ** | G42: PN BRI 33/65R29 V-STEEL D-LUG 2E | H42: BS VSDL D2A | I42: 20466 | J42: 12279.6 | K42: 22952 | L42: 3286342295213 | M42: Neuf | N42: GROS GENIE CIVIL
A43: BRIDGESTONE | B43: 9.5 | C43: 65 | D43: 15 | E43: 6PR | G43: PN BRI 9.5/65-15 6P RR TT | H43: BS RR | I43: 734 | J43: 440.4 | K43: 3832 | L43: 3286340383219 | M43: Neuf | N43: PETIT GENIE CIVIL
A44: BRIDGESTONE | B44: 310 | C44: 80 | D44: 22.5 | G44: PN BRI 310/80R22.5 VPCT | H44: BS VPCT | I44: 1487 | J44: 892.2 | K44: 17692 | L44: 3286341769210 | M44: Neuf | N44: PETIT GENIE CIVIL
A45: BRIDGESTONE | B45: 27 | D45: 49 | E45: ** | G45: PN BRI 27.00R49 VMTP* TL | H45: BS V-STEEL M TRAC | I45: 27524 | J45: 16514.4 | K45: 6607 | L45: 3286340660716 | M45: Neuf | N45: GROS GENIE CIVIL
A46: BRIDGESTONE | B46: 33.25 | D46: 29 | E46: ** | G46: PN BRI 33.25 R29 VLTS 2E E2A | H46: BS V-STEEL L-TRACT | I46: 19733 | J46: 11839.8 | K46: 13811 | L46: 3286341381115 | M46: Neuf | N46: GROS GENIE CIVIL
A47: BRIDGESTONE | B47: 15.5 | D47: 25 | E47: 12PR | G47: PN BRI 15.5 - 25 12PR FG D2A TL | H47: BS FAST GRIP | I47: 1938 | J47: 1162.8 | K47: 69118 | L47: 3286346911812 | M47: Neuf | N47: PETIT GENIE CIVIL
A48: BRIDGESTONE | B48: 18 | D48: 25 | E48: 40PR | G48: PN BRI 18.00 - 25 40 PR ELS2B TL | H48: BS ELS2 | I48: 6929 | J48: 4157.4 | K48: 69503 | L48: 3286346950316 | M48: Neuf | N48: PETIT GENIE CIVIL
A49: BRIDGESTONE | B49: 14 | D49: 24 | E49: 28PR | G49: PN BRI 14.00R24 28PR RL 1DU TT | H49: BS R-LUG | I49: 2925 | J49: 1755 | K49: 64250 | L49: 3286346425012 | M49: Neuf | N49: PETIT GENIE CIVIL
A50: BRIDGESTONE | B50: 29.5 | D50: 25 | G50: PN BRI 29.5 R25 VSNT DE2 | H50: BS V-STEEL N-TRACT | I50: 12019 | J50: 7211.4 | K50: 78128 | L50: 3286347812811 | M50: Neuf | N50: PETIT GENIE CIVIL
A51: BRIDGESTONE | B51: 405 | C51: 75 | D51: 39 | E51: ** | G51: PN BRI 405/75R39 *2 VLT E2A | H51: BS V-STEEL L-TRACT | I51: 31571 | J51: 18942.6 | K51: 3253 | L51: 3286340325318 | M51: Neuf | N51: GROS GENIE CIVIL
A52: BRIDGESTONE | B52: 875 | C52: 65 | D52: 29 | G52: PN BRI 875/65R29 MS VLTS DE2 TL | H52: BS V-STEEL L-TRACT | I52: 16205 | J52: 9723 | K52: 4730 | L52: 3286340473019 | M52: Neuf | N52: GROS GENIE CIVIL
A53: BRIDGESTONE | B53: 20.5 | D53: 25 | E53: ** | G53: PN BRI 20.5R25 *2 VSDR D2A | H53: BS V-STEEL DEEP RO | I53: 7646 | J53: 4587.6 | K53: 5571 | L53: 3286340557115 | M53: Neuf | N53: PETIT GENIE CIVIL
A54: BRIDGESTONE | B54: 16 | D54: 25 | E54: 200 | F54: A5 | G54: PN BRI 16.00R25 200 A VCHR IDU 0R | H54: BS V-STEEL CONTAIN | I54: 5333 | J54: 3199.8 | K54: 5512 | L54: 3286340551212 | M54: Neuf | N54: PETIT GENIE CIVIL
A55: BRIDGESTONE | B55: 35 | C55: 65 | D55: 33 | E55: ** | G55: PN BRI 35/65R33 STMS 2E | H55: BS V-STEEL SMOOTH | I55: 24486 | J55: 14691.6 | K55: 28645 | L55: 3286342864518 | M55: Neuf | N55: GROS GENIE CIVIL
A56: BRIDGESTONE | B56: 26.5 | D56: 25 | E56: 209 | F56: A2 | G56: PN BRI 26.5R25 *2 VSDT D2A TL | H56: BS V-STEEL SUPER D | I56: 11047 | J56: 6628.2 | K56: 69472 | L56: 3286346947217 | M56: Neuf | N56: PETIT GENIE CIVIL
A57: BRIDGESTONE | B57: 21 | D57: 35 | E57: 40PR | G57: PN BRI 21.00 -35 40P R-LUG 1DU | H57: BS R-LUG | I57: 8800 | J57: 5280 | K57: 69560 | L57: 3286346956011 | M57: Neuf | N57: PETIT GENIE CIVIL
A58: BRIDGESTONE | B58: 35 | C58: 65 | D58: 33 | E58: 224 | F58: A2 | G58: PN BRI 35/65R33 *2 VSDT D2A TL | H58: BS V-STEEL SUPER D | I58: 20584 | J58: 12350.4 | K58: 5071 | L58: 3286340507110 | M58: Neuf | N58: GROS GENIE CIVIL
A59: BRIDGESTONE | B59: 24 | D59: 35 | E59: ** | G59: PN BRI 24.00R35 *2 VRQP E2A | H59: BS V-STEEL ROCK QU | I59: 15461 | J59: 9276.6 | K59: 4824 | L59: 3286340482417 | M59: Neuf | N59: GROS GENIE CIVIL
A60: BRIDGESTONE | B60: 27 | D60: 49 | E60: ** | G60: PN BRI 27.00R49 *2 VREP E2A TL | H60: BS V-STEEL REP | I60: 26014 | J60: 15608.4 | K60: 4275 | L60: 3286340427517 | M60: Neuf | N60: GROS GENIE CIVIL
A61: BRIDGESTONE | B61: 385 | C61: 95 | D61: 25 | E61: 170 | F61: F | G61: PN BRI 385/95R25 170F *3 VHS TL | H61: BS V-STEEL HIGHWAY | I61: 3181 | J61: 1908.6 | K61: 3210 | L61: 3286340321013 | M61: Neuf | N61: PETIT GENIE CIVIL
A62: BRIDGESTONE | B62: 45 | C62: 65 | D62: 45 | E62: *** | G62: PN BRI 45/65R45 VSDL D2A 3E | H62: BS VSDL D2A | I62: 56645 | J62: 33987 | K62: 23434 | L62: 3286342343419 | M62: Neuf | N62: GROS GENIE CIVIL
A63: BRIDGESTONE | B63: 12 | D63: 24 | E63: 178 | F63: A5 | G63: PN BRI 12.00R24 178 A8 VCHS IDU TT | H63: BS VCHS | I63: 2567 | J63: 1540.2 | K63: 5513 | L63: 3286340551311 | M63: Neuf | N63: PETIT GENIE CIVIL
A64: BRIDGESTONE | B64: 26.5 | D64: 25 | E64: 36PR | G64: PN BRI 26.5 - 25 36PR STMS D2A TL | H64: BS STMS D2A | I64: 12564 | J64: 7538.4 | K64: 48347 | L64: 3286344834717 | M64: Neuf | N64: PETIT GENIE CIVIL
A65: BRIDGESTONE | B65: 550 | C65: 65 | D65: 25 | E65: * | G65: PN BRI 550/65R25 *1 VTS D2A TL | H65: BS V-STEEL TRACTIO | I65: 4622 | J65: 2773.2 | K65: 2599 | L65: 3286340259910 | M65: Neuf | N65: GROS GENIE CIVIL
A66: BRIDGESTONE | B66: 17.5 | D66: 25 | E66: ** | G66: PN BRI 17.5R25 *2 VSDL L-5 TL | H66: BS VSDL D2A | I66: 6062 | J66: 3637.2 | K66: 69552 | L66: 3286346955212 | M66: Neuf | N66: PETIT GENIE CIVIL
A67: BRIDGESTONE | B67: 33.25 | D67: 35 | E67: ** | G67: PN BRI 33.25R35 *2 VRL E1A TL | H67: BS V-STEEL R-LUG | I67: 28305 | J67: 16983 | K67: 3109 | L67: 3286340310918 | M67: Neuf | N67: GROS GENIE CIVIL
A68: BRIDGESTONE | B68: 26.5 | D68: 25 | E68: ** | G68: PN BRI 26.5R25 *2 VSNT D2A | H68: BS V-STEEL N-TRACT | I68: 8785 | J68: 5271 | K68: 2765 | L68: 3286340276511 | M68: Neuf | N68: GROS GENIE CIVIL
A69: BRIDGESTONE | B69: 29.5 | D69: 29 | E69: 218 | F69: A2 | G69: PN BRI 29.5R29 *2 VSDT D2A TL | H69: BS V-STEEL SUPER D | I69: 15477 | J69: 9286.2 | K69: 69489 | L69: 3286346948917 | M69: Neuf | N69: GROS GENIE CIVIL
A70: BRIDGESTONE | B70: 14 | D70: 24 | E70: 196 | F70: A5 | G70: PN BRI 14.00R24 *3 1DU VCH SZ TL | H70: BS VCHS | I70: 4580 | J70: 2748 | K70: 3885 | L70: 3286340388511 | M70: Neuf | N70: PETIT GENIE CIVIL
A71: BRIDGESTONE | B71: 17.5 | D71: 25 | E71: ** | G71: PN BRI 17.5R25 *2 VSMS D2A TL | H71: BS V-STEEL SMOOTH | I71: 6756 | J71: 4053.6 | K71: 69408 | L71: 3286346940812 | M71: Neuf | N71: PETIT GENIE CIVIL
A72: BRIDGESTONE | B72: 21 | D72: 33 | E72: ** | G72: PN BRI 21.00 - 33 *2 VRLS E2A LS TL | H72: BS V-STEEL R-LUG S | I72: 11174 | J72: 6704.4 | K72: 4891 | L72: 3286340489119 | M72: Neuf | N72: GROS GENIE CIVIL
A73: BRIDGESTONE | B73: 20.5 | D73: 25 | G73: PN BRI 20.5R25 *1 VSDL D2A TL | H73: BS VSDL D2A | I73: 7420 | J73: =I73*(1-VLOOKUP(A73,Datas_Remises,4,0)) -> 4452 | K73: 75088 | L73: 3286347508813 | M73: Neuf | N73: PETIT GENIE CIVIL
A74: BRIDGESTONE | B74: 35 | C74: 65 | D74: 33 | E74: ** | G74: PN BRI 35/65R33 ** VSDL BT D2A TL | H74: BS VSDL D2A | I74: 21479 | J74: 12887.4 | K74: 69514 | L74: 3286346951412 | M74: Neuf | N74: GROS GENIE CIVIL
A75: BRIDGESTONE | B75: 29.5 | D75: 25 | E75: 216 | F75: A2 | G75: PN BRI 29.5R25 *2 VSDT D2A | H75: BS V-STEEL SUPER D | I75: 16257 | J75: 9754.2 | K75: 69502 | L75: 3286346950217 | M75: Neuf | N75: GROS GENIE CIVIL
A76: BRIDGESTONE | B76: 17.5 | D76: 25 | E76: 176 | F76: A2 | G76: PN BRI 17.5R25 176 A2 *1 VJT D2A TL | H76: BS V-STEEL J-TRACT | I76: 2739 | J76: 1643.4 | K76: 4819 | L76: 3286340481915 | M76: Neuf | N76: PETIT GENIE CIVIL
A77: BRIDGESTONE | B77: 45 | C77: 65 | D77: 45 | E77: ** | G77: PN BRI 45/65R45 *2 VSDL D2A | H77: BS VSDL D2A | I77: 56645 | J77: 33987 | K77: 4057 | L77: 3286340405713 | M77: Neuf | N77: GROS GENIE CIVIL
A78: BRIDGESTONE | B78: 27 | D78: 49 | E78: ** | G78: PN BRI 27.00R49 *2 VREP E2A LS TL | H78: BS V-STEEL REP | I78: 26014 | J78: 15608.4 | K78: 4281 | L78: 3286340428118 | M78: Neuf | N78: GROS GENIE CIVIL
A79: BRIDGESTONE | B79: 18 | D79: 33 | E79: ** | G79: PN BRI 18.00 - 33 VRQP*2 TL | H79: BS V-STEEL ROCK QU | I79: 8438 | J79: 5062.8 | K79: 4826 | L79: 3286340482615 | M79: Neuf | N79: GROS GENIE CIVIL
A80: BRIDGESTONE | B80: 16 | D80: 25 | E80: ** | G80: PN BRI 16.00 - 25 VHB *2 TL | H80: BS V-STEEL H-BLOCK | I80: 5177 | J80: 3106.2 | K80: 1052 | L80: 3286340105217 | M80: Neuf | N80: PETIT GENIE CIVIL
A81: BRIDGESTONE | B81: 20.5 | D81: 25 | E81: ** | G81: PN BRI 20.5R25 *2 VSDL D2A TL | H81: BS VSDL D2A | I81: 7420 | J81: 4452 | K81: 69361 | L81: 3286346936112 | M81: Neuf | N81: PETIT GENIE CIVIL
A82: BRIDGESTONE | B82: 29.5 | D82: 25 | E82: ** | G82: PN BRI 29.5R25 VSDL*2 TL | H82: BS VSDL D2A | I82: 18928 | J82: 11356.8 | K82: 5034 | L82: 3286340503419 | M82: Neuf | N82: GROS GENIE CIVIL
A83: BRIDGESTONE | B83: 35 | C83: 65 | D83: 33 | E83: ** | G83: PN BRI 35/65R33 *2 VSNT D2A TL | H83: BS V-STEEL N-TRACT | I83: 19494 | J83: 11696.4 | K83: 1751 | L83: 3286340175111 | M83: Neuf | N83: GROS GENIE CIVIL
A84: BRIDGESTONE | B84: 29.5 | D84: 25 | E84: 208 | F84: A2 | G84: PN BRI 29.5R25 208 A2 *1 VJT D2A TL | H84: BS V-STEEL J-TRACT | I84: 11041 | J84: 6624.6 | K84: 4821 | L84: 3286340482110 | M84: Neuf | N84: GROS GENIE CIVIL
A85: BRIDGESTONE | B85: 26.5 | D85: 25 | G85: PN BRI 26.5 R25 VMDL L2A | H85: BS VMDL | I85: 12705 | J85: 7623 | K85: 25724 | L85: 3286342572413 | M85: Neuf | N85: PETIT GENIE CIVIL
A86: BRIDGESTONE | B86: 875 | C86: 65 | D86: 29 | G86: PN BRI 875/65R29 MS VLTS DE2 TL | H86: BS V-STEEL L-TRACT | I86: 16205 | J86: 9723 | K86: 4731 | L86: 3286340473118 | M86: Neuf | N86: GROS GENIE CIVIL
A87: BRIDGESTONE | B87: 21 | D87: 33 | E87: ** | G87: PN BRI 21.00R33 *2 VMTP E2A TL | H87: BS V-STEEL M TRAC | I87: 11746 | J87: 7047.6 | K87: 1100 | L87: 3286340110013 | M87: Neuf | N87: GROS GENIE CIVIL
A88: BRIDGESTONE | B88: 27 | D88: 49 | E88: ** | G88: PN BRI 27.00R49 *2 VRDP E2A LS TL | H88: BS VRDP | I88: 29132 | J88: 17479.2 | K88: 69537 | L88: 3286346953713 | M88: Neuf | N88: GROS GENIE CIVIL
A89: BRIDGESTONE | B89: 12 | D89: 20 | E89: *** | G89: PN BRI 12.00R20 *3 VCHS 1DU TT | H89: BS VCHS | I89: 2243 | J89: 1345.8 | K89: 1638 | L89: 3286340163811 | M89: Neuf | N89: PETIT GENIE CIVIL
A90: BRIDGESTONE | B90: 15.5 | D90: 25 | E90: * | G90: PN BRI 15.5R25 *1 VSDL D2A TL | H90: BS VSDL D2A | I90: 4701 | J90: 2820.6 | K90: 1640 | L90: 3286340164016 | M90: Neuf | N90: PETIT GENIE CIVIL
A91: BRIDGESTONE | B91: 29.5 | D91: 25 | E91: ** | G91: PN BRI 29.5R25 *2 VSNT D2A | H91: BS V-STEEL N-TRACT | I91: 12019 | J91: 7211.4 | K91: 2767 | L91: 3286340276719 | M91: Neuf | N91: GROS GENIE CIVIL
A92: BRIDGESTONE | B92: 50 | C92: 65 | D92: 51 | E92: ** | G92: PN BRI 50/65R51 *2 VSDL D2A | H92: BS VSDL D2A | I92: 86870 | J92: 52122 | K92: 2148 | L92: 3286340214810 | M92: Neuf | N92: GROS GENIE CIVIL
A93: BRIDGESTONE | B93: 35 | C93: 65 | D93: 33 | E93: ** | G93: PN BRI 35/65R33 *2 VSNL D2A TL | H93: BS V-STEEL N-LUG | I93: 19516 | J93: 11709.6 | K93: 1227 | L93: 3286340122719 | M93: Neuf | N93: GROS GENIE CIVIL
A94: BRIDGESTONE | B94: 750 | C94: 65 | D94: 25 | E94: * | G94: PN BRI 750/65R25 *1 VTS D2A | H94: BS V-STEEL TRACTIO | I94: 8107 | J94: 4864.2 | K94: 1642 | L94: 3286340164214 | M94: Neuf | N94: GROS GENIE CIVIL
A95: BRIDGESTONE | B95: 35 | C95: 65 | D95: 33 | E95: 225 | F95: A8 | G95: PN BRI 35/65R33 VSNT MS DUH TL | H95: BS V-STEEL N-TRACT | I95: 19494 | J95: 11696.4 | K95: 6764 | L95: 3286340676410 | M95: Neuf | N95: GROS GENIE CIVIL
A96: BRIDGESTONE | B96: 16 | D96: 25 | E96: 200 | F96: A5 | G96: PN BRI 16.00 - 25 VCHD *2 1DU TL | H96: BS V-STEEL CONTAIN | I96: 5860 | J96: 3516 | K96: 69532 | L96: 3286346953218 | M96: Neuf | N96: PETIT GENIE CIVIL
A97: BRIDGESTONE | B97: 480 | C97: 95 | D97: 25 | G97: PN BRI 480/95R25 VPCS | H97: BS VPCS | I97: 6372 | J97: 3823.2 | K97: 30864 | L97: 3286343086414 | M97: Neuf | N97: GROS GENIE CIVIL
A98: BRIDGESTONE | B98: 37.25 | D98: 35 | E98: ** | G98: PN BRI 37.25R35 *2 VLT E2A TL | H98: BS V-STEEL L-TRACT | I98: 22880 | J98: 13728 | K98: 69558 | L98: 3286346955816 | M98: Neuf | N98: GROS GENIE CIVIL
A99: BRIDGESTONE | B99: 10 | D99: 16.5 | E99: 8PR | G99: PN BRI 10 - 16.5 8PR FG L2 TL | H99: BS FAST GRIP | I99: 721 | J99: 432.6 | K99: 73892 | L99: 3286347389214 | M99: Neuf | N99: PETIT GENIE CIVIL
A100: BRIDGESTONE | B100: 27 | D100: 49 | G100: PN BRI 27.00 R49 MASTERCORE VRDU | H100: BS MASTERCORE VRDU | I100: 30588 | J100: 18352.8 | K100: 31033 | L100: 3286343103319 | M100: Neuf | N100: GROS GENIE CIVIL
A101: BRIDGESTONE | B101: 24 | D101: 35 | E101: *** | G101: PN BRI 24.00 R35 VMTD 3E | H101: BS V-STEEL M-TRACT | I101: 14864 | J101: 8918.4 | K101: 30860 | L101: 3286343086018 | M101: Neuf | N101: GROS GENIE CIVIL
A102: BRIDGESTONE | B102: 11 | D102: 20 | E102: 16PR | G102: PN BRI 11.00 - 20 16 PR FG G-2 1H TT | H102: BS FAST GRIP | I102: 1095 | J102: 657 | K102: 64382 | L102: 3286346438210 | M102: Neuf | N102: PETIT GENIE CIVIL
A103: BRIDGESTONE | B103: 14 | D103: 24 | E103: *** | G103: PN BRI 14.00R24 *3 VHB 1DU GANTRY TT | H103: BS V-STEEL H-BLOCK | I103: 3554 | J103: 2132.4 | K103: 64365 | L103: 3286346436513 | M103: Neuf | N103: PETIT GENIE CIVIL
A104: BRIDGESTONE | B104: 24 | D104: 35 | E104: ** | G104: PN BRI 24.00R35 *2 VRQP E2A TL | H104: BS V-STEEL ROCK QU | I104: 15461 | J104: 9276.6 | K104: 2913 | L104: 3286340291316 | M104: Neuf | N104: GROS GENIE CIVIL
A105: BRIDGESTONE | B105: 29.5 | D105: 25 | E105: 216 | F105: A2 | G105: PN BRI 29.5 R25 216A2 VJT D2A 2E | H105: BS V-STEEL J-TRACT | I105: 11041 | J105: 6624.6 | K105: 7537 | L105: 3286340753715 | M105: Neuf | N105: PETIT GENIE CIVIL
A106: BRIDGESTONE | B106: 16 | D106: 25 | E106: ** | G106: PN BRI 16.00R25 *2 VRLS 1DU TL | H106: BS V-STEEL R-LUG S | I106: 4849 | J106: 2909.4 | K106: 69486 | L106: 3286346948610 | M106: Neuf | N106: PETIT GENIE CIVIL
A107: BRIDGESTONE | B107: 26.5 | D107: 25 | E107: ** | G107: PN BRI 26.5R25 *2 VSDL D2A BT TL | H107: BS VSDL D2A | I107: 13395 | J107: 8037 | K107: 69423 | L107: 3286346942311 | M107: Neuf | N107: GROS GENIE CIVIL
A108: BRIDGESTONE | B108: 20.5 | D108: 25 | E108: 16PR | G108: PN BRI 20.5 - 25 16PR FG DG2 TL | H108: BS FAST GRIP | I108: 2413 | J108: 1447.8 | K108: 69129 | L108: 3286346912918 | M108: Neuf | N108: PETIT GENIE CIVIL
A109: BRIDGESTONE | B109: 21 | D109: 33 | E109: ** | G109: PN BRI 21.00R33 *2 VRLS E2A TL | H109: BS V-STEEL R-LUG S | I109: 11174 | J109: 6704.4 | K109: 3037 | L109: 3286340303712 | M109: Neuf | N109: GROS GENIE CIVIL
A110: BRIDGESTONE | B110: 29.5 | D110: 29 | E110: ** | G110: PN BRI 29.5R29 *2 VSDL D2A TL | H110: BS VSDL D2A | I110: 21731 | J110: 13038.6 | K110: 69411 | L110: 3286346941116 | M110: Neuf | N110: GROS GENIE CIVIL
A111: BRIDGESTONE | B111: 17.5 | D111: 25 | E111: 12PR | G111: PN BRI 17.5 - 25 FG12 DG2 | H111: BS FAST GRIP | I111: 2197 | J111: 1318.2 | K111: 69306 | L111: 3286346930615 | M111: Neuf | N111: PETIT GENIE CIVIL
A112: BRIDGESTONE | B112: 24 | D112: 35 | E112: ** | G112: PN BRI 24.00R35 *2 VMTP E2A TL | H112: BS V-STEEL M TRAC | I112: 14248 | J112: 8548.8 | K112: 69403 | L112: 3286346940317 | M112: Neuf | N112: GROS GENIE CIVIL
A113: BRIDGESTONE | B113: 8.25 | D113: 15 | E113: ** | G113: PN BRI 8.25R15 *2 VSDL D2A TT | H113: BS VSDL D2A | I113: 1562 | J113: 937.2 | K113: 64367 | L113: 3286346436711 | M113: Neuf | N113: PETIT GENIE CIVIL
A114: BRIDGESTONE | B114: 14 | D114: 24 | E114: ** | G114: PN BRI 14.00R24 *2 VSMS D2A TT | H114: BS V-STEEL SMOOTH | I114: 5932 | J114: 3559.2 | K114: 1646 | L114: 3286340164610 | M114: Neuf | N114: PETIT GENIE CIVIL
A115: BRIDGESTONE | B115: 10 | D115: 20 | E115: 166 | F115: A5 | G115: PN BRI 10.00 R20 166A5 VCHS TT | H115: BS VCHS | I115: 1929 | J115: 1157.4 | K115: 30771 | L115: 3286343077115 | M115: Neuf | N115: PETIT GENIE CIVIL
A116: BRIDGESTONE | B116: 10 | D116: 15 | E116: ** | G116: PN BRI 10.00R15 *2 VSDL D2A TT | H116: BS VSDL D2A | I116: 1946 | J116: 1167.6 | K116: 69557 | L116: 3286346955717 | M116: Neuf | N116: PETIT GENIE CIVIL
A117: BRIDGESTONE | B117: 875 | C117: 65 | D117: 29 | G117: PN BRI 875/65R29 *1 VTS D2A | H117: BS V-STEEL TRACTIO | I117: 13515 | J117: 8109 | K117: 69481 | L117: 3286346948115 | M117: Neuf | N117: GROS GENIE CIVIL
A118: BRIDGESTONE | B118: 21 | D118: 25 | E118: 40PR | G118: PN BRI 21.00 - 25 40 PR RL 1DU TL | H118: BS R-LUG | I118: 9463 | J118: 5677.8 | K118: 69480 | L118: 3286346948016 | M118: Neuf | N118: PETIT GENIE CIVIL
A119: BRIDGESTONE | B119: 29.5 | D119: 29 | E119: ** | G119: PN BRI 29.5R29 *1 VSMS D2A | H119: BS V-STEEL SMOOTH | I119: 22718 | J119: 13630.8 | K119: 1644 | L119: 3286340164412 | M119: Neuf | N119: GROS GENIE CIVIL
A120: BRIDGESTONE | B120: 33.25 | D120: 29 | E120: ** | G120: PN BRI 33.25R29 *2 VLT E2A | H120: BS V-STEEL L-TRACT | I120: 17595 | J120: 10557 | K120: 1961 | L120: 3286340196116 | M120: Neuf | N120: GROS GENIE CIVIL
A121: BRIDGESTONE | B121: 18 | D121: 25 | E121: 214 | G121: PN BRI 18.00R25 *3 VCHSZ 1DU TL | H121: BS VCHS | I121: 6991 | J121: 4194.6 | K121: 69459 | L121: 3286346945916 | M121: Neuf | N121: PETIT GENIE CIVIL
A122: BRIDGESTONE | B122: 525 | C122: 80 | D122: 25 | E122: 179 | F122: E | G122: PN BRI 525/80R25 *2 177 E VHS TL | H122: BS V-STEEL HIGHWAY | I122: 5818 | J122: 3490.8 | K122: 69479 | L122: 3286346947910 | M122: Neuf | N122: GROS GENIE CIVIL
A123: BRIDGESTONE | B123: 12 | D123: 20 | E123: *** | G123: PN BRI 12.00R20 *3 VCH 1DU TT | H123: BS VCH | I123: 2017 | J123: 1210.2 | K123: 64319 | L123: 3286346431914 | M123: Neuf | N123: PETIT GENIE CIVIL
A124: BRIDGESTONE | B124: 14 | D124: 24 | E124: *** | G124: PN BRI 14.00R24 *3 VCH 1DU RC TT | H124: BS VCH | I124: 4619 | J124: 2771.4 | K124: 64312 | L124: 3286346431211 | M124: Neuf | N124: PETIT GENIE CIVIL
A125: BRIDGESTONE | B125: 23.5 | D125: 25 | E125: * | G125: PN BRI 23.5R25 *1 VUT DG2 TL | H125: BS V-STEEL ULTRA T | I125: 5622 | J125: 3373.2 | K125: 69388 | L125: 3286346938819 | M125: Neuf | N125: PETIT GENIE CIVIL
A126: BRIDGESTONE | B126: 20.5 | D126: 25 | E126: 186 | F126: A2 | G126: PN BRI 20.5R25 186 A2 VLT DE2 TL | H126: BS V-STEEL L-TRACT | I126: 4573 | J126: 2743.8 | K126: 69369 | L126: 3286346936914 | M126: Neuf | N126: PETIT GENIE CIVIL
A127: BRIDGESTONE | B127: 26.5 | D127: 25 | E127: 202 | F127: A2 | G127: PN BRI 26.5R25 202 A2 VLT DE2 L2 L3 T | H127: BS V-STEEL L-TRACT | I127: 8040 | J127: 4824 | K127: 69370 | L127: 3286346937010 | M127: Neuf | N127: GROS GENIE CIVIL
A128: BRIDGESTONE | B128: 23.5 | D128: 25 | E128: 195 | F128: A2 | G128: PN BRI 23.5R25 195 A VLT DE2 TL | H128: BS V-STEEL L-TRACT | I128: 5673 | J128: 3403.8 | K128: 69371 | L128: 3286346937119 | M128: Neuf | N128: PETIT GENIE CIVIL
A129: BRIDGESTONE | B129: 18 | D129: 25 | E129: ** | G129: PN BRI 18.00R25 *2 VSMS 1DU TL | H129: BS V-STEEL SMOOTH | I129: 8907 | J129: 5344.2 | K129: 69333 | L129: 3286346933319 | M129: Neuf | N129: PETIT GENIE CIVIL
A130: BRIDGESTONE | B130: 26.5 | D130: 25 | E130: 202 | F130: A2 | G130: PN BRI 26.5R25 202 A VSDTZ D2A TL | H130: BS V-STEEL SUPER D | I130: 11047 | J130: 6628.2 | K130: 69471 | L130: 3286346947118 | M130: Neuf | N130: GROS GENIE CIVIL
A131: BRIDGESTONE | B131: 29.5 | D131: 25 | E131: 208 | F131: A2 | G131: PN BRI 29.5R25 208 A VSDTZ D2A TL | H131: BS V-STEEL SUPER D | I131: 16257 | J131: 9754.2 | K131: 69473 | L131: 3286346947316 | M131: Neuf | N131: GROS GENIE CIVIL
A132: BRIDGESTONE | B132: 45 | C132: 65 | D132: 39 | E132: * | G132: PN BRI 45/65R39 *1 VSDL D2A TL | H132: BS VSDL D2A | I132: 48873 | J132: 29323.8 | K132: 69445 | L132: 3286346944513 | M132: Neuf | N132: GROS GENIE CIVIL
A133: BRIDGESTONE | B133: 23.5 | D133: 25 | E133: 195 | F133: A2 | G133: PN BRI 23.5R25 *1 VSDTZ D2A A TL | H133: BS V-STEEL SUPER D | I133: 8496 | J133: 5097.6 | K133: 69454 | L133: 3286346945411 | M133: Neuf | N133: PETIT GENIE CIVIL
A134: BRIDGESTONE | B134: 12 | D134: 24 | E134: ** | G134: PN BRI 12.00R24 *2 VSMS L4 L5 L5S TL | H134: BS V-STEEL SMOOTH | I134: 3676 | J134: 2205.6 | K134: 64290 | L134: 3286346429010 | M134: Neuf | N134: PETIT GENIE CIVIL
A135: BRIDGESTONE | B135: 23.5 | D135: 25 | G135: PN BRI 23.5R25 VSW DE2 TL | H135: BS SNOWED | I135: 6351 | J135: 3810.6 | K135: 69422 | L135: 3286346942212 | M135: Neuf | N135: PETIT GENIE CIVIL
A136: BRIDGESTONE | B136: 12 | D136: 20 | E136: ** | G136: PN BRI 12.00R20 *2 VSMS D2A TT | H136: BS V-STEEL SMOOTH | I136: 3940 | J136: 2364 | K136: 64329 | L136: 3286346432911 | M136: Neuf | N136: PETIT GENIE CIVIL
A137: BRIDGESTONE | B137: 35 | C137: 65 | D137: 33 | G137: PN BRI 35/65 - 33 *1 VSNTZ DE2 TL | H137: BS V-STEEL N-TRACT | I137: 19494 | J137: =I137*(1-VLOOKUP(A137,Datas_Remises,4,0)) -> 11696.4 | K137: 69475 | L137: 3286346947514 | M137: Neuf | N137: GROS GENIE CIVIL
A138: BRIDGESTONE | B138: 450 | C138: 95 | D138: 25 | G138: PN BRI 450/95R25 VPCS | H138: BS VPCS | I138: 5569 | J138: 3341.4 | K138: 30862 | L138: 3286343086216 | M138: Neuf | N138: PETIT GENIE CIVIL
A139: BRIDGESTONE | B139: 26.5 | D139: 25 | E139: 209 | F139: A2 | G139: PN BRI 26.5R25 209A2 VJT*2 D2A | H139: BS V-STEEL J-TRACT | I139: 7343 | J139: 4405.8 | K139: 6145 | L139: 3286340614511 | M139: Neuf | N139: PETIT GENIE CIVIL
A140: BRIDGESTONE | B140: 27 | D140: 49 | E140: ** | G140: PN BRI 27.00R49 *2 VRLS E4 TL | H140: BS V-STEEL R-LUG S | I140: 26281 | J140: 15768.6 | K140: 69096 | L140: 3286346909611 | M140: Neuf | N140: GROS GENIE CIVIL
A141: BRIDGESTONE | B141: 24 | D141: 35 | E141: ** | G141: PN BRI 24.00R35 *2 VMTP E4.5 TL | H141: BS V-STEEL M TRAC | I141: 14248 | J141: 8548.8 | K141: 69404 | L141: 3286346940416 | M141: Neuf | N141: GROS GENIE CIVIL
A142: BRIDGESTONE | B142: 18 | D142: 33 | E142: ** | G142: PN BRI 18.00R33 *2 VELS E4 TL | H142: BS V-STEEL E-LUG S | I142: 9008 | J142: 5404.8 | K142: 69071 | L142: 3286346907112 | M142: Neuf | N142: GROS GENIE CIVIL
A143: BRIDGESTONE | B143: 18 | D143: 33 | E143: ** | G143: PN BRI 18.00R33 *2 VMTP E4.5 TL | H143: BS V-STEEL M TRAC | I143: 7894 | J143: 4736.4 | K143: 69394 | L143: 3286346939410 | M143: Neuf | N143: GROS GENIE CIVIL
A144: BRIDGESTONE | B144: 21 | D144: 35 | E144: ** | G144: PN BRI 21.00R35 *2 VELS E4 TL | H144: BS V-STEEL E-LUG S | I144: 12815 | J144: 7689 | K144: 69080 | L144: 3286346908010 | M144: Neuf | N144: GROS GENIE CIVIL
A145: BRIDGESTONE | B145: 21 | D145: 35 | E145: ** | G145: PN BRI 21.00R35 *2 VMTP E4.5 TL | H145: BS V-STEEL M TRAC | I145: 13096 | J145: 7857.6 | K145: 69398 | L145: 3286346939816 | M145: Neuf | N145: GROS GENIE CIVIL
A146: BRIDGESTONE | B146: 30 | D146: 51 | E146: ** | G146: PN BRI 30.00R51 *2 VRLS E4 TL | H146: BS V-STEEL R-LUG S | I146: 41181 | J146: 24708.6 | K146: 69345 | L146: 3286346934514 | M146: Neuf | N146: GROS GENIE CIVIL
A147: BRIDGESTONE | B147: 13 | D147: 24 | E147: 12PR | G147: PN BRI 13.00 - 24 12 PR FG G2A TL | H147: BS FAST GRIP | I147: 1485 | J147: 891 | K147: 69186 | L147: 3286346918613 | M147: Neuf | N147: PETIT GENIE CIVIL
A148: BRIDGESTONE | B148: 15.5 | C148: 60 | D148: 18 | E148: 8PR | G148: PN BRI 15.5/60 - 18 8 PR FG L2 TL | H148: BS FAST GRIP | I148: 1129 | J148: 677.4 | K148: 74696 | L148: 3286347469619 | M148: Neuf | N148: PETIT GENIE CIVIL
A149: BRIDGESTONE | B149: 20.5 | D149: 25 | E149: * | G149: PN BRI 20.5R25 *1 VUT DG2 TL | H149: BS V-STEEL ULTRA T | I149: 4480 | J149: 2688 | K149: 69373 | L149: 3286346937317 | M149: Neuf | N149: PETIT GENIE CIVIL
A150: BRIDGESTONE | B150: 17.5 | D150: 25 | E150: * | G150: PN BRI 17.5R25 *1 VUT DG2 TL | H150: BS V-STEEL ULTRA T | I150: 2713 | J150: 1627.8 | K150: 69413 | L150: 3286346941314 | M150: Neuf | N150: PETIT GENIE CIVIL
A151: BRIDGESTONE | B151: 18 | D151: 25 | E151: 40PR | G151: PN BRI 18.00 - 25 40 PR RL 1DU | H151: BS RL 1DU | I151: 5009 | J151: 3005.4 | K151: 69213 | L151: 3286346921316 | M151: Neuf | N151: PETIT GENIE CIVIL
A152: BRIDGESTONE | B152: 15.5 | D152: 25 | E152: * | G152: PN BRI 15.5R25 *1 VUT DG2 TL | H152: BS V-STEEL ULTRA T | I152: 2113 | J152: 1267.8 | K152: 69386 | L152: 3286346938611 | M152: Neuf | N152: PETIT GENIE CIVIL
A153: BRIDGESTONE | B153: 445 | C153: 95 | D153: 25 | E153: 177 | F153: E | G153: PN BRI 445/95R25 177 E *2 VHS TL | H153: BS V-STEEL HIGHWAY | I153: 4184 | J153: 2510.4 | K153: 69501 | L153: 3286346950118 | M153: Neuf | N153: PETIT GENIE CIVIL
A154: BRIDGESTONE | B154: 35 | C154: 65 | D154: 33 | E154: ** | G154: PN BRI 35/65R33 V-STEEL D-LUG 2E | H154: BS VSDL D2A | I154: 21479 | J154: 12887.4 | K154: 1963 | L154: 3286340196314 | M154: Neuf | N154: GROS GENIE CIVIL
A155: BRIDGESTONE | B155: 365 | C155: 80 | D155: 20 | E155: 153 | F155: A2 | G155: PN BRI 365/80R20 *1 VUT L2 TL | H155: BS V-STEEL ULTRA T | I155: 1294 | J155: 776.4 | K155: 78102 | L155: 3286347810213 | M155: Neuf | N155: PETIT GENIE CIVIL
A156: BRIDGESTONE | B156: 15.5 | C156: 70 | D156: 18 | E156: 8PR | G156: PN BRI 15.5/70 - 18 8 PR FG L2 TL | H156: BS FAST GRIP | I156: 1068 | J156: 640.8 | K156: 48848 | L156: 3286344884811 | M156: Neuf | N156: PETIT GENIE CIVIL
A157: BRIDGESTONE | B157: 20.5 | D157: 25 | G157: PN BRI 20.5R25 *1 VSW DE2 TL | H157: BS SNOWED | I157: 4888 | J157: 2932.8 | K157: 69378 | L157: 3286346937812 | M157: Neuf | N157: PETIT GENIE CIVIL
A158: BRIDGESTONE | B158: 16 | D158: 20 | E158: 28PR | G158: PN BRI 16.00R20 *2 VSJ TT | H158: BS V-STEEL JAMAL | I158: 2438 | J158: 1462.8 | K158: 48579 | L158: 3286344857914 | M158: Neuf | N158: PETIT GENIE CIVIL
A159: BRIDGESTONE | B159: 26.5 | D159: 25 | E159: ** | G159: PN BRI 26.5R25 *2 VSMS 1DU TL | H159: BS V-STEEL SMOOTH | I159: 14330 | J159: 8598 | K159: 69409 | L159: 3286346940911 | M159: Neuf | N159: GROS GENIE CIVIL
A160: BRIDGESTONE | B160: 16 | D160: 25 | E160: 32PR | G160: PN BRI 16.00 - 25 32 PR RLS TL | H160: BS R-LUG S | I160: 5148 | J160: 3088.8 | K160: 69338 | L160: 3286346933814 | M160: Neuf | N160: PETIT GENIE CIVIL
A161: BRIDGESTONE | B161: 17.5 | D161: 25 | E161: * | G161: PN BRI 17.5R25 *1 VSW G2 TL | H161: BS SNOWED | I161: 3034 | J161: 1820.4 | K161: 69267 | L161: 3286346926717 | M161: Neuf | N161: PETIT GENIE CIVIL
A162: BRIDGESTONE | B162: 10 | D162: 20 | E162: 14PR | G162: PN BRI 10.00-20 14P FAST GRIP A1 TT | H162: BS FAST GRIP | I162: 821 | J162: 492.6 | K162: 64303 | L162: 3286346430313 | M162: Neuf | N162: PETIT GENIE CIVIL
A163: BRIDGESTONE | B163: 12 | D163: 20 | E163: 20PR | G163: PN BRI 12.00 - 20 20 PR RL 1DU TT | H163: BS R-LUG | I163: 1838 | J163: 1102.8 | K163: 64248 | L163: 3286346424817 | M163: Neuf | N163: PETIT GENIE CIVIL
A164: BRIDGESTONE | B164: 16 | D164: 25 | E164: ** | G164: PN BRI 16.00R25 *2 E1 VRLS TL | H164: BS V-STEEL R-LUG S | I164: 6148 | J164: 3688.8 | K164: 49449 | L164: 3286344944911 | M164: Neuf | N164: PETIT GENIE CIVIL
A165: BRIDGESTONE | B165: 12.5 | C165: 70 | D165: 16 | E165: 6PR | G165: PN BRI 12.5/70 - 16 6 PR FG L2 TL | H165: BS FAST GRIP | I165: 865 | J165: 519 | K165: 49097 | L165: 3286344909712 | M165: Neuf | N165: PETIT GENIE CIVIL
A166: BRIDGESTONE | B166: 10 | D166: 16.5 | E166: 6PR | G166: PN BRI 10 - 16.5 6 PR FG L2 TL | H166: BS FAST GRIP | I166: 721 | J166: 432.6 | K166: 48659 | L166: 3286344865919 | M166: Neuf | N166: PETIT GENIE CIVIL
A167: BRIDGESTONE | B167: 445 | C167: 80 | D167: 25 | E167: 170 | F167: E | G167: PN BRI 445/80R25 170E *2 VGT TL | H167: BS V-STEEL G-TRACT | I167: 4355 | J167: 2613 | K167: 49021 | L167: 3286344902119 | M167: Neuf | N167: PETIT GENIE CIVIL
A168: BRIDGESTONE | B168: 12.5 | D168: 15 | E168: 8PR | G168: PN BRI 33X12.50 - 15 8 PR FG L2 TT | H168: BS FAST GRIP | I168: 868 | J168: 520.8 | K168: 73942 | L168: 3286347394218 | M168: Neuf | N168: PETIT GENIE CIVIL
A169: BRIDGESTONE | B169: 21 | D169: 25 | G169: PN BRI 21.00R25 VSJ TL | H169: BS VSJ | I169: 8187 | J169: 4912.2 | K169: 69075 | L169: 3286346907518 | M169: Neuf | N169: PETIT GENIE CIVIL
A170: BRIDGESTONE | B170: 12.5 | C170: 65 | D170: 18 | E170: 8PR | G170: PN BRI 12.5/65 - 18 8 PR FG L2 TL | H170: BS FAST GRIP | I170: 938 | J170: 562.8 | K170: 73936 | L170: 3286347393617 | M170: Neuf | N170: PETIT GENIE CIVIL
A171: BRIDGESTONE | B171: 385 | C171: 95 | D171: 25 | E171: 170 | F171: E | G171: PN BRI 385/95R25 170E *3 VHS TL | H171: BS V-STEEL HIGHWAY | I171: 3181 | J171: 1908.6 | K171: 69336 | L171: 3286346933616 | M171: Neuf | N171: PETIT GENIE CIVIL
A172: BRIDGESTONE | B172: 385 | C172: 95 | D172: 24 | E172: 170 | F172: E | G172: PN BRI 385/95R24 170E *3 VHS TT | H172: BS V-STEEL HIGHWAY | I172: 3385 | J172: 2031 | K172: 64244 | L172: 3286346424411 | M172: Neuf | N172: PETIT GENIE CIVIL
A173: BRIDGESTONE | B173: 18 | D173: 33 | E173: ** | G173: PN BRI 18.00R33 *2 VMTP E2A LS TL | H173: BS V-STEEL M TRAC | I173: 7894 | J173: 4736.4 | K173: 69395 | L173: 3286346939519 | M173: Neuf | N173: GROS GENIE CIVIL
A174: BRIDGESTONE | B174: 18 | D174: 25 | E174: ** | G174: PN BRI 18.00R25 *2 VMTS E-4 LS TL | H174: BS V-STEEL M-TRACT | I174: 7263 | J174: 4357.8 | K174: 69064 | L174: 3286346906412 | M174: Neuf | N174: PETIT GENIE CIVIL
A175: BRIDGESTONE | B175: 23.5 | D175: 25 | E175: * | G175: PN BRI 23.5R25 *1 VSDL L4 L5 L5S TL | H175: BS VSDL D2A | I175: 9787 | J175: 5872.2 | K175: 69316 | L175: 3286346931612 | M175: Neuf | N175: PETIT GENIE CIVIL
A176: BRIDGESTONE | B176: 750 | C176: 65 | D176: 25 | E176: 202 | F176: A2 | G176: PN BRI 750/65R25 202 A VLT DE2 TL | H176: BS V-STEEL L-TRACT | I176: 6850 | J176: 4110 | K176: 69448 | L176: 3286346944810 | M176: Neuf | N176: GROS GENIE CIVIL
A177: BRIDGESTONE | B177: 650 | C177: 65 | D177: 25 | E177: * | G177: PN BRI 650/65R25 *1 VTSZ D2A TL | H177: BS V-STEEL TRACTIO | I177: 6175 | J177: 3705 | K177: 69468 | L177: 3286346946814 | M177: Neuf | N177: GROS GENIE CIVIL
A178: BRIDGESTONE | B178: 775 | C178: 65 | D178: 29 | E178: * | G178: PN BRI 775/65R29 *1 VTSZ D2A TL | H178: BS V-STEEL TRACTIO | I178: 13339 | J178: 8003.4 | K178: 69476 | L178: 3286346947613 | M178: Neuf | N178: GROS GENIE CIVIL
A179: BRIDGESTONE | B179: 24 | D179: 35 | E179: ** | G179: PN BRI 24.00R35 *2 VRLS E2A TL | H179: BS VRLS E2A | I179: 15063 | J179: 9037.8 | K179: 48603 | L179: 3286344860310 | M179: Neuf | N179: GROS GENIE CIVIL
A180: BRIDGESTONE | B180: 24 | D180: 35 | E180: ** | G180: PN BRI 24.00R35 *2 VRLS E2A LS TL | H180: BS V-STEEL R-LUG S | I180: 15063 | J180: 9037.8 | K180: 69087 | L180: 3286346908713 | M180: Neuf | N180: GROS GENIE CIVIL
A181: BRIDGESTONE | B181: 26.5 | D181: 25 | E181: * | G181: PN BRI 26.5R25 *1 VSDL L4 L5 L5S TL | H181: BS VSDL D2A | I181: 13395 | J181: 8037 | K181: 69303 | L181: 3286346930318 | M181: Neuf | N181: GROS GENIE CIVIL
A182: BRIDGESTONE | B182: 14 | D182: 24 | G182: PN BRI 14.00R24 *1 VKT G2 TL | H182: BS VKT | I182: 2226 | J182: 1335.6 | K182: 48368 | L182: 3286344836810 | M182: Neuf | N182: PETIT GENIE CIVIL
A183: BRIDGESTONE | B183: 13 | D183: 24 | E183: * | G183: PN BRI 13.00R24 *1 VUT DG2 G2 TL | H183: BS V-STEEL ULTRA T | I183: 2122 | J183: 1273.2 | K183: 69444 | L183: 3286346944414 | M183: Neuf | N183: PETIT GENIE CIVIL
A184: BRIDGESTONE | B184: 18 | D184: 33 | E184: 36PR | G184: PN BRI 18.00 - 33 36 PR ELS2 TL | H184: BS E-LUG S2 | I184: 7873 | J184: 4723.8 | K184: 69332 | L184: 3286346933210 | M184: Neuf | N184: GROS GENIE CIVIL
A185: BRIDGESTONE | B185: 14 | D185: 24 | E185: * | G185: PN BRI 14.00R24 *1 VUT DG2 G2 TL | H185: BS V-STEEL ULTRA T | I185: 2439 | J185: 1463.4 | K185: 69366 | L185: 3286346936617 | M185: Neuf | N185: PETIT GENIE CIVIL
A186: BRIDGESTONE | B186: 26.5 | D186: 25 | E186: * | G186: PN BRI 26.5R25 *1 VSMS L4 L5 L5S TL | H186: BS V-STEEL SMOOTH | I186: 14330 | J186: 8598 | K186: 69318 | L186: 3286346931810 | M186: Neuf | N186: GROS GENIE CIVIL
A187: BRIDGESTONE | B187: 23.5 | D187: 25 | E187: 185 | F187: B | G187: PN BRI 23.5R25 *2 VLT E2A CN185 TL | H187: BS V-STEEL L-TRACT | I187: 5673 | J187: 3403.8 | K187: 75251 | L187: 3286347525117 | M187: Neuf | N187: PETIT GENIE CIVIL
A188: BRIDGESTONE | B188: 45 | C188: 65 | D188: 45 | E188: * | G188: PN BRI 45/65R45 *1 VSDL L4 L5 L5S TL | H188: BS VSDL D2A | I188: 56645 | J188: 33987 | K188: 49486 | L188: 3286344948612 | M188: Neuf | N188: GROS GENIE CIVIL
A189: BRIDGESTONE | B189: 29.5 | D189: 25 | E189: * | G189: PN BRI 29.5R25 *1 VSDL L4 L5 L5S TL | H189: BS VSDL D2A | I189: 18928 | J189: 11356.8 | K189: 69313 | L189: 3286346931315 | M189: Neuf | N189: GROS GENIE CIVIL
A190: BRIDGESTONE | B190: 335 | C190: 80 | D190: 20 | E190: 147 | G190: PN BRI 335/80R20 DE2 136 B VUT | H190: BS V-STEEL ULTRA T | I190: 1063 | J190: 637.8 | K190: 78143 | L190: 3286347814310 | M190: Neuf | N190: PETIT GENIE CIVIL
A191: BRIDGESTONE | B191: 27 | D191: 49 | E191: ** | G191: PN BRI 27.00R49 VREV V-STEEL RO EA 2E | H191: BS VREV V-STEEL RO | I191: 30331 | J191: 18198.6 | K191: 10996 | L191: 3286341099614 | M191: Neuf | N191: GROS GENIE CIVIL
A192: BRIDGESTONE | B192: 27 | D192: 49 | E192: ** | G192: PN BRI 27.00R49 VMTP 2E E2A | H192: BS V-STEEL M TRAC | I192: 27524 | J192: 16514.4 | K192: 5498 | L192: 3286340549813 | M192: Neuf | N192: GROS GENIE CIVIL
A193: BRIDGESTONE | B193: 405 | C193: 70 | D193: 20 | E193: 155 | G193: PN BRI 405/70R20 DE2 143 B VUT TL | H193: BS V-STEEL ULTRA T | I193: 1419 | J193: 851.4 | K193: 78142 | L193: 3286347814211 | M193: Neuf | N193: PETIT GENIE CIVIL
A194: BRIDGESTONE | B194: 29.5 | D194: 29 | E194: ** | G194: PN BRI 29.5R29 *2 VKT E2 E3 TL | H194: BS VKT | I194: 15302 | J194: 9181.2 | K194: 69047 | L194: 3286346904715 | M194: Neuf | N194: GROS GENIE CIVIL
A195: BRIDGESTONE | B195: 25 | C195: 65 | D195: 25 | E195: ** | G195: PN BRI 25/65R25 *2 VKT E2 E3 TL | H195: BS VKT | I195: 5711 | J195: 3426.6 | K195: 69115 | L195: 3286346911515 | M195: Neuf | N195: GROS GENIE CIVIL
A196: BRIDGESTONE | B196: 12 | D196: 20 | E196: ** | G196: PN BRI 12.00R20 *2 D2A VSDL TT | H196: BS VSDL D2A | I196: 3387 | J196: 2032.2 | K196: 64362 | L196: 3286346436216 | M196: Neuf | N196: PETIT GENIE CIVIL
A197: BRIDGESTONE | B197: 23.5 | D197: 25 | E197: ** | G197: PN BRI 23.5R25 ** VSDL D2A | H197: BS VSDL D2A | I197: 9787 | J197: 5872.2 | K197: 69334 | L197: 3286346933418 | M197: Neuf | N197: PETIT GENIE CIVIL
A198: BRIDGESTONE | B198: 27 | D198: 49 | E198: ** | G198: PN BRI 27.00R49 VREV V-STEEL RO E2 2E | H198: BS VREV V-STEEL RO | I198: 30333 | J198: 18199.8 | K198: 10999 | L198: 3286341099911 | M198: Neuf | N198: GROS GENIE CIVIL
A199: BRIDGESTONE | B199: 10 | D199: 20 | E199: 14PR | G199: PN BRI 10.00 - 20 14 PR RL B CRT TT | H199: BS R-LUG | I199: 933 | J199: 559.8 | K199: 64145 | L199: 3286346414511 | M199: Neuf | N199: PETIT GENIE CIVIL
A200: BRIDGESTONE | B200: 27 | D200: 49 | E200: ** | G200: PN BRI 27.00R49 VREV V-STEEL RO E2 2E | H200: BS VREV V-STEEL RO | I200: 30333 | J200: 18199.8 | K200: 10998 | L200: 3286341099812 | M200: Neuf | N200: GROS GENIE CIVIL
A201: BRIDGESTONE | B201: 9 | D201: 20 | E201: ** | G201: PN BRI 9.00R20 2* D2A VSMS TT | H201: BS V-STEEL SMOOTH | I201: 2200 | J201: =I201*(1-VLOOKUP(A201,Datas_Remises,4,0)) -> 1320 | K201: 64328 | L201: 3286346432812 | M201: Neuf | N201: PETIT GENIE CIVIL
A202: BRIDGESTONE | B202: 18 | D202: 25 | E202: ** | G202: PN BRI 18.00R25 *2 VELS E4 TL | H202: BS V-STEEL E-LUG S | I202: 7263 | J202: 4357.8 | K202: 69062 | L202: 3286346906214 | M202: Neuf | N202: PETIT GENIE CIVIL
A203: BRIDGESTONE | B203: 16 | D203: 25 | G203: PN BRI 16.00R25 *2 VMTS E4 TL | H203: BS VMTS E4 | I203: 5913 | J203: 3547.8 | K203: 49652 | L203: 3286344965213 | M203: Neuf | N203: PETIT GENIE CIVIL
... 904 more rows

Sheet BRIDGESTONE
D2: Remise
D3: =Remises!$E$8 -> 0.4
A5: Actualisation au 04/04/2024
A7: REFERENCES PNEUMATIQUES | Q7: TARIFS
A8: CAI | B8: EAN | C8: Désignation | D8: Appellation | E8: Catégorie | F8: Profil | G8: Largeur | H8: Hauteur | I8: Structure | J8: Diamètre | K8: IC | L8: IV | M8: Conso. | N8: Frein. | O8: Bruit. | P8: Décibels. | Q8: Prix BF | R8: Prix Remisé
A9: 1015 | B9: 3286340101516 | C9: PN BRI 26.5R25 VJT MS DE2 TL | D9: 26525VJTMSTL | E9: GROS GENIE CIVIL | F9: BS V-STEEL J-TRACT | G9: 26.5 | I9: R | J9: 25 | K9: 202 | L9: A2 | P9: 0 | Q9: 7343 | R9: =Q9*(1-$D$3) -> 4405.8
A10: 1050 | B10: 3286340105019 | C10: PN BRI 20.5R25 *1 VJT D2A TL | D10: 20525VJTD2TL*1 | E10: PETIT GENIE CIVIL | F10: BS V-STEEL J-TRACT | G10: 20.5 | I10: R | J10: 25 | K10: * | P10: 0 | Q10: 4201 | R10: =Q10*(1-$D$3) -> 2520.6
A11: 1052 | B11: 3286340105217 | C11: PN BRI 16.00 - 25 VHB *2 TL | D11: 160025VHB*2TL | E11: PETIT GENIE CIVIL | F11: BS V-STEEL H-BLOCK | G11: 16 | I11: R | J11: 25 | K11: ** | P11: 0 | Q11: 5177 | R11: 3106.2
A12: 10996 | B12: 3286341099614 | C12: PN BRI 27.00R49 VREV V-STEEL RO EA 2E | D12: 270049VREVEA2E | E12: GROS GENIE CIVIL | F12: BS VREV V-STEEL RO | G12: 27 | I12: R | J12: 49 | K12: ** | P12: 0 | Q12: 30331 | R12: 18198.6
A13: 10998 | B13: 3286341099812 | C13: PN BRI 27.00R49 VREV V-STEEL RO E2 2E | D13: 270049VREVE22E | E13: GROS GENIE CIVIL | F13: BS VREV V-STEEL RO | G13: 27 | I13: R | J13: 49 | K13: ** | P13: 0 | Q13: 30333 | R13: 18199.8
A14: 10999 | B14: 3286341099911 | C14: PN BRI 27.00R49 VREV V-STEEL RO E2 2E | D14: 270049VREVE22ELS | E14: GROS GENIE CIVIL | F14: BS VREV V-STEEL RO | G14: 27 | I14: R | J14: 49 | K14: ** | P14: 0 | Q14: 30333 | R14: 18199.8
A15: 1100 | B15: 3286340110013 | C15: PN BRI 21.00R33 *2 VMTP E2A TL | D15: 210033VMTPETL*2 | E15: GROS GENIE CIVIL | F15: BS V-STEEL M TRAC | G15: 21 | I15: R | J15: 33 | K15: ** | P15: 0 | Q15: 11746 | R15: 7047.6
A16: 1227 | B16: 3286340122719 | C16: PN BRI 35/65R33 *2 VSNL D2A TL | D16: 356533VSNLDTL*2 | E16: GROS GENIE CIVIL | F16: BS V-STEEL N-LUG | G16: 35 | H16: 65 | I16: R | J16: 33 | K16: ** | P16: 0 | Q16: 19516 | R16: 11709.6
A17: 13811 | B17: 3286341381115 | C17: PN BRI 33.25 R29 VLTS 2E E2A | D17: 332529VSLTS2E | E17: GROS GENIE CIVIL | F17: BS V-STEEL L-TRACT | G17: 33.25 | I17: R | J17: 29 | K17: ** | P17: 0 | Q17: 19733 | R17: 11839.8
A18: 1638 | B18: 3286340163811 | C18: PN BRI 12.00R20 *3 VCHS 1DU TT | D18: 120020VCHS1TT*3 | E18: PETIT GENIE CIVIL | F18: BS VCHS | G18: 12 | I18: R | J18: 20 | K18: *** | P18: 0 | Q18: 2243 | R18: 1345.8
A19: 1640 | B19: 3286340164016 | C19: PN BRI 15.5R25 *1 VSDL D2A TL | D19: 15525VSDLDTL*1 | E19: PETIT GENIE CIVIL | F19: BS VSDL D2A | G19: 15.5 | I19: R | J19: 25 | K19: * | P19: 0 | Q19: 4701 | R19: 2820.6
A20: 1642 | B20: 3286340164214 | C20: PN BRI 750/65R25 *1 VTS D2A | D20: 7506525VTSD2*1 | E20: GROS GENIE CIVIL | F20: BS V-STEEL TRACTIO | G20: 750 | H20: 65 | I20: R | J20: 25 | K20: * | P20: 0 | Q20: 8107 | R20: 4864.2
A21: 1644 | B21: 3286340164412 | C21: PN BRI 29.5R29 *1 VSMS D2A | D21: 29529VSMSD*1 | E21: GROS GENIE CIVIL | F21: BS V-STEEL SMOOTH | G21: 29.5 | I21: R | J21: 29 | K21: ** | P21: 0 | Q21: 22718 | R21: 13630.8
A22: 1646 | B22: 3286340164610 | C22: PN BRI 14.00R24 *2 VSMS D2A TT | D22: 140024VSMSDTT*2 | E22: PETIT GENIE CIVIL | F22: BS V-STEEL SMOOTH | G22: 14 | I22: R | J22: 24 | K22: ** | P22: 0 | Q22: 5932 | R22: 3559.2
A23: 1751 | B23: 3286340175111 | C23: PN BRI 35/65R33 *2 VSNT D2A TL | D23: 356533VSNTDTL*2 | E23: GROS GENIE CIVIL | F23: BS V-STEEL N-TRACT | G23: 35 | H23: 65 | I23: R | J23: 33 | K23: ** | P23: 0 | Q23: 19494 | R23: 11696.4
A24: 17685 | B24: 3286341768510 | C24: PN BRI 29.5 R25 VSMS2 *2 D2A | D24: 29525STMS* | E24: GROS GENIE CIVIL | F24: BS V-STEEL SMOOTH | G24: 29.5 | I24: R | J24: 25 | P24: 0 | Q24: 20592 | R24: 12355.2
A25: 17692 | B25: 3286341769210 | C25: PN BRI 310/80R22.5 VPCT | D25: 31080225VPCT | E25: PETIT GENIE CIVIL | F25: BS VPCT | G25: 310 | H25: 80 | I25: R | J25: 22.5 | P25: 0 | Q25: 1487 | R25: 892.2
A26: 1961 | B26: 3286340196116 | C26: PN BRI 33.25R29 *2 VLT E2A | D26: 332529VLTE2*2 | E26: GROS GENIE CIVIL | F26: BS V-STEEL L-TRACT | G26: 33.25 | I26: R | J26: 29 | K26: ** | P26: 0 | Q26: 17595 | R26: 10557
A27: 1963 | B27: 3286340196314 | C27: PN BRI 35/65R33 V-STEEL D-LUG 2E | D27: 356533VSDL2E2E | E27: GROS GENIE CIVIL | F27: BS VSDL D2A | G27: 35 | H27: 65 | I27: R | J27: 33 | K27: ** | P27: 0 | Q27: 21479 | R27: 12887.4
A28: 2148 | B28: 3286340214810 | C28: PN BRI 50/65R51 *2 VSDL D2A | D28: 506551VSDLD*2 | E28: GROS GENIE CIVIL | F28: BS VSDL D2A | G28: 50 | H28: 65 | I28: R | J28: 51 | K28: ** | P28: 0 | Q28: 86870 | R28: 52122
A29: 22952 | B29: 3286342295213 | C29: PN BRI 33/65R29 V-STEEL D-LUG 2E | D29: 336529VSDL2E | E29: GROS GENIE CIVIL | F29: BS VSDL D2A | G29: 33 | H29: 65 | I29: R | J29: 29 | K29: ** | P29: 0 | Q29: 20466 | R29: 12279.6
A30: 23301 | B30: 3286342330112 | C30: PN BRI 450/95R25 VCHPZ | D30: 4509525VCHPZ | E30: PETIT GENIE CIVIL | F30: BS VCHPZ | G30: 450 | H30: 95 | I30: R | J30: 25 | K30: 204 | L30: A5 | P30: 0 | Q30: 5228 | R30: 3136.8
A31: 23434 | B31: 3286342343419 | C31: PN BRI 45/65R45 VSDL D2A 3E | D31: 456545VSDLD2A3E | E31: GROS GENIE CIVIL | F31: BS VSDL D2A | G31: 45 | H31: 65 | I31: R | J31: 45 | K31: *** | P31: 0 | Q31: 56645 | R31: 33987
A32: 25724 | B32: 3286342572413 | C32: PN BRI 26.5 R25 VMDL L2A | D32: 26525VMDLL2 | E32: PETIT GENIE CIVIL | F32: BS VMDL | G32: 26.5 | I32: R | J32: 25 | P32: 0 | Q32: 12705 | R32: 7623
A33: 2599 | B33: 3286340259910 | C33: PN BRI 550/65R25 *1 VTS D2A TL | D33: 5506525VTSD2TL*1 | E33: GROS GENIE CIVIL | F33: BS V-STEEL TRACTIO | G33: 550 | H33: 65 | I33: R | J33: 25 | K33: * | P33: 0 | Q33: 4622 | R33: 2773.2
A34: 2765 | B34: 3286340276511 | C34: PN BRI 26.5R25 *2 VSNT D2A | D34: 26525VSNTD*2 | E34: GROS GENIE CIVIL | F34: BS V-STEEL N-TRACT | G34: 26.5 | I34: R | J34: 25 | K34: ** | P34: 0 | Q34: 8785 | R34: 5271
A35: 2766 | B35: 3286340276610 | C35: PN BRI 29.5R25 *2 VSNT D2A TL | D35: 29525VSNTDTL*2 | E35: GROS GENIE CIVIL | F35: BS V-STEEL N-TRACT | G35: 29.5 | I35: R | J35: 25 | K35: ** | P35: 0 | Q35: 12019 | R35: 7211.4
A36: 2767 | B36: 3286340276719 | C36: PN BRI 29.5R25 *2 VSNT D2A | D36: 29525VSNTD*2 | E36: GROS GENIE CIVIL | F36: BS V-STEEL N-TRACT | G36: 29.5 | I36: R | J36: 25 | K36: ** | P36: 0 | Q36: 12019 | R36: 7211.4
A37: 28645 | B37: 3286342864518 | C37: PN BRI 35/65R33 STMS 2E | D37: 356533STMS2E | E37: GROS GENIE CIVIL | F37: BS V-STEEL SMOOTH | G37: 35 | H37: 65 | I37: R | J37: 33 | K37: ** | P37: 0 | Q37: 24486 | R37: 14691.6
A38: 2913 | B38: 3286340291316 | C38: PN BRI 24.00R35 *2 VRQP E2A TL | D38: 240035VRQPETL*2 | E38: GROS GENIE CIVIL | F38: BS V-STEEL ROCK QU | G38: 24 | I38: R | J38: 35 | K38: ** | P38: 0 | Q38: 15461 | R38: 9276.6
A39: 3037 | B39: 3286340303712 | C39: PN BRI 21.00R33 *2 VRLS E2A TL | D39: 210033VRLSETL*2 | E39: GROS GENIE CIVIL | F39: BS V-STEEL R-LUG S | G39: 21 | I39: R | J39: 33 | K39: ** | P39: 0 | Q39: 11174 | R39: 6704.4
A40: 30771 | B40: 3286343077115 | C40: PN BRI 10.00 R20 166A5 VCHS TT | D40: 100020VCHSTT166A5 | E40: PETIT GENIE CIVIL | F40: BS VCHS | G40: 10 | I40: R | J40: 20 | K40: 166 | L40: A5 | P40: 0 | Q40: 1929 | R40: 1157.4
A41: 30859 | B41: 3286343085912 | C41: PN BRI 24.00 R35 VMTD 3E | D41: 240035VMTD3E1 | E41: GROS GENIE CIVIL | F41: BS V-STEEL M-TRACT | G41: 24 | I41: R | J41: 35 | K41: *** | P41: 0 | Q41: 14864 | R41: 8918.4
A42: 30860 | B42: 3286343086018 | C42: PN BRI 24.00 R35 VMTD 3E | D42: 240035VMTD3E | E42: GROS GENIE CIVIL | F42: BS V-STEEL M-TRACT | G42: 24 | I42: R | J42: 35 | K42: *** | P42: 0 | Q42: 14864 | R42: 8918.4
A43: 30862 | B43: 3286343086216 | C43: PN BRI 450/95R25 VPCS | D43: 4509525VPCS | E43: PETIT GENIE CIVIL | F43: BS VPCS | G43: 450 | H43: 95 | I43: R | J43: 25 | P43: 0 | Q43: 5569 | R43: 3341.4
A44: 30864 | B44: 3286343086414 | C44: PN BRI 480/95R25 VPCS | D44: 4809525VPCS | E44: GROS GENIE CIVIL | F44: BS VPCS | G44: 480 | H44: 95 | I44: R | J44: 25 | P44: 0 | Q44: 6372 | R44: 3823.2
A45: 31033 | B45: 3286343103319 | C45: PN BRI 27.00 R49 MASTERCORE VRDU | D45: 270049MASTERCOREVRDU | E45: GROS GENIE CIVIL | F45: BS MASTERCORE VRDU | G45: 27 | I45: R | J45: 49 | P45: 0 | Q45: 30588 | R45: 18352.8
A46: 3109 | B46: 3286340310918 | C46: PN BRI 33.25R35 *2 VRL E1A TL | D46: 332535VRLE1TL*2 | E46: GROS GENIE CIVIL | F46: BS V-STEEL R-LUG | G46: 33.25 | I46: R | J46: 35 | K46: ** | P46: 0 | Q46: 28305 | R46: 16983
A47: 3210 | B47: 3286340321013 | C47: PN BRI 385/95R25 170F *3 VHS TL | D47: 3859525VHSTL170F*3 | E47: PETIT GENIE CIVIL | F47: BS V-STEEL HIGHWAY | G47: 385 | H47: 95 | I47: R | J47: 25 | K47: 170 | L47: F | P47: 0 | Q47: 3181 | R47: 1908.6
A48: 3253 | B48: 3286340325318 | C48: PN BRI 405/75R39 *2 VLT E2A | D48: 4057539VLTE2*2 | E48: GROS GENIE CIVIL | F48: BS V-STEEL L-TRACT | G48: 405 | H48: 75 | I48: R | J48: 39 | K48: ** | P48: 0 | Q48: 31571 | R48: 18942.6
A49: 3832 | B49: 3286340383219 | C49: PN BRI 9.5/65-15 6P RR TT | D49: 956515RRTTBS | E49: PETIT GENIE CIVIL | F49: BS RR | G49: 9.5 | H49: 65 | I49: - | J49: 15 | K49: 6PR | P49: 0 | Q49: 734 | R49: 440.4
A50: 3885 | B50: 3286340388511 | C50: PN BRI 14.00R24 *3 1DU VCH SZ TL | D50: 140024VCHSZTL*31DU | E50: PETIT GENIE CIVIL | F50: BS VCHS | G50: 14 | I50: R | J50: 24 | K50: 196 | L50: A5 | P50: 0 | Q50: 4580 | R50: 2748
A51: 4057 | B51: 3286340405713 | C51: PN BRI 45/65R45 *2 VSDL D2A | D51: 456545VSDLD*2 | E51: GROS GENIE CIVIL | F51: BS VSDL D2A | G51: 45 | H51: 65 | I51: R | J51: 45 | K51: ** | P51: 0 | Q51: 56645 | R51: 33987
A52: 4275 | B52: 3286340427517 | C52: PN BRI 27.00R49 *2 VREP E2A TL | D52: 270049VREPE*2 | E52: GROS GENIE CIVIL | F52: BS V-STEEL REP | G52: 27 | I52: R | J52: 49 | K52: ** | P52: 0 | Q52: 26014 | R52: 15608.4
A53: 4281 | B53: 3286340428118 | C53: PN BRI 27.00R49 *2 VREP E2A LS TL | D53: 270049VREPETL*2 | E53: GROS GENIE CIVIL | F53: BS V-STEEL REP | G53: 27 | I53: R | J53: 49 | K53: ** | P53: 0 | Q53: 26014 | R53: 15608.4
A54: 4730 | B54: 3286340473019 | C54: PN BRI 875/65R29 MS VLTS DE2 TL | D54: 8756529VLTSDTLMS2 | E54: GROS GENIE CIVIL | F54: BS V-STEEL L-TRACT | G54: 875 | H54: 65 | I54: R | J54: 29 | P54: 0 | Q54: 16205 | R54: 9723
A55: 4731 | B55: 3286340473118 | C55: PN BRI 875/65R29 MS VLTS DE2 TL | D55: 8756529VLTSDTLMS | E55: GROS GENIE CIVIL | F55: BS V-STEEL L-TRACT | G55: 875 | H55: 65 | I55: R | J55: 29 | P55: 0 | Q55: 16205 | R55: 9723
A56: 4819 | B56: 3286340481915 | C56: PN BRI 17.5R25 176 A2 *1 VJT D2A TL | D56: 17525VJTD2TL176A2*1 | E56: PETIT GENIE CIVIL | F56: BS V-STEEL J-TRACT | G56: 17.5 | I56: R | J56: 25 | K56: 176 | L56: A2 | P56: 0 | Q56: 2739 | R56: 1643.4
A57: 4821 | B57: 3286340482110 | C57: PN BRI 29.5R25 208 A2 *1 VJT D2A TL | D57: 29525VJTD2TL208A2*1 | E57: GROS GENIE CIVIL | F57: BS V-STEEL J-TRACT | G57: 29.5 | I57: R | J57: 25 | K57: 208 | L57: A2 | P57: 0 | Q57: 11041 | R57: 6624.6
A58: 4824 | B58: 3286340482417 | C58: PN BRI 24.00R35 *2 VRQP E2A | D58: 240035VRQPE*2 | E58: GROS GENIE CIVIL | F58: BS V-STEEL ROCK QU | G58: 24 | I58: R | J58: 35 | K58: ** | P58: 0 | Q58: 15461 | R58: 9276.6
A59: 4826 | B59: 3286340482615 | C59: PN BRI 18.00 - 33 VRQP*2 TL | D59: 180033VRQP*2TL | E59: GROS GENIE CIVIL | F59: BS V-STEEL ROCK QU | G59: 18 | I59: R | J59: 33 | K59: ** | P59: 0 | Q59: 8438 | R59: 5062.8
A60: 48347 | B60: 3286344834717 | C60: PN BRI 26.5 - 25 36PR STMS D2A TL | D60: 26525STMSDTL36PR | E60: PETIT GENIE CIVIL | F60: BS STMS D2A | G60: 26.5 | I60: - | J60: 25 | K60: 36PR | P60: 0 | Q60: 12564 | R60: 7538.4
A61: 48368 | B61: 3286344836810 | C61: PN BRI 14.00R24 *1 VKT G2 TL | D61: 140024VKTG2TL | E61: PETIT GENIE CIVIL | F61: BS VKT | G61: 14 | I61: R | J61: 24 | P61: 0 | Q61: 2226 | R61: 1335.6
A62: 48370 | B62: 3286344837015 | C62: PN BRI 15.5R25 *1 D2A LA VKT TL | D62: 15525LAVKTTL*1D2A | E62: PETIT GENIE CIVIL | F62: BS VKT | G62: 15.5 | I62: R | J62: 25 | K62: * | P62: 0 | Q62: 1871 | R62: 1122.6
A63: 48579 | B63: 3286344857914 | C63: PN BRI 16.00R20 *2 VSJ TT | D63: 160020VSJTT | E63: PETIT GENIE CIVIL | F63: BS V-STEEL JAMAL | G63: 16 | I63: R | J63: 20 | K63: 28PR | P63: 0 | Q63: 2438 | R63: 1462.8
A64: 48603 | B64: 3286344860310 | C64: PN BRI 24.00R35 *2 VRLS E2A TL | D64: 240035VRLSE2ATL | E64: GROS GENIE CIVIL | F64: BS VRLS E2A | G64: 24 | I64: R | J64: 35 | K64: ** | P64: 0 | Q64: 15063 | R64: 9037.8
A65: 48659 | B65: 3286344865919 | C65: PN BRI 10 - 16.5 6 PR FG L2 TL | D65: 10165FGL2TL6PR | E65: PETIT GENIE CIVIL | F65: BS FAST GRIP | G65: 10 | I65: - | J65: 16.5 | K65: 6PR | P65: 0 | Q65: 721 | R65: 432.6
A66: 48848 | B66: 3286344884811 | C66: PN BRI 15.5/70 - 18 8 PR FG L2 TL | D66: 1557018FGL2TL | E66: PETIT GENIE CIVIL | F66: BS FAST GRIP | G66: 15.5 | H66: 70 | I66: - | J66: 18 | K66: 8PR | P66: 0 | Q66: 1068 | R66: 640.8
A67: 4891 | B67: 3286340489119 | C67: PN BRI 21.00 - 33 *2 VRLS E2A LS TL | D67: 210033VRLSE2ALSTL*2 | E67: GROS GENIE CIVIL | F67: BS V-STEEL R-LUG S | G67: 21 | I67: R | J67: 33 | K67: ** | P67: 0 | Q67: 11174 | R67: 6704.4
A68: 49021 | B68: 3286344902119 | C68: PN BRI 445/80R25 170E *2 VGT TL | D68: 4458025VGTTL | E68: PETIT GENIE CIVIL | F68: BS V-STEEL G-TRACT | G68: 445 | H68: 80 | I68: R | J68: 25 | K68: 170 | L68: E | P68: 0 | Q68: 4355 | R68: 2613
A69: 49097 | B69: 3286344909712 | C69: PN BRI 12.5/70 - 16 6 PR FG L2 TL | D69: 1257016FGL2TL | E69: PETIT GENIE CIVIL | F69: BS FAST GRIP | G69: 12.5 | H69: 70 | I69: - | J69: 16 | K69: 6PR | P69: 0 | Q69: 865 | R69: 519
A70: 49449 | B70: 3286344944911 | C70: PN BRI 16.00R25 *2 E1 VRLS TL | D70: 160025E1VRLSTL | E70: PETIT GENIE CIVIL | F70: BS V-STEEL R-LUG S | G70: 16 | I70: R | J70: 25 | K70: ** | P70: 0 | Q70: 6148 | R70: 3688.8
A71: 49486 | B71: 3286344948612 | C71: PN BRI 45/65R45 *1 VSDL L4 L5 L5S TL | D71: 456545VSDLL4L5L5S | E71: GROS GENIE CIVIL | F71: BS VSDL D2A | G71: 45 | H71: 65 | I71: R | J71: 45 | K71: * | P71: 0 | Q71: 56645 | R71: 33987
A72: 49652 | B72: 3286344965213 | C72: PN BRI 16.00R25 *2 VMTS E4 TL | D72: 160025VMTSE4TL | E72: PETIT GENIE CIVIL | F72: BS VMTS E4 | G72: 16 | I72: R | J72: 25 | P72: 0 | Q72: 5913 | R72: 3547.8
A73: 5034 | B73: 3286340503419 | C73: PN BRI 29.5R25 VSDL*2 TL | D73: 29525VSDL*2TL | E73: GROS GENIE CIVIL | F73: BS VSDL D2A | G73: 29.5 | I73: R | J73: 25 | K73: ** | P73: 0 | Q73: 18928 | R73: 11356.8
A74: 5071 | B74: 3286340507110 | C74: PN BRI 35/65R33 *2 VSDT D2A TL | D74: 356533VSDTDTL*2 | E74: GROS GENIE CIVIL | F74: BS V-STEEL SUPER D | G74: 35 | H74: 65 | I74: R | J74: 33 | K74: 224 | L74: A2 | P74: 0 | Q74: 20584 | R74: =Q74*(1-$D$3) -> 12350.4
A75: 5480 | B75: 3286340548014 | C75: PN BRI 23.5R25 201A2 VJT*2 D2A | D75: 23525VJT201A2 | E75: PETIT GENIE CIVIL | F75: BS V-STEEL J-TRACT | G75: 23.5 | I75: R | J75: 25 | K75: 201 | L75: A2 | P75: 0 | Q75: 5470 | R75: 3282
A76: 5498 | B76: 3286340549813 | C76: PN BRI 27.00R49 VMTP 2E E2A | D76: 270049VMTP2E | E76: GROS GENIE CIVIL | F76: BS V-STEEL M TRAC | G76: 27 | I76: R | J76: 49 | K76: ** | P76: 0 | Q76: 27524 | R76: 16514.4
A77: 5500 | B77: 3286340550017 | C77: PN BRI 27.00R49 *2 VMTP E2A LS TL | D77: 270049VMTPETL*2 | E77: GROS GENIE CIVIL | F77: BS V-STEEL M TRAC | G77: 27 | I77: R | J77: 49 | K77: ** | P77: 0 | Q77: 27524 | R77: 16514.4
A78: 5512 | B78: 3286340551212 | C78: PN BRI 16.00R25 200 A VCHR IDU 0R | D78: 160025AVCHRI200 | E78: PETIT GENIE CIVIL | F78: BS V-STEEL CONTAIN | G78: 16 | I78: R | J78: 25 | K78: 200 | L78: A5 | P78: 0 | Q78: 5333 | R78: 3199.8
A79: 5513 | B79: 3286340551311 | C79: PN BRI 12.00R24 178 A8 VCHS IDU TT | D79: 120024A8VCHSITT178 | E79: PETIT GENIE CIVIL | F79: BS VCHS | G79: 12 | I79: R | J79: 24 | K79: 178 | L79: A5 | P79: 0 | Q79: 2567 | R79: 1540.2
A80: 5571 | B80: 3286340557115 | C80: PN BRI 20.5R25 *2 VSDR D2A | D80: 20525VSDRD*2 | E80: PETIT GENIE CIVIL | F80: BS V-STEEL DEEP RO | G80: 20.5 | I80: R | J80: 25 | K80: ** | P80: 0 | Q80: 7646 | R80: 4587.6
A81: 6145 | B81: 3286340614511 | C81: PN BRI 26.5R25 209A2 VJT*2 D2A | D81: 26525VJT209A2 | E81: PETIT GENIE CIVIL | F81: BS V-STEEL J-TRACT | G81: 26.5 | I81: R | J81: 25 | K81: 209 | L81: A2 | P81: 0 | Q81: 7343 | R81: 4405.8
A82: 64145 | B82: 3286346414511 | C82: PN BRI 10.00 - 20 14 PR RL B CRT TT | D82: 100020RLBCTT14PR | E82: PETIT GENIE CIVIL | F82: BS R-LUG | G82: 10 | I82: - | J82: 20 | K82: 14PR | P82: 0 | Q82: 933 | R82: 559.8
A83: 64224 | B83: 3286346422417 | C83: PN BRI 14.00 -24 R-LUG TT | D83: 140024RLUGTT | E83: PETIT GENIE CIVIL | F83: BS R-LUG | G83: 14 | I83: - | J83: 24 | P83: 0 | Q83: 2303 | R83: 1381.8
A84: 64244 | B84: 3286346424411 | C84: PN BRI 385/95R24 170E *3 VHS TT | D84: 3859524VHSTT | E84: PETIT GENIE CIVIL | F84: BS V-STEEL HIGHWAY | G84: 385 | H84: 95 | I84: R | J84: 24 | K84: 170 | L84: E | P84: 0 | Q84: 3385 | R84: 2031
A85: 64248 | B85: 3286346424817 | C85: PN BRI 12.00 - 20 20 PR RL 1DU TT | D85: 120020RL1DUTT | E85: PETIT GENIE CIVIL | F85: BS R-LUG | G85: 12 | I85: - | J85: 20 | K85: 20PR | P85: 0 | Q85: 1838 | R85: 1102.8
A86: 64250 | B86: 3286346425012 | C86: PN BRI 14.00R24 28PR RL 1DU TT | D86: 140024RL1DUTT28PR | E86: PETIT GENIE CIVIL | F86: BS R-LUG | G86: 14 | I86: - | J86: 24 | K86: 28PR | P86: 0 | Q86: 2925 | R86: 1755
A87: 64290 | B87: 3286346429010 | C87: PN BRI 12.00R24 *2 VSMS L4 L5 L5S TL | D87: 120024VSMSL4L5L5 | E87: PETIT GENIE CIVIL | F87: BS V-STEEL SMOOTH | G87: 12 | I87: R | J87: 24 | K87: ** | P87: 0 | Q87: 3676 | R87: 2205.6
A88: 64303 | B88: 3286346430313 | C88: PN BRI 10.00-20 14P FAST GRIP A1 TT | D88: 100020FGL2TT14PR | E88: PETIT GENIE CIVIL | F88: BS FAST GRIP | G88: 10 | I88: - | J88: 20 | K88: 14PR | P88: 0 | Q88: 821 | R88: 492.6
A89: 64311 | B89: 3286346431112 | C89: PN BRI 14.00R24 *3 1DU VCH TT | D89: 140024VCHTT*31DU | E89: PETIT GENIE CIVIL | F89: BS VCH | G89: 14 | I89: R | J89: 24 | K89: *** | P89: 0 | Q89: 4619 | R89: 2771.4
A90: 64312 | B90: 3286346431211 | C90: PN BRI 14.00R24 *3 VCH 1DU RC TT | D90: 140024VCH1DTT*3 | E90: PETIT GENIE CIVIL | F90: BS VCH | G90: 14 | I90: R | J90: 24 | K90: *** | P90: 0 | Q90: 4619 | R90: 2771.4
A91: 64319 | B91: 3286346431914 | C91: PN BRI 12.00R20 *3 VCH 1DU TT | D91: 120020VCH1DUTT | E91: PETIT GENIE CIVIL | F91: BS VCH | G91: 12 | I91: R | J91: 20 | K91: *** | P91: 0 | Q91: 2017 | R91: 1210.2
A92: 64328 | B92: 3286346432812 | C92: PN BRI 9.00R20 2* D2A VSMS TT | D92: 90020VSMSTT2*D2A | E92: PETIT GENIE CIVIL | F92: BS V-STEEL SMOOTH | G92: 9 | I92: R | J92: 20 | K92: ** | P92: 0 | Q92: 2200 | R92: 1320
A93: 64329 | B93: 3286346432911 | C93: PN BRI 12.00R20 *2 VSMS D2A TT | D93: 120020VSMSD2ATT | E93: PETIT GENIE CIVIL | F93: BS V-STEEL SMOOTH | G93: 12 | I93: R | J93: 20 | K93: ** | P93: 0 | Q93: 3940 | R93: 2364
A94: 64350 | B94: 3286346435011 | C94: PN BRI 10.00-20 16P FAST GRIP F TT | D94: 100020FGMULTT16PR | E94: PETIT GENIE CIVIL | F94: BS FAST GRIP F | G94: 10 | I94: - | J94: 20 | K94: 16PR | P94: 0 | Q94: 883 | R94: 529.8
A95: 64362 | B95: 3286346436216 | C95: PN BRI 12.00R20 *2 D2A VSDL TT | D95: 120020VSDLTT*2D2A | E95: PETIT GENIE CIVIL | F95: BS VSDL D2A | G95: 12 | I95: R | J95: 20 | K95: ** | P95: 0 | Q95: 3387 | R95: 2032.2
A96: 64364 | B96: 3286346436414 | C96: PN BRI 14.00R24 *3 1DU VCH SZ TT | D96: 140024VCHSZTT*31DU | E96: PETIT GENIE CIVIL | F96: BS VCHS | G96: 14 | I96: R | J96: 24 | K96: 196 | L96: A5 | P96: 0 | Q96: 4580 | R96: 2748
A97: 64365 | B97: 3286346436513 | C97: PN BRI 14.00R24 *3 VHB 1DU GANTRY TT | D97: 140024VHB1DTT*3 | E97: PETIT GENIE CIVIL | F97: BS V-STEEL H-BLOCK | G97: 14 | I97: R | J97: 24 | K97: *** | P97: 0 | Q97: 3554 | R97: 2132.4
A98: 64366 | B98: 3286346436612 | C98: PN BRI 12.00R24 *2 1DU VCH TT | D98: 120024VCHTT*21DU | E98: PETIT GENIE CIVIL | F98: BS VCH | G98: 12 | I98: R | J98: 24 | K98: ** | P98: 0 | Q98: 2391 | R98: 1434.6
A99: 64367 | B99: 3286346436711 | C99: PN BRI 8.25R15 *2 VSDL D2A TT | D99: 82515VSDLDTT*2 | E99: PETIT GENIE CIVIL | F99: BS VSDL D2A | G99: 8.25 | I99: R | J99: 15 | K99: ** | P99: 0 | Q99: 1562 | R99: 937.2
A100: 64382 | B100: 3286346438210 | C100: PN BRI 11.00 - 20 16 PR FG G-2 1H TT | D100: 110020FGG2TT16PR | E100: PETIT GENIE CIVIL | F100: BS FAST GRIP | G100: 11 | I100: - | J100: 20 | K100: 16PR | P100: 0 | Q100: 1095 | R100: 657
A101: 6607 | B101: 3286340660716 | C101: PN BRI 27.00R49 VMTP* TL | D101: 270049VMTP*TL | E101: GROS GENIE CIVIL | F101: BS V-STEEL M TRAC | G101: 27 | I101: R | J101: 49 | K101: ** | P101: 0 | Q101: 27524 | R101: 16514.4
A102: 6764 | B102: 3286340676410 | C102: PN BRI 35/65R33 VSNT MS DUH TL | D102: 356533VSNTMTL | E102: GROS GENIE CIVIL | F102: BS V-STEEL N-TRACT | G102: 35 | H102: 65 | I102: R | J102: 33 | K102: 225 | L102: A8 | P102: 0 | Q102: 19494 | R102: 11696.4
A103: 69047 | B103: 3286346904715 | C103: PN BRI 29.5R29 *2 VKT E2 E3 TL | D103: 29529VKTE2E3TL | E103: GROS GENIE CIVIL | F103: BS VKT | G103: 29.5 | I103: R | J103: 29 | K103: ** | P103: 0 | Q103: 15302 | R103: 9181.2
A104: 69053 | B104: 3286346905316 | C104: PN BRI 14.00R25 *3 VRLS E2 E3 TL | D104: 140025VRLSE2E3TL | E104: PETIT GENIE CIVIL | F104: BS VRLS E2 E3 | G104: 14 | I104: R | J104: 25 | K104: *** | P104: 0 | Q104: 3643 | R104: 2185.8
A105: 69062 | B105: 3286346906214 | C105: PN BRI 18.00R25 *2 VELS E4 TL | D105: 180025VELSE4TL | E105: PETIT GENIE CIVIL | F105: BS V-STEEL E-LUG S | G105: 18 | I105: R | J105: 25 | K105: ** | P105: 0 | Q105: 7263 | R105: 4357.8
A106: 69064 | B106: 3286346906412 | C106: PN BRI 18.00R25 *2 VMTS E-4 LS TL | D106: 180025VMTSE2ALSTL | E106: PETIT GENIE CIVIL | F106: BS V-STEEL M-TRACT | G106: 18 | I106: R | J106: 25 | K106: ** | P106: 0 | Q106: 7263 | R106: 4357.8
A107: 69071 | B107: 3286346907112 | C107: PN BRI 18.00R33 *2 VELS E4 TL | D107: 180033VELSE4TL | E107: GROS GENIE CIVIL | F107: BS V-STEEL E-LUG S | G107: 18 | I107: R | J107: 33 | K107: ** | P107: 0 | Q107: 9008 | R107: 5404.8
A108: 69075 | B108: 3286346907518 | C108: PN BRI 21.00R25 VSJ TL | D108: 210025VSJTL | E108: PETIT GENIE CIVIL | F108: BS VSJ | G108: 21 | I108: R | J108: 25 | P108: 0 | Q108: 8187 | R108: 4912.2
A109: 69080 | B109: 3286346908010 | C109: PN BRI 21.00R35 *2 VELS E4 TL | D109: 210035VELSE4TL | E109: GROS GENIE CIVIL | F109: BS V-STEEL E-LUG S | G109: 21 | I109: R | J109: 35 | K109: ** | P109: 0 | Q109: 12815 | R109: 7689
A110: 69087 | B110: 3286346908713 | C110: PN BRI 24.00R35 *2 VRLS E2A LS TL | D110: 240035VRLSE2ALSTL | E110: GROS GENIE CIVIL | F110: BS V-STEEL R-LUG S | G110: 24 | I110: R | J110: 35 | K110: ** | P110: 0 | Q110: 15063 | R110: 9037.8
A111: 69096 | B111: 3286346909611 | C111: PN BRI 27.00R49 *2 VRLS E4 TL | D111: 270049VRLSE4TL | E111: GROS GENIE CIVIL | F111: BS V-STEEL R-LUG S | G111: 27 | I111: R | J111: 49 | K111: ** | P111: 0 | Q111: 26281 | R111: 15768.6
A112: 69115 | B112: 3286346911515 | C112: PN BRI 25/65R25 *2 VKT E2 E3 TL | D112: 256525VKTE2E3TL | E112: GROS GENIE CIVIL | F112: BS VKT | G112: 25 | H112: 65 | I112: R | J112: 25 | K112: ** | P112: 0 | Q112: 5711 | R112: 3426.6
A113: 69118 | B113: 3286346911812 | C113: PN BRI 15.5 - 25 12PR FG D2A TL | D113: 15525FGD2ATL12PR | E113: PETIT GENIE CIVIL | F113: BS FAST GRIP | G113: 15.5 | I113: - | J113: 25 | K113: 12PR | P113: 0 | Q113: 1938 | R113: 1162.8
A114: 69129 | B114: 3286346912918 | C114: PN BRI 20.5 - 25 16PR FG DG2 TL | D114: 20525FGDG2TL16PR | E114: PETIT GENIE CIVIL | F114: BS FAST GRIP | G114: 20.5 | I114: - | J114: 25 | K114: 16PR | P114: 0 | Q114: 2413 | R114: 1447.8
A115: 69186 | B115: 3286346918613 | C115: PN BRI 13.00 - 24 12 PR FG G2A TL | D115: 130024FGG2ATL | E115: PETIT GENIE CIVIL | F115: BS FAST GRIP | G115: 13 | I115: - | J115: 24 | K115: 12PR | P115: 0 | Q115: 1485 | R115: 891
A116: 69213 | B116: 3286346921316 | C116: PN BRI 18.00 - 25 40 PR RL 1DU | D116: 180025RL40 | E116: PETIT GENIE CIVIL | F116: BS RL 1DU | G116: 18 | I116: - | J116: 25 | K116: 40PR | P116: 0 | Q116: 5009 | R116: 3005.4
A117: 69267 | B117: 3286346926717 | C117: PN BRI 17.5R25 *1 VSW G2 TL | D117: 17525VSWG2TL | E117: PETIT GENIE CIVIL | F117: BS SNOWED | G117: 17.5 | I117: R | J117: 25 | K117: * | P117: 0 | Q117: 3034 | R117: 1820.4
A118: 69303 | B118: 3286346930318 | C118: PN BRI 26.5R25 *1 VSDL L4 L5 L5S TL | D118: 26525VSDLL4L5L5S | E118: GROS GENIE CIVIL | F118: BS VSDL D2A | G118: 26.5 | I118: R | J118: 25 | K118: * | P118: 0 | Q118: 13395 | R118: 8037
A119: 69306 | B119: 3286346930615 | C119: PN BRI 17.5 - 25 FG12 DG2 | D119: 17525FG12D | E119: PETIT GENIE CIVIL | F119: BS FAST GRIP | G119: 17.5 | I119: - | J119: 25 | K119: 12PR | P119: 0 | Q119: 2197 | R119: 1318.2
A120: 69313 | B120: 3286346931315 | C120: PN BRI 29.5R25 *1 VSDL L4 L5 L5S TL | D120: 29525VSDLL4L5L5S | E120: GROS GENIE CIVIL | F120: BS VSDL D2A | G120: 29.5 | I120: R | J120: 25 | K120: * | P120: 0 | Q120: 18928 | R120: 11356.8
A121: 69316 | B121: 3286346931612 | C121: PN BRI 23.5R25 *1 VSDL L4 L5 L5S TL | D121: 23525VSDLL4L5L5S | E121: PETIT GENIE CIVIL | F121: BS VSDL D2A | G121: 23.5 | I121: R | J121: 25 | K121: * | P121: 0 | Q121: 9787 | R121: 5872.2
A122: 69318 | B122: 3286346931810 | C122: PN BRI 26.5R25 *1 VSMS L4 L5 L5S TL | D122: 26525VSMSL4L5L5S | E122: GROS GENIE CIVIL | F122: BS V-STEEL SMOOTH | G122: 26.5 | I122: R | J122: 25 | K122: * | P122: 0 | Q122: 14330 | R122: 8598
A123: 69332 | B123: 3286346933210 | C123: PN BRI 18.00 - 33 36 PR ELS2 TL | D123: 180033ELS2TL | E123: GROS GENIE CIVIL | F123: BS E-LUG S2 | G123: 18 | I123: - | J123: 33 | K123: 36PR | P123: 0 | Q123: 7873 | R123: 4723.8
A124: 69333 | B124: 3286346933319 | C124: PN BRI 18.00R25 *2 VSMS 1DU TL | D124: 180025VSMS1DUTL | E124: PETIT GENIE CIVIL | F124: BS V-STEEL SMOOTH | G124: 18 | I124: R | J124: 25 | K124: ** | P124: 0 | Q124: 8907 | R124: 5344.2
A125: 69334 | B125: 3286346933418 | C125: PN BRI 23.5R25 ** VSDL D2A | D125: 23525VSTEELDLUG | E125: PETIT GENIE CIVIL | F125: BS VSDL D2A | G125: 23.5 | I125: R | J125: 25 | K125: ** | P125: 0 | Q125: 9787 | R125: 5872.2
A126: 69336 | B126: 3286346933616 | C126: PN BRI 385/95R25 170E *3 VHS TL | D126: 3859525VHSTL | E126: PETIT GENIE CIVIL | F126: BS V-STEEL HIGHWAY | G126: 385 | H126: 95 | I126: R | J126: 25 | K126: 170 | L126: E | P126: 0 | Q126: 3181 | R126: 1908.6
A127: 69338 | B127: 3286346933814 | C127: PN BRI 16.00 - 25 32 PR RLS TL | D127: 160025RLSTL | E127: PETIT GENIE CIVIL | F127: BS R-LUG S | G127: 16 | I127: - | J127: 25 | K127: 32PR | P127: 0 | Q127: 5148 | R127: 3088.8
A128: 69345 | B128: 3286346934514 | C128: PN BRI 30.00R51 *2 VRLS E4 TL | D128: 300051VRLSE4TL | E128: GROS GENIE CIVIL | F128: BS V-STEEL R-LUG S | G128: 30 | I128: R | J128: 51 | K128: ** | P128: 0 | Q128: 41181 | R128: 24708.6
A129: 69353 | B129: 3286346935313 | C129: PN BRI 21.00R35 ELS2 1DU TL | D129: 210035ELS21DUTL | E129: GROS GENIE CIVIL | F129: BS E-LUG S2 | G129: 21 | I129: - | J129: 35 | K129: 40PR | P129: 0 | Q129: 15414 | R129: 9248.4
A130: 69354 | B130: 3286346935412 | C130: PN BRI 37.5R39 *2 VKT E2 E3 TL | D130: 37539VKTE2E3TL | E130: GROS GENIE CIVIL | F130: BS VKT | G130: 37.5 | I130: R | J130: 39 | K130: ** | P130: 0 | Q130: 28777 | R130: 17266.2
A131: 69356 | B131: 3286346935610 | C131: PN BRI 29.5R25 200 B VLT DE2 TL | D131: 29525BVLTDE2TL | E131: GROS GENIE CIVIL | F131: BS V-STEEL L-TRACT | G131: 29.5 | I131: R | J131: 25 | K131: 208 | L131: A2 | P131: 0 | Q131: 10845 | R131: 6507
A132: 69360 | B132: 3286346936013 | C132: PN BRI 26.5R25 *2 VSDL D2A | D132: 26525VSDLD*2 | E132: GROS GENIE CIVIL | F132: BS VSDL D2A | G132: 26.5 | I132: R | J132: 25 | K132: ** | P132: 0 | Q132: 13395 | R132: 8037
A133: 69361 | B133: 3286346936112 | C133: PN BRI 20.5R25 *2 VSDL D2A TL | D133: 20525VSDLDTL*2 | E133: PETIT GENIE CIVIL | F133: BS VSDL D2A | G133: 20.5 | I133: R | J133: 25 | K133: ** | P133: 0 | Q133: 7420 | R133: 4452
A134: 69366 | B134: 3286346936617 | C134: PN BRI 14.00R24 *1 VUT DG2 G2 TL | D134: 140024VUTDG2G2TL | E134: PETIT GENIE CIVIL | F134: BS V-STEEL ULTRA T | G134: 14 | I134: R | J134: 24 | K134: * | P134: 0 | Q134: 2439 | R134: 1463.4
A135: 69369 | B135: 3286346936914 | C135: PN BRI 20.5R25 186 A2 VLT DE2 TL | D135: 20525A2VLTDE2TL | E135: PETIT GENIE CIVIL | F135: BS V-STEEL L-TRACT | G135: 20.5 | I135: R | J135: 25 | K135: 186 | L135: A2 | P135: 0 | Q135: 4573 | R135: 2743.8
A136: 69370 | B136: 3286346937010 | C136: PN BRI 26.5R25 202 A2 VLT DE2 L2 L3 T | D136: 26525A2VLTDE2L2L | E136: GROS GENIE CIVIL | F136: BS V-STEEL L-TRACT | G136: 26.5 | I136: R | J136: 25 | K136: 202 | L136: A2 | P136: 0 | Q136: 8040 | R136: 4824
A137: 69371 | B137: 3286346937119 | C137: PN BRI 23.5R25 195 A VLT DE2 TL | D137: 23525AVLTDE2TL | E137: PETIT GENIE CIVIL | F137: BS V-STEEL L-TRACT | G137: 23.5 | I137: R | J137: 25 | K137: 195 | L137: A2 | P137: 0 | Q137: 5673 | R137: 3403.8
A138: 69372 | B138: 3286346937218 | C138: PN BRI 23.5R25 *2 VSDL D2A TL | D138: 23525VSDLDTL*2 | E138: PETIT GENIE CIVIL | F138: BS VSDL D2A | G138: 23.5 | I138: R | J138: 25 | K138: ** | P138: 0 | Q138: 9787 | R138: =Q138*(1-$D$3) -> 5872.2
A139: 69373 | B139: 3286346937317 | C139: PN BRI 20.5R25 *1 VUT DG2 TL | D139: 20525VUTDG2TL | E139: PETIT GENIE CIVIL | F139: BS V-STEEL ULTRA T | G139: 20.5 | I139: R | J139: 25 | K139: * | P139: 0 | Q139: 4480 | R139: 2688
A140: 69378 | B140: 3286346937812 | C140: PN BRI 20.5R25 *1 VSW DE2 TL | D140: 20525VSWG2TL | E140: PETIT GENIE CIVIL | F140: BS SNOWED | G140: 20.5 | I140: R | J140: 25 | P140: 0 | Q140: 4888 | R140: 2932.8
A141: 69386 | B141: 3286346938611 | C141: PN BRI 15.5R25 *1 VUT DG2 TL | D141: 15525VUTDG2TL | E141: PETIT GENIE CIVIL | F141: BS V-STEEL ULTRA T | G141: 15.5 | I141: R | J141: 25 | K141: * | P141: 0 | Q141: 2113 | R141: 1267.8
A142: 69388 | B142: 3286346938819 | C142: PN BRI 23.5R25 *1 VUT DG2 TL | D142: 23525VUTDG2TL | E142: PETIT GENIE CIVIL | F142: BS V-STEEL ULTRA T | G142: 23.5 | I142: R | J142: 25 | K142: * | P142: 0 | Q142: 5622 | R142: 3373.2
A143: 69391 | B143: 3286346939113 | C143: PN BRI 26.5R25 *2 VLTS E3 E4 TL | D143: 26525VLTSE3E4TL | E143: GROS GENIE CIVIL | F143: BS V-STEEL L-TRACT | G143: 26.5 | I143: R | J143: 25 | K143: 193 | L143: B | P143: 0 | Q143: 8932 | R143: 5359.2
A144: 69392 | B144: 3286346939212 | C144: PN BRI 29.5R25 *2 VLTS E3 E4 TL | D144: 29525VLTSE3E4TL | E144: GROS GENIE CIVIL | F144: BS V-STEEL L-TRACT | G144: 29.5 | I144: R | J144: 25 | K144: 200 | L144: B | P144: 0 | Q144: 11561 | R144: 6936.6
A145: 69394 | B145: 3286346939410 | C145: PN BRI 18.00R33 *2 VMTP E4.5 TL | D145: 180033VMTPE45TL | E145: GROS GENIE CIVIL | F145: BS V-STEEL M TRAC | G145: 18 | I145: R | J145: 33 | K145: ** | P145: 0 | Q145: 7894 | R145: 4736.4
A146: 69395 | B146: 3286346939519 | C146: PN BRI 18.00R33 *2 VMTP E2A LS TL | D146: 180033VMTPE2ALSTL | E146: GROS GENIE CIVIL | F146: BS V-STEEL M TRAC | G146: 18 | I146: R | J146: 33 | K146: ** | P146: 0 | Q146: 7894 | R146: 4736.4
A147: 69398 | B147: 3286346939816 | C147: PN BRI 21.00R35 *2 VMTP E4.5 TL | D147: 210035VMTPE45TL | E147: GROS GENIE CIVIL | F147: BS V-STEEL M TRAC | G147: 21 | I147: R | J147: 35 | K147: ** | P147: 0 | Q147: 13096 | R147: 7857.6
A148: 69402 | B148: 3286346940218 | C148: PN BRI 24.00R35 *2 VMTP E1A TL | D148: 240035VMTPE1TL*2 | E148: GROS GENIE CIVIL | F148: BS VMTP E1A | G148: 24 | I148: R | J148: 35 | K148: ** | P148: 0 | Q148: 14248 | R148: 8548.8
A149: 69403 | B149: 3286346940317 | C149: PN BRI 24.00R35 *2 VMTP E2A TL | D149: 240035VMTPETL*2 | E149: GROS GENIE CIVIL | F149: BS V-STEEL M TRAC | G149: 24 | I149: R | J149: 35 | K149: ** | P149: 0 | Q149: 14248 | R149: 8548.8
A150: 69404 | B150: 3286346940416 | C150: PN BRI 24.00R35 *2 VMTP E4.5 TL | D150: 240035VMTPE45TL | E150: GROS GENIE CIVIL | F150: BS V-STEEL M TRAC | G150: 24 | I150: R | J150: 35 | K150: ** | P150: 0 | Q150: 14248 | R150: 8548.8
A151: 69408 | B151: 3286346940812 | C151: PN BRI 17.5R25 *2 VSMS D2A TL | D151: 17525VSMSDTL*2 | E151: PETIT GENIE CIVIL | F151: BS V-STEEL SMOOTH | G151: 17.5 | I151: R | J151: 25 | K151: ** | P151: 0 | Q151: 6756 | R151: 4053.6
A152: 69409 | B152: 3286346940911 | C152: PN BRI 26.5R25 *2 VSMS 1DU TL | D152: 26525VSMS1DUTL | E152: GROS GENIE CIVIL | F152: BS V-STEEL SMOOTH | G152: 26.5 | I152: R | J152: 25 | K152: ** | P152: 0 | Q152: 14330 | R152: 8598
A153: 69410 | B153: 3286346941017 | C153: PN BRI 29.5R25 *2 VSDL D2A | D153: 29525VSDLD*2 | E153: GROS GENIE CIVIL | F153: BS VSDL D2A | G153: 29.5 | I153: R | J153: 25 | K153: ** | P153: 0 | Q153: 18928 | R153: 11356.8
A154: 69411 | B154: 3286346941116 | C154: PN BRI 29.5R29 *2 VSDL D2A TL | D154: 29529VSDLDTL*2 | E154: GROS GENIE CIVIL | F154: BS VSDL D2A | G154: 29.5 | I154: R | J154: 29 | K154: ** | P154: 0 | Q154: 21731 | R154: 13038.6
A155: 69413 | B155: 3286346941314 | C155: PN BRI 17.5R25 *1 VUT DG2 TL | D155: 17525VUTDG2TL | E155: PETIT GENIE CIVIL | F155: BS V-STEEL ULTRA T | G155: 17.5 | I155: R | J155: 25 | K155: * | P155: 0 | Q155: 2713 | R155: 1627.8
A156: 69422 | B156: 3286346942212 | C156: PN BRI 23.5R25 VSW DE2 TL | D156: 23525VSWDE2TL | E156: PETIT GENIE CIVIL | F156: BS SNOWED | G156: 23.5 | I156: R | J156: 25 | P156: 0 | Q156: 6351 | R156: 3810.6
A157: 69423 | B157: 3286346942311 | C157: PN BRI 26.5R25 *2 VSDL D2A BT TL | D157: 26525VSDLDTL*2 | E157: GROS GENIE CIVIL | F157: BS VSDL D2A | G157: 26.5 | I157: R | J157: 25 | K157: ** | P157: 0 | Q157: 13395 | R157: 8037
A158: 69429 | B158: 3286346942915 | C158: PN BRI 18.00R25 ** VSMS D2A | D158: 180025VSMSD2A2E | E158: PETIT GENIE CIVIL | F158: BS V-STEEL SMOOTH | G158: 18 | I158: R | J158: 25 | P158: 0 | Q158: 8907 | R158: 5344.2
A159: 69444 | B159: 3286346944414 | C159: PN BRI 13.00R24 *1 VUT DG2 G2 TL | D159: 130024VUTDG2G2TL | E159: PETIT GENIE CIVIL | F159: BS V-STEEL ULTRA T | G159: 13 | I159: R | J159: 24 | K159: * | P159: 0 | Q159: 2122 | R159: 1273.2
A160: 69445 | B160: 3286346944513 | C160: PN BRI 45/65R39 *1 VSDL D2A TL | D160: 456539VSDLD2ATL | E160: GROS GENIE CIVIL | F160: BS VSDL D2A | G160: 45 | H160: 65 | I160: R | J160: 39 | K160: * | P160: 0 | Q160: 48873 | R160: 29323.8
A161: 69448 | B161: 3286346944810 | C161: PN BRI 750/65R25 202 A VLT DE2 TL | D161: 7506525AVLTDE2TL | E161: GROS GENIE CIVIL | F161: BS V-STEEL L-TRACT | G161: 750 | H161: 65 | I161: R | J161: 25 | K161: 202 | L161: A2 | P161: 0 | Q161: 6850 | R161: 4110
A162: 69454 | B162: 3286346945411 | C162: PN BRI 23.5R25 *1 VSDTZ D2A A TL | D162: 23525VSDTZD2AATL | E162: PETIT GENIE CIVIL | F162: BS V-STEEL SUPER D | G162: 23.5 | I162: R | J162: 25 | K162: 195 | L162: A2 | P162: 0 | Q162: 8496 | R162: 5097.6
A163: 69455 | B163: 3286346945510 | C163: PN BRI 23.5R25 *2 VSDT D2A | D163: 23525VSDTD*2 | E163: PETIT GENIE CIVIL | F163: BS V-STEEL SUPER D | G163: 23.5 | I163: R | J163: 25 | K163: 201 | L163: A2 | P163: 0 | Q163: 8496 | R163: 5097.6
A164: 69456 | B164: 3286346945619 | C164: PN BRI 45/65R45 *2 VSDL D2A TL | D164: 456545VSDLDTL*2 | E164: GROS GENIE CIVIL | F164: BS VSDL D2A | G164: 45 | H164: 65 | I164: R | J164: 45 | K164: ** | P164: 0 | Q164: 56645 | R164: 33987
A165: 69459 | B165: 3286346945916 | C165: PN BRI 18.00R25 *3 VCHSZ 1DU TL | D165: 180025VCHSZ1DUTL | E165: PETIT GENIE CIVIL | F165: BS VCHS | G165: 18 | I165: R | J165: 25 | K165: 214 | P165: 0 | Q165: 6991 | R165: 4194.6
A166: 69468 | B166: 3286346946814 | C166: PN BRI 650/65R25 *1 VTSZ D2A TL | D166: 6506525VTSZD2ATL | E166: GROS GENIE CIVIL | F166: BS V-STEEL TRACTIO | G166: 650 | H166: 65 | I166: R | J166: 25 | K166: * | P166: 0 | Q166: 6175 | R166: 3705
A167: 69470 | B167: 3286346947019 | C167: PN BRI 18.00R33 *3 VCHSZ 1DU TL | D167: 180033VCHSZTL*3 | E167: GROS GENIE CIVIL | F167: BS VCHS | G167: 18 | I167: R | J167: 33 | K167: 219 | L167: A5 | P167: 0 | Q167: 7708 | R167: 4624.8
A168: 69471 | B168: 3286346947118 | C168: PN BRI 26.5R25 202 A VSDTZ D2A TL | D168: 26525AVSDTZD2ATL | E168: GROS GENIE CIVIL | F168: BS V-STEEL SUPER D | G168: 26.5 | I168: R | J168: 25 | K168: 202 | L168: A2 | P168: 0 | Q168: 11047 | R168: 6628.2
A169: 69472 | B169: 3286346947217 | C169: PN BRI 26.5R25 *2 VSDT D2A TL | D169: 26525VSDTDTL*2 | E169: PETIT GENIE CIVIL | F169: BS V-STEEL SUPER D | G169: 26.5 | I169: R | J169: 25 | K169: 209 | L169: A2 | P169: 0 | Q169: 11047 | R169: 6628.2
A170: 69473 | B170: 3286346947316 | C170: PN BRI 29.5R25 208 A VSDTZ D2A TL | D170: 29525AVSDTZD2ATL | E170: GROS GENIE CIVIL | F170: BS V-STEEL SUPER D | G170: 29.5 | I170: R | J170: 25 | K170: 208 | L170: A2 | P170: 0 | Q170: 16257 | R170: 9754.2
A171: 69475 | B171: 3286346947514 | C171: PN BRI 35/65 - 33 *1 VSNTZ DE2 TL | D171: 356533VSNTZDE2TL | E171: GROS GENIE CIVIL | F171: BS V-STEEL N-TRACT | G171: 35 | H171: 65 | I171: R | J171: 33 | P171: 0 | Q171: 19494 | R171: 11696.4
A172: 69476 | B172: 3286346947613 | C172: PN BRI 775/65R29 *1 VTSZ D2A TL | D172: 7756529VTSZD2ATL | E172: GROS GENIE CIVIL | F172: BS V-STEEL TRACTIO | G172: 775 | H172: 65 | I172: R | J172: 29 | K172: * | P172: 0 | Q172: 13339 | R172: 8003.4
A173: 69479 | B173: 3286346947910 | C173: PN BRI 525/80R25 *2 177 E VHS TL | D173: 5258025EVHSTL | E173: GROS GENIE CIVIL | F173: BS V-STEEL HIGHWAY | G173: 525 | H173: 80 | I173: R | J173: 25 | K173: 179 | L173: E | P173: 0 | Q173: 5818 | R173: 3490.8
A174: 69480 | B174: 3286346948016 | C174: PN BRI 21.00 - 25 40 PR RL 1DU TL | D174: 210025RL1DUTL40PR | E174: PETIT GENIE CIVIL | F174: BS R-LUG | G174: 21 | I174: - | J174: 25 | K174: 40PR | P174: 0 | Q174: 9463 | R174: 5677.8
A175: 69481 | B175: 3286346948115 | C175: PN BRI 875/65R29 *1 VTS D2A | D175: 8756529VTSD2*1 | E175: GROS GENIE CIVIL | F175: BS V-STEEL TRACTIO | G175: 875 | H175: 65 | I175: R | J175: 29 | P175: 0 | Q175: 13515 | R175: 8109
A176: 69482 | B176: 3286346948214 | C176: PN BRI 24.00R35 *2 VMTP E2A S2 7 TL | D176: 240035VMTPETL*2BS | E176: GROS GENIE CIVIL | F176: BS V-STEEL M TRAC | G176: 24 | I176: R | J176: 35 | K176: ** | P176: 0 | Q176: 14248 | R176: 8548.8
A177: 69485 | B177: 3286346948511 | C177: PN BRI 29.5R25 VSNTZ DE2 | D177: 29525VSNTZ | E177: GROS GENIE CIVIL | F177: BS V-STEEL N-TRACT | G177: 29.5 | I177: R | J177: 25 | P177: 0 | Q177: 12019 | R177: 7211.4
A178: 69486 | B178: 3286346948610 | C178: PN BRI 16.00R25 *2 VRLS 1DU TL | D178: 160025VRLS1TL*2 | E178: PETIT GENIE CIVIL | F178: BS V-STEEL R-LUG S | G178: 16 | I178: R | J178: 25 | K178: ** | P178: 0 | Q178: 4849 | R178: 2909.4
A179: 69487 | B179: 3286346948719 | C179: PN BRI 26.5R25 VSNTZ DE2 TL | D179: 26525VSNTZTL | E179: GROS GENIE CIVIL | F179: BS V-STEEL N-TRACT | G179: 26.5 | I179: R | J179: 25 | P179: 0 | Q179: 8785 | R179: 5271
A180: 69488 | B180: 3286346948818 | C180: PN BRI 29.5R29 *1 VSNTZ DE2 TL | D180: 29529VSNTZDE2TL*1 | E180: GROS GENIE CIVIL | F180: BS V-STEEL N-TRACT | G180: 29.5 | I180: R | J180: 29 | P180: 0 | Q180: 16035 | R180: 9621
A181: 69489 | B181: 3286346948917 | C181: PN BRI 29.5R29 *2 VSDT D2A TL | D181: 29529VSDTDTL*2 | E181: GROS GENIE CIVIL | F181: BS V-STEEL SUPER D | G181: 29.5 | I181: R | J181: 29 | K181: 218 | L181: A2 | P181: 0 | Q181: 15477 | R181: 9286.2
A182: 69501 | B182: 3286346950118 | C182: PN BRI 445/95R25 177 E *2 VHS TL | D182: 4459525VHSTL | E182: PETIT GENIE CIVIL | F182: BS V-STEEL HIGHWAY | G182: 445 | H182: 95 | I182: R | J182: 25 | K182: 177 | L182: E | P182: 0 | Q182: 4184 | R182: 2510.4
A183: 69502 | B183: 3286346950217 | C183: PN BRI 29.5R25 *2 VSDT D2A | D183: 29525VSDTD*2 | E183: GROS GENIE CIVIL | F183: BS V-STEEL SUPER D | G183: 29.5 | I183: R | J183: 25 | K183: 216 | L183: A2 | P183: 0 | Q183: 16257 | R183: 9754.2
A184: 69503 | B184: 3286346950316 | C184: PN BRI 18.00 - 25 40 PR ELS2B TL | D184: 180025ELS2BTL40PR | E184: PETIT GENIE CIVIL | F184: BS ELS2 | G184: 18 | I184: - | J184: 25 | K184: 40PR | P184: 0 | Q184: 6929 | R184: 4157.4
A185: 69507 | B185: 3286346950712 | C185: PN BRI 505/95R25 *3 VHS | D185: 5059525VHS*3 | E185: PETIT GENIE CIVIL | F185: BS V-STEEL HIGHWAY | G185: 505 | H185: 95 | I185: R | J185: 25 | K185: 186 | L185: E | P185: 0 | Q185: 6107 | R185: 3664.2
A186: 69512 | B186: 3286346951214 | C186: PN BRI 20.5R25 DE2 VLTSZ TL | D186: 20525VLTSZTLDE2 | E186: PETIT GENIE CIVIL | F186: BS V-STEEL L-TRACT | G186: 20.5 | I186: R | J186: 25 | K186: 186 | L186: A2 | P186: 0 | Q186: 5069 | R186: 3041.4
A187: 69513 | B187: 3286346951313 | C187: PN BRI 23.5R25 DE2 VLTSZ | D187: 23525VLTSZDE2 | E187: PETIT GENIE CIVIL | F187: BS V-STEEL L-TRACT | G187: 23.5 | I187: R | J187: 25 | K187: 195 | L187: A2 | P187: 0 | Q187: 6362 | R187: 3817.2
A188: 69514 | B188: 3286346951412 | C188: PN BRI 35/65R33 ** VSDL BT D2A TL | D188: 356533VSDLBTL** | E188: GROS GENIE CIVIL | F188: BS VSDL D2A | G188: 35 | H188: 65 | I188: R | J188: 33 | K188: ** | P188: 0 | Q188: 21479 | R188: 12887.4
A189: 69527 | B189: 3286346952716 | C189: PN BRI 750/65R25 *2 VLTSZ E2A | D189: 7506525VLTSZ*2 | E189: GROS GENIE CIVIL | F189: BS V-STEEL L-TRACT | G189: 750 | H189: 65 | I189: R | J189: 25 | K189: 190 | L189: B | P189: 0 | Q189: 8392 | R189: 5035.2
A190: 69532 | B190: 3286346953218 | C190: PN BRI 16.00 - 25 VCHD *2 1DU TL | D190: 160025VCHD*TL | E190: PETIT GENIE CIVIL | F190: BS V-STEEL CONTAIN | G190: 16 | I190: R | J190: 25 | K190: 200 | L190: A5 | P190: 0 | Q190: 5860 | R190: 3516
A191: 69535 | B191: 3286346953515 | C191: PN BRI 23.5R25 MS VJTZ D2A TL | D191: 23525VJTZDTLMS | E191: PETIT GENIE CIVIL | F191: BS V-STEEL J-TRACT | G191: 23.5 | I191: R | J191: 25 | K191: 195 | L191: A2 | P191: 0 | Q191: 5470 | R191: 3282
A192: 69537 | B192: 3286346953713 | C192: PN BRI 27.00R49 *2 VRDP E2A LS TL | D192: 270049VRDPETL*2 | E192: GROS GENIE CIVIL | F192: BS VRDP | G192: 27 | I192: R | J192: 49 | K192: ** | P192: 0 | Q192: 29132 | R192: 17479.2
A193: 69552 | B193: 3286346955212 | C193: PN BRI 17.5R25 *2 VSDL L-5 TL | D193: 17525VSDLLTL*2 | E193: PETIT GENIE CIVIL | F193: BS VSDL D2A | G193: 17.5 | I193: R | J193: 25 | K193: ** | P193: 0 | Q193: 6062 | R193: 3637.2
A194: 69555 | B194: 3286346955519 | C194: PN BRI 18.00R33 VRQP | D194: 180033VRQP | E194: GROS GENIE CIVIL | F194: BS V-STEEL ROCK QU | G194: 18 | I194: R | J194: 33 | K194: ** | P194: 0 | Q194: 8438 | R194: 5062.8
A195: 69557 | B195: 3286346955717 | C195: PN BRI 10.00R15 *2 VSDL D2A TT | D195: 100015VSDLDTT*2 | E195: PETIT GENIE CIVIL | F195: BS VSDL D2A | G195: 10 | I195: R | J195: 15 | K195: ** | P195: 0 | Q195: 1946 | R195: 1167.6
A196: 69558 | B196: 3286346955816 | C196: PN BRI 37.25R35 *2 VLT E2A TL | D196: 372535VLTE2TL*2 | E196: GROS GENIE CIVIL | F196: BS V-STEEL L-TRACT | G196: 37.25 | I196: R | J196: 35 | K196: ** | P196: 0 | Q196: 22880 | R196: 13728
A197: 69560 | B197: 3286346956011 | C197: PN BRI 21.00 -35 40P R-LUG 1DU | D197: 210035RLUG1D40 | E197: PETIT GENIE CIVIL | F197: BS R-LUG | G197: 21 | I197: - | J197: 35 | K197: 40PR | P197: 0 | Q197: 8800 | R197: 5280
A198: 73892 | B198: 3286347389214 | C198: PN BRI 10 - 16.5 8PR FG L2 TL | D198: 10165FGL2TL8PR | E198: PETIT GENIE CIVIL | F198: BS FAST GRIP | G198: 10 | I198: - | J198: 16.5 | K198: 8PR | P198: 0 | Q198: 721 | R198: 432.6
A199: 73936 | B199: 3286347393617 | C199: PN BRI 12.5/65 - 18 8 PR FG L2 TL | D199: 1256518FGL2TL | E199: PETIT GENIE CIVIL | F199: BS FAST GRIP | G199: 12.5 | H199: 65 | I199: - | J199: 18 | K199: 8PR | P199: 0 | Q199: 938 | R199: 562.8
A200: 73942 | B200: 3286347394218 | C200: PN BRI 33X12.50 - 15 8 PR FG L2 TT | D200: 33125015FGL2TT8PR | E200: PETIT GENIE CIVIL | F200: BS FAST GRIP | G200: 12.5 | I200: - | J200: 15 | K200: 8PR | P200: 0 | Q200: 868 | R200: 520.8
A201: 74696 | B201: 3286347469619 | C201: PN BRI 15.5/60 - 18 8 PR FG L2 TL | D201: 1556018FGL2TL | E201: PETIT GENIE CIVIL | F201: BS FAST GRIP | G201: 15.5 | H201: 60 | I201: - | J201: 18 | K201: 8PR | P201: 0 | Q201: 1129 | R201: 677.4
A202: 75088 | B202: 3286347508813 | C202: PN BRI 20.5R25 *1 VSDL D2A TL | D202: 20525VSDLDTL*1 | E202: PETIT GENIE CIVIL | F202: BS VSDL D2A | G202: 20.5 | I202: R | J202: 25 | P202: 0 | Q202: 7420 | R202: =Q202*(1-$D$3) -> 4452
A203: 75243 | B203: 3286347524318 | C203: PN BRI 26.5 R25 VLT DE2 202A | D203: 26525VLTDE2202A2 | E203: PETIT GENIE CIVIL | F203: BS V-STEEL L-TRACT | G203: 26.5 | I203: R | J203: 25 | K203: 202 | L203: A2 | P203: 0 | Q203: 8040 | R203: 4824
... 10 more rows

Sheet GOOD YEAR
D2: Remise
D3: =Remises!$J$8 -> 0.28
A5: Actualisation au 04/04/2024
A7: REFERENCES PNEUMATIQUES | Q7: TARIFS
A8: CAI | B8: EAN | C8: Désignation | D8: Appellation | E8: Catégorie | F8: Profil | G8: Largeur | H8: Hauteur | I8: Structure | J8: Diamètre | K8: IC | L8: IV | M8: Conso. | N8: Frein. | O8: Bruit. | P8: Décibels. | Q8: Prix BF | R8: Prix Remisé
A9: 600000 | B9: 3398913861205 | C9: PN G.Y 12.00 - 24 20PR E3 HRL 4S TT | D9: 120024E3HRL4STT | E9: PETIT GENIE CIVIL | F9: GY HRL 4S | G9: 12 | I9: - | J9: 24 | K9: 20PR | P9: 0 | Q9: 2400 | R9: =Q9*(1-$D$3) -> 1728
A10: 600020 | B10: 3398915836416 | C10: PN G.Y 445/95R25 177 E GP-2B | D10: 4459525EGP2B | E10: PETIT GENIE CIVIL | F10: GY GP-2B | G10: 445 | H10: 95 | I10: R | J10: 25 | K10: 177 | L10: E | P10: 0 | Q10: 3424 | R10: =Q10*(1-$D$3) -> 2465.28
A11: 600035 | B11: 3398916036457 | C11: PN G.Y 18.00R25 185 B RL-4 ** | D11: 180025BRL4*185 | E11: PETIT GENIE CIVIL | F11: GY RL-4 ** | G11: 18 | I11: R | J11: 25 | K11: 185 | L11: B | P11: 0 | Q11: 6542 | R11: 4710.24
A12: 600043 | B12: 5452000219596 | C12: PN G.Y 20.5 - 25 PR16 HRL E/L TL | D12: 20525HRLETLPR16 | E12: PETIT GENIE CIVIL | F12: GY HRL 4S | G12: 20.5 | I12: - | J12: 25 | K12: 16PR | P12: 0 | Q12: 2014 | R12: 1450.08
A13: 600044 | B13: 3398916214244 | C13: PN G.Y 20.5 - 25 PR16 SGL E/L TL | D13: 20525SGLETLPR16 | E13: PETIT GENIE CIVIL | F13: GY SGL 2A | G13: 20.5 | I13: - | J13: 25 | K13: 16PR | P13: 0 | Q13: 1844 | R13: 1327.68
A14: 600359 | B14: 3398915814308 | C14: PN G.Y 16.00 -25 28P ELV-3A 4S | D14: 160025ELV3A28 | E14: PETIT GENIE CIVIL | F14: GY ELV3A | G14: 16 | I14: - | J14: 25 | K14: 28PR | P14: 0 | Q14: 3646 | R14: 2625.12
A15: 600381 | B15: 5452000220301 | C15: PN G.Y 14.00 - 24 16PR SGG 2A TL | D15: 140024SGG2ATL16PR | E15: PETIT GENIE CIVIL | F15: GY SGG 2A | G15: 14 | I15: - | J15: 24 | K15: 16PR | P15: 0 | Q15: 1626 | R15: 1170.72
A16: 600404 | B16: 3398916022962 | C16: PN G.Y 18.00 - 25 40PR ELV-4B 4S TL | D16: 180025ELV4B4STL | E16: PETIT GENIE CIVIL | F16: GY ELV-4B 4S | G16: 1800 | I16: - | J16: 25 | L16: P | P16: 0 | Q16: 4520 | R16: 3254.4
A17: 600818 | B17: 3398916092910 | C17: PN G.Y 18.00 - 33 PR36 ELV 4B 4S TL | D17: 180033ELV4B4STL | E17: GROS GENIE CIVIL | F17: GY ELV 4B 4S | G17: 18 | I17: - | J17: 33 | K17: 36PR | P17: 0 | Q17: 6890 | R17: 4960.8
A18: 600852 | B18: 3398915587615 | C18: PN G.Y 385/95R25 170 E GP-2B 4S | D18: 3859525EGP2B4S | E18: PETIT GENIE CIVIL | F18: GY GP-2B | G18: 385 | H18: 95 | I18: R | J18: 25 | K18: 170 | L18: E | P18: 0 | Q18: 2856 | R18: 2056.32
A19: 602027 | B19: 3398915585147 | C19: PN G.Y 15.5 - 25 12PR SGL D/L 2A | D19: 15525SGLD12PR | E19: PETIT GENIE CIVIL | F19: GY SGL 2A | G19: 15.5 | I19: - | J19: 25 | K19: 12PR | P19: 0 | Q19: 1214 | R19: 874.08
A20: 603166 | B20: 5452000299468 | C20: PN G.Y 23.5R25 24PR HRL-3A L3 4S | D20: 23525HRL3A24PR | E20: PETIT GENIE CIVIL | F20: GY HRL-3A L3 4S | G20: 23.5 | I20: - | J20: 25 | K20: 24PR | P20: 0 | Q20: 3322 | R20: 2391.84
A21: 603431 | B21: 5452000909336 | C21: PN G.Y 17.5 - 25 12PR L2 SGL D/L 2A 4S | D21: 17525L2SGLDL2A4 | E21: PETIT GENIE CIVIL | F21: GY SGL 2A | G21: 17.5 | I21: - | J21: 25 | K21: 12PR | P21: 0 | Q21: 1610 | R21: 1159.2
A22: 603432 | B22: 5452000909343 | C22: PN G.Y 17.5 - 25 16PR L2 SGL D/A 2A 4S | D22: 17525L2SGLDA2A4 | E22: PETIT GENIE CIVIL | F22: GY SGL 2A | G22: 17.5 | I22: - | J22: 25 | K22: 16PR | P22: 0 | Q22: 1694 | R22: 1219.68
A23: 603436 | B23: 5452000909633 | C23: PN G.Y 13.00 - 24 12PR SGG 2A TL | D23: 130024SGG2ATL | E23: PETIT GENIE CIVIL | F23: GY SGG 2A | G23: 13 | I23: - | J23: 24 | K23: 12PR | P23: 0 | Q23: 986 | R23: 709.92
A24: 603441 | B24: 5452000909695 | C24: PN G.Y 14.00 - 24 NHS 28 ELV-3A TT | D24: 140024ELV3ATTNHS28 | E24: PETIT GENIE CIVIL | F24: GY ELV-3A | G24: 14 | I24: - | J24: 24 | K24: 28PR | P24: 0 | Q24: 2226 | R24: 1602.72
A25: 603442 | B25: 5452000909701 | C25: PN G.Y 14.00 - 24 E3 HRL-3A 28 4S TT | D25: 140024E3HRL3ATT | E25: PETIT GENIE CIVIL | F25: GY HRL 4S | G25: 14 | I25: - | J25: 24 | K25: 28PR | P25: 0 | Q25: 1662 | R25: 1196.64
A26: 603444 | B26: 5452000909725 | C26: PN G.Y 17.5 - 25 16PR HRL D/L 3A 4S TL | D26: 17525HRLDL3A4ST | E26: PETIT GENIE CIVIL | F26: GY HRL 4S | G26: 17.5 | I26: - | J26: 25 | K26: 16PR | P26: 0 | Q26: 1868 | R26: 1344.96
A27: 603758 | B27: 5452000917331 | C27: PN G.Y 26.5R25 193 6S B TL-3A+ ** | D27: 26525BTL3A1936S | E27: GROS GENIE CIVIL | F27: GY TL-3A | G27: 26.5 | I27: R | J27: 25 | K27: 202 | L27: A2 | P27: 0 | Q27: 7680 | R27: 5529.6
A28: 603793 | B28: 5452000920249 | C28: PN G.Y 21.00R33 200 B E4 RL-4B**4S TL | D28: 210033BRL4B*TL200RU | E28: GROS GENIE CIVIL | F28: GY RL4B 4S | G28: 21 | I28: R | J28: 33 | K28: 200 | L28: B | P28: 0 | Q28: 10470 | R28: 7538.4
A29: 603809 | B29: 5452000920393 | C29: PN G.Y 23.5R25 201 A2 RL-5K 6S | D29: 23525A2RL5K201 | E29: PETIT GENIE CIVIL | F29: GY RL-5K | G29: 23.5 | I29: R | J29: 25 | K29: 201 | L29: A2 | P29: 0 | Q29: 9092 | R29: 6546.24
A30: 604066 | B30: 5452000932686 | C30: PN G.Y 26.5R25 193 B GP-4D** | D30: 26525BGP4D*193 | E30: GROS GENIE CIVIL | F30: GY GP-4D | G30: 26.5 | I30: R | J30: 25 | K30: 202 | L30: A2 | P30: 0 | Q30: 8580 | R30: 6177.6
A31: 604266 | B31: 5452000944054 | C31: PN G.Y 15.5 - 25 12PR HRL DL-3A | D31: 15525HRLDL12PR | E31: PETIT GENIE CIVIL | F31: GY HRL 4S | G31: 15.5 | I31: - | J31: 25 | K31: 12PR | P31: 0 | Q31: 1426 | R31: 1026.72
A32: 605941 | B32: 5452000981875 | C32: PN G.Y 18.00 -25 40P ELV-4D IND 4S | D32: 180025ELV4D40 | E32: PETIT GENIE CIVIL | F32: GY ELV4D | G32: 18 | I32: - | J32: 25 | K32: 40PR | P32: 0 | Q32: 6578 | R32: 4736.16
A33: 605982 | B33: 5452000983756 | C33: PN G.Y 20.5R25 186 A2 TL-3A+*/** 6S TL | D33: 20525A2TL3A+TL186 | E33: PETIT GENIE CIVIL | F33: GY TL-3A | G33: 20.5 | I33: R | J33: 25 | K33: 186 | L33: A2 | P33: 0 | Q33: 4388 | R33: 3159.36
A34: 606018 | B34: 5452000983879 | C34: PN G.Y 17.5R25 176 B RT-3B TL | D34: 17525BRT3BTL176 | E34: PETIT GENIE CIVIL | F34: GY RT-3B | G34: 17.5 | I34: R | J34: 25 | K34: 176 | L34: A2 | P34: 0 | Q34: 3012 | R34: 2168.64
A35: 606348 | B35: 5452000993632 | C35: PN G.Y 23.5R25 185 B 3A+ | D35: 23525B3A185 | E35: PETIT GENIE CIVIL | F35: GY 3A+ | G35: 23.5 | I35: R | J35: 25 | K35: 195 | L35: A2 | P35: 0 | Q35: 5526 | R35: 3978.72
A36: 606366 | B36: 5452000993809 | C36: PN G.Y 18.00 -25 40P ELV-4B 6S | D36: 180025ELV4B6S40 | E36: PETIT GENIE CIVIL | F36: GY ELV-4B | G36: 18 | I36: - | J36: 25 | K36: 40PR | P36: 0 | Q36: 4520 | R36: 3254.4
A37: 607546 | B37: 5452000864512 | C37: PN G.Y 16.00 -25 32P ELV-3A IND | D37: 160025ELV3A32 | E37: PETIT GENIE CIVIL | F37: GY ELV-3A | G37: 16 | I37: - | J37: 25 | K37: 32PR | P37: 0 | Q37: 3584 | R37: 2580.48
A38: 607739 | B38: 5452000880536 | C38: PN G.Y 36.00 R51 RL-4H 1 E4 2E | D38: 360051RL4HE44H2E | E38: GROS GENIE CIVIL | F38: GY RL-4H | G38: 36 | I38: R | J38: 51 | K38: ** | P38: 0 | Q38: 50098 | R38: 36070.56
A39: 607765 | B39: 5452000880796 | C39: PN G.Y 21.00R33 200 B E4 RL-4B**6S TL | D39: 210033BRL4B*6TL200RU | E39: GROS GENIE CIVIL | F39: GY RL4B 6S | G39: 21 | I39: R | J39: 33 | K39: 200 | L39: B | P39: 0 | Q39: 10470 | R39: 7538.4
A40: 607830 | B40: 5452000881441 | C40: PN G.Y 16.00 - 24 16PR SGG-2A TL | D40: 160024SGG2ATL16PR | E40: PETIT GENIE CIVIL | F40: GY SGG 2A | G40: 16 | I40: - | J40: 24 | K40: 16PR | P40: 0 | Q40: 1732 | R40: 1247.04
A41: 607857 | B41: 5452000881717 | C41: PN G.Y 1150/65R45 245 A2 RL-5K 2E | D41: 11506545A2RL5K245 | E41: GROS GENIE CIVIL | F41: GY RL-5K | G41: 1150 | H41: 65 | I41: R | J41: 45 | K41: 245 | L41: A2 | P41: 0 | Q41: 51498 | R41: 37078.56
A42: 608247 | B42: 5452000894717 | C42: PN G.Y 45/65-45 58P NRL DL-5A 6J L5 | D42: 456545NRL5A58 | E42: GROS GENIE CIVIL | F42: GY NRL5A | G42: 45 | H42: 65 | I42: - | J42: 45 | P42: 0 | Q42: 40828 | R42: 29396.16
A43: 608510 | B43: 5452001073302 | C43: PN G.Y 750/65R25 190 B TL-3A** | D43: 7506525BTL3A*190 | E43: GROS GENIE CIVIL | F43: GY TL-3A | G43: 750 | H43: 65 | I43: R | J43: 25 | K43: 190 | L43: B | P43: 0 | Q43: 7040 | R43: 5068.8
A44: 608747 | B44: 5452001083936 | C44: PN G.Y 18.00R25 204 A2 RL-5S** 6S L5 | D44: 180025A2RL5S*204 | E44: PETIT GENIE CIVIL | F44: GY RL5S | G44: 18 | I44: R | J44: 25 | K44: 204 | L44: A2 | P44: 0 | Q44: 8126 | R44: 5850.72
A45: 608786 | B45: 5452001085657 | C45: PN G.Y 1150/65R39 A2 RL-5K** 6S L5 | D45: 11506539A2RL5K* | E45: GROS GENIE CIVIL | F45: GY RL-5K | G45: 1150 | H45: 65 | I45: R | J45: 39 | K45: 242 | L45: A2 | P45: 0 | Q45: 47258 | R45: 34025.76
A46: 608846 | B46: 5452001086302 | C46: PN G.Y 17.5R25 176A2 TL-3A+ */** 6S TL | D46: 17525TL3ATL176A2 | E46: PETIT GENIE CIVIL | F46: GY TL-3A | G46: 17.5 | I46: R | J46: 25 | K46: 176 | L46: A2 | P46: 0 | Q46: 3522 | R46: 2535.84
A47: 608848 | B47: 5452001086326 | C47: PN G.Y 20.5R25 186 A2 GP-4D*/** TL | D47: 20525A2GP4D*TL186 | E47: PETIT GENIE CIVIL | F47: GY GP-4D | G47: 20.5 | I47: R | J47: 25 | K47: 186 | L47: A2 | P47: 0 | Q47: 5228 | R47: 3764.16
A48: 608850 | B48: 5452001086340 | C48: PN G.Y 23.5R25 195A2 GP-4DAT*/** 6S TL | D48: 23525A2GP4DATL195 | E48: PETIT GENIE CIVIL | F48: GY GP-4D | G48: 23.5 | I48: R | J48: 25 | K48: 195 | L48: A2 | P48: 0 | Q48: 5980 | R48: 4305.6
A49: 608852 | B49: 5452001086395 | C49: PN G.Y 29.5R25 216 A2 GP-4D**6S TL | D49: 29525A2GP4D*TL216 | E49: PETIT GENIE CIVIL | F49: GY GP-4D | G49: 29.5 | I49: R | J49: 25 | K49: 216 | L49: A2 | P49: 0 | Q49: 11150 | R49: 8028
A50: 608886 | B50: 5452001086616 | C50: PN G.Y 18.00 - 25 40PR ELV-4B 4S TL | D50: 180025ELV4B4S40PRTL | E50: PETIT GENIE CIVIL | F50: GY ELV 5D | G50: 18 | I50: - | J50: 25 | K50: 40PR | P50: 0 | Q50: 4520 | R50: 3254.4
A51: 608956 | B51: 5452001087903 | C51: PN G.Y 29.5R25 216 A2 RT-3B**6S TL | D51: 29525A2RT3B*TL216 | E51: PETIT GENIE CIVIL | F51: GY RT-3B | G51: 29.5 | I51: R | J51: 25 | K51: 216 | L51: A2 | P51: 0 | Q51: 9970 | R51: 7178.4
A52: 608966 | B52: 5452001087941 | C52: PN G.Y 29.5R25 216 A2 TL-3A+**6S TL | D52: 29525A2TL3ATL216 | E52: PETIT GENIE CIVIL | F52: GY TL-3A | G52: 29.5 | I52: R | J52: 25 | K52: 216 | L52: A2 | P52: 0 | Q52: 10218 | R52: 7356.96
A53: 609326 | B53: 5452000373144 | C53: PN G.Y 17.5R25 182 A2 RL-5K (24/24) TL | D53: 17525A2RL5K24TL182 | E53: PETIT GENIE CIVIL | F53: GY RL-5K | G53: 17.5 | I53: R | J53: 25 | K53: 182 | L53: A2 | P53: 0 | Q53: 4982 | R53: 3587.04
A54: 609427 | B54: 5452000379283 | C54: PN G.Y 23.5R25 201 A2 RL-3S ** 6S | D54: 23525A2RL3S201 | E54: PETIT GENIE CIVIL | F54: GY RL3L | G54: 23.5 | I54: R | J54: 25 | K54: 201 | L54: A2 | P54: 0 | Q54: 10640 | R54: 7660.8
A55: 609598 | B55: 5452000483614 | C55: PN G.Y 33.00 R51 RM-4A+ 6SL E4 3E | D55: 330051RM4A+E46S3E | E55: GROS GENIE CIVIL | F55: GY RM-4A+ | G55: 33 | I55: R | J55: 51 | K55: 238 | L55: B | P55: 0 | Q55: 45554 | R55: 32798.88
A56: 609599 | B56: 5452000660787 | C56: PN G.Y 33.00 R51 RM-4A+ 4SL E4 3E AP | D56: 330051RM4A+E4AP4S3E | E56: GROS GENIE CIVIL | F56: GY RM-4A+ | G56: 33 | I56: R | J56: 51 | K56: 238 | L56: B | P56: 0 | Q56: 45554 | R56: 32798.88
A57: 609626 | B57: 5452000571441 | C57: PN G.Y 37.00 R57 RM-4A+ 3SL E4 2E | D57: 370057RM4A+E43S2E | E57: GROS GENIE CIVIL | F57: GY RM-4A+ | G57: 37 | I57: R | J57: 57 | K57: 246 | L57: B | P57: 0 | Q57: 53000 | R57: 38160
A58: 609630 | B58: 5452000563958 | C58: PN G.Y 37.00 R57 RM-4A+ 6SL E4 2E | D58: 370057RM4A+E46S2E | E58: GROS GENIE CIVIL | F58: GY RM-4A+ | G58: 37 | I58: R | J58: 57 | K58: 246 | L58: B | P58: 0 | Q58: 53000 | R58: 38160
A59: 609699 | B59: 5452000395160 | C59: PN G.Y 875/65R29 203 B GP-4D*/** | D59: 8756529BGP4D**203 | E59: GROS GENIE CIVIL | F59: GY GP-4D | G59: 875 | H59: 65 | I59: R | J59: 29 | K59: 221 | L59: A2 | P59: 0 | Q59: 14646 | R59: 10545.12
A60: 609717 | B60: 5452000394774 | C60: PN G.Y 775/65R29 195 B GP-4D*/** | D60: 7756529BGP4D**195 | E60: GROS GENIE CIVIL | F60: GY GP-4D | G60: 775 | H60: 65 | I60: R | J60: 29 | K60: 213 | L60: A2 | P60: 0 | Q60: 13534 | R60: 9744.48
A61: 609846 | B61: 5452000644725 | C61: PN G.Y 20.5R25 193 A2 RL-5K 6S | D61: 20525A2RL5K193 | E61: PETIT GENIE CIVIL | F61: GY RL-5K | G61: 20.5 | I61: R | J61: 25 | K61: 193 | L61: A2 | P61: 0 | Q61: 7310 | R61: 5263.2
A62: 609879 | B62: 5452000646972 | C62: PN G.Y 18.00R33 195 B RT-4A*** 6S E4 T | D62: 180033BRT4A*6STL195 | E62: GROS GENIE CIVIL | F62: GY RT-4A | G62: 18 | I62: R | J62: 33 | K62: 195 | L62: B | P62: 0 | Q62: 7840 | R62: 5644.8
A63: 609881 | B63: 5452000646996 | C63: PN G.Y 18.00R33 195 B RT-4A*** 4S E4 T | D63: 180033BRT4A*TL195 | E63: GROS GENIE CIVIL | F63: GY RT-4A | G63: 18 | I63: R | J63: 33 | K63: 195 | L63: B | P63: 0 | Q63: 7920 | R63: 5702.4
A64: 609900 | B64: 5452000647603 | C64: PN G.Y 24.00R35 209 B RT-4A+** 2H TL | D64: 240035BRT4ATL209 | E64: GROS GENIE CIVIL | F64: GY RT-4A | G64: 24 | I64: R | J64: 35 | K64: 209 | L64: B | P64: 0 | Q64: 11984 | R64: 8628.48
A65: 609902 | B65: 5452000647627 | C65: PN G.Y 24.00R35 209 B RT-4A+** 4H TL | D65: 240035BRT4A4TL209 | E65: GROS GENIE CIVIL | F65: GY RT-4A | G65: 24 | I65: R | J65: 35 | K65: 209 | L65: B | P65: 0 | Q65: 11984 | R65: 8628.48
A66: 609904 | B66: 5452000647641 | C66: PN G.Y 24.00R35 209 B RT-4A+ 6H | D66: 240035BRT4A2096H | E66: GROS GENIE CIVIL | F66: GY RT-4A | G66: 24 | I66: R | J66: 35 | K66: 209 | L66: B | P66: 0 | Q66: 11984 | R66: 8628.48
A67: 610003 | B67: 5452000655462 | C67: PN G.Y 20.5R25 193 A2 RL-5S** 6S L5 | D67: 20525A2RL5S*193 | E67: PETIT GENIE CIVIL | F67: GY RL5S | G67: 20.5 | I67: R | J67: 25 | K67: 193 | L67: A2 | P67: 0 | Q67: 8866 | R67: 6383.52
A68: 610020 | B68: 5452000656513 | C68: PN G.Y 20.5R25 193 A2 RL-3S HI-STAB | D68: 20525A2RL3S193 | E68: PETIT GENIE CIVIL | F68: GY RL3S | G68: 20.5 | I68: R | J68: 25 | K68: 193 | L68: A2 | P68: 0 | Q68: 7390 | R68: 5320.8
A69: 610061 | B69: 5452000660374 | C69: PN G.Y 480/95R25 206 A5 EV-4R IND*** T | D69: 4809525A5EV4RTL206 | E69: PETIT GENIE CIVIL | F69: GY EV 4R | G69: 480 | H69: 95 | I69: R | J69: 25 | K69: 206 | L69: A5 | P69: 0 | Q69: 5720 | R69: 4118.4
A70: 610073 | B70: 5452000662989 | C70: PN G.Y 29.5R25 216 A2 RL-5S** 6S L5 | D70: 29525A2RL5S*216 | E70: GROS GENIE CIVIL | F70: GY RL5S | G70: 29.5 | I70: R | J70: 25 | K70: 216 | L70: A2 | P70: 0 | Q70: 20898 | R70: 15046.56
A71: 610081 | B71: 4038526079671 | C71: PN G.Y 33.00 R51 ***RM-4A+ E4 2SL | D71: 330051RM4A+E4 | E71: GROS GENIE CIVIL | F71: GY RM-4A+ | G71: 33 | I71: R | J71: 51 | K71: 238 | L71: B | P71: 0 | Q71: 45554 | R71: 32798.88
A72: 610102 | B72: 5452000427090 | C72: PN G.Y 29.5R25 216 A2 RL4K HI ST 6S | D72: 29525A2RL4KH216 | E72: GROS GENIE CIVIL | F72: GY RL4K | G72: 29.5 | I72: R | J72: 25 | K72: 216 | L72: A2 | P72: 0 | Q72: 15016 | R72: 10811.52
A73: 610122 | B73: 5452000428080 | C73: PN G.Y 29.5R25 216 A2 RT-5D HI-STAB | D73: 29525A2RT5D216 | E73: GROS GENIE CIVIL | F73: GY RT-5D | G73: 29.5 | I73: R | J73: 25 | K73: 216 | L73: A2 | P73: 0 | Q73: 15524 | R73: 11177.28
A74: 610253 | B74: 5452000443588 | C74: PN G.Y 27.00 R49 223B UNRM4A+ **E4 | D74: 270049UNRM4A+223B | E74: GROS GENIE CIVIL | F74: GY UNRM4A+ | G74: 27 | I74: R | J74: 49 | K74: 223 | L74: B | P74: 0 | Q74: 25808 | R74: =Q74*(1-$D$3) -> 18581.76
A75: 610255 | B75: 5452000443595 | C75: PN G.Y 27.00 R49 223B UNRM4A+ **E4 | D75: 270049UNRM4A+223B2 | E75: GROS GENIE CIVIL | F75: GY UNRM4A+ | G75: 27 | I75: R | J75: 49 | K75: 223 | L75: B | P75: 0 | Q75: 25808 | R75: 18581.76
A76: 610257 | B76: 5452000443618 | C76: PN G.Y 27.00R49 RM-4A+** 6SL E4 TL AP | D76: 270049RM4ATLGY | E76: GROS GENIE CIVIL | F76: GY RM-4A+ | G76: 27 | I76: R | J76: 49 | K76: 223 | L76: B | P76: 0 | Q76: 25808 | R76: 18581.76
A77: 610332 | B77: 5452000446053 | C77: PN G.Y 29.5R25 216 A2 RL-5K** 6S L5 | D77: 29525A2RL5K*216GY | E77: GROS GENIE CIVIL | F77: GY RL-5K | G77: 29.5 | I77: R | J77: 25 | K77: 216 | L77: A2 | P77: 0 | Q77: 17416 | R77: 12539.52
A78: 610334 | B78: 5452000446084 | C78: PN G.Y 26.5R25 209 A2 RL-5K** 6S L5 | D78: 26525A2RL5K*209GY | E78: GROS GENIE CIVIL | F78: GY RL-5K | G78: 26.5 | I78: R | J78: 25 | K78: 209 | L78: A2 | P78: 0 | Q78: 12204 | R78: 8786.88
A79: 610403 | B79: 5452000451484 | C79: PN G.Y 23.5R25 206A2 RL-4K HI-ST 3E 6S | D79: 23525RL4K206A2 | E79: PETIT GENIE CIVIL | F79: GY RL4K | G79: 23.5 | I79: R | J79: 25 | K79: 206 | L79: A2 | P79: 0 | Q79: 8456 | R79: 6088.32
A80: 610484 | B80: 5452000548634 | C80: PN G.Y 46/90R57 RM-4B+ 4SL 2E AP | D80: 469057RM4B+AP4S2E | E80: GROS GENIE CIVIL | F80: GY RM-4B+ | G80: 46 | H80: 90 | I80: R | J80: 57 | K80: 252 | L80: B | P80: 0 | Q80: 79686 | R80: 57373.92
A81: 610485 | B81: 5452000548627 | C81: PN G.Y 46/90R57 RM-4B+ 3SL 2E AP | D81: 469057RM4B+AP3S2E | E81: GROS GENIE CIVIL | F81: GY RM-4B+ | G81: 46 | H81: 90 | I81: R | J81: 57 | K81: 252 | L81: B | P81: 0 | Q81: 79686 | R81: 57373.92
A82: 610486 | B82: 5452000548610 | C82: PN G.Y 46/90R57 RM-4B+ 2SL 2E NGT | D82: 469057RM4B+E4NGT2S2E | E82: GROS GENIE CIVIL | F82: GY RM-4B+ | G82: 46 | H82: 90 | I82: R | J82: 57 | K82: 252 | L82: B | P82: 0 | Q82: 79686 | R82: 57373.92
A83: 610525 | B83: 5452000537171 | C83: PN G.Y 40.00 R57 250B RM-4B+ 4SL E4 2E A | D83: 400057RM4B+E4AS2502B | E83: GROS GENIE CIVIL | F83: GY RM-4B+ | G83: 40 | I83: R | J83: 57 | K83: 250 | L83: B | P83: 0 | Q83: 75886 | R83: 54637.92
A84: 610582 | B84: 5452000548641 | C84: PN G.Y 46/90R57 RM-4B+ 6SL 2E | D84: 469057RM4B+6S2E | E84: GROS GENIE CIVIL | F84: GY RM-4B+ | G84: 46 | H84: 90 | I84: R | J84: 57 | K84: 252 | L84: B | P84: 0 | Q84: 79686 | R84: 57373.92
A85: 610662 | B85: 5452000534057 | C85: PN G.Y 875/65R29 221A2/203B GP-4D | D85: 8756529GP4D221A2 | E85: GROS GENIE CIVIL | F85: GY GP-4D | G85: 875 | H85: 65 | I85: R | J85: 29 | K85: 221 | L85: A2 | P85: 0 | Q85: 15752 | R85: 11341.44
A86: 610672 | B86: 5452000534859 | C86: PN G.Y 480/95 - 25 206 A5 UN EV-4C IND** | D86: 4809525A5UNEVTT206 | E86: PETIT GENIE CIVIL | F86: GY EV-4C | G86: 480 | H86: 95 | I86: R | J86: 25 | K86: 206 | L86: A5 | P86: 0 | Q86: 5634 | R86: 4056.48
A87: 610734 | B87: 5452000540157 | C87: PN G.Y 26.5R25 209 A2 RT-5D HI-STAB TL | D87: 26525A2RT5DTL209 | E87: GROS GENIE CIVIL | F87: GY RT-5D | G87: 26.5 | I87: R | J87: 25 | K87: 209 | L87: A2 | P87: 0 | Q87: 10396 | R87: 7485.12
A88: 610753 | B88: 5452000574503 | C88: PN G.Y 40.00 R57 RM-4B+ 3SL E4 2E | D88: 400057RM4B+E43S2E | E88: GROS GENIE CIVIL | F88: GY RM-4B+ | G88: 40 | I88: R | J88: 57 | K88: 250 | L88: B | P88: 0 | Q88: 75886 | R88: 54637.92
A89: 610764 | B89: 5452000571434 | C89: PN G.Y 27.00R49 RM-4A+** 5SL E4 | D89: 270049RM4AGY | E89: GROS GENIE CIVIL | F89: GY RM-4A+ | G89: 27 | I89: R | J89: 49 | K89: 223 | L89: B | P89: 0 | Q89: 25808 | R89: 18581.76
A90: 610775 | B90: 5452000541505 | C90: PN G.Y 20.5R25 193 A2 RT-5D HI-STAB* T | D90: 20525A2RT5DTL193 | E90: PETIT GENIE CIVIL | F90: GY RT-5D | G90: 20.5 | I90: R | J90: 25 | K90: 193 | L90: A2 | P90: 0 | Q90: 6382 | R90: 4595.04
A91: 610782 | B91: 5452000541994 | C91: PN G.Y 23.5R25 201 A2 RT-5D HI-STAB*TL | D91: 23525A2RT5DTL201 | E91: PETIT GENIE CIVIL | F91: GY RT-5D | G91: 23.5 | I91: R | J91: 25 | K91: 201 | L91: A2 | P91: 0 | Q91: 8204 | R91: 5906.88
A92: 610792 | B92: 5452000541291 | C92: PN G.Y 33.25R29 209 B TL-3A** 6S TL | D92: 332529BTL3A*TL209 | E92: GROS GENIE CIVIL | F92: GY TL-3A | G92: 33.25 | I92: R | J92: 29 | K92: 209 | L92: B | P92: 0 | Q92: 15900 | R92: 11448
A93: 610794 | B93: 5452000542212 | C93: PN G.Y 33.25R29 209 B TL-4A** 6S TL | D93: 332529BTL4A*TL209 | E93: GROS GENIE CIVIL | F93: GY TL-4A | G93: 33.25 | I93: R | J93: 29 | K93: 209 | L93: B | P93: 0 | Q93: 16934 | R93: 12192.48
A94: 610806 | B94: 5452000542489 | C94: PN G.Y 24.00R35 209B RL-3+** 2H | D94: 240035RL3+209B | E94: GROS GENIE CIVIL | F94: GY RL-3+ | G94: 24 | I94: R | J94: 35 | K94: 209 | L94: B | P94: 0 | Q94: 12402 | R94: 8929.44
A95: 610913 | B95: 5452000557100 | C95: PN G.Y 23.5R25 201A2 RL-5S HI-STAB** | D95: 23525RL5S201A2 | E95: PETIT GENIE CIVIL | F95: GY RL5S | G95: 23.5 | I95: R | J95: 25 | K95: 201 | L95: A2 | P95: 0 | Q95: 10910 | R95: 7855.2
A96: 610932 | B96: 5452000561190 | C96: PN G.Y 40.00 R57 RM-4B+ 6SL E4 2E | D96: 400057RM4B+E46S2E | E96: GROS GENIE CIVIL | F96: GY RM-4B+ | G96: 40 | I96: R | J96: 57 | K96: 250 | L96: B | P96: 0 | Q96: 75886 | R96: 54637.92
A97: 610982 | B97: 5452000566935 | C97: PN G.Y 53/80R63 RM-4A+ 4SL E4 2E | D97: 538063RM4A+E44S2E | E97: GROS GENIE CIVIL | F97: GY RM-4A+ | G97: 53 | H97: 80 | I97: R | J97: 63 | K97: 261 | L97: B | P97: 0 | Q97: 120840 | R97: 87004.8
A98: 611022 | B98: 5452000599438 | C98: PN G.Y 27.00 R49 223B UNRT4A+ **E4 | D98: 270049UNRT4A+223B | E98: GROS GENIE CIVIL | F98: GY UNRT4A+ | G98: 27 | I98: R | J98: 49 | K98: 223 | L98: B | P98: 0 | Q98: 25808 | R98: 18581.76
A99: 611042 | B99: 5452000569301 | C99: PN G.Y 40.00 R57 250B RM-4B+ 4SL E4 2E | D99: 400057RM4B+E4S2502EB | E99: GROS GENIE CIVIL | F99: GY RM-4B+ | G99: 40 | I99: R | J99: 57 | K99: 250 | L99: B | P99: 0 | Q99: 75886 | R99: 54637.92
A100: 611112 | B100: 4038526085009 | C100: PN G.Y 27 R49 223B RM-4A+ ** 2HL | D100: 2749RM4A+223B2HLA | E100: GROS GENIE CIVIL | F100: GY RM-4A+ | G100: 27 | I100: R | J100: 49 | K100: 223 | L100: B | P100: 0 | Q100: 25808 | R100: 18581.76
A101: 611122 | B101: 4038526088017 | C101: PN G.Y 27 R49 223B RM-4A+ ** 3HL | D101: 2749RM4A+223B3HL | E101: GROS GENIE CIVIL | F101: GY RM-4A+ | G101: 27 | I101: R | J101: 49 | K101: 223 | L101: B | P101: 0 | Q101: 25808 | R101: 18581.76
A102: 611123 | B102: 4038526088024 | C102: PN G.Y 27 R49 223B RM-4A+ ** 4HL | D102: 2749RM4A+223B4HLA | E102: GROS GENIE CIVIL | F102: GY RM-4A+ | G102: 27 | I102: R | J102: 49 | K102: 223 | L102: B | P102: 0 | Q102: 25808 | R102: 18581.76
A103: 611124 | B103: 4038526088048 | C103: PN G.Y 27 R49 223B RM-4A+ ** 6HL | D103: 2749RM4A+223B6HL | E103: GROS GENIE CIVIL | F103: GY RM-4A+ | G103: 27 | I103: R | J103: 49 | K103: 223 | L103: B | P103: 0 | Q103: 25808 | R103: 18581.76
A104: 611125 | B104: 4038526066633 | C104: PN G.Y 27.00 R49 **RM-4A+ E4 7HL | D104: 270049RM4A+E4 | E104: GROS GENIE CIVIL | F104: GY RM-4A+ | G104: 27 | I104: R | J104: 49 | K104: 223 | L104: B | P104: 0 | Q104: 25808 | R104: 18581.76
A105: 611126 | B105: 4038526088031 | C105: PN G.Y 27 R49 223B RM-4A+ ** 5HL | D105: 2749RM4A+223B5HLA | E105: GROS GENIE CIVIL | F105: GY RM-4A+ | G105: 27 | I105: R | J105: 49 | K105: 223 | L105: B | P105: 0 | Q105: 25808 | R105: 18581.76
A106: 611164 | B106: 5452000597007 | C106: PN G.Y 24.00R35 209B RM-4B+** 2H | D106: 240035RM4B+209B | E106: GROS GENIE CIVIL | F106: GY RM-4B+ | G106: 24 | I106: R | J106: 35 | K106: 209 | L106: B | P106: 0 | Q106: 12888 | R106: 9279.36
A107: 611166 | B107: 5452000597021 | C107: PN G.Y 24.00R35 209B RM-4B+ 4H E4 | D107: 240035RM4B+E4209B4H | E107: GROS GENIE CIVIL | F107: GY RM-4B+ | G107: 24 | I107: R | J107: 35 | K107: 209 | L107: B | P107: 0 | Q107: 12888 | R107: 9279.36
A108: 611168 | B108: 5452000597045 | C108: PN G.Y 24.00R35 209B RM-4B+ 6H E4 | D108: 240035RM4B+E4209B6H | E108: GROS GENIE CIVIL | F108: GY RM-4B+ | G108: 24 | I108: R | J108: 35 | K108: 209 | L108: B | P108: 0 | Q108: 12888 | R108: 9279.36
A109: 611170 | B109: 5452000597069 | C109: PN G.Y 18.00R33 214 A5 EV-S4S *** TL | D109: 180033A5EVS4STL214 | E109: PETIT GENIE CIVIL | F109: GY UN EV-S4S | G109: 18 | I109: R | J109: 33 | K109: 214 | L109: A5 | P109: 0 | Q109: 9626 | R109: 6930.72
A110: 611177 | B110: 5452000596765 | C110: PN G.Y 18.00R25 207 A5 EV-3+*** IND TL | D110: 180025A5EV3*TL207 | E110: PETIT GENIE CIVIL | F110: GY EV3+ | G110: 18 | I110: R | J110: 25 | K110: 207 | L110: A5 | P110: 0 | Q110: 6572 | R110: 4731.84
A111: 611187 | B111: 5452000597212 | C111: PN G.Y 21.00R35 201B RM-4B+ 4S 2E | D111: 210035RM4B+201B4S | E111: GROS GENIE CIVIL | F111: GY RM-4B+ | G111: 21 | I111: R | J111: 35 | K111: 201 | L111: B | P111: 0 | Q111: 10842 | R111: 7806.24
A112: 611189 | B112: 5452000597236 | C112: PN G.Y 21.00R35 201B RM-4B+ | D112: 210035RM4B+201B | E112: GROS GENIE CIVIL | F112: GY RM-4B+ | G112: 21 | I112: R | J112: 35 | K112: 201 | L112: B | P112: 0 | Q112: 10842 | R112: 7806.24
A113: 611194 | B113: 5452000597106 | C113: PN G.Y 18.00R33 195B RM-4B+*** 4S | D113: 180033RM4B+195B4S | E113: GROS GENIE CIVIL | F113: GY RM-4B+ | G113: 18 | I113: R | J113: 33 | K113: 195 | L113: B | P113: 0 | Q113: 8046 | R113: 5793.12
A114: 611196 | B114: 5452000597120 | C114: PN G.Y 18.00R33 195B RM-4B+***6S E4 TL | D114: 180033UNRM4B+195B | E114: GROS GENIE CIVIL | F114: GY RM-4B+ | G114: 18 | I114: R | J114: 33 | K114: 195 | L114: B | P114: 0 | Q114: 8258 | R114: 5945.76
A115: 611202 | B115: 5452000597564 | C115: PN G.Y 14.00R24 193A5 EV-4C IND | D115: 140024EV4C193A5 | E115: PETIT GENIE CIVIL | F115: GY EV-4C | G115: 14 | I115: R | J115: 24 | K115: 193 | L115: A5 | P115: 0 | Q115: 4084 | R115: 2940.48
A116: 611204 | B116: 5452000597588 | C116: PN G.Y 14.00R24 193A5 EV-4R IND TT | D116: 140024EV4R193A5TT | E116: PETIT GENIE CIVIL | F116: GY EV 4R | G116: 14 | I116: R | J116: 24 | K116: 193 | L116: A5 | P116: 0 | Q116: 4488 | R116: 3231.36
A117: 611206 | B117: 5452000597601 | C117: PN G.Y 14.00R24 193A5 EV-4C IND TT | D117: 140024EV4C193A5TT | E117: PETIT GENIE CIVIL | F117: GY EV-4C | G117: 14 | I117: R | J117: 24 | K117: 193 | L117: A5 | P117: 0 | Q117: 4084 | R117: 2940.48
A118: 611208 | B118: 5452000597625 | C118: PN G.Y 14.00R24 193A5 EV-4S+ IND *** | D118: 140024EV4S+193A5 | E118: PETIT GENIE CIVIL | F118: GY EV-4S | G118: 14 | I118: R | J118: 24 | K118: 193 | L118: A5 | P118: 0 | Q118: 4676 | R118: 3366.72
A119: 611212 | B119: 5452000597663 | C119: PN G.Y 14.00R24 193A5 EV-4S+ IND *** TT | D119: 140024EV4S+193A5TT | E119: PETIT GENIE CIVIL | F119: GY EV-4S | G119: 14 | I119: R | J119: 24 | K119: 193 | L119: A5 | P119: 0 | Q119: 4676 | R119: 3366.72
A120: 611224 | B120: 5452000597304 | C120: PN G.Y 875/65R33 224A2 RL-5K**HS 6S L5 | D120: 8756533A2RL5K*TL224G | E120: GROS GENIE CIVIL | F120: GY RL-5K | G120: 875 | H120: 65 | I120: R | J120: 33 | K120: 224 | L120: A2 | P120: 0 | Q120: 19848 | R120: 14290.56
A121: 611244 | B121: 5452000598493 | C121: PN G.Y 18.00 - 25 207 A5 EV-4R IND*** TL | D121: 180025A5EV4RTL207 | E121: PETIT GENIE CIVIL | F121: GY EV 4R | G121: 18 | I121: R | J121: 25 | K121: 207 | L121: A5 | P121: 0 | Q121: 6900 | R121: 4968
A122: 611264 | B122: 4038526042095 | C122: PN G.Y 37.00 R57 **RM-4A+ E4 5SL | D122: 370057RM4A+E4 | E122: GROS GENIE CIVIL | F122: GY RM-4A+ | G122: 37 | I122: R | J122: 57 | K122: 246 | L122: B | P122: 0 | Q122: 53000 | R122: 38160
A123: 611283 | B123: 4038526076052 | C123: PN G.Y 27.00 R49 RT-4A+ 3HL E4 2E | D123: 270049RT4A+E43H2E | E123: GROS GENIE CIVIL | F123: GY RT-4A+ | G123: 27 | I123: R | J123: 49 | K123: 223 | L123: B | P123: 0 | Q123: 25808 | R123: 18581.76
A124: 611284 | B124: 4038526095237 | C124: PN G.Y 27.00 R49 223B RT-4A+ 2E | D124: 270049RT4A+2232EB | E124: GROS GENIE CIVIL | F124: GY RT-4A+ | G124: 27 | I124: R | J124: 49 | K124: 223 | L124: B | P124: 0 | Q124: 25808 | R124: 18581.76
A125: 611383 | B125: 5452000673190 | C125: PN G.Y 14.00 R24 188A2 RL-4K HI-ST 3E 6S | D125: 140024RL4K1883EA2 | E125: PETIT GENIE CIVIL | F125: GY RL4K | G125: 12 | I125: R | J125: 24 | K125: 188 | L125: A2 | P125: 0 | Q125: 4814 | R125: 3466.08
A126: 611452 | B126: 5452000717498 | C126: PN G.Y 17.5 -25 36P ELV-3R INDUS | D126: 17525ELV3RIND36 | E126: PETIT GENIE CIVIL | F126: GY ELV3RIND | G126: 17.5 | I126: - | J126: 25 | K126: 36PR | P126: 0 | Q126: 5040 | R126: 3628.8
A127: 611532 | B127: 5452000701893 | C127: PN G.Y 21.00 -35 ELV 4B IND 4S 40PR | D127: 210035ELV4BIND4S | E127: GROS GENIE CIVIL | F127: GY ELV 4B | G127: 21 | I127: - | J127: 35 | P127: 0 | Q127: 13080 | R127: 9417.6
A128: 611812 | B128: 5452000734662 | C128: PN G.Y 335/80R18 145A2/134B POWERLOAD N | D128: 3358018POWERLO145NA2 | E128: PETIT GENIE CIVIL | F128: GY POWERLOAD | G128: 335 | H128: 80 | I128: R | J128: 18 | K128: 145 | L128: A2 | P128: 0 | Q128: 882 | R128: 635.04
A129: 611815 | B129: 5452000734693 | C129: PN G.Y 405/70R20 155A2/143B POWERLOAD | D129: 4057020POWERLOA155A2 | E129: PETIT GENIE CIVIL | F129: GY POWERLOAD | G129: 405 | H129: 70 | I129: R | J129: 20 | K129: 155 | L129: A2 | P129: 0 | Q129: 1150 | R129: 828
A130: 611817 | B130: 5452000734716 | C130: PN G.Y 335/80R20 147A2/136B POWERLOAD | D130: 3358020POWERLOA147A2 | E130: PETIT GENIE CIVIL | F130: GY POWERLOAD | G130: 335 | H130: 80 | I130: R | J130: 20 | K130: 147 | L130: A2 | P130: 0 | Q130: 952 | R130: 685.44
A131: 611819 | B131: 5452000734730 | C131: PN G.Y 365/70R18 146A2/135B POWERLOAD | D131: 3657018POWERLOA146A2 | E131: PETIT GENIE CIVIL | F131: GY POWERLOAD | G131: 365 | H131: 70 | I131: R | J131: 18 | K131: 146 | L131: A2 | P131: 0 | Q131: 940 | R131: 676.8
A132: 611821 | B132: 5452000734754 | C132: PN G.Y 365/80R20 153A2/141B POWERLOAD | D132: 3658020POWERLOA153A2 | E132: PETIT GENIE CIVIL | F132: GY POWERLOAD | G132: 365 | H132: 80 | I132: R | J132: 20 | K132: 153 | L132: A2 | P132: 0 | Q132: 1050 | R132: 756
A133: 611823 | B133: 5452000734778 | C133: PN G.Y 405/70R18 153A2/141B POWERLOAD | D133: 4057018POWERLOA153A2 | E133: PETIT GENIE CIVIL | F133: GY POWERLOAD | G133: 405 | H133: 70 | I133: R | J133: 18 | K133: 153 | L133: A2 | P133: 0 | Q133: 1104 | R133: 794.88
A134: 611882 | B134: 5452000740557 | C134: PN G.Y 46/90R57 RM-4B+ 3SL 2E | D134: 469057RM4B+3S2E | E134: GROS GENIE CIVIL | F134: GY RM-4B+ | G134: 46 | H134: 90 | I134: R | J134: 57 | K134: 252 | L134: B | P134: 0 | Q134: 79686 | R134: 57373.92
A135: 611892 | B135: 5452000819222 | C135: PN G.Y 21.00 -25 ELV-3C IND 40 AP | D135: 210025ELV3CAP | E135: PETIT GENIE CIVIL | F135: GY ELV-3C | G135: 21 | I135: - | J135: 25 | P135: 0 | Q135: 7030 | R135: 5061.6
A136: 611924 | B136: 5452000744449 | C136: PN G.Y 20.5 R25 171A8 ** AS-3A 4S | D136: 20525AS3A4S171A8 | E136: PETIT GENIE CIVIL | F136: GY AS-3A | G136: 20.5 | I136: R | J136: 25 | K136: 171 | L136: A8 | P136: 0 | Q136: 5936 | R136: 4273.92
A137: 612033 | B137: 5452000809384 | C137: PN G.Y 12.00 -20 24P SMO-5B 7S L5S TT | D137: 120020SMO5BL5TT | E137: PETIT GENIE CIVIL | F137: GY SMO-5B | G137: 12 | I137: - | J137: 20 | P137: 0 | Q137: 3384 | R137: 2436.48
A138: 612072 | B138: 5452000817839 | C138: PN G.Y 650/65R25 GP-3D *** 6S E3 | D138: 6506525GP3DE3199A2 | E138: PETIT GENIE CIVIL | F138: GY GP-3D | G138: 650 | H138: 65 | I138: R | J138: 25 | K138: 199 | L138: A2 | P138: 0 | Q138: 5300 | R138: =Q138*(1-$D$3) -> 3816
A139: 612092 | B139: 5452000828637 | C139: PN G.Y 18.00 R33 214A5 EV-4D IND-4 3E | D139: 180033EV4DID2143EA5 | E139: GROS GENIE CIVIL | F139: GY EV-4D | G139: 18 | I139: R | J139: 33 | K139: 214 | L139: A5 | P139: 0 | Q139: 9202 | R139: 6625.44
A140: 612104 | B140: 5452000832498 | C140: PN G.Y 18.00 R25 207A5 EV-4D IND-4 3E | D140: 180025EV4DIN2073EA5 | E140: PETIT GENIE CIVIL | F140: GY EV-4D | G140: 18 | I140: R | J140: 25 | K140: 207 | L140: A5 | P140: 0 | Q140: 6900 | R140: 4968
A141: 612122 | B141: 5452000837189 | C141: PN G.Y 18.00R25 EV-3G *** 207A5 IND-3 | D141: 180025EV3G3X207A5 | E141: PETIT GENIE CIVIL | F141: GY EV-3G | G141: 18 | I141: R | J141: 25 | K141: 207 | L141: A5 | P141: 0 | Q141: 6572 | R141: 4731.84
A142: 612272 | B142: 4038526053121 | C142: PN G.Y 26.5 R25 214A2 RL-5S | D142: 26525RL5S214A2 | E142: PETIT GENIE CIVIL | F142: GY RL-5S | G142: 26.5 | I142: R | J142: 25 | K142: 214 | L142: A2 | P142: 0 | Q142: 15322 | R142: 11031.84
A143: 612283 | B143: 4038526053060 | C143: PN G.Y 875/65R33 229A2 RL-5K HI-STA | D143: 8756533RL5KHIST229A2 | E143: GROS GENIE CIVIL | F143: GY RL-5K HI-STABIL | G143: 875 | H143: 65 | I143: R | J143: 33 | K143: 229 | L143: A2 | P143: 0 | Q143: 20840 | R143: 15004.8
A144: 612343 | B144: 4038526066725 | C144: PN G.Y 450/95R25 204A5/200A5 EV-4M PORT | D144: 4509525EV4MPORT204A5 | E144: PETIT GENIE CIVIL | F144: GY EV-4M PORT HAND | G144: 450 | H144: 95 | I144: R | J144: 25 | K144: 204 | L144: A5 | P144: 0 | Q144: 4664 | R144: 3358.08
A145: 612352 | B145: 4038526072085 | C145: PN G.Y 26.5 R25 214A2 RL-5K HI-STABIL L5 | D145: 26525RL5KHISTL5214A2 | E145: PETIT GENIE CIVIL | F145: GY RL-5K HI-STABIL | G145: 26.5 | I145: R | J145: 25 | K145: 214 | L145: A2 | P145: 0 | Q145: 12814 | R145: 9226.08
A146: 612402 | B146: 4038526077424 | C146: PN G.Y 27 R49 223B RM-4A+ ** 3HL | D146: 2749RM4A+223B | E146: GROS GENIE CIVIL | F146: GY RM-4A+ | G146: 27 | I146: R | J146: 49 | K146: 223 | L146: B | P146: 0 | Q146: 25808 | R146: 18581.76
A147: 612422 | B147: 4038526082602 | C147: PN G.Y 27 R49 223B RM-4A+ ** 2HL | D147: 2749RM4A+**223B2HL | E147: GROS GENIE CIVIL | F147: GY RM-4A+ | G147: 27 | I147: R | J147: 49 | K147: 223 | L147: B | P147: 0 | Q147: 25808 | R147: 18581.76
A148: 612453 | B148: 4038526085856 | C148: PN G.Y 875/65R33 229A2 RL-5K HI-STABIL | D148: 8756533RL5KHIS229A2 | E148: PETIT GENIE CIVIL | F148: GY RL-5K HI-STABIL | G148: 875 | H148: 65 | I148: R | J148: 33 | K148: 229 | L148: A2 | P148: 0 | Q148: 24004 | R148: 17282.88
A149: 612455 | B149: 4038526085870 | C149: PN G.Y 875/65R33 229A2 RT5D | D149: 8756533RT5D229A2 | E149: GROS GENIE CIVIL | F149: GY RT-5D | G149: 875 | H149: 65 | I149: R | J149: 33 | K149: 229 | L149: A2 | P149: 0 | Q149: 18340 | R149: 13204.8
A150: 612457 | B150: 4038526085894 | C150: PN G.Y 14.00 R24 188A2 UNRL5K L5 | D150: 140024UNRL5K188A2 | E150: PETIT GENIE CIVIL | F150: GY UNRL5K | G150: 14 | I150: R | J150: 24 | K150: 188 | L150: A2 | P150: 0 | Q150: 5774 | R150: 4157.28
A151: 612459 | B151: 4038526086112 | C151: PN G.Y 14 R24 188A2 RL-5S HI-STABIL | D151: 1424RL5SHISTABI188A2 | E151: PETIT GENIE CIVIL | F151: GY RL-5S HI-STABIL | G151: 14 | I151: R | J151: 24 | K151: 188 | L151: A2 | P151: 0 | Q151: 6928 | R151: 4988.16
A152: 612461 | B152: 4038526086372 | C152: PN G.Y 26.5 R29 217A2 RL-3S | D152: 26529RL3S217A2 | E152: PETIT GENIE CIVIL | F152: GY RL-3S | G152: 26.5 | I152: R | J152: 29 | K152: 217 | L152: A2 | P152: 0 | Q152: 13780 | R152: 9921.6
A153: 612464 | B153: 4038526087058 | C153: PN G.Y 27 R49 223B RM-4A+ ** 5HL | D153: 2749RM4A+223B5HL | E153: GROS GENIE CIVIL | F153: GY RM-4A+ | G153: 27 | I153: R | J153: 49 | K153: 223 | L153: B | P153: 0 | Q153: 25808 | R153: 18581.76
A154: 612466 | B154: 4038526087072 | C154: PN G.Y 875/65R33 229A2 RL-5S HI-STABIL 3 | D154: 8756533RL5SHI3X229A2 | E154: PETIT GENIE CIVIL | F154: GY RL-5S HI-STABIL | G154: 875 | H154: 65 | I154: R | J154: 33 | K154: 229 | L154: A2 | P154: 0 | Q154: 25008 | R154: 18005.76
A155: 612468 | B155: 4038526087096 | C155: PN G.Y 875/65R33 229A2/225A8 RL-4K HI-ST | D155: 8756533RL4KHIC3229A2 | E155: GROS GENIE CIVIL | F155: GY RL-4K HI-STABIL | G155: 875 | H155: 65 | I155: R | J155: 33 | K155: 229 | L155: A2 | P155: 0 | Q155: 17084 | R155: 12300.48
A156: 612470 | B156: 4038526087218 | C156: PN GY 875/65R33 229A2/225A8 RT-4D HIS | D156: 8756533RT4DHI229A2 | E156: GROS GENIE CIVIL | F156: GY RT-4D | G156: 875 | H156: 65 | I156: R | J156: 33 | K156: 229 | L156: A2 | P156: 0 | Q156: 16058 | R156: 11561.76
A157: 612471 | B157: 4038526087225 | C157: PN G.Y 27 R49 223B RH-4A+ ** 6HL | D157: 2749RH4A+223B | E157: GROS GENIE CIVIL | F157: GY RH-4A+ | G157: 27 | I157: R | J157: 49 | K157: 223 | L157: B | P157: 0 | Q157: 25808 | R157: 18581.76
A158: 612472 | B158: 4038526087232 | C158: PN G.Y 27 R49 223B RH-4A+ ** 2HL | D158: 2749RH4A+223B2HL | E158: GROS GENIE CIVIL | F158: GY RH-4A+ | G158: 27 | I158: R | J158: 49 | K158: 223 | L158: B | P158: 0 | Q158: 25808 | R158: 18581.76
A159: 612473 | B159: 4038526087249 | C159: PN G.Y 27 R49 223B RH-4A+ ** 3HL | D159: 2749RH4A+223B3HL | E159: GROS GENIE CIVIL | F159: GY RH-4A+ | G159: 27 | I159: R | J159: 49 | K159: 223 | L159: B | P159: 0 | Q159: 25808 | R159: 18581.76
A160: 612475 | B160: 4038526087263 | C160: PN G.Y 27 R49 223B RH-4A+ ** 5HL | D160: 2749RH4A**+223B5HL | E160: GROS GENIE CIVIL | F160: GY RH-4A+ | G160: 27 | I160: R | J160: 49 | K160: 223 | L160: B | P160: 0 | Q160: 25808 | R160: 18581.76
A161: 612476 | B161: 4038526087270 | C161: PN G.Y 27.00 R49 223B RM-4A+ | D161: 10429270049RM4A+223B | E161: PETIT GENIE CIVIL | F161: GY RM-4A+ | G161: 27 | I161: R | J161: 49 | K161: 223 | L161: B | P161: 0 | Q161: 25808 | R161: 18581.76
A162: 612482 | B162: 4038526079046 | C162: PN GY 18.00 R25 EV-4S GEN II 3X 207A5 IN | D162: 180025EV4SG2207A5 | E162: PETIT GENIE CIVIL | F162: GY EV-4S GEN II | G162: 18 | I162: R | J162: 25 | K162: 207 | L162: A5 | P162: 0 | Q162: 7430 | R162: 5349.6
A163: 612484 | B163: 4038526079060 | C163: PN G.Y 18.00 R25 207A5 EV-5S GEN II | D163: 180025EV5SGENII207A5 | E163: PETIT GENIE CIVIL | F163: GY EV-5S GEN II | G163: 18 | I163: R | J163: 25 | K163: 207 | L163: A5 | P163: 0 | Q163: 9550 | R163: 6876
A164: 612492 | B164: 4038526084996 | C164: PN G.Y 27 R49 223B RM-4A+ ** 4HL | D164: 2749RM4A+223B4HL | E164: GROS GENIE CIVIL | F164: GY RM-4A+ | G164: 27 | I164: R | J164: 49 | K164: 223 | L164: B | P164: 0 | Q164: 25808 | R164: 18581.76
A165: 612563 | B165: 4038526096128 | C165: PN GY 450/95R25 EV-4C 3X 204A5 IND-4 TL | D165: 4509525EV4CIND204A5 | E165: PETIT GENIE CIVIL | F165: GY EV-4C INDUSTRIA | G165: 450 | H165: 95 | I165: R | J165: 25 | K165: 204 | L165: A5 | P165: 0 | Q165: 4664 | R165: 3358.08
A166: 612602 | B166: 4038526100283 | C166: PN GY 27.00 R49 223B RT-4A+ 3H E4 2E | D166: 270049RT4A+3H2232EB | E166: GROS GENIE CIVIL | F166: GY RT-4A+ | G166: 27 | I166: R | J166: 49 | K166: 223 | L166: B | P166: 0 | Q166: 25808 | R166: 18581.76
A167: 612603 | B167: 4038526100290 | C167: PN GY 27.00 R49 223B RT-4A+ 4H E4 2E | D167: 270049RT4A+4H2232EB | E167: GROS GENIE CIVIL | F167: GY RT-4A+ | G167: 27 | I167: R | J167: 49 | K167: 223 | L167: B | P167: 0 | Q167: 25808 | R167: 18581.76
A168: 612604 | B168: 4038526100306 | C168: PN GY 27.00 R49 223B RT-4A+ 6H E4 2E | D168: 270049RT4A+6H2232EB | E168: GROS GENIE CIVIL | F168: GY RT-4A+ | G168: 27 | I168: R | J168: 49 | K168: 223 | L168: B | P168: 0 | Q168: 25808 | R168: 18581.76
A169: 612682 | B169: 4038526104298 | C169: PN G.Y 480/95R25 208/206A5 EV-4M PORT HA | D169: 4809525EV4MPORT208A5 | E169: PETIT GENIE CIVIL | F169: GY EV-4M PORT HAND | G169: 480 | H169: 95 | I169: R | J169: 25 | K169: 208/206 | L169: A5 | P169: 0 | Q169: 5634 | R169: 4056.48
A170: 612732 | B170: 4038526324719 | C170: PN G.Y 15.5 R25 169A2 GP-3E | D170: 15525GP3E169A2 | E170: PETIT GENIE CIVIL | F170: GY GP-3E | G170: 15.5 | I170: R | J170: 25 | K170: 169 | L170: A2 | P170: 0 | Q170: 2120 | R170: 1526.4
A171: 612734 | B171: 4038526324733 | C171: PN G.Y 20.5 R25 186A2/177B GP-3E N | D171: 20525GP3E186NA2 | E171: PETIT GENIE CIVIL | F171: GY GP-3E | G171: 20.5 | I171: R | J171: 25 | K171: 186 | L171: A2 | P171: 0 | Q171: 3882 | R171: 2795.04
A172: 612736 | B172: 4038526324757 | C172: PN G.Y 26.5 R25 209A2/193B GP-3E | D172: 26525GP3E209A2 | E172: PETIT GENIE CIVIL | F172: GY GP-3E | G172: 26.5 | I172: R | J172: 25 | K172: 209 | L172: A2 | P172: 0 | Q172: 6572 | R172: 4731.84
A173: 612738 | B173: 4038526324771 | C173: PN G.Y 600/65R25 187A2 GP-3E N | D173: 6006525GP3E187A2 | E173: PETIT GENIE CIVIL | F173: GY GP-3E | G173: 600 | H173: 65 | I173: R | J173: 25 | K173: 187 | L173: A2 | P173: 0 | Q173: 4622 | R173: 3327.84
A174: 612740 | B174: 4038526324795 | C174: PN G.Y 17.5 R25 176A2 GP-3E | D174: 17525GP3E176A2 | E174: PETIT GENIE CIVIL | F174: GY GP-3E | G174: 17.5 | I174: R | J174: 25 | K174: 176 | L174: A2 | P174: 0 | Q174: 3034 | R174: 2184.48
A175: 612742 | B175: 4038526325112 | C175: PN G.Y 23.5 R25 195A2/185B GP-3E N | D175: 23525GP3E195NA2 | E175: PETIT GENIE CIVIL | F175: GY GP-3E | G175: 23.5 | I175: R | J175: 25 | K175: 195 | L175: A2 | P175: 0 | Q175: 4600 | R175: 3312
A176: 612744 | B176: 4038526325136 | C176: PN G.Y 29.5R25 216A2/200B GP-3E N | D176: 29525GP3ETT216A2 | E176: PETIT GENIE CIVIL | F176: GY GP-3E | G176: 29.5 | I176: R | J176: 25 | K176: 216 | L176: A2 | P176: 0 | Q176: 8712 | R176: 6272.64
A177: 612756 | B177: 4038526324979 | C177: PN G.Y 26.5 R25 214A2/210A8 RL-4K N | D177: 26525RL4K214NA2 | E177: PETIT GENIE CIVIL | F177: GY RL-4K HI-STABIL | G177: 26.5 | I177: R | J177: 25 | K177: 214 | L177: A2 | P177: 0 | Q177: 10776 | R177: 7758.72
A178: 612760 | B178: 4038526325310 | C178: PN G.Y 29.5 R25 221A2 RL-5K HI-STABIL | D178: 29525RL5KHISTAB221A2 | E178: PETIT GENIE CIVIL | F178: GY RL-5K HI-STABIL | G178: 29.5 | I178: R | J178: 25 | K178: 221 | L178: A2 | P178: 0 | Q178: 18286 | R178: 13165.92
A179: 612762 | B179: 4038526325334 | C179: PN G.Y 29.5 R25 221A2 RL-5S | D179: 29525RL5S221A2 | E179: PETIT GENIE CIVIL | F179: GY RL-5S | G179: 29.5 | I179: R | J179: 25 | K179: 221 | L179: A2 | P179: 0 | Q179: 21944 | R179: 15799.68
A180: 612909 | B180: 4038526453051 | C180: PN G.Y 27 R49 226B RT-4A+ 3SL 3E | D180: 2749RT4A+3S2263EB | E180: GROS GENIE CIVIL | F180: GY RT-4A+ | G180: 27 | I180: R | J180: 49 | K180: 226 | L180: B | P180: 0 | Q180: 27098 | R180: 19510.56
A181: 612910 | B181: 4038526453068 | C181: PN G.Y 27 R49 226B RT-4A+ 4SL 3E | D181: 2749RT4A+4S2263EB | E181: GROS GENIE CIVIL | F181: GY RT-4A+ | G181: 27 | I181: R | J181: 49 | K181: 226 | L181: B | P181: 0 | Q181: 27098 | R181: 19510.56
A182: 612922 | B182: 4038526453075 | C182: PN G.Y 27.00 R49 226B RT-4A+ 6SL 3E | D182: 270049RT4A+6S2263EB | E182: GROS GENIE CIVIL | F182: GY RT-4A+ | G182: 27 | I182: R | J182: 49 | K182: 226 | L182: B | P182: 0 | Q182: 27098 | R182: 19510.56
A183: 612925 | B183: 4038526453082 | C183: PN G.Y 27.00 R49 226B RT-4A+ 3HL 3E | D183: 270049RT4A+3H2263EB | E183: GROS GENIE CIVIL | F183: GY RT-4A+ | G183: 27 | I183: R | J183: 49 | K183: 226 | L183: B | P183: 0 | Q183: 27098 | R183: 19510.56
A184: 612926 | B184: 4038526453099 | C184: PN G.Y 27 R49 226B RT-4A+ 4HL 3E | D184: 2749RT4A+4H2263EB | E184: GROS GENIE CIVIL | F184: GY RT-4A+ | G184: 27 | I184: R | J184: 49 | K184: 226 | L184: B | P184: 0 | Q184: 27098 | R184: 19510.56
A185: 612928 | B185: 4038526453105 | C185: PN G.Y 27.00 R49 226B RT-4A+ 6HL 3E | D185: 270049RT4A+6H2263EB | E185: GROS GENIE CIVIL | F185: GY RT-4A+ | G185: 27 | I185: R | J185: 49 | K185: 226 | L185: B | P185: 0 | Q185: 27098 | R185: 19510.56
A186: 612953 | B186: 4038526349149 | C186: PN G.Y 18.00 R25 207A5 EV-4D | D186: 180025EV4D207A5 | E186: PETIT GENIE CIVIL | F186: GY EV-4D | G186: 18 | I186: R | J186: 25 | K186: 207 | L186: A5 | P186: 0 | Q186: 6900 | R186: 4968
A187: 612957 | B187: 4038526349187 | C187: PN G.Y 18.00 R25 207A5 EV-4S GEN II N | D187: 18025EV4SGENII207NA5 | E187: PETIT GENIE CIVIL | F187: GY EV-4S GEN II | G187: 18 | I187: R | J187: 25 | K187: 207 | L187: A5 | P187: 0 | Q187: 7430 | R187: 5349.6
A188: 612959 | B188: 4038526350800 | C188: PN G.Y 450/95R25 204A5/200A5 EV-4M | D188: 4509525EV4M204A5 | E188: PETIT GENIE CIVIL | F188: GY EV-4M | G188: 450 | H188: 95 | I188: R | J188: 25 | K188: 204 | L188: A5 | P188: 0 | Q188: 4664 | R188: 3358.08
A189: 612961 | B189: 4038526350824 | C189: PN G.Y 450/95R25 204A5/200A5 EV-4C | D189: 4509525EV4C204A5 | E189: PETIT GENIE CIVIL | F189: GY EV-4C | G189: 450 | H189: 95 | I189: R | J189: 25 | K189: 204 | L189: A5 | P189: 0 | Q189: 4664 | R189: 3358.08
A190: 612963 | B190: 4038526350848 | C190: PN G.Y 480/95R25 206A5 EV-4C | D190: 4809525EV4C206A5 | E190: PETIT GENIE CIVIL | F190: GY EV-4C | G190: 480 | H190: 95 | I190: R | J190: 25 | K190: 206 | L190: A5 | P190: 0 | Q190: 5634 | R190: 4056.48
A191: 612965 | B191: 4038526350862 | C191: PN G.Y 480/95R25 208A5 UNEV4MPH | D191: 4809525UNEV4MPH208A5 | E191: GROS GENIE CIVIL | F191: GY UNEV4MPH | G191: 480 | H191: 95 | I191: R | J191: 25 | K191: 208 | L191: A5 | P191: 0 | Q191: 5634 | R191: 4056.48
A192: 612973 | B192: 4038526348968 | C192: PN G.Y 17.5 R25 188A2 RL-5K HI-STABIL SL | D192: 17525RL5KHISTSL188A2 | E192: PETIT GENIE CIVIL | F192: GY RL-5K HI-STABIL | G192: 17.5 | I192: R | J192: 25 | K192: 188 | L192: A2 | P192: 0 | Q192: 5232 | R192: 3767.04
A193: 612983 | B193: 4038526350329 | C193: PN G.Y 18 R25 204A2 RL-5S | D193: 1825RL5S204A2 | E193: PETIT GENIE CIVIL | F193: GY RL-5S | G193: 18 | I193: R | J193: 25 | K193: 204 | L193: A2 | P193: 0 | Q193: 8534 | R193: 6144.48
A194: 612985 | B194: 4038526350343 | C194: PN G.Y 18.00 R25 206A2 RL-5K | D194: 180025RL5K206A2GY | E194: PETIT GENIE CIVIL | F194: GY RL-5K | G194: 18 | I194: R | J194: 25 | K194: 206 | L194: A2 | P194: 0 | Q194: 8248 | R194: 5938.56
A195: 612987 | B195: 4038526351005 | C195: PN G.Y 20.5 R25 193A2 RL-5S HI-STABIL | D195: 20525RL5SHISTAB193A2 | E195: PETIT GENIE CIVIL | F195: GY RL-5S HI-STABIL | G195: 20.5 | I195: R | J195: 25 | K195: 193 | L195: A2 | P195: 0 | Q195: 8866 | R195: 6383.52
A196: 613022 | B196: 4038526359988 | C196: PN G.Y 33.25 R29 209B TL-3A | D196: 332529TL3A209B | E196: GROS GENIE CIVIL | F196: GY TL-3A | G196: 33.25 | I196: R | J196: 29 | K196: 209 | L196: B | P196: 0 | Q196: 15900 | R196: 11448
A197: 613024 | B197: 4038526360601 | C197: PN G.Y 33.25 R29 209B TL-4A | D197: 332529TL4A209B | E197: GROS GENIE CIVIL | F197: GY TL-4A | G197: 33.25 | I197: R | J197: 29 | K197: 209 | L197: B | P197: 0 | Q197: 16934 | R197: 12192.48
A198: 613026 | B198: 4038526360649 | C198: PN G.Y 14R24 193A5 EV-4M PORT HAND N | D198: 1424EV4MPORTHTT193A5 | E198: PETIT GENIE CIVIL | F198: GY EV-4M PORT HAND | G198: 14 | I198: R | J198: 24 | K198: 193 | L198: A5 | P198: 0 | Q198: 4084 | R198: 2940.48
A199: 613028 | B199: 4038526360663 | C199: PN G.Y 14 R24 193A5 UNEV4MPH | D199: 1424UNEV4MPH193A5 | E199: PETIT GENIE CIVIL | F199: GY UNEV4MPH | G199: 14 | I199: R | J199: 24 | K199: 193 | L199: A5 | P199: 0 | Q199: 4084 | R199: 2940.48
A200: 613030 | B200: 4038526360687 | C200: PN G.Y 14.00 R25 193A5 EV-4M PORT HAND | D200: 140025EV4MPORTH193A5 | E200: PETIT GENIE CIVIL | F200: GY EV-4M PORT HAND | G200: 14 | I200: R | J200: 25 | K200: 193 | L200: A5 | P200: 0 | Q200: 5084 | R200: 3660.48
A201: 613032 | B201: 4038526360717 | C201: PN G.Y 29.5 R29 223A2 RL-5K L5 | D201: 29529RL5KL5223A2 | E201: PETIT GENIE CIVIL | F201: GY RL-5K | G201: 29.5 | I201: R | J201: 29 | K201: 223 | L201: A2 | P201: 0 | Q201: 18656 | R201: 13432.32
A202: 613034 | B202: 4038526360731 | C202: PN G.Y 29.5 R29 223A2 RL-5S 3E | D202: 29529RL5S2233EA2 | E202: PETIT GENIE CIVIL | F202: GY RL-5S | G202: 29.5 | I202: R | J202: 29 | K202: 223 | L202: A2 | P202: 0 | Q202: 22388 | R202: =Q202*(1-$D$3) -> 16119.36
A203: 613042 | B203: 4038526360045 | C203: PN G.Y 33.00R51 238B RH-4A+ | D203: 330051RH4A+238B | E203: GROS GENIE CIVIL | F203: GY RH-4A+ | G203: 33 | I203: R | J203: 51 | K203: 238 | L203: B | P203: 0 | Q203: 50108 | R203: 36077.76
... 18 more rows

Sheet MAGNA
D2: Remise
D3: =Remises!$E$10 -> 0.28
A5: Actualisation au 04/04/2024
A7: REFERENCES PNEUMATIQUES | Q7: TARIFS
A8: CAI | B8: EAN | C8: Désignation | D8: Appellation | E8: Catégorie | F8: Profil | G8: Largeur | H8: Hauteur | I8: Structure | J8: Diamètre | K8: IC | L8: IV | M8: Conso. | N8: Frein. | O8: Bruit. | P8: Décibels. | Q8: Prix BF | R8: Prix Remisé
A9: 100020MB100 | B9: 8718719755334 | C9: PN MAG 10.00-20 16P MB100 | D9: 100020MB100162 | E9: PETIT GENIE CIVIL | F9: M15 MB100 | G9: 10 | I9: - | J9: 20 | K9: 16PR | P9: 0 | Q9: 457.6 | R9: =Q9*(1-$D$3) -> 329.472
A10: 100020MB800 | B10: 8720289017002 | C10: PN MAG 10.00-20 20P MB800 | D10: 100020MB800202 | E10: PETIT GENIE CIVIL | F10: M15 MB800 | G10: 10 | I10: - | J10: 20 | K10: 20PR | P10: 0 | Q10: 657.8 | R10: =Q10*(1-$D$3) -> 473.616
A11: 1000R20MR800TT | B11: 8718719756218 | C11: PN MAG 10.00 R20 166A5 MR800 RAD IND TT | D11: 100020MR800INTT166A5 | E11: PETIT GENIE CIVIL | F11: M15 MR800 | G11: 10 | I11: R | J11: 20 | K11: 166 | L11: A5 | P11: 0 | Q11: 1372.8 | R11: 988.416
A12: 10165M-SKID2 | B12: 8718719755341 | C12: PN MAG 10-16.5 10P M-SKID2 | D12: 10165MSKID2102 | E12: PETIT GENIE CIVIL | F12: M15 M-SKID2 | G12: 10 | I12: - | J12: 16.5 | K12: 10PR | P12: 0 | Q12: 194.7 | R12: 140.184
A13: 10165M-SKID4 | B13: 8718719755365 | C13: PN MAG 10-16.5 10P M-SKID4 | D13: 10165MSKID4102 | E13: PETIT GENIE CIVIL | F13: M15 M-SKID4 | G13: 10 | I13: - | J13: 16.5 | K13: 10PR | P13: 0 | Q13: 333.3 | R13: 239.976
A14: 110020MB720S | B14: 8718719755372 | C14: PN MAG 11.00-20 PR18 MB720S | D14: 110020MB720S182 | E14: PETIT GENIE CIVIL | F14: M15 MB720S | G14: 11 | I14: - | J14: 20 | K14: 18PR | P14: 0 | Q14: 760.1 | R14: 547.272
A15: 120020MA608 | B15: 8718719758915 | C15: PN MAG 12.00-20 MA608 | D15: 120020MA6082 | E15: PETIT GENIE CIVIL | F15: M15 MA608 | G15: 12 | I15: - | J15: 20 | P15: 0 | Q15: 1650 | R15: 1188
A16: 120020MB800 | B16: 8718719756119 | C16: PN MAG 12.00-20 20P MB800 T | D16: 120020MB800202 | E16: PETIT GENIE CIVIL | F16: M15 MB800 | G16: 12 | I16: - | J16: 20 | K16: 20PR | P16: 0 | Q16: 774.4 | R16: 557.568
A17: 120024MA608 | B17: 8720289018207 | C17: PN MAG 12.00-24 (8.50-24) MA608 | D17: 120024MA6082 | E17: PETIT GENIE CIVIL | F17: M15 MA608 | G17: 12 | I17: - | J17: 24 | P17: 0 | Q17: 2912.8 | R17: 2097.216
A18: 1200R20MR800TT | B18: 8718719756256 | C18: PN MAG 12.00 R20 176A5 MR800 RAD IND TT | D18: 120020MR800INTT176A5 | E18: PETIT GENIE CIVIL | F18: M15 MR800 | G18: 12 | I18: R | J18: 20 | K18: 176 | L18: A5 | P18: 0 | Q18: 1650 | R18: 1188
A19: 1200R24MR800TT | B19: 8718719756263 | C19: PN MAG 12.00 R24 178A5 MR800 RAD IND TT | D19: 120024MR800INTT178A5 | E19: PETIT GENIE CIVIL | F19: M15 MR800 | G19: 12 | I19: R | J19: 24 | K19: 178 | L19: A5 | P19: 0 | Q19: 1928.3 | R19: 1388.376
A20: 12165M-SKID2 | B20: 8718719755471 | C20: PN MAG 12-16.5 12P M-SKID2 | D20: 12165MSKID2122 | E20: PETIT GENIE CIVIL | F20: M15 M-SKID2 | G20: 12 | I20: - | J20: 16.5 | K20: 12PR | P20: 0 | Q20: 240.9 | R20: 173.448
A21: 12165M-SKID4 | B21: 8718719755488 | C21: PN MAG 12-16.5 12P M-SKID4 | D21: 12165MSKID4122 | E21: PETIT GENIE CIVIL | F21: M15 M-SKID4 | G21: 12 | I21: - | J21: 16.5 | K21: 12PR | P21: 0 | Q21: 404.8 | R21: 291.456
A22: 12580MB400 | B22: 8718719755464 | C22: PN MAG 12.5/80-18 16P MB400 | D22: 1258018MB400162 | E22: PETIT GENIE CIVIL | F22: M15 MB400 | G22: 12.5 | H22: 80 | I22: - | J22: 18 | K22: 16PR | P22: 0 | Q22: 539 | R22: 388.08
A23: 130024MB210 | B23: 8718719751343 | C23: PN MAG 13.00-24 12P MB210 | D23: 130024MB210122 | E23: PETIT GENIE CIVIL | F23: M15 MB210 | G23: 13 | I23: - | J23: 24 | K23: 12PR | P23: 0 | Q23: 663.3 | R23: 477.576
A24: 140024MA608 | B24: 8718719759387 | C24: PN MAG 14.00-24 (10.00-24) MA | D24: 140024MA6082 | E24: PETIT GENIE CIVIL | F24: M15 MA608 | G24: 14 | I24: - | J24: 24 | P24: 0 | Q24: 4022.7 | R24: 2896.344
A25: 140024MB210 | B25: 8718719755495 | C25: PN MAG 14.00-24 16P MB210 | D25: 140024MB210162 | E25: PETIT GENIE CIVIL | F25: M15 MB210 | G25: 14 | I25: - | J25: 24 | K25: 16PR | P25: 0 | Q25: 818.4 | R25: 589.248
A26: 140024MB300+ | B26: 8718719759875 | C26: PN MAG 14.00-24 PR28 MB300+ | D26: 140024MB300+282 | E26: PETIT GENIE CIVIL | F26: M15 MB300+ | G26: 14 | I26: - | J26: 24 | K26: 28PR | P26: 0 | Q26: 1686.3 | R26: 1214.136
A27: 1400R24MR800TT | B27: 8718719756300 | C27: PN MAG 14.00 R24 193A5 MR800 RAD IND TT | D27: 140024MR800INTT193A5 | E27: PETIT GENIE CIVIL | F27: M15 MR800 | G27: 14 | I27: R | J27: 24 | K27: 193 | L27: A5 | P27: 0 | Q27: 3467.2 | R27: 2496.384
A28: 1400R25MA04+ | B28: 8718719751527 | C28: PN MAG 14.00R25 MA04+ | D28: 140025MA04+2 | E28: PETIT GENIE CIVIL | F28: M15 MA04+ | G28: 14 | I28: R | J28: 25 | P28: 0 | Q28: 2759.9 | R28: 1987.128
A29: 15525MB300 | B29: 8718719753408 | C29: PN MAG 15.5-25 12P MB300 | D29: 15525MB300122 | E29: PETIT GENIE CIVIL | F29: M15 MB300 | G29: 15.5 | I29: - | J29: 25 | K29: 12PR | P29: 0 | Q29: 1095.6 | R29: 788.832
A30: 15580MB250 | B30: 8718719756287 | C30: PN MAG 15.5/80-24 16P MB250 | D30: 1558024MB250162 | E30: PETIT GENIE CIVIL | F30: M15 MB250 | G30: 15.5 | H30: 80 | I30: - | J30: 24 | K30: 16PR | P30: 0 | Q30: 782.1 | R30: 563.112
A31: 160025MB01 | B31: 8718719756003 | C31: PN MAG 16.00-25 MB01 32P E3 | D31: 160025MB01E332 | E31: PETIT GENIE CIVIL | F31: M15 MB01 | G31: 16 | I31: - | J31: 25 | K31: 32PR | P31: 0 | Q31: 2635.6 | R31: 1897.632
A32: 1600R25M-STRADDLE RE | B32: 8718719751046 | C32: PN MAG 16.00R25 M-STRADDLE RE | D32: 160025MSTRADDLERE2 | E32: PETIT GENIE CIVIL | F32: M15 M-STRADDLE | G32: 16 | I32: R | J32: 25 | P32: 0 | Q32: 3592.6 | R32: 2586.672
A33: 1600R25MSTRADDLE+ | B33: 8718719752555 | C33: PN MAG 16.00R25 M-STRADDLE+ | D33: 160025MSTRADD2023EA7 | E33: PETIT GENIE CIVIL | F33: M15 M-STRADDLE+ | G33: 16 | I33: R | J33: 25 | K33: 202 | L33: A7 | P33: 0 | Q33: 3592.6 | R33: 2586.672
A34: 16924MB410 | B34: 8718719756317 | C34: PN MAG 16.9-24 PR14 MB410 | D34: 16924MB410142 | E34: PETIT GENIE CIVIL | F34: M15 MB410 | G34: 16.9 | I34: - | J34: 24 | K34: 14PR | P34: 0 | Q34: 790.9 | R34: 569.448
A35: 17524MB410 | B35: 8718719752289 | C35: PN MAG 17.5L-24 12P MB410 | D35: 17524MB410122 | E35: PETIT GENIE CIVIL | F35: M15 MB410 | G35: 17.5 | I35: - | J35: 24 | K35: 12PR | P35: 0 | Q35: 815.1 | R35: 586.872
A36: 175R25MA01+ | B36: 8718719751558 | C36: PN MAG 17.5R25 MA01+ ** | D36: 17525MA01+2E | E36: PETIT GENIE CIVIL | F36: M15 MA01+ | G36: 17.5 | I36: R | J36: 25 | K36: ** | P36: 0 | Q36: 1903 | R36: 1370.16
A37: 175R25MA05 | B37: 8718719751008 | C37: PN MAG 17.5 R25 2E MA05 L5 | D37: 17525MA05L52E | E37: PETIT GENIE CIVIL | F37: M15 MA05 | G37: 17.5 | I37: R | J37: 25 | K37: ** | P37: 0 | Q37: 3314.3 | R37: 2386.296
A38: 175R25M-SNOW | B38: 8718719750551 | C38: PN MAG 17.5R25 M-SNOW | D38: 17525MSNOW2 | E38: PETIT GENIE CIVIL | F38: M15 MSNOW | G38: 17.5 | I38: R | J38: 25 | P38: 0 | Q38: 1802.9 | R38: 1298.088
A39: 180025MB01S | B39: 8718719752371 | C39: PN MAG 18.00-25 40P MB01S | D39: 180025MB01S402 | E39: PETIT GENIE CIVIL | F39: M15 MB01S | G39: 18 | I39: - | J39: 25 | K39: 40PR | P39: 0 | Q39: 5534.1 | R39: 3984.552
A40: 180025MB02E3 | B40: 8718719756819 | C40: PN MAGN 18.00-25 40P MB02 E3 | D40: 180025MB02E4402 | E40: PETIT GENIE CIVIL | F40: M15 MB02 | G40: 18 | I40: - | J40: 25 | K40: 40PR | P40: 0 | Q40: 4424.2 | R40: 3185.424
A41: 180025PR40MB01TL | B41: 8718719756010 | C41: PN MAG 18.00-25 MB01 S 40P E4 | D41: 180025MB01 | E41: PETIT GENIE CIVIL | F41: M15 MB01 | G41: 18 | I41: - | J41: 25 | K41: 40PR | P41: 0 | Q41: 4424.2 | R41: 3185.424
A42: 180025PR40MB02TL | B42: 8718719756805 | C42: PN MAG 18.00-25 MB02 40P E4 | D42: 180025MB02E440 | E42: PETIT GENIE CIVIL | F42: M15 MB02 | G42: 18 | I42: - | J42: 25 | K42: 40PR | P42: 0 | Q42: 4701.4 | R42: 3385.008
A43: 180025PR40MB440TL | B43: 8718719754412 | C43: PN MAGNA 18.00 - 25 40PR MB440 | D43: 180025MB440 | E43: PETIT GENIE CIVIL | F43: MB440 | G43: 18 | I43: - | J43: 25 | P43: 0 | Q43: 2925 | R43: 2106
A44: 180033PR40MB420TL | B44: 8718719754108 | C44: PN MAGN 18.00-33 MB420 40P E4 | D44: 180033MB420E440 | E44: GROS GENIE CIVIL | F44: M15 MB420 | G44: 18 | I44: - | J44: 33 | K44: 40PR | P44: 0 | Q44: 3807 | R44: 2741.04
A45: 1800R25MA04+ | B45: 8718719753750 | C45: PN MAG 18.00R25 MA04+ ** | D45: 180025MA04+2E | E45: PETIT GENIE CIVIL | F45: M15 MA04+ | G45: 18 | I45: R | J45: 25 | K45: ** | P45: 0 | Q45: 4832.3 | R45: 3479.256
A46: 1800R25MA05S | B46: 8718719751114 | C46: PN MAGN 18.00R25 MA05S | D46: 180025MA05SL52E | E46: PETIT GENIE CIVIL | F46: M15 MA05S | G46: 18 | I46: R | J46: 25 | K46: ** | P46: 0 | Q46: 5472.5 | R46: 3940.2
A47: 1800R33MA04+ | B47: 8718719753767 | C47: PN MAG 18.00R33 MA04+ ** | D47: 180033MA04+2E | E47: GROS GENIE CIVIL | F47: M15 MA04+ | G47: 18 | I47: R | J47: 33 | K47: ** | P47: 0 | Q47: 5534.1 | R47: 3984.552
A48: 1800R33MA04AC | B48: 8718719750704 | C48: PN MAG 18.00 R33 2E MA04 E4 | D48: 180033MA04E42E | E48: GROS GENIE CIVIL | F48: M15 MA04 | G48: 18 | I48: R | J48: 33 | K48: ** | P48: 0 | Q48: 6179.8 | R48: 4449.456
A49: 18426MB410 | B49: 8718719756379 | C49: PN MAG 18.4-26 12P MB410 | D49: 18426MB410122 | E49: PETIT GENIE CIVIL | F49: M15 MB410 | G49: 18.4 | I49: - | J49: 26 | K49: 12PR | P49: 0 | Q49: 971.3 | R49: 699.336
A50: 19524MB410 | B50: 8718719759318 | C50: PN MAG 19.5L-24 12P MB410 | D50: 19524MB410122 | E50: PETIT GENIE CIVIL | F50: M15 MB410 | G50: 19.5 | I50: - | J50: 24 | K50: 12PR | P50: 0 | Q50: 909.7 | R50: 654.984
A51: 205R25MA01+ | B51: 8718719752944 | C51: PN MAG 20.5R25 MA01+ ** | D51: 20525MA01+2E | E51: PETIT GENIE CIVIL | F51: M15 MA01+ | G51: 20.5 | I51: R | J51: 25 | K51: ** | P51: 0 | Q51: 2635.6 | R51: 1897.632
A52: 205R25MA01X | B52: 8718719750216 | C52: PN MAG 20.5 R25 2E MA01 E3/L3 | D52: 20525MA01E32E | E52: PETIT GENIE CIVIL | F52: M15 MA01 | G52: 20.5 | I52: R | J52: 25 | K52: ** | P52: 0 | Q52: 2816 | R52: 2027.52
A53: 205R25MA08 | B53: 8718719750988 | C53: PN MAG 20.5 R25 2E MA08 L5 | D53: 20525MA08L52E | E53: PETIT GENIE CIVIL | F53: M15 MA08 | G53: 20.5 | I53: R | J53: 25 | K53: ** | P53: 0 | Q53: 4979.7 | R53: 3585.384
A54: 205R25MA10+ | B54: 8720289010027 | C54: PN MAG 20.5R25 MA10+ | D54: 20525MA10+2 | E54: PETIT GENIE CIVIL | F54: M15 MA10+ | G54: 20.5 | I54: R | J54: 25 | P54: 0 | Q54: 4299.9 | R54: 3095.928
A55: 205R25MA10X | B55: 8718719755907 | C55: PN MAG 20.5 R25 2E MA10 L5 | D55: 20525MA10L52E | E55: PETIT GENIE CIVIL | F55: M15 MA10 | G55: 20.5 | I55: R | J55: 25 | K55: ** | P55: 0 | Q55: 4979.7 | R55: 3585.384
A56: 205R25MSNOW | B56: 8720289010089 | C56: PN MAG 20.5R25 M-SNOW | D56: 20525MSNOW | E56: PETIT GENIE CIVIL | F56: M15 MSNOW | G56: 20.5 | I56: R | J56: 25 | P56: 0 | Q56: 2482.7 | R56: 1787.544
A57: 205R25M-TERRAIN | B57: 8718719759486 | C57: PN MAG 20.5R25 M-TERRAIN | D57: 20525MTERRAIN2 | E57: PETIT GENIE CIVIL | F57: M15 M-TERRAIN | G57: 20.5 | I57: R | J57: 25 | P57: 0 | Q57: 3467.2 | R57: 2496.384
A58: 210025MB01 | B58: 8718719756034 | C58: PN MAG 21.00-25 MB01 40P E4 | D58: 210025MB01E440 | E58: PETIT GENIE CIVIL | F58: M15 MB01 | G58: 21 | I58: - | J58: 25 | K58: 40PR | P58: 0 | Q58: 4701.4 | R58: 3385.008
A59: 2100R33MA04+ | B59: 8718719753774 | C59: PN MAG 21.00R33 MA04+ ** | D59: 210033MA04+2E | E59: GROS GENIE CIVIL | F59: M15 MA04+ | G59: 21 | I59: R | J59: 33 | K59: ** | P59: 0 | Q59: 7282 | R59: 5243.04
A60: 23126MB720 | B60: 8718719756393 | C60: PN MAG 23.1-26 12P MB720 | D60: 23126MB720122 | E60: PETIT GENIE CIVIL | F60: M15 MB720 | G60: 23.1 | I60: - | J60: 26 | K60: 12PR | P60: 0 | Q60: 1461.9 | R60: 1052.568
A61: 235R25MA01+ | B61: 8718719754375 | C61: PN MAG 23.5R25 MA01+ ** | D61: 23525MA01+2E | E61: PETIT GENIE CIVIL | F61: M15 MA01+ | G61: 23.5 | I61: R | J61: 25 | K61: ** | P61: 0 | Q61: 3467.2 | R61: 2496.384
A62: 235R25MA01X | B62: 8718719750223 | C62: PN MAG 23.5 R25 2E MA01 E3/L3 | D62: 23525MA01E32E | E62: PETIT GENIE CIVIL | F62: M15 MA01 | G62: 23.5 | I62: R | J62: 25 | K62: ** | P62: 0 | Q62: 4041.4 | R62: 2909.808
A63: 235R25MA02 | B63: 8718719750193 | C63: PN MAGN 23.5R25 MA02 **/NL | D63: 23525MA02E32E | E63: PETIT GENIE CIVIL | F63: M15 MA02 | G63: 23.5 | I63: R | J63: 25 | K63: ** | P63: 0 | Q63: 4143.7 | R63: 2983.464
A64: 235R25MA02+ | B64: 8718719754399 | C64: PN MAG 23.5R25 MA02+ ** | D64: 23525MA02+2E | E64: PETIT GENIE CIVIL | F64: M15 MA02+ | G64: 23.5 | I64: R | J64: 25 | K64: ** | P64: 0 | Q64: 4147 | R64: 2985.84
A65: 235R25MA08 | B65: 8718719751701 | C65: PN MAG 23.5 R25 2E MA08 L5 | D65: 23525MA08L52E | E65: PETIT GENIE CIVIL | F65: M15 MA08 | G65: 23.5 | I65: R | J65: 25 | K65: ** | P65: 0 | Q65: 5964.2 | R65: 4294.224
A66: 235R25MA10+ | B66: 8720289010034 | C66: PN MAG 23.5R25 MA10+ | D66: 23525MA10+2 | E66: PETIT GENIE CIVIL | F66: M15 MA10+ | G66: 23.5 | I66: R | J66: 25 | P66: 0 | Q66: 5687 | R66: 4094.64
A67: 235R25MA10X | B67: 8718719755914 | C67: PN MAG 23.5 R25 2E MA10 L5 | D67: 23525MA10L52E | E67: PETIT GENIE CIVIL | F67: M15 MA10 | G67: 23.5 | I67: R | J67: 25 | K67: ** | P67: 0 | Q67: 5964.2 | R67: 4294.224
A68: 235R25MSNOW | B68: 8718719751749 | C68: PN MAG 23.5R25 M-SNOW | D68: 23525MSNOW | E68: PETIT GENIE CIVIL | F68: M15 MSNOW | G68: 23.5 | I68: R | J68: 25 | P68: 0 | Q68: 3592.6 | R68: 2586.672
A69: 2400R35MA04+ | B69: 8718719752593 | C69: PN MAG 24.00R35 MA04+ ** | D69: 240035MA04+2E | E69: GROS GENIE CIVIL | F69: M15 MA04+ | G69: 24 | I69: R | J69: 35 | K69: ** | P69: 0 | Q69: 10249.8 | R69: 7379.856
A70: 2400R35MA04AC | B70: 8718719750803 | C70: PN MAG 24.00 R35 2E MA04 E4 | D70: 240035MA04E42E | E70: GROS GENIE CIVIL | F70: M15 MA04 | G70: 24 | I70: R | J70: 35 | K70: ** | P70: 0 | Q70: 10219 | R70: 7357.68
A71: 2501518MB800 | B71: 8718719754962 | C71: PN MAG 250-15 PR18 MB800 TT | D71: 25015MB800TT182 | E71: PETIT GENIE CIVIL | F71: M15 MB800 | G71: 250 | I71: - | J71: 15 | K71: 18PR | P71: 0 | Q71: 349.8 | R71: 251.856
A72: 26525MTERRAIN | B72: 8718719758441 | C72: PN MAG 26.5 R25 2E M-TERRAIN E4 | D72: 26525MTERRAINE42E | E72: PETIT GENIE CIVIL | F72: M15 M-TERRAIN | G72: 26.5 | I72: R | J72: 25 | K72: ** | P72: 0 | Q72: 5687 | R72: 4094.64
A73: 265R25MA01+ | B73: 8718719750261 | C73: PN MAG 26.5R25 MA01+ ** | D73: 26525MA01+2E | E73: PETIT GENIE CIVIL | F73: M15 MA01+ | G73: 26.5 | I73: R | J73: 25 | K73: ** | P73: 0 | Q73: 4979.7 | R73: 3585.384
A74: 265R25MA02 | B74: 8718719750315 | C74: PN MAGN 26.5R25 MA02 **/NL | D74: 26525MA02E32E | E74: GROS GENIE CIVIL | F74: M15 MA02 | G74: 26.5 | I74: R | J74: 25 | K74: ** | P74: 0 | Q74: 5534.1 | R74: =Q74*(1-$D$3) -> 3984.552
A75: 265R25MA05 | B75: 8718719751015 | C75: PN MAG 26.5R25 2E MA05 L5 | D75: 26525MA05L52E | E75: PETIT GENIE CIVIL | F75: M15 MA05 | G75: 26.5 | I75: R | J75: 25 | K75: ** | P75: 0 | Q75: 8308.3 | R75: 5981.976
A76: 265R25MA05S | B76: 8718719751121 | C76: PN MAGA 26.5R25 MA05S | D76: 26525MA05S | E76: PETIT GENIE CIVIL | F76: M15 MA05S | G76: 26.5 | I76: R | J76: 25 | P76: 0 | Q76: 8377.6 | R76: 6031.872
A77: 265R25MA07 | B77: 8718719751602 | C77: PN MAG 26.5 R25 2E MA07 L4 | D77: 26525MA07L42E | E77: PETIT GENIE CIVIL | F77: M15 MA07 | G77: 26.5 | I77: R | J77: 25 | K77: ** | P77: 0 | Q77: 7198.4 | R77: 5182.848
A78: 265R25MA08 | B78: 8718719751718 | C78: PN MAG 26.5 R25 2E MA08 L5 | D78: 26525MA08L52E | E78: PETIT GENIE CIVIL | F78: M15 MA08 | G78: 26.5 | I78: R | J78: 25 | K78: ** | P78: 0 | Q78: 8308.3 | R78: 5981.976
A79: 265R25MA10+ | B79: 8720289010041 | C79: PN MAG 26.5R25 MA10+ | D79: 26525MA10+2 | E79: PETIT GENIE CIVIL | F79: M15 MA10+ | G79: 26.5 | I79: R | J79: 25 | P79: 0 | Q79: 7628.5 | R79: 5492.52
A80: 2700R49MA04AC | B80: 8718719750858 | C80: PN MAGNA 27.00R49 MA04 AC | D80: 270049MA04A | E80: GROS GENIE CIVIL | F80: MA04 | G80: 27 | I80: R | J80: 49 | P80: 0 | Q80: 15850 | R80: 11412
A81: 280/75R2275R22M-TERMINAL | B81: 8718719752616 | C81: PN MAG 280/75R22.5 M-TERMIN | D81: 28075225MTERMINAL2 | E81: PETIT GENIE CIVIL | F81: M15 M-TERMINAL | G81: 280 | H81: 75 | I81: R | J81: 22.5 | P81: 0 | Q81: 873.4 | R81: 628.848
A82: 28915MB800 | B82: 8718719750278 | C82: PN MAG 28X9-15 PR14 MB800 TT | D82: 28915MB800TT142 | E82: PETIT GENIE CIVIL | F82: M15 MB800 | G82: 9 | I82: - | J82: 15 | K82: 14PR | P82: 0 | Q82: 269.5 | R82: 194.04
A83: 295R25MA01+ | B83: 8718719750285 | C83: PN MAG 29.5R25 MA01+ ** | D83: 29525MA01+2E | E83: GROS GENIE CIVIL | F83: M15 MA01+ | G83: 29.5 | I83: R | J83: 25 | K83: ** | P83: 0 | Q83: 6644 | R83: 4783.68
A84: 295R25MA02 | B84: 8718719750322 | C84: PN MAGN 29.5R25 MA02 **/NL | D84: 29525MA02E32E | E84: GROS GENIE CIVIL | F84: M15 MA02 | G84: 29.5 | I84: R | J84: 25 | K84: ** | P84: 0 | Q84: 7096.1 | R84: 5109.192
A85: 295R25MA02+ | B85: 8718719758694 | C85: PN MAG 29.5R25 MA02+ ** | D85: 29525MA02+2E | E85: GROS GENIE CIVIL | F85: M15 MA02+ | G85: 29.5 | I85: R | J85: 25 | K85: ** | P85: 0 | Q85: 6795.8 | R85: 4892.976
A86: 295R25MA05 | B86: 8718719751022 | C86: PN MAG 29.5 R25 2E MA05 L5 | D86: 29525MA05L52E | E86: PETIT GENIE CIVIL | F86: M15 MA05 | G86: 29.5 | I86: R | J86: 25 | K86: ** | P86: 0 | Q86: 10957.1 | R86: 7889.112
A87: 295R25MA08 | B87: 8718719751725 | C87: PN MAG 29.5 R25 2E MA08 L5 | D87: 29525MA08L52E | E87: PETIT GENIE CIVIL | F87: M15 MA08 | G87: 29.5 | I87: R | J87: 25 | K87: ** | P87: 0 | Q87: 10249.8 | R87: 7379.856
A88: 295R25MA10+ | B88: 8720289010058 | C88: PN MAG 29.5R25 MA10+ | D88: 29529MA10+2 | E88: GROS GENIE CIVIL | F88: M15 MA10+ | G88: 29.5 | I88: R | J88: 29 | P88: 0 | Q88: 8862.7 | R88: 6381.144
A89: 295R25MTERRAIN | B89: 8720289010348 | C89: PN MAG 29.5R25 M-TERRAIN | D89: 29525MTERRAIN2 | E89: GROS GENIE CIVIL | F89: M15 M-TERRAIN | G89: 29.5 | I89: R | J89: 25 | P89: 0 | Q89: 7475.6 | R89: 5382.432
A90: 295R25MTERRAIN+ | B90: 8718719750292 | C90: PN MAG 29.5R25 M-TERRAIN+ | D90: 29525MTERRAIN+2 | E90: GROS GENIE CIVIL | F90: M15 M-TERRAIN+ | G90: 29.5 | I90: R | J90: 25 | P90: 0 | Q90: 7475.6 | R90: 5382.432
A91: 295R29MA02 | B91: 8718719752791 | C91: PN MAG 29.5R29 MA02 ** | D91: 29529MA022E | E91: GROS GENIE CIVIL | F91: M15 MA02 | G91: 29.5 | I91: R | J91: 29 | K91: ** | P91: 0 | Q91: 7351.3 | R91: 5292.936
A92: 295R29MA05S | B92: 8718719751145 | C92: PN MAG 29.5 R29 2E MA05 S L5S | D92: 29529MA05SL52E | E92: GROS GENIE CIVIL | F92: M15 MA05S | G92: 29.5 | I92: R | J92: 29 | K92: ** | P92: 0 | Q92: 12344.2 | R92: 8887.824
A93: 295R29MA08 | B93: 8718719754528 | C93: PN MAG 29.5R29 MA08 | D93: 29529MA082 | E93: GROS GENIE CIVIL | F93: M15 MA08 | G93: 29.5 | I93: R | J93: 29 | P93: 0 | Q93: 10804.2 | R93: 7779.024
A94: 3001520MB800 | B94: 8718719754061 | C94: PN MAG 300-15 20P MB800 TT | D94: 30015MB800TT202 | E94: PETIT GENIE CIVIL | F94: M15 MB800 | G94: 300 | I94: - | J94: 15 | K94: 20PR | P94: 0 | Q94: 479.6 | R94: 345.312
A95: 310/80R2280R22M-TERMINAL | B95: 8718719752630 | C95: PN MAG 310/80R22.5 M-TERMIN | D95: 31080225MTERMINAL2 | E95: PETIT GENIE CIVIL | F95: M15 M-TERMINAL | G95: 310 | H95: 80 | I95: R | J95: 22.5 | P95: 0 | Q95: 998.8 | R95: 719.136
A96: 3325R29MA02 | B96: 8718719755266 | C96: PN MAG 33.25R29 MA02 ** | D96: 332529MA022E | E96: GROS GENIE CIVIL | F96: M15 MA02 | G96: 33.25 | I96: R | J96: 29 | K96: ** | P96: 0 | Q96: 10124.4 | R96: 7289.568
A97: 3565R33MA07+ | B97: 8718719754511 | C97: PN MAG 35/65R33 MA07+ *** | D97: 356533MA07+3E | E97: GROS GENIE CIVIL | F97: M15 MA07+ | G97: 35 | H97: 65 | I97: R | J97: 33 | K97: *** | P97: 0 | Q97: 13301.2 | R97: 9576.864
A98: 3565R33MA07X | B98: 8718719751657 | C98: PN MAG 35/65R33 2E MA07 L5 | D98: 356533MA07L52E | E98: GROS GENIE CIVIL | F98: M15 MA07 | G98: 35 | H98: 65 | I98: R | J98: 33 | K98: ** | P98: 0 | Q98: 13301.2 | R98: 9576.864
A99: 3565R33MA08 | B99: 8718719750872 | C99: PN MAG 35/65R33 2E MA08 L5 | D99: 356533MA08L52E | E99: GROS GENIE CIVIL | F99: M15 MA08 | G99: 35 | H99: 65 | I99: R | J99: 33 | K99: ** | P99: 0 | Q99: 13024 | R99: 9377.28
A100: 3565R33MA08L4 | B100: 8718719752661 | C100: PN MAGN 35/65R33 MA08 L4 | D100: 356533MA08L42E | E100: GROS GENIE CIVIL | F100: M15 MA08 | G100: 35 | H100: 65 | I100: R | J100: 33 | K100: ** | P100: 0 | Q100: 11081.4 | R100: 7978.608
A101: 3657018MA11 | B101: 8718719758540 | C101: PN MAG 365/70R18 2E MA11 E2/L2 50K/H | D101: 3657018MA11E22E | E101: PETIT GENIE CIVIL | F101: M15 MA11 | G101: 365 | H101: 70 | I101: R | J101: 18 | K101: ** | P101: 0 | Q101: 734.8 | R101: 529.056
A102: 3725R35MA02 | B102: 8718719753743 | C102: PN MAG 37.25R35 MA02 ** | D102: 372535MA022E | E102: GROS GENIE CIVIL | F102: M15 MA02 | G102: 37.25 | I102: R | J102: 35 | K102: ** | P102: 0 | Q102: 14568.4 | R102: 10489.248
A103: 38595R24MA03 | B103: 8718719750506 | C103: PN MAG 385/95R24 3E 170E MA03 E2 | D103: 3859524MA03E21703EE | E103: PETIT GENIE CIVIL | F103: M15 MA03 | G103: 385 | H103: 95 | I103: R | J103: 24 | K103: 170 | L103: E | P103: 0 | Q103: 1928.3 | R103: 1388.376
A104: 38595R25MA03X | B104: 8718719750513 | C104: PN MAG 385/95R25 3E 170F MA03 E2 | D104: 3859525MA03E21703EF | E104: PETIT GENIE CIVIL | F104: M15 MA03 | G104: 385 | H104: 95 | I104: R | J104: 25 | K104: 170 | L104: F | P104: 0 | Q104: 1928.3 | R104: 1388.376
A105: 38595R25MSNOW | C105: PN MAGNA 385/95 R 25 M-SNOW E3/L3 + | D105: 3859525MSNOW | E105: PETIT GENIE CIVIL | F105: M-SNOW | G105: 385 | H105: 95 | I105: R | J105: 25 | P105: 0 | Q105: 1550 | R105: 1116
A106: 40070R24MR400 | B106: 8718719754214 | C106: PN MAG 400/70R24 MR400 | D106: 4007024MR4002 | E106: PETIT GENIE CIVIL | F106: M15 MR400 | G106: 400 | H106: 70 | I106: R | J106: 24 | P106: 0 | Q106: 946 | R106: 681.12
A107: 40080R24MR400 | B107: 8718719754221 | C107: PN MAG 400/80R24 MR400 | D107: 4008024MR4002 | E107: PETIT GENIE CIVIL | F107: M15 MR400 | G107: 400 | H107: 80 | I107: R | J107: 24 | P107: 0 | Q107: 1042.8 | R107: 750.816
A108: 4057018MA11 | B108: 8718719759974 | C108: PN MAG 405/70R18 2E MA11 E2/L2 50K/H | D108: 4057018MA11E22E | E108: PETIT GENIE CIVIL | F108: M15 MA11 | G108: 405 | H108: 70 | I108: R | J108: 18 | K108: ** | P108: 0 | Q108: 818.4 | R108: 589.248
A109: 4057020MA11 | B109: 8718719759981 | C109: PN MAG 405/70R20 2E MA11 E2/L2 50K/H | D109: 4057020MA11E22E | E109: PETIT GENIE CIVIL | F109: M15 MA11 | G109: 405 | H109: 70 | I109: R | J109: 20 | K109: ** | P109: 0 | Q109: 873.4 | R109: 628.848
A110: 4057020MB260 | B110: 8718719754238 | C110: PN MAG 405/70-20 PR14 MB260 | D110: 4057020MB260142 | E110: PETIT GENIE CIVIL | F110: M15 MB260 | G110: 405 | H110: 70 | I110: - | J110: 20 | K110: 14PR | P110: 0 | Q110: 616 | R110: 443.52
A111: 4057024MB260 | B111: 8718719754245 | C111: PN MAG 405/70-24 PR14 MB260 | D111: 4057024MB260142 | E111: PETIT GENIE CIVIL | F111: M15 MB260 | G111: 405 | H111: 70 | I111: - | J111: 24 | K111: 14PR | P111: 0 | Q111: 884.4 | R111: 636.768
A112: 44080R24MR400 | B112: 8718719754252 | C112: PN MAG 440/80R24 MR400 | D112: 4408024MR4002 | E112: PETIT GENIE CIVIL | F112: M15 MR400 | G112: 440 | H112: 80 | I112: R | J112: 24 | P112: 0 | Q112: 1186.9 | R112: 854.568
A113: 44080R28MR400 | B113: 8718719754269 | C113: PN MAG 440/80R28 MR400 | D113: 4408028MR4002 | E113: GROS GENIE CIVIL | F113: M15 MR400 | G113: 440 | H113: 80 | I113: R | J113: 28 | P113: 0 | Q113: 1314.5 | R113: 946.44
A114: 44595R25MA03X | B114: 8718719750520 | C114: PN MAG 445/95R25 3E 174F MA03 E2 | D114: 4459525MA03E21743EF | E114: PETIT GENIE CIVIL | F114: M15 MA03 | G114: 445 | H114: 95 | I114: R | J114: 25 | K114: 174 | L114: F | P114: 0 | Q114: 2482.7 | R114: 1787.544
A115: 46070R24MR400 | B115: 8718719754276 | C115: PN MAG 460/70R24 MR400 | D115: 4607024MR4002 | E115: PETIT GENIE CIVIL | F115: M15 MR400 | G115: 460 | H115: 70 | I115: R | J115: 24 | P115: 0 | Q115: 1106.6 | R115: 796.752
A116: 48080R26MR400 | B116: 8718719754283 | C116: PN MAG 480/80R26 MR400 | D116: 4808026MR4002 | E116: PETIT GENIE CIVIL | F116: M15 MR400 | G116: 480 | H116: 80 | I116: R | J116: 26 | P116: 0 | Q116: 1492.7 | R116: 1074.744
A117: 48095R25M-STRADDLE | B117: 8718719755297 | C117: PN MAG 480/95R25 M-STRADDLE | D117: 4809525MSTRADDLE2 | E117: PETIT GENIE CIVIL | F117: M15 M-STRADDLE | G117: 480 | H117: 95 | I117: R | J117: 25 | P117: 0 | Q117: 4299.9 | R117: 3095.928
A118: 50070R24MR400 | B118: 8718719755877 | C118: PN MAG 500/70R24 MR400 | D118: 5007024MR4002 | E118: PETIT GENIE CIVIL | F118: M15 MR400 | G118: 500 | H118: 70 | I118: R | J118: 24 | P118: 0 | Q118: 1314.5 | R118: 946.44
A119: 5008MB800 | B119: 8718719754290 | C119: PN MAG 5.00-8 10P MB800 TT | D119: 5008MB800TT102 | E119: PETIT GENIE CIVIL | F119: M15 MB800 | G119: 5 | I119: - | J119: 8 | K119: 10PR | P119: 0 | Q119: 67.1 | R119: 48.312
A120: 50595R25MA03 | B120: 8718719758830 | C120: PN MAG 505/95R25 MA03 *** | D120: 5059525MA033E | E120: PETIT GENIE CIVIL | F120: M15 MA03 | G120: 505 | H120: 95 | I120: R | J120: 25 | K120: *** | P120: 0 | Q120: 3467.2 | R120: 2496.384
A121: 52580R25MA03 | B121: 8718719750537 | C121: PN MAG 525/80R25 2E 177F MA03 E2 | D121: 5258025MA03E21772EF | E121: PETIT GENIE CIVIL | F121: M15 MA03 | G121: 525 | H121: 80 | I121: R | J121: 25 | K121: 177 | L121: F | P121: 0 | Q121: 3190 | R121: 2296.8
A122: 54070R24MR400 | B122: 8718719755884 | C122: PN MAG 540/70R24 MR400 | D122: 5407024MR4002 | E122: PETIT GENIE CIVIL | F122: M15 MR400 | G122: 540 | H122: 70 | I122: R | J122: 24 | P122: 0 | Q122: 1575.2 | R122: 1134.144
A123: 6009MB800 | B123: 8718719755891 | C123: PN MAG 6.00-9 10P MB800 TT | D123: 6009MB800TT102 | E123: PETIT GENIE CIVIL | F123: M15 MB800 | G123: 6 | I123: - | J123: 9 | K123: 10PR | P123: 0 | Q123: 116.6 | R123: 83.952
A124: 65010MB800 | B124: 8718719755921 | C124: PN MAG 6.50-10 12P MB800 TT | D124: 65010MB800TT122 | E124: PETIT GENIE CIVIL | F124: M15 MB800 | G124: 6.5 | I124: - | J124: 10 | K124: 12PR | P124: 0 | Q124: 138.6 | R124: 99.792
A125: 70012MB800 | B125: 8718719756096 | C125: PN MAG 7.00-12 PR14 MB800 TT | D125: 70012MB800TT142 | E125: PETIT GENIE CIVIL | F125: M15 MB800 | G125: 7 | I125: - | J125: 12 | K125: 14PR | P125: 0 | Q125: 196.9 | R125: 141.768
A126: 75065R25MA02+ | B126: 8718719755976 | C126: PN MAG 750/65R25 MA02+ ** | D126: 7506525MA02+2E | E126: PETIT GENIE CIVIL | F126: M15 MA02+ | G126: 750 | H126: 65 | I126: R | J126: 25 | K126: ** | P126: 0 | Q126: 4829 | R126: 3476.88
A127: 75065R25M-TERRAIN | B127: 8718719754559 | C127: PN MAG 750/65R25 M-TERRAIN | D127: 7506525MTERRAIN2 | E127: PETIT GENIE CIVIL | F127: M15 M-TERRAIN | G127: 750 | H127: 65 | I127: R | J127: 25 | P127: 0 | Q127: 4854.3 | R127: 3495.096
A128: 82515MB800 | B128: 8718719756799 | C128: PN MAG 8.25-15 PR14 MB800 TT | D128: 82515MB800TT142 | E128: PETIT GENIE CIVIL | F128: M15 MB800 | G128: 8.25 | I128: - | J128: 15 | K128: 14PR | P128: 0 | Q128: 324.5 | R128: 233.64
A129: 8718719750032 | B129: 8718719750032 | C129: PN MAG 385/95R25 3E 170F MA03+ E2 | D129: 3859525MA03+E2170F | E129: PETIT GENIE CIVIL | F129: M15 MA03+ | G129: 385 | H129: 95 | I129: R | J129: 25 | K129: 170 | L129: F | P129: 0 | Q129: 1928.3 | R129: 1388.376
A130: 8718719750049 | B130: 8718719750049 | C130: PN MAG 445/95R25 3E 174F MA03+ E2 | D130: 4459525MA03+E2174F | E130: PETIT GENIE CIVIL | F130: M15 MA03+ | G130: 445 | H130: 95 | I130: R | J130: 25 | K130: 174 | L130: F | P130: 0 | Q130: 2357.3 | R130: 1697.256
A131: 8718719751107 | B131: 8718719751107 | C131: PN MAG 17.5R25 2E MA05 S L5S | D131: 17525MA05SL52E2 | E131: PETIT GENIE CIVIL | F131: M15 MA05S | G131: 17.5 | I131: R | J131: 25 | K131: ** | P131: 0 | Q131: 3190 | R131: 2296.8
A132: 8718719751640 | B132: 8718719751640 | C132: PN MAG 18.00-25 MB01+ 40P E4 70MM | D132: 180025MB01+E4402 | E132: PETIT GENIE CIVIL | F132: M15 MB01+ | G132: 18 | I132: - | J132: 25 | K132: 40PR | P132: 0 | Q132: 4701.4 | R132: 3385.008
A133: 8718719752340 | B133: 8718719752340 | C133: PN MAG 14.00-24 MB02 28P E4 | D133: 140024MB02E4282 | E133: PETIT GENIE CIVIL | F133: M15 MB02 | G133: 14 | I133: - | J133: 24 | K133: 28PR | P133: 0 | Q133: 1872.2 | R133: 1347.984
A134: 8718719756324 | B134: 8718719756324 | C134: PN MAG 16.9 -28 14P MB410 | D134: 16928MB410 | E134: PETIT GENIE CIVIL | F134: M15 MB410 | G134: 16.9 | I134: - | J134: 28 | P134: 0 | Q134: 1155 | R134: 831.6
A135: 8718719756904 | B135: 8718719756904 | C135: PN MAG 23.5 R25 2E M-TERRAIN E4 | D135: 23525MTERRAINE42E | E135: PETIT GENIE CIVIL | F135: M15 M-TERRAIN | G135: 23.5 | I135: R | J135: 25 | K135: ** | P135: 0 | Q135: 4701.4 | R135: 3385.008
A136: 8718719758236 | B136: 8718719758236 | C136: PN MAG 10.00-20 7.0/7.5 MA608 S SOLID | D136: 1000207MA608SS | E136: PETIT GENIE CIVIL | F136: M15 MA608 | G136: 10 | I136: - | J136: 20 | P136: 0 | Q136: 1248.5 | R136: 898.92
A137: 8718719759295 | B137: 8718719759295 | C137: PN MAG 13.00 -24 MA802 | D137: 130024MA8022 | E137: PETIT GENIE CIVIL | F137: M15 MA802 | G137: 13 | I137: - | J137: 24 | P137: 0 | Q137: 2585 | R137: 1861.2
A138: 8720289017026 | B138: 8720289017026 | C138: PN MAG 18.00 -25 40P STACKER | D138: 180025STACKER | E138: PETIT GENIE CIVIL | F138: M15 STACKER | G138: 18 | I138: - | J138: 25 | P138: 0 | Q138: 4424.2 | R138: =Q138*(1-$D$3) -> 3185.424
A139: 8720289018184 | B139: 8720289018184 | C139: PN MAG 10.5/80-18 12P MB400 | D139: 1058018MB400 | E139: PETIT GENIE CIVIL | F139: M15 MB400 | G139: 10.5 | H139: 80 | I139: - | J139: 18 | P139: 0 | Q139: 539 | R139: 388.08
A140: 87565R29MA02+ | B140: 8718719752852 | C140: PN MAG 875/65R29 MA02+ ** | D140: 8756529MA02+2E | E140: GROS GENIE CIVIL | F140: M15 MA02+ | G140: 875 | H140: 65 | I140: R | J140: 29 | K140: ** | P140: 0 | Q140: 8308.3 | R140: 5981.976
A141: 87565R29M-TERRAIN | B141: 8718719754566 | C141: PN MAG 875/65R29 M-TERRAIN | D141: 8756529MTERRAIN2 | E141: GROS GENIE CIVIL | F141: M15 M-TERRAIN | G141: 875 | H141: 65 | I141: R | J141: 29 | P141: 0 | Q141: 8308.3 | R141: 5981.976

Sheet MICHELIN
D2: Remise
D3: =Remises!$J$10 -> 0.31
A5: Actualisation au 04/04/2024
A7: REFERENCES PNEUMATIQUES | Q7: TARIFS
A8: CAI | B8: EAN | C8: Désignation | D8: Appellation | E8: Catégorie | F8: Profil | G8: Largeur | H8: Hauteur | I8: Structure | J8: Diamètre | K8: IC | L8: IV | M8: Conso. | N8: Frein. | O8: Bruit. | P8: Décibels. | Q8: Prix BF | R8: Prix Remisé
A9: 002752 | B9: 3528700027525 | C9: PN MIC 775/65R29 XTRA DEFEND 2E | D9: 7756529XTRADEFEND2E | E9: GROS GENIE CIVIL | F9: MI XTRA DEFEND | G9: 775 | H9: 65 | I9: R | J9: 29 | K9: ** | P9: 0 | Q9: 12725 | R9: =Q9*(1-$D$3) -> 8780.25
A10: 003438 | B10: 3528700034387 | C10: PN MIC 18.00 R25 X SM D2+ PRO L5S | D10: 180025XSMD2+L5 | E10: PETIT GENIE CIVIL | F10: MI XSM D2+ PRO | G10: 18 | I10: R | J10: 25 | K10: *** | P10: 0 | Q10: 15366 | R10: =Q10*(1-$D$3) -> 10602.54
A11: 038242 | B11: 3528700382426 | C11: PN MIC 35/65R33 XL 229A2 X MINE D2 | D11: 356533XMINED2229A2 | E11: GROS GENIE CIVIL | F11: MI X MINE D2 | G11: 35 | H11: 65 | I11: R | J11: 33 | K11: 229 | L11: A2 | P11: 0 | Q11: 25509 | R11: 17601.21
A12: 039149 | B12: 3528700391497 | C12: PN MIC 26.5R25 **** XTXL | D12: 26525XTXL****MI | E12: PETIT GENIE CIVIL | F12: MI XTXL | G12: 26.5 | I12: R | J12: 25 | K12: 214 | L12: A2 | P12: 0 | Q12: 10736 | R12: 7407.84
A13: 047262 | B13: 3528700472622 | C13: PN MIC 27.00 R49 XD GRIP B E4T 3E | D13: 270049XDGRIPB3E | E13: GROS GENIE CIVIL | F13: MI XD GRIP | G13: 27 | I13: R | J13: 49 | K13: *** | P13: 0 | Q13: 28115 | R13: 19399.35
A14: 050267 | B14: 3528700502671 | C14: PN MIC 400/80 - 24 162 A8 POWER CL | D14: 4008024A8POWERCL162 | E14: TP CONSTRUCTION (MICHELIN) | F14: MI POWER CL | G14: 400 | H14: 80 | I14: - | J14: 24 | K14: 162 | L14: A8 | P14: 0 | Q14: 1316 | R14: 908.04
A15: 063799 | B15: 3528700637991 | C15: PN MIC 600/65R25 * XLD L3 TL | D15: 6006525XLDL3TL* | E15: PETIT GENIE CIVIL | F15: MI XLD | G15: 600 | H15: 65 | I15: R | J15: 25 | K15: * | P15: 0 | Q15: 5748 | R15: 3966.12
A16: 073522 | B16: 3528700735222 | C16: PN MIC 445/70R22.5 175 A8 X F * | D16: 44570225XFA8175 | E16: TP CONSTRUCTION (MICHELIN) | F16: MI XF | G16: 445 | H16: 70 | I16: R | J16: 22.5 | K16: 182 | L16: A2 | P16: 0 | Q16: 2456 | R16: 1694.64
A17: 085459 | B17: 3528700854596 | C17: PN MIC 210/70R15 117 A8 BIBSTEEL AT | D17: 2107015BIBSTEA8117 | E17: TP CONSTRUCTION (MICHELIN) | F17: MI BIBSTEEL AT | G17: 210 | H17: 70 | I17: R | J17: 15 | K17: 117 | L17: A8 | P17: 0 | Q17: 427 | R17: 294.63
A18: 086926 | B18: 3528700869262 | C18: PN MIC 525/80R25 179 E X CRANE + TL | D18: 5258025EXCRANTL179 | E18: PETIT GENIE CIVIL | F18: MI X-CRANE+ | G18: 525 | H18: 80 | I18: R | J18: 25 | K18: 176 | L18: F | P18: 0 | Q18: 6064 | R18: 4184.16
A19: 086953 | B19: 3528700869538 | C19: PN MIC 875/65R29 203 B XAD65-1 SUPE3 | D19: 8756529BXAD65203 | E19: GROS GENIE CIVIL | F19: MI XAD65-1 SUPER E | G19: 875 | H19: 65 | I19: R | J19: 29 | K19: 203 | L19: B | P19: 0 | Q19: 15120 | R19: 10432.8
A20: 094026 | B20: 3528700940268 | C20: PN MIC 26X11 -14 TWEEL UTV BK | D20: 261114TWEELUTVBK3 | E20: TP CONSTRUCTION (MICHELIN) | F20: MI TWEEL UTV | G20: 11 | I20: - | J20: 14 | P20: 0 | Q20: 688 | R20: 474.72
A21: 097314 | B21: 3528700973143 | C21: PN MIC 35/65R33 229A2 XTR POW A4 3E | D21: 356533XTRPOW2293EA2 | E21: GROS GENIE CIVIL | F21: MI XTR POW | G21: 35 | H21: 65 | I21: R | J21: 33 | K21: 229 | L21: A2 | P21: 0 | Q21: 21922 | R21: 15126.18
A22: 101786 | B22: 3528701017860 | C22: PN MIC 29.5 R25 200B XADN+ B4 | D22: 29525XADN+B4200B | E22: PETIT GENIE CIVIL | F22: MI XADN+ | G22: 29.5 | I22: R | J22: 25 | K22: 200 | L22: B | P22: 0 | Q22: 12489 | R22: 8617.41
A23: 123008 | B23: 3528701230085 | C23: PN MIC 15.5R25 XHA* TL | D23: 15525XHA*TL | E23: PETIT GENIE CIVIL | F23: MI XH A | G23: 15.5 | I23: R | J23: 25 | K23: * | P23: 0 | Q23: 2595 | R23: 1790.55
A24: 123009 | B24: 3528701230092 | C24: PN MIC 17.5R25 XHA* | D24: 17525XHA* | E24: PETIT GENIE CIVIL | F24: MI XH A | G24: 17.5 | I24: R | J24: 25 | K24: * | P24: 0 | Q24: 2022 | R24: 1395.18
A25: 123059 | B25: 3528701230597 | C25: PN MIC 800/65R29 L3 XLD TL | D25: 8006529XLDTL | E25: GROS GENIE CIVIL | F25: MI XLD | G25: 800 | H25: 65 | I25: R | J25: 29 | K25: * | P25: 0 | Q25: 14712 | R25: 10151.28
A26: 123094 | B26: 3528701230948 | C26: PN MIC 26.5R25 XLDD2A* | D26: 26525XLDD2A* | E26: PETIT GENIE CIVIL | F26: MI XLDD2 | G26: 26.5 | I26: R | J26: 25 | K26: * | P26: 0 | Q26: 12125 | R26: 8366.25
A27: 123278 | B27: 3528701232782 | C27: PN MIC 29.5R25 XLDD2A * | D27: 29525XLDD2A* | E27: PETIT GENIE CIVIL | F27: MI XLDD2 | G27: 29.5 | I27: R | J27: 25 | K27: * | P27: 0 | Q27: 16826 | R27: 11609.94
A28: 123279 | B28: 3528701232799 | C28: PN MIC 29.5R29 XLDD2A* | D28: 29529XLDD2A* | E28: GROS GENIE CIVIL | F28: MI XLD D2A | G28: 29.5 | I28: R | J28: 29 | K28: * | P28: 0 | Q28: 18343 | R28: 12656.67
A29: 123317 | B29: 3528701233178 | C29: PN MIC 17.5R25 XLDD2A* | D29: 17525XLDD2A | E29: PETIT GENIE CIVIL | F29: MI XLDD2 | G29: 17.5 | I29: R | J29: 25 | K29: * | P29: 0 | Q29: 4713 | R29: 3251.97
A30: 123325 | B30: 3528701233253 | C30: PN MIC 20.5R25 XLDD2A* | D30: 20525XLDD2A* | E30: PETIT GENIE CIVIL | F30: MI XLDD2 | G30: 20.5 | I30: R | J30: 25 | K30: * | P30: 0 | Q30: 7328 | R30: 5056.32
A31: 123326 | B31: 3528701233260 | C31: PN MIC 23.5R25 XLDD2A* | D31: 23525XLDD2A* | E31: PETIT GENIE CIVIL | F31: MI XLDD2 | G31: 23.5 | I31: R | J31: 25 | K31: * | P31: 0 | Q31: 9197 | R31: 6345.93
A32: 123331 | B32: 3528701233314 | C32: PN MIC 14.00R25 XH D1A *** | D32: 140025XHD1A | E32: PETIT GENIE CIVIL | F32: MI XH D1 | G32: 14 | I32: R | J32: 25 | K32: ** | P32: 0 | Q32: 4751 | R32: 3278.19
A33: 123342 | B33: 3528701233420 | C33: PN MIC 7.50R15 X MINE D2 TT | D33: 75015XMINED2TT | E33: PETIT GENIE CIVIL | F33: MI X MINE D2 | G33: 7.5 | I33: R | J33: 15 | P33: 0 | Q33: 1599 | R33: 1103.31
A34: 123350 | B34: 3528701233505 | C34: PN MIC 16.00R25 XH D1A ** | D34: 160025XHD1A | E34: PETIT GENIE CIVIL | F34: MI XH D1 | G34: 16 | I34: R | J34: 25 | K34: ** | P34: 0 | Q34: 6907 | R34: 4765.83
A35: 123352 | B35: 3528701233529 | C35: PN MIC 8.25R15 X MINE D2 TT | D35: 82515XMINED2TT | E35: PETIT GENIE CIVIL | F35: MI X MINE D2 | G35: 8.25 | I35: R | J35: 15 | P35: 0 | Q35: 1749 | R35: 1206.81
A36: 123369 | B36: 3528701233697 | C36: PN MIC 12.00R24 XZH *** TT | D36: 120024XZHTT | E36: PETIT GENIE CIVIL | F36: MI XZH | G36: 12 | I36: R | J36: 24 | K36: *** | P36: 0 | Q36: 2923 | R36: 2016.87
A37: 123372 | B37: 3528701233727 | C37: PN MIC 10.00R15 X MINE D2 TT | D37: 100015XMINED2TT | E37: PETIT GENIE CIVIL | F37: MI X MINE D2 | G37: 10 | I37: R | J37: 15 | P37: 0 | Q37: 2192 | R37: 1512.48
A38: 123382 | B38: 3528701233826 | C38: PN MIC 9.00R20 X MINE D2 TT | D38: 90020XMINED2TT | E38: PETIT GENIE CIVIL | F38: MI X MINE D2 | G38: 9 | I38: R | J38: 20 | P38: 0 | Q38: 2452 | R38: 1691.88
A39: 123386 | B39: 3528701233864 | C39: PN MIC 13.00R24 XGLA 2 TG * | D39: 130024XGLA2TG | E39: PETIT GENIE CIVIL | F39: MI XGL A2 | G39: 13 | I39: R | J39: 24 | K39: * | P39: 0 | Q39: 2525 | R39: 1742.25
A40: 123392 | B40: 3528701233925 | C40: PN MIC 12.00R20 X MINE D2 TT | D40: 120020XMINED2TT | E40: PETIT GENIE CIVIL | F40: MI X MINE D2 | G40: 12 | I40: R | J40: 20 | P40: 0 | Q40: 3741 | R40: 2581.29
A41: 123395 | B41: 3528701233956 | C41: PN MIC 14.00R24 XGLA 2 TG * | D41: 140024XGLA2TG | E41: PETIT GENIE CIVIL | F41: MI XGL A2 | G41: 14 | I41: R | J41: 24 | K41: * | P41: 0 | Q41: 2884 | R41: 1989.96
A42: 123407 | B42: 3528701234076 | C42: PN MIC 20.5R25 177 B XADN TL | D42: 20525BXADNTL | E42: PETIT GENIE CIVIL | F42: MI XADN | G42: 20.5 | I42: R | J42: 25 | K42: 177 | L42: B | P42: 0 | Q42: 4976 | R42: 3433.44
A43: 123415 | B43: 3528701234151 | C43: PN MIC 15.5R25 XTL A* TL | D43: 15525XTLA*TL | E43: PETIT GENIE CIVIL | F43: MI XTL A | G43: 15.5 | I43: R | J43: 25 | K43: * | P43: 0 | Q43: 2432 | R43: 1678.08
A44: 123425 | B44: 3528701234250 | C44: PN MIC 17.5R25 XTLA* | D44: 17525XTLA* | E44: PETIT GENIE CIVIL | F44: MI XTL A | G44: 17.5 | I44: R | J44: 25 | K44: * | P44: 0 | Q44: 2898 | R44: 1999.62
A45: 123435 | B45: 3528701234359 | C45: PN MIC 20.5R25 XTLA* | D45: 20525XTLA* | E45: PETIT GENIE CIVIL | F45: MI XTL A | G45: 20.5 | I45: R | J45: 25 | K45: * | P45: 0 | Q45: 4144 | R45: 2859.36
A46: 123445 | B46: 3528701234458 | C46: PN MIC 23.5 25 XTLA* | D46: 23525XTLA* | E46: PETIT GENIE CIVIL | F46: MI XTL A | G46: 23.5 | I46: R | J46: 25 | K46: * | P46: 0 | Q46: 5367 | R46: 3703.23
A47: 123461 | B47: 3528701234618 | C47: PN MIC 7.50R15 X LISSE COMPACT TT | D47: 75015XLISSECOMPACTTT | E47: PETIT GENIE CIVIL | F47: MI X LISSE COMPACT | G47: 7.5 | I47: R | J47: 15 | P47: 0 | Q47: 828 | R47: 571.32
A48: 123570 | B48: 3528701235707 | C48: PN MIC 550/65R25 XLD L3 TL | D48: 5506525XLDL3TL | E48: PETIT GENIE CIVIL | F48: MI XLD | G48: 550 | H48: 65 | I48: R | J48: 25 | K48: * | P48: 0 | Q48: 5414 | R48: 3735.66
A49: 123647 | B49: 3528701236476 | C49: PN MIC 12.00R24 XSMD2+ TL | D49: 120024XSMD2TL | E49: PETIT GENIE CIVIL | F49: MI XSM D2+ | G49: 12 | I49: R | J49: 24 | P49: 0 | Q49: 4384 | R49: 3024.96
A50: 123673 | B50: 3528701236735 | C50: PN MIC 37/25R35 XRSB** | D50: 372535XRSB** | E50: GROS GENIE CIVIL | F50: MI XRS | G50: 37.25 | I50: R | J50: 35 | K50: ** | P50: 0 | Q50: 29731 | R50: 20514.39
A51: 123723 | B51: 3528701237237 | C51: PN MIC 1800R33 XDTA4** | D51: 180033XDTA4** | E51: GROS GENIE CIVIL | F51: MI XDT A4 | G51: 18 | I51: R | J51: 33 | K51: ** | P51: 0 | Q51: 9051 | R51: 6245.19
A52: 123733 | B52: 3528701237336 | C52: PN MIC 1800R33 XDTB** | D52: 180033XDTB** | E52: GROS GENIE CIVIL | F52: MI XDT B | G52: 18 | I52: R | J52: 33 | K52: ** | P52: 0 | Q52: 9051 | R52: 6245.19
A53: 123741 | B53: 3528701237411 | C53: PN MIC 29.5R25 XLDD1A* | D53: 29525XLDD1A* | E53: GROS GENIE CIVIL | F53: MI XLD D1A | G53: 29.5 | I53: R | J53: 25 | K53: * | P53: 0 | Q53: 14440 | R53: 9963.6
A54: 123795 | B54: 3528701237954 | C54: PN MIC 20.5R25 L2T X SNOPLUS MS TL | D54: 20525XSNOPLUSMSTL | E54: PETIT GENIE CIVIL | F54: MI X SNOPLUS | G54: 20.5 | I54: R | J54: 25 | K54: * | P54: 0 | Q54: 4978 | R54: 3434.82
A55: 123820 | B55: 3528701238203 | C55: PN MIC 650/65R25 XLD L3 TL | D55: 6506525XLDL3TL | E55: PETIT GENIE CIVIL | F55: MI XLD | G55: 650 | H55: 65 | I55: R | J55: 25 | K55: * | P55: 0 | Q55: 7725 | R55: 5330.25
A56: 123857 | B56: 3528701238579 | C56: PN MIC 445/95R25 177E X SNOPLUS | D56: 4459525XSNO+177E | E56: PETIT GENIE CIVIL | F56: MI X SNOPLUS | G56: 445 | H56: 95 | I56: R | J56: 25 | K56: 177 | L56: E | P56: 0 | Q56: 4762 | R56: 3285.78
A57: 123861 | B57: 3528701238616 | C57: PN MIC 14.00R24 X SNOWPLUS M+S | D57: 140024XSNOW | E57: PETIT GENIE CIVIL | F57: MI X SNOPLUS | G57: 14 | I57: R | J57: 24 | K57: * | P57: 0 | Q57: 3081 | R57: 2125.89
A58: 123871 | B58: 3528701238715 | C58: PN MIC 17.5R25 L2T X SNOPLUS MS TL | D58: 17525XSNOPTLL2T | E58: PETIT GENIE CIVIL | F58: MI X SNOPLUS | G58: 17.5 | I58: R | J58: 25 | K58: * | P58: 0 | Q58: 3320 | R58: 2290.8
A59: 123881 | B59: 3528701238814 | C59: PN MIC 2100R35 XDTB** | D59: 210035XDTB** | E59: GROS GENIE CIVIL | F59: MI XDT | G59: 21 | I59: R | J59: 35 | K59: ** | P59: 0 | Q59: 14149 | R59: 9762.81
A60: 123895 | B60: 3528701238951 | C60: PN MIC 750/65R25 190 B XAD65-1 SUPE3 | D60: 7506525BXAD651SUPE | E60: PETIT GENIE CIVIL | F60: MI XAD65-1 | G60: 750 | H60: 65 | I60: R | J60: 25 | K60: 190 | L60: B | P60: 0 | Q60: 7773 | R60: 5363.37
A61: 123903 | B61: 3528701239033 | C61: PN MIC 1600R24 XGLA2 TG* TL | D61: 160024XGLA2TG*TL | E61: PETIT GENIE CIVIL | F61: MI XGL A2 | G61: 16 | I61: R | J61: 24 | K61: * | P61: 0 | Q61: 3741 | R61: 2581.29
A62: 123921 | B62: 3528701239217 | C62: PN MIC 2100R35 XDTA4** | D62: 210035XDTA4** | E62: GROS GENIE CIVIL | F62: MI XDT | G62: 21 | I62: R | J62: 35 | K62: ** | P62: 0 | Q62: 14149 | R62: 9762.81
A63: 123940 | B63: 3528701239408 | C63: PN MIC 750/65R25 L3 XLD TL | D63: 7506525XLDTL | E63: PETIT GENIE CIVIL | F63: MI XLD | G63: 750 | H63: 65 | I63: R | J63: 25 | K63: * | P63: 0 | Q63: 8831 | R63: 6093.39
A64: 139147 | B64: 3528701391472 | C64: PN MIC 23.5R25 * XH A2 | D64: 23525XHA2* | E64: PETIT GENIE CIVIL | F64: MI XHA2 | G64: 23.5 | I64: R | J64: 25 | K64: 195 | L64: A2 | P64: 0 | Q64: 6261 | R64: 4320.09
A65: 153322 | B65: 3528701533223 | C65: PN MIC 18.00 R25 XMINE D2 PRO L5 | D65: 180025XMINED2L5 | E65: PETIT GENIE CIVIL | F65: MI X MINE D2 PRO | G65: 18 | I65: R | J65: 25 | K65: *** | P65: 0 | Q65: 12028 | R65: 8299.32
A66: 154324 | B66: 3528701543246 | C66: PN MIC 26.5R25 193 B XADN+ E3** | D66: 26525BXADN+193 | E66: PETIT GENIE CIVIL | F66: MI XADN+ | G66: 26.5 | I66: R | J66: 25 | K66: 193 | L66: B | P66: 0 | Q66: 8826 | R66: 6089.94
A67: 165629 | B67: 3528701656298 | C67: PN MIC 440/80 - 24 168 A8 POWER CL | D67: 4408024A8POWERCL168 | E67: TP CONSTRUCTION (MICHELIN) | F67: MI POWER CL | G67: 440 | H67: 80 | I67: - | J67: 24 | K67: 168 | L67: A8 | P67: 0 | Q67: 1632 | R67: 1126.08
A68: 167639 | B68: 3528701676395 | C68: PN MIC 21.00 R33 XTRA LOAD PROTE A4 3E | D68: 210033XTRALPA4E3 | E68: GROS GENIE CIVIL | F68: MI XTRA LOAD PROTE | G68: 21 | I68: R | J68: 33 | K68: *** | P68: 0 | Q68: 12609 | R68: 8700.21
A69: 169990 | B69: 3528701699905 | C69: PN MIC 35/65R33 3E EXTRA POWER L5 | D69: 356533XTRPOWL53E | E69: GROS GENIE CIVIL | F69: MI XTR POW | G69: 35 | H69: 65 | I69: R | J69: 33 | K69: 229 | L69: A2 | P69: 0 | Q69: 23969 | R69: 16538.61
A70: 170674 | B70: 3528701706740 | C70: PN MIC 12N16.6 SSL 2P | D70: 12166SSL2P | E70: TP CONSTRUCTION (MICHELIN) | F70: MI X TWEE | G70: 12 | I70: - | J70: 16.6 | P70: 0 | Q70: 1051 | R70: 725.19
A71: 175955 | B71: 3528701759555 | C71: PN MIC 750/65R25 XTRA DEFEND 2E | D71: 7506525XTRADEFEND2E | E71: GROS GENIE CIVIL | F71: MI XTRA DEFEND | G71: 750 | H71: 65 | I71: R | J71: 25 | K71: ** | P71: 0 | Q71: 9591 | R71: 6617.79
A72: 176281 | B72: 3528701762814 | C72: PN MIC 260/70R16.5 129 A8 BIBSTEEL AT | D72: 26070165BIBSTEA8129M | E72: TP CONSTRUCTION (MICHELIN) | F72: MI BIBSTEEL AT | G72: 260 | H72: 70 | I72: R | J72: 16.5 | K72: 129 | L72: A8 | P72: 0 | Q72: 770 | R72: 531.3
A73: 183806 | B73: 3528701838069 | C73: PN MIC 26.5 R25 XSM D2+ PRO L5C 3E | D73: 26525XSMD2+PROL53E | E73: PETIT GENIE CIVIL | F73: MI XSM D2+ PRO | G73: 26.5 | I73: R | J73: 25 | K73: *** | P73: 0 | Q73: 16910 | R73: 11667.9
A74: 196220 | B74: 3528701962207 | C74: PN MIC 500/70 - 24 164 A8 POWER CL | D74: 5007024POWERA8164 | E74: TP CONSTRUCTION (MICHELIN) | F74: MI POWER CL | G74: 500 | H74: 70 | I74: - | J74: 24 | K74: 164 | L74: A8 | P74: 0 | Q74: 1615 | R74: =Q74*(1-$D$3) -> 1114.35
A75: 199685 | B75: 3528701996851 | C75: PN MIC 26X11 -14 TWEEL UTV BK | D75: 261114TWEELUTVBK4 | E75: TP CONSTRUCTION (MICHELIN) | F75: MI TWEEL UTV | G75: 11 | I75: - | J75: 14 | P75: 0 | Q75: 688 | R75: 474.72
A76: 206954 | B76: 3528702069547 | C76: PN MIC 875/65R29 XTRA DEFEND 2E | D76: 8756529XTRADEFEND2E | E76: GROS GENIE CIVIL | F76: MI XTRA DEFEND | G76: 875 | H76: 65 | I76: R | J76: 29 | K76: ** | P76: 0 | Q76: 17880 | R76: 12337.2
A77: 209221 | B77: 3528702092217 | C77: PN MIC 750/65R25 190B XTRA DEFEND E4** | D77: 7506525XTRDEFENDE4 | E77: PETIT GENIE CIVIL | F77: MI XTRA DEFEND | G77: 750 | H77: 65 | I77: R | J77: 25 | K77: 190 | L77: B | P77: 0 | Q77: 9093 | R77: 6274.17
A78: 226486 | B78: 3528702264867 | C78: PN MIC 480/80 - 26 167 A8 POWER CL | D78: 4808026POWERA8167 | E78: TP CONSTRUCTION (MICHELIN) | F78: MI POWER CL | G78: 480 | H78: 80 | I78: - | J78: 26 | K78: 167 | L78: A8 | P78: 0 | Q78: 1729 | R78: 1193.01
A79: 238546 | B79: 3528702385463 | C79: PN MIC 26.5 R25 193B XADN+ B4 | D79: 26525XADN+B4193B | E79: PETIT GENIE CIVIL | F79: MI XADN+ | G79: 26.5 | I79: R | J79: 25 | K79: 193 | L79: B | P79: 0 | Q79: 8817 | R79: 6083.73
A80: 240750 | B80: 3528702407509 | C80: PN MIC 13/80R20 PIL X LIS COMPA TT | D80: 138020PILXLISCOMPATT | E80: PETIT GENIE CIVIL | F80: MI X LISSE COMPACT | G80: 13 | H80: 80 | I80: R | J80: 20 | P80: 0 | Q80: 1632 | R80: 1126.08
A81: 241265 | B81: 3528702412657 | C81: PN MIC 300/70R16.5 137 A8 BIBSTEEL HS | D81: 30070165BIBSTEA8137M | E81: TP CONSTRUCTION (MICHELIN) | F81: MI BIBSTEEL HS | G81: 300 | H81: 70 | I81: R | J81: 16.5 | K81: 137 | L81: A8 | P81: 0 | Q81: 1073 | R81: 740.37
A82: 242046 | B82: 3528702420461 | C82: PN MIC 12.00R24 X MINE D2 | D82: 120024XMINED2 | E82: PETIT GENIE CIVIL | F82: MI X MINE D2 | G82: 12 | I82: R | J82: 24 | P82: 0 | Q82: 3940 | R82: 2718.6
A83: 242110 | B83: 3528702421109 | C83: PN MIC 12.00R24 XKA *** TT | D83: 120024XKATT | E83: PETIT GENIE CIVIL | F83: MI XK | G83: 12 | I83: R | J83: 24 | K83: *** | P83: 0 | Q83: 2867 | R83: 1978.23
A84: 251590 | B84: 3528702515907 | C84: PN MIC 14.00R24 XKA *** TT | D84: 140024XKATT | E84: PETIT GENIE CIVIL | F84: MI XK | G84: 14 | I84: R | J84: 24 | K84: *** | P84: 0 | Q84: 3924 | R84: 2707.56
A85: 252211 | B85: 3528702522110 | C85: PN MIC 15.00R24 PILO X LIS COT TT | D85: 150024PILOXLISCOTTT | E85: PETIT GENIE CIVIL | F85: MI X LISSE COMPACT | G85: 15 | I85: R | J85: 24 | P85: 0 | Q85: 3298 | R85: 2275.62
A86: 254174 | B86: 3528702541746 | C86: PN MIC 385/95R25 170E XMH S | D86: 3859525XMHS170E | E86: PETIT GENIE CIVIL | F86: MI XMH S | G86: 385 | H86: 95 | I86: R | J86: 25 | K86: 170 | L86: E | P86: 0 | Q86: 3483 | R86: 2403.27
A87: 262815 | B87: 3528702628157 | C87: PN MIC 31.5X13 -16.5 X-TWEEL TMF | D87: 31513165XTWEELTMF | E87: TP CONSTRUCTION (MICHELIN) | F87: MI X-TWEEL TMF | G87: 13 | I87: - | J87: 16.5 | P87: 0 | Q87: 1173 | R87: 809.37
A88: 263251 | B88: 3528702632512 | C88: PN MIC 175R25 XKA** | D88: 17525XKA** | E88: PETIT GENIE CIVIL | F88: MI XK | G88: 17.5 | I88: R | J88: 25 | K88: ** | P88: 0 | Q88: 4746 | R88: 3274.74
A89: 264520 | B89: 3528702645208 | C89: PN MIC 445/80R25 170 E XGC TL | D89: 4458025EXGCTL170 | E89: PETIT GENIE CIVIL | F89: MI XGC | G89: 445 | H89: 80 | I89: R | J89: 25 | K89: 170 | L89: E | P89: 0 | Q89: 4413 | R89: 3044.97
A90: 270680 | B90: 3528702706800 | C90: PN MIC 18.00R25 XKD1A** | D90: 180025XKD1A* | E90: PETIT GENIE CIVIL | F90: MI XK D1 | G90: 18 | I90: R | J90: 25 | K90: ** | P90: 0 | Q90: 7929 | R90: 5471.01
A91: 271325 | B91: 3528702713259 | C91: PN MIC 1800R33 XVC ** | D91: 180033XVC** | E91: GROS GENIE CIVIL | F91: MI XV C | G91: 18 | I91: R | J91: 33 | K91: ** | P91: 0 | Q91: 8187 | R91: 5649.03
A92: 271650 | B92: 3528702716502 | C92: PN MIC 24.00 R35 XV C 2E | D92: 240035XVC2E | E92: GROS GENIE CIVIL | F92: MI XV C | G92: 24 | I92: R | J92: 35 | K92: ** | P92: 0 | Q92: 17004 | R92: 11732.76
A93: 275538 | B93: 3528702755389 | C93: PN MIC 260/70R16.5 129 A8 BIBSTEEL HS | D93: 26070165BIBSTEA8129 | E93: TP CONSTRUCTION (MICHELIN) | F93: MI BIBSTEEL HS | G93: 260 | H93: 70 | I93: R | J93: 16.5 | K93: 129 | L93: A8 | P93: 0 | Q93: 837 | R93: 577.53
A94: 278044 | B94: 3528702780442 | C94: PN MIC 26X9 -14 69J TWEEL UTV BK | D94: 26914TWEELUTVBK69J | E94: TP CONSTRUCTION (MICHELIN) | F94: MI TWEEL UTV | G94: 9 | I94: - | J94: 14 | K94: 69 | L94: J | P94: 0 | Q94: 625 | R94: 431.25
A95: 281778 | B95: 3528702817780 | C95: PN MIC 280/80 - 18 132 A8 POWER CL | D95: 2808018A8POWERCL132 | E95: TP CONSTRUCTION (MICHELIN) | F95: MI POWER CL | G95: 280 | H95: 80 | I95: - | J95: 18 | K95: 132 | L95: A8 | P95: 0 | Q95: 731 | R95: 504.39
A96: 291074 | B96: 3528702910740 | C96: SSL 2 PIECE DISC STANDARD DISC | D96: 22DISCSTD | E96: TP CONSTRUCTION (MICHELIN) | F96: MI X TWEE | G96: 2 | I96: - | J96: 2 | P96: 0 | Q96: 71 | R96: 48.99
A97: 295773 | B97: 3528702957738 | C97: PN MIC 235R25 185 B XADN+ E3** | D97: 23525BXADN+185 | E97: PETIT GENIE CIVIL | F97: MI XADN+ | G97: 23.5 | I97: R | J97: 25 | K97: 185 | L97: B | P97: 0 | Q97: 6577 | R97: 4538.13
A98: 302244 | B98: 3528703022442 | C98: PN MIC 24.00R35 XTRA LOAD GRIP B 3E | D98: 240035XTLOAGB3E | E98: GROS GENIE CIVIL | F98: MI XTRA LOAD GRIP | G98: 24 | I98: R | J98: 35 | K98: *** | P98: 0 | Q98: 16815 | R98: 11602.35
A99: 316179 | B99: 3528703161790 | C99: PN MIC 26 -9N14 TWEEL UTV & ATV BLACK | D99: 269TWEELUTVATV | E99: TP CONSTRUCTION (MICHELIN) | F99: MI TWEEL UTV & ATV | G99: 26 | I99: - | J99: 9 | P99: 0 | Q99: 589 | R99: 406.41
A100: 317097 | B100: 3528703170976 | C100: PN MIC 26.5 R29 XSM DN+ L3S | D100: 26529XSMDN+ | E100: GROS GENIE CIVIL | F100: MI XSM DN+ | G100: 26.5 | I100: R | J100: 29 | K100: ** | P100: 0 | Q100: 14348 | R100: 9900.12
A101: 326526 | B101: 3528703265269 | C101: PN MIC 29.5 R25 X MINE D2 PRO L5R 3E | D101: 29525XMIND2PROL53E | E101: PETIT GENIE CIVIL | F101: MI X MINE D2 PRO | G101: 29.5 | I101: R | J101: 25 | K101: *** | P101: 0 | Q101: 19427 | R101: 13404.63
A102: 336959 | B102: 3528703369592 | C102: SSL 2 PIECE DISC BLANK DISC | D102: 22BLANK | E102: TP CONSTRUCTION (MICHELIN) | F102: MI X TWEE | G102: 2 | I102: - | J102: 2 | P102: 0 | Q102: 71 | R102: 48.99
A103: 346809 | B103: 3528703468097 | C103: PN MIC 400/70 - 20 149 A8 POWER CL | D103: 4007020A8POWERCL149 | E103: TP CONSTRUCTION (MICHELIN) | F103: MI POWER CL | G103: 400 | H103: 70 | I103: - | J103: 20 | K103: 149 | L103: A8 | P103: 0 | Q103: 1032 | R103: 712.08
A104: 349151 | B104: 3528703491514 | C104: PN MIC 27.00 R49 XD GRIP B4 E4T 3E | D104: 270049XDGRIPB43E | E104: GROS GENIE CIVIL | F104: MI XD GRIP | G104: 27 | I104: R | J104: 49 | K104: *** | P104: 0 | Q104: 28115 | R104: 19399.35
A105: 355720 | B105: 3528703557203 | C105: PN MIC 31.5X13 -16.5 X-TWEEL TMF | D105: 31513165XTWEELTMF2 | E105: TP CONSTRUCTION (MICHELIN) | F105: MI X-TWEEL TMF | G105: 13 | I105: - | J105: 16.5 | P105: 0 | Q105: 1173 | R105: 809.37
A106: 357108 | B106: 3528703571087 | C106: PN MIC 12N16.5 X-TWEEL SSL AT | D106: 12165XTWEEAT | E106: TP CONSTRUCTION (MICHELIN) | F106: MI X TWEE | G106: 12 | I106: - | J106: 16.5 | P106: 0 | Q106: 988 | R106: 681.72
A107: 360353 | B107: 3528703603535 | C107: PN MIC 360/70R17.5 148 A8 BIBSTEEL AT | D107: 36070175BIBSTEA8148 | E107: TP CONSTRUCTION (MICHELIN) | F107: MI BIBSTEEL AT | G107: 360 | H107: 70 | I107: R | J107: 17.5 | K107: 148 | L107: A8 | P107: 0 | Q107: 1190 | R107: 821.1
A108: 361420 | B108: 3528703614203 | C108: PN MIC 18X8.5N10 GOLF CART UTI | D108: 188510GOLFCUT | E108: TP CONSTRUCTION (MICHELIN) | F108: MI X-TURF | G108: 8.5 | I108: - | J108: 10 | P108: 0 | Q108: 336 | R108: 231.84
A109: 372138 | B109: 3528703721383 | C109: PN MIC 14.00R20 X MINE D2 | D109: 140020XMINED2 | E109: PETIT GENIE CIVIL | F109: MI X MINE D2 | G109: 14 | I109: R | J109: 20 | P109: 0 | Q109: 4332 | R109: 2989.08
A110: 376767 | B110: 3528703767671 | C110: PN MIC 29.5 R29 X MINE D2 PRO L5R 3E | D110: 29529XMIND2PROL53E | E110: GROS GENIE CIVIL | F110: MI X MINE D2 PRO | G110: 29.5 | I110: R | J110: 29 | K110: *** | P110: 0 | Q110: 22093 | R110: 15244.17
A111: 379296 | B111: 3528703792963 | C111: PN MIC 40.5/75R39 XMS** TL | D111: 4057539XMS**TL | E111: GROS GENIE CIVIL | F111: MI XMS | G111: 40.5 | H111: 75 | I111: R | J111: 39 | K111: ** | P111: 0 | Q111: 36393 | R111: 25111.17
A112: 388190 | B112: 3528703881902 | C112: PN MIC 24.00R35 XTRA L PROTECT A4 E4 3E | D112: 240035XTLOAPRA43E | E112: GROS GENIE CIVIL | F112: MI XTRA LOAD PROTE | G112: 24 | I112: R | J112: 35 | K112: *** | P112: 0 | Q112: 16816 | R112: 11603.04
A113: 395114 | B113: 3528703951148 | C113: PN MIC 27.00 R49 XDR3 B4 E4R 3E | D113: 270049XDR3B4E4R3E | E113: GROS GENIE CIVIL | F113: MI XDR3 | G113: 27 | I113: R | J113: 49 | K113: *** | P113: 0 | Q113: 30652 | R113: 21149.88
A114: 396708 | B114: 3528703967088 | C114: PN MIC 26X9 -14 TWEEL UTV BK | D114: 26914TWEELUTVBK | E114: TP CONSTRUCTION (MICHELIN) | F114: MI TWEEL UTV | G114: 9 | I114: - | J114: 14 | P114: 0 | Q114: 625 | R114: 431.25
A115: 407878 | B115: 3528704078783 | C115: PN MIC 400/70 - 24 158 A8 POWER CL | D115: 4007024A8POWER158 | E115: TP CONSTRUCTION (MICHELIN) | F115: MI POWER CL | G115: 400 | H115: 70 | I115: - | J115: 24 | K115: 158 | L115: A8 | P115: 0 | Q115: 1328 | R115: 916.32
A116: 417016 | B116: 3528704170166 | C116: PN MIC 26X11 -14 TWEEL UTV BK | D116: 261114TWEELUTVBK5 | E116: TP CONSTRUCTION (MICHELIN) | F116: MI TWEEL UTV | G116: 11 | I116: - | J116: 14 | P116: 0 | Q116: 688 | R116: 474.72
A117: 419992 | B117: 3528704199921 | C117: SSL 2 PIECE DISC CASE DISC | D117: 22CASE419992 | E117: TP CONSTRUCTION (MICHELIN) | F117: MI X TWEE | G117: 2 | I117: - | J117: 2 | P117: 0 | Q117: 71 | R117: 48.99
A118: 421944 | B118: 3528704219445 | C118: PN MIC 26X9 -14 69J TWEEL UTV BK | D118: 26914TWEELUTVBK69J2 | E118: TP CONSTRUCTION (MICHELIN) | F118: MI TWEEL UTV | G118: 9 | I118: - | J118: 14 | K118: 69 | L118: J | P118: 0 | Q118: 625 | R118: 431.25
A119: 427926 | B119: 3528704279265 | C119: PN MIC 29.5R25 **** XTXL | D119: 29525XTXL****MI | E119: PETIT GENIE CIVIL | F119: MI XTXL | G119: 29.5 | I119: R | J119: 25 | K119: 221 | L119: A2 | P119: 0 | Q119: 14607 | R119: 10078.83
A120: 432272 | B120: 3528704322725 | C120: PN MIC 385/95R24 170E X SNOPLUS TT | D120: 3859524XSNO+TT170E | E120: PETIT GENIE CIVIL | F120: MI X SNOPLUS | G120: 385 | H120: 95 | I120: R | J120: 24 | K120: 170 | L120: E | P120: 0 | Q120: 3649 | R120: 2517.81
A121: 432610 | B121: 3528704326105 | C121: PN MIC 35/65R33 XSM DN+ 3E | D121: 356533XSMDN+3E | E121: GROS GENIE CIVIL | F121: MI XSM DN+ | G121: 35 | H121: 65 | I121: R | J121: 33 | K121: *** | P121: 0 | Q121: 20784 | R121: 14340.96
A122: 460452 | B122: 3528704604524 | C122: PN MIC 23.5R25 L2T X SNOPLUS MS TL | D122: 23525XSNOPTLL2T | E122: PETIT GENIE CIVIL | F122: MI X SNOPLUS | G122: 23.5 | I122: R | J122: 25 | K122: * | P122: 0 | Q122: 6653 | R122: 4590.57
A123: 462981 | B123: 3528704629817 | C123: PN MIC 13X6.5N6 SMOOTH CASTER | D123: 13656SMOCASLIS15 | E123: TP CONSTRUCTION (MICHELIN) | F123: MI X-TURF | G123: 6.5 | I123: - | J123: 6 | P123: 0 | Q123: 156 | R123: 107.64
A124: 472782 | B124: 3528704727827 | C124: PN MIC 24X12N12 TURF BLK | D124: 241212TURFBL | E124: TP CONSTRUCTION (MICHELIN) | F124: MI X-TURF | G124: 12 | I124: - | J124: 12 | P124: 0 | Q124: 527 | R124: 363.63
A125: 474764 | B125: 3528704747641 | C125: PN MIC 460/70 - 24 159 A8 POWER CL | D125: 4607024POWERA8159 | E125: TP CONSTRUCTION (MICHELIN) | F125: MI POWER CL | G125: 460 | H125: 70 | I125: - | J125: 24 | K125: 159 | L125: A8 | P125: 0 | Q125: 1301 | R125: 897.69
A126: 481115 | B126: 3528704811151 | C126: SSL 2 PIECE DISC BOBCAT DISC | D126: 22BOBCAT | E126: TP CONSTRUCTION (MICHELIN) | F126: MI X TWEE | G126: 2 | I126: - | J126: 2 | P126: 0 | Q126: 71 | R126: 48.99
A127: 488798 | B127: 3528704887989 | C127: PN MIC 24.00R35 XTRA L PROTECT B 3E | D127: 240035XTLOAPRB3E | E127: GROS GENIE CIVIL | F127: MI XTRA LOAD PROTE | G127: 24 | I127: R | J127: 35 | K127: *** | P127: 0 | Q127: 16816 | R127: 11603.04
A128: 489102 | B128: 3528704891023 | C128: PN MIC 445/70R19.5 173 A8 X F * | D128: 44570195A8XF*173 | E128: TP CONSTRUCTION (MICHELIN) | F128: MI XF | G128: 445 | H128: 70 | I128: R | J128: 19.5 | K128: 180 | L128: A2 | P128: 0 | Q128: 2291 | R128: 1580.79
A129: 495016 | B129: 3528704950164 | C129: PN MIC 21.00 R33 XTRA LOAD PROTE B 3E | D129: 210033XTRALPBE3 | E129: GROS GENIE CIVIL | F129: MI XTRA LOAD PROTE | G129: 21 | I129: R | J129: 33 | K129: *** | P129: 0 | Q129: 12609 | R129: 8700.21
A130: 495503 | B130: 3528704955039 | C130: PN MIC 340/80 - 20 144 A8 POWER CL | D130: 3408020A8POWERCL144 | E130: TP CONSTRUCTION (MICHELIN) | F130: MI POWER CL | G130: 340 | H130: 80 | I130: - | J130: 20 | K130: 144 | L130: A8 | P130: 0 | Q130: 958 | R130: 661.02
A131: 510085 | B131: 3528705100858 | C131: PN MIC 775/65R29 195 B XAD65-1 SUPE3 | D131: 7756529BXAD65195 | E131: GROS GENIE CIVIL | F131: MI XAD65-1 SUPER E | G131: 775 | H131: 65 | I131: R | J131: 29 | K131: 195 | L131: B | P131: 0 | Q131: 11126 | R131: 7676.94
A132: 512305 | B132: 3528705123055 | C132: PN MIC 29.5R29 4E XTXL E4 | D132: 29529XTXL | E132: GROS GENIE CIVIL | F132: MI XTXL | G132: 29.5 | I132: R | J132: 29 | K132: **** | P132: 0 | Q132: 15937 | R132: 10996.53
A133: 515155 | B133: 3528705151553 | C133: PN MIC 18.00 R33 XTRA LOAD GRIP A4 E4 | D133: 180033XTRALOADGRIPA4 | E133: GROS GENIE CIVIL | F133: MI XTRA LOAD GRIP | G133: 18 | I133: R | J133: 33 | K133: *** | P133: 0 | Q133: 9388 | R133: 6477.72
A134: 519947 | B134: 3528705199470 | C134: PN MIC 45/65R39 **L5 XLDD2 | D134: 456539XLDD2**L5 | E134: GROS GENIE CIVIL | F134: MI XLDD2 | G134: 45 | H134: 65 | I134: R | J134: 39 | K134: 242 | L134: A2 | P134: 0 | Q134: 46900 | R134: 32361
A135: 523174 | B135: 3528705231743 | C135: PN MIC 21.00 R33 XTRA LOAD GRIP B 3E | D135: 210033XTRALGB3E | E135: GROS GENIE CIVIL | F135: MI XTRA LOAD GRIP | G135: 21 | I135: R | J135: 33 | K135: *** | P135: 0 | Q135: 12608 | R135: 8699.52
A136: 527661 | B136: 3528705276614 | C136: PN MIC 27.00 R49 XD GRIP A4 E4T 3E | D136: 270049XDGRIP4A3E | E136: GROS GENIE CIVIL | F136: MI XD GRIP | G136: 27 | I136: R | J136: 49 | K136: *** | P136: 0 | Q136: 28115 | R136: 19399.35
A137: 529089 | B137: 3528709223102 | C137: PN MIC 13X6.5 -6 X-TURF | D137: 13656XTURF | E137: TP CONSTRUCTION (MICHELIN) | F137: MI X-TURF | G137: 6.5 | I137: - | J137: 6 | P137: 0 | Q137: 156 | R137: 107.64
A138: 539641 | B138: 3528705396411 | C138: PN MIC 20.5 R25 X MINE D2 PRO L5R 3E | D138: 20525XMIND2PROL53E | E138: PETIT GENIE CIVIL | F138: MI X MINE D2 PRO | G138: 20.5 | I138: R | J138: 25 | K138: *** | P138: 0 | Q138: 8790 | R138: =Q138*(1-$D$3) -> 6065.1
A139: 540244 | B139: 3528705402440 | C139: PN MIC 37/25R35 XTS** | D139: 372535XTS** | E139: GROS GENIE CIVIL | F139: MI XTS | G139: 37.25 | I139: R | J139: 35 | K139: ** | P139: 0 | Q139: 25942 | R139: 17899.98
A140: 553513 | B140: 3528705535131 | C140: PN MIC 18.00 R33 XTRA LOAD GRIP B E4 | D140: 180033XTRALOADGRIPB | E140: GROS GENIE CIVIL | F140: MI XTRA LOAD GRIP | G140: 18 | I140: R | J140: 33 | K140: *** | P140: 0 | Q140: 9388 | R140: 6477.72
A141: 559900 | B141: 3528705599003 | C141: PN MIC 24.00R35 XTRA LOAD GRIP A4 E4 3E | D141: 240035XTLOAGA43E | E141: GROS GENIE CIVIL | F141: MI XTRA LOAD GRIP | G141: 24 | I141: R | J141: 35 | K141: *** | P141: 0 | Q141: 16815 | R141: 11602.35
A142: 565274 | B142: 3528705652746 | C142: PN MIC 26.5 R25 XTRA DEFEND E4**L4** | D142: 26525XTRADEFENDE4 | E142: PETIT GENIE CIVIL | F142: MI XTRA DEFEND | G142: 26.5 | I142: R | J142: 25 | P142: 0 | Q142: 10414 | R142: 7185.66
A143: 565628 | B143: 3528705656287 | C143: PN MIC 505/95R25 183 E XV C | D143: 5059525EXVC183 | E143: PETIT GENIE CIVIL | F143: MI XV C | G143: 505 | H143: 95 | I143: R | J143: 25 | K143: 183 | L143: E | P143: 0 | Q143: 6918 | R143: 4773.42
A144: 577845 | B144: 3528705778453 | C144: PN MIC 420/80 - 30 155 A8 POWER CL | D144: 4208030A8POWER155 | E144: TP CONSTRUCTION (MICHELIN) | F144: MI POWER CL | G144: 420 | H144: 80 | I144: - | J144: 30 | K144: 155 | L144: A8 | P144: 0 | Q144: 1531 | R144: 1056.39
A145: 593299 | B145: 3528705932992 | C145: PN MIC 26X9 -14 TWEEL UTV | D145: 26914TWEELUTV2 | E145: TP CONSTRUCTION (MICHELIN) | F145: MI TWEEL UTV | G145: 9 | I145: - | J145: 14 | P145: 0 | Q145: 625 | R145: 431.25
A146: 597428 | B146: 3528705974282 | C146: PN MIC 29.5R25 200 B XADN+ | D146: 29525BXADN200 | E146: PETIT GENIE CIVIL | F146: MI XADN+ | G146: 29.5 | I146: R | J146: 25 | K146: 200 | L146: B | P146: 0 | Q146: 12503 | R146: 8627.07
A147: 610873 | B147: 3528706108730 | C147: PN MIC 340/80 - 18 143 A8 POWER CL | D147: 3408018A8POWERCL143 | E147: TP CONSTRUCTION (MICHELIN) | F147: MI POWER CL | G147: 340 | H147: 80 | I147: - | J147: 18 | K147: 143 | L147: A8 | P147: 0 | Q147: 853 | R147: 588.57
A148: 625787 | B148: 3528706257872 | C148: PN MIC 300/70R16.5 137 A8 BIBSTEEL AT | D148: 30070165BIBSTEA8137 | E148: TP CONSTRUCTION (MICHELIN) | F148: MI BIBSTEEL AT | G148: 300 | H148: 70 | I148: R | J148: 16.5 | K148: 137 | L148: A8 | P148: 0 | Q148: 983 | R148: 678.27
A149: 631225 | B149: 3528706312250 | C149: PN MIC 29.5R35 XTS** | D149: 29535XTS** | E149: GROS GENIE CIVIL | F149: MI XTS | G149: 29.5 | I149: R | J149: 35 | K149: ** | P149: 0 | Q149: 17234 | R149: 11891.46
A150: 645051 | B150: 3528706450518 | C150: PN MIC 35/65 33 X UM HAUL **** | D150: 356533****XUMHAUL | E150: GROS GENIE CIVIL | F150: MI X UM HAUL | G150: 35 | H150: 65 | J150: 33 | P150: 0 | Q150: 21695 | R150: 14969.55
A151: 646057 | B151: 3528706460579 | C151: PN MIC 18.00 R33 XTRA LOAD PROTECT A4 E4 | D151: 180033XTRALOADPROTA4 | E151: GROS GENIE CIVIL | F151: MI XTRA LOAD PROTE | G151: 18 | I151: R | J151: 33 | K151: *** | P151: 0 | Q151: 9390 | R151: 6479.1
A152: 651716 | B152: 3528706517167 | C152: PN MIC 45/65R45 L5R** XMINE D2 | D152: 456545XMINEL5R** | E152: GROS GENIE CIVIL | F152: MI X MINE D2 | G152: 45 | H152: 65 | I152: R | J152: 45 | K152: 244 | L152: A2 | P152: 0 | Q152: 56259 | R152: 38818.71
A153: 667421 | B153: 3528706674211 | C153: PN MIC 27.00 R49 XDR3 A E4R 3E | D153: 270049XDR3AE4R3E | E153: GROS GENIE CIVIL | F153: MI XDR3 | G153: 27 | I153: R | J153: 49 | K153: *** | P153: 0 | Q153: 30652 | R153: 21149.88
A154: 676673 | B154: 3528706766732 | C154: PN MIC 23.5 R25 185B XADN+ B4 | D154: 23525XADN+B4185B | E154: PETIT GENIE CIVIL | F154: MI XADN+ | G154: 23.5 | I154: R | J154: 25 | K154: 185 | L154: B | P154: 0 | Q154: 6569 | R154: 4532.61
A155: 677468 | C155: PN MIC 445/75R22.5 173J X CRANE | D155: 44575225XCRANE173J | E155: PETIT GENIE CIVIL | F155: MI X-CRANE | G155: 445 | H155: 75 | I155: R | J155: 22.5 | K155: 173 | L155: J | P155: 0 | Q155: 2955 | R155: 2038.95
A156: 682834 | B156: 3528706828348 | C156: PN MIC 385/95R25 170 F X-CRANE+ TL | D156: 3859525FXCRANETL170 | E156: PETIT GENIE CIVIL | F156: MI X-CRANE+ | G156: 385 | H156: 95 | I156: R | J156: 25 | K156: 170 | L156: F | P156: 0 | Q156: 3505 | R156: 2418.45
A157: 691578 | B157: 3528706915789 | C157: PN MIC 440/80-28 163A8 POWER CL IND | D157: 4408028POWCL163A8 | E157: TP CONSTRUCTION (MICHELIN) | F157: MI POWER CL | G157: 440 | H157: 80 | I157: - | J157: 28 | K157: 163 | L157: A8 | P157: 0 | Q157: 1641 | R157: 1132.29
A158: 694482 | B158: 3528706944826 | C158: PN MIC 18.00R25 XSM D2+ LC L5 2E | D158: 180025XSMD2+LC2E | E158: PETIT GENIE CIVIL | F158: MI XSM D2+ | G158: 18 | I158: R | J158: 25 | K158: * | P158: 0 | Q158: 13970 | R158: 9639.3
A159: 694767 | B159: 3528706947674 | C159: PN MIC 280/80 - 20 133 A8 POWER CL | D159: 2808020A8POWERCL133 | E159: TP CONSTRUCTION (MICHELIN) | F159: MI POWER CL | G159: 280 | H159: 80 | I159: - | J159: 20 | K159: 133 | L159: A8 | P159: 0 | Q159: 730 | R159: 503.7
A160: 698296 | B160: 3528706982965 | C160: PN MIC 26X9 -14 TWEEL UTV | D160: 26914TWEELUTV | E160: TP CONSTRUCTION (MICHELIN) | F160: MI TWEEL UTV | G160: 9 | I160: - | J160: 14 | P160: 0 | Q160: 625 | R160: 431.25
A161: 705961 | B161: 3528707059611 | C161: PN MIC 385/95R25 170 E X SNOWPLUS M+S | D161: 3859525EXSNOW170 | E161: PETIT GENIE CIVIL | F161: MI X SNOPLUS | G161: 385 | H161: 95 | I161: R | J161: 25 | K161: 170 | L161: E | P161: 0 | Q161: 3502 | R161: 2416.38
A162: 708648 | B162: 3528707086488 | C162: PN MIC 29.5R29 XTS** | D162: 29529XTS** | E162: GROS GENIE CIVIL | F162: MI XTS | G162: 29.5 | I162: R | J162: 29 | K162: ** | P162: 0 | Q162: 14706 | R162: 10147.14
A163: 709241 | B163: 3528707092410 | C163: PN MIC 12N16.5 X TWEEL SSL 2P | D163: 12165SSL2P | E163: TP CONSTRUCTION (MICHELIN) | F163: MI X TWEE | G163: 12 | I163: - | J163: 16.5 | P163: 0 | Q163: 967 | R163: 667.23
A164: 714571 | B164: 3528707145710 | C164: PN MIC 18.00R25 XHDT B TL** 2E | D164: 180025XHDTB2E | E164: PETIT GENIE CIVIL | F164: MI XHDT | G164: 18 | I164: R | J164: 25 | K164: ** | P164: 0 | Q164: 8259 | R164: 5698.71
A165: 716130 | B165: 3528707161307 | C165: PN MIC 27.00 R49 XD MINEWORKS ** | D165: 270049XDMINEWORKS** | E165: GROS GENIE CIVIL | F165: MI XD MINEWORKS | G165: 27 | I165: R | J165: 49 | K165: ** | P165: 0 | Q165: 24820 | R165: 17125.8
A166: 717546 | B166: 3528707175465 | C166: PN MIC 17.5R25 XHA 2 | D166: 17525XHA2 | E166: PETIT GENIE CIVIL | F166: MI XHA2 | G166: 17.5 | I166: R | J166: 25 | K166: 176 | L166: A2 | P166: 0 | Q166: 3139 | R166: 2165.91
A167: 720557 | B167: 3528707205575 | C167: PN MIC 17.5 R25 X MINE D2 PRO L5R 3E | D167: 17525XMIND2PROL53E | E167: PETIT GENIE CIVIL | F167: MI X MINE D2 PRO | G167: 17.5 | I167: R | J167: 25 | K167: *** | P167: 0 | Q167: 6412 | R167: 4424.28
A168: 723646 | B168: 3528707236463 | C168: PN MIC 23.5 R25 XTRA DEFEND 2E | D168: 23525XTRADEFEND2E | E168: GROS GENIE CIVIL | F168: MI XTRA DEFEND | G168: 23.5 | I168: R | J168: 25 | K168: ** | P168: 0 | Q168: 7548 | R168: 5208.12
A169: 733149 | B169: 3528707331496 | C169: PN MIC 45/65R45 244 A2 XLDD1 L4** | D169: 456545A2XLDD1244 | E169: GROS GENIE CIVIL | F169: MI XLD D1A | G169: 45 | H169: 65 | I169: R | J169: 45 | K169: 244 | L169: A2 | P169: 0 | Q169: 50314 | R169: 34716.66
A170: 735466 | B170: 3528707354662 | C170: PN MIC 400/80R15 X MINE D2 TT | D170: 4008015XMIND2TT | E170: PETIT GENIE CIVIL | F170: MI X MINE D2 | G170: 400 | H170: 80 | I170: R | J170: 15 | P170: 0 | Q170: 2013 | R170: 1388.97
A171: 738428 | B171: 3528707384287 | C171: PN MIC 445/95R25 174 F X-CRANE+ TL | D171: 4459525FXCRAN+TL174 | E171: PETIT GENIE CIVIL | F171: MI X-CRANE+ | G171: 445 | H171: 95 | I171: R | J171: 25 | K171: 174 | L171: F | P171: 0 | Q171: 4502 | R171: 3106.38
A172: 740832 | B172: 3528707408327 | C172: PN MIC 26.5R25 193B XTRA DEFEND E4** | D172: 26525XTRDEFENDE4 | E172: PETIT GENIE CIVIL | F172: MI XTRA DEFEND | G172: 26.5 | I172: R | J172: 25 | K172: 193 | L172: B | P172: 0 | Q172: 10371 | R172: 7155.99
A173: 764857 | B173: 3528707648570 | C173: PN MIC 27.00 R49 XDR3 B E4R 3E | D173: 270049XDR3BE4R3E | E173: GROS GENIE CIVIL | F173: MI XDR3 | G173: 27 | I173: R | J173: 49 | K173: *** | P173: 0 | Q173: 30652 | R173: 21149.88
A174: 765959 | B174: 3528707659590 | C174: PN MIC 21.00R35 E4R** X-QUARRY S TL | D174: 210035XQUARSTLE4R** | E174: GROS GENIE CIVIL | F174: MI X-QUARRY | G174: 21 | I174: R | J174: 35 | K174: ** | P174: 0 | Q174: 14960 | R174: 10322.4
A175: 769976 | B175: 3528707699763 | C175: PN MIC 18.00 R33 XTRA LOAD PROTECT B E4 | D175: 180033XTRALOADPROTEB | E175: GROS GENIE CIVIL | F175: MI XTRA LOAD PROTE | G175: 18 | I175: R | J175: 33 | K175: *** | P175: 0 | Q175: 9390 | R175: 6479.1
A176: 778245 | B176: 3528707782458 | C176: PN MIC 385/95R24 170 F X-CRANE AT TL | D176: 3859524FXCRANTL170 | E176: PETIT GENIE CIVIL | F176: MI X-CRANE AT | G176: 385 | H176: 95 | I176: R | J176: 24 | K176: 170 | L176: F | P176: 0 | Q176: 3444 | R176: 2376.36
A177: 785703 | B177: 3528707857033 | C177: PN MIC 45/65R39 242 A2 X MINE D2 | D177: 456539A2XMINE242 | E177: GROS GENIE CIVIL | F177: MI X MINE D2 | G177: 45 | H177: 65 | I177: R | J177: 39 | K177: 242 | L177: A2 | P177: 0 | Q177: 48103 | R177: 33191.07
A178: 786694 | B178: 3528707866943 | C178: PN MIC 13X6.5N6 SMOOTH CASTER | D178: 13656SMOCASRAI19 | E178: TP CONSTRUCTION (MICHELIN) | F178: MI X-TURF | G178: 6.5 | I178: - | J178: 6 | P178: 0 | Q178: 156 | R178: 107.64
A179: 812358 | B179: 3528708123588 | C179: PN MIC 26X11 -14 TWEEL UTV BK | D179: 261114TWEELUTVBK2 | E179: TP CONSTRUCTION (MICHELIN) | F179: MI TWEEL UTV | G179: 11 | I179: - | J179: 14 | P179: 0 | Q179: 688 | R179: 474.72
A180: 813419 | B180: 3528708134195 | C180: PN MIC 23.5 R25 X MINE D2 PRO L5R 3E | D180: 23525XMIND2PROL53E | E180: PETIT GENIE CIVIL | F180: MI X MINE D2 PRO | G180: 23.5 | I180: R | J180: 25 | K180: *** | P180: 0 | Q180: 11499 | R180: 7934.31
A181: 817393 | B181: 3528708173934 | C181: PN MIC 10 -16.5 NHS X-TWEEL SSL | D181: 10165NHSXTWEELSS | E181: TP CONSTRUCTION (MICHELIN) | F181: MI X TWEE | G181: 10 | I181: - | J181: 16.5 | P181: 0 | Q181: 902 | R181: 622.38
A182: 819333 | B182: 3528708193338 | C182: PN MIC 29.5 R29 XSM D2+ PRO L5C 3E | D182: 29529XSMD2+PROL53E | E182: GROS GENIE CIVIL | F182: MI XSM D2+ PRO | G182: 29.5 | I182: R | J182: 29 | K182: *** | P182: 0 | Q182: 26289 | R182: 18139.41
A183: 822869 | B183: 3528708228696 | C183: PN MIC 17.5 R25 XSM D2+ PRO L5C 3E | D183: 17525XSMD2+PROL53E | E183: PETIT GENIE CIVIL | F183: MI XSM D2+ PRO | G183: 17.5 | I183: R | J183: 25 | K183: *** | P183: 0 | Q183: 8014 | R183: 5529.66
A184: 840573 | B184: 3528708405738 | C184: PN MIC 650/65R25 XAD65-1 SUP E3 TL | D184: 6506525XAD651SUPE | E184: PETIT GENIE CIVIL | F184: MI XAD65-1 SUPER E | G184: 650 | H184: 65 | I184: R | J184: 25 | K184: 180 | L184: B | P184: 0 | Q184: 6713 | R184: 4631.97
A185: 842835 | B185: 3528708428355 | C185: PN MIC 26X11 -14 TWEEL UTV & ATV BK | D185: 261114TWEELUTVATVBK | E185: TP CONSTRUCTION (MICHELIN) | F185: MI TWEEL UTV & ATV | G185: 11 | I185: - | J185: 14 | P185: 0 | Q185: 688 | R185: 474.72
A186: 843315 | B186: 3528708433151 | C186: PN MIC 21.00 R33 XTRA LOAD GRIP A4 3E | D186: 210033XTRALGA43E | E186: GROS GENIE CIVIL | F186: MI XTRA LOAD GRIP | G186: 21 | I186: R | J186: 33 | K186: *** | P186: 0 | Q186: 12608 | R186: 8699.52
A187: 845075 | B187: 3528708450752 | C187: PN MIC 35/65R33 XTXL E4**** | D187: 356533XTXLEMI | E187: GROS GENIE CIVIL | F187: MI XTXL | G187: 35 | H187: 65 | I187: R | J187: 33 | K187: 229 | L187: A2 | P187: 0 | Q187: 20969 | R187: 14468.61
A188: 856011 | B188: 3528708560116 | C188: PN MIC 37.5/80R39 XRS ** | D188: 375392E | E188: GROS GENIE CIVIL | F188: MI XRS | G188: 37.5 | I188: R | J188: 39 | K188: ** | P188: 0 | Q188: 29989 | R188: 20692.41
A189: 858472 | B189: 3528708584723 | C189: PN MIC 26.5 R25 X MINE D2 PRO L5R 3E | D189: 26525XMIND2PROL53E | E189: PETIT GENIE CIVIL | F189: MI X MINE D2 PRO | G189: 26.5 | I189: R | J189: 25 | K189: *** | P189: 0 | Q189: 15147 | R189: 10451.43
A190: 871341 | B190: 3528708713413 | C190: PN MIC 45/65R45 L5T XLDD2A** | D190: 456545XLDD2AL5T | E190: GROS GENIE CIVIL | F190: MI XLDD2 | G190: 45 | H190: 65 | I190: R | J190: 45 | K190: 244 | L190: A2 | P190: 0 | Q190: 53274 | R190: 36759.06
A191: 871916 | B191: 3528708719163 | C191: PN MIC 33.25R29 XTS** | D191: 332529XTS** | E191: GROS GENIE CIVIL | F191: MI XTS | G191: 33.25 | I191: R | J191: 29 | K191: ** | P191: 0 | Q191: 19148 | R191: 13212.12
A192: 883466 | B192: 3528708834668 | C192: PN MIC 10 -16.5 TWEEL SSL HARD | D192: 10165TWEELSSLHARD | E192: TP CONSTRUCTION (MICHELIN) | F192: MI TWEEL SSL HARD | G192: 10 | I192: - | J192: 16.5 | P192: 0 | Q192: 961 | R192: 663.09
A193: 893825 | B193: 3528708938250 | C193: PN MIC 26.5R25 * XH A2 | D193: 26525XHA2* | E193: PETIT GENIE CIVIL | F193: MI XHA2 | G193: 26.5 | I193: R | J193: 25 | K193: 209 | L193: A2 | P193: 0 | Q193: 8639 | R193: 5960.91
A194: 899613 | B194: 3528708996137 | C194: PN MIC 20.5R25 XHA 2* | D194: 20525XHA2 | E194: PETIT GENIE CIVIL | F194: MI XHA2 | G194: 20.5 | I194: R | J194: 25 | K194: 186 | L194: A2 | P194: 0 | Q194: 4749 | R194: 3276.81
A195: 900079 | B195: 3528709000796 | C195: PN MIC 33.25/80R29 209B XTRA DEFEND E4 | D195: 33258029XTRADEE4209B | E195: PETIT GENIE CIVIL | F195: MI XTRA DEFEND | G195: 33.25 | H195: 80 | I195: R | J195: 29 | K195: 209 | L195: B | P195: 0 | Q195: 20236 | R195: 13962.84
A196: 923499 | B196: 3528709234993 | C196: PN MIC 23.5R25 185B XTRA DEFEND E4 2E | D196: 23525XTDEFE41852EB | E196: PETIT GENIE CIVIL | F196: MI XTRA DEFEND | G196: 23.5 | I196: R | J196: 25 | K196: 185 | L196: B | P196: 0 | Q196: 7204 | R196: 4970.76
A197: 929747 | B197: 3528709297479 | C197: PN MIC 29.5 R25 XTRA DEFEND 2E | D197: 29525XTRADEFEND2E | E197: PETIT GENIE CIVIL | F197: MI XTRA DEFEND | G197: 29.5 | I197: R | J197: 25 | K197: ** | P197: 0 | Q197: 12799 | R197: 8831.31
A198: 936624 | B198: 3528709366243 | C198: PN MIC 875/65R29 *L3 XHA2 TL | D198: 8756529XHA2TL*L3 | E198: GROS GENIE CIVIL | F198: MI XHA2 | G198: 875 | H198: 65 | I198: R | J198: 29 | K198: 214 | L198: A2 | P198: 0 | Q198: 14832 | R198: 10234.08
A199: 940473 | B199: 3528709404730 | C199: PN MIC 29.5R25 200B XTRA DEFEND E4 2E | D199: 29525XTDEFE42002EB | E199: PETIT GENIE CIVIL | F199: MI XTRA DEFEND | G199: 29.5 | I199: R | J199: 25 | K199: 200 | L199: B | P199: 0 | Q199: 13315 | R199: 9187.35
A200: 957157 | B200: 3528709571579 | C200: PN MIC 385/95R24 170E XMH S TT | D200: 3859524XMHSTT170E | E200: PETIT GENIE CIVIL | F200: MI XMH S | G200: 385 | H200: 95 | I200: R | J200: 24 | K200: 170 | L200: E | P200: 0 | Q200: 3568 | R200: 2461.92
A201: 959644 | B201: 3528709596442 | C201: PN MIC 35/65R33 229A2 XTR POW B4 3E | D201: 356533XTRPOW2293EA22 | E201: GROS GENIE CIVIL | F201: MI XTR POW | G201: 35 | H201: 65 | I201: R | J201: 33 | K201: 229 | L201: A2 | P201: 0 | Q201: 20827 | R201: 14370.63
A202: 961307 | B202: 3528709613071 | C202: PN MIC 29.5R25 XHA 2* | D202: 29525XHA2 | E202: PETIT GENIE CIVIL | F202: MI XHA2 | G202: 29.5 | I202: R | J202: 25 | K202: 216 | L202: A2 | P202: 0 | Q202: 11992 | R202: =Q202*(1-$D$3) -> 8274.48
A203: 964718 | B203: 3528709647182 | C203: PN MIC 35/65R33 XL 229A2 XSM D2 + 3E | D203: 356533XSMD2+2293EA2 | E203: GROS GENIE CIVIL | F203: MI XSM D2+ | H203: 65 | I203: R | J203: 33 | K203: 229 | L203: A2 | P203: 0 | Q203: 28750 | R203: 19837.5
... 5 more rows

Sheet MITAS
D2: Remise
D3: =Remises!$E$12 -> 0.43
A5: Actualisation au 04/04/2024
A7: REFERENCES PNEUMATIQUES | Q7: TARIFS
A8: CAI | B8: EAN | C8: Désignation | D8: Appellation | E8: Catégorie | F8: Profil | G8: Largeur | H8: Hauteur | I8: Structure | J8: Diamètre | K8: IC | L8: IV | M8: Conso. | N8: Frein. | O8: Bruit. | P8: Décibels. | Q8: Prix BF | R8: Prix Remisé
A9: 100020EM23 | B9: 8059971615890 | C9: PN MIT 10.00 - 20 16PR EM-23 TT | D9: 100020EM23TT16PR | E9: TRAVAUX PUBLICS | F9: MIT EM-23 | G9: 10 | I9: - | J9: 20 | K9: 146 | L9: B | P9: 0 | Q9: 817 | R9: =Q9*(1-$D$3) -> 465.69
A10: 10075153SK01 | B10: 8059971615517 | C10: PN MIT 10.0/75 - 15.3 10PR SK-01 | D10: 10075153SK0110PR | E10: TRAVAUX PUBLICS | F10: MIT SK-01 | G10: 10 | H10: 75 | I10: - | J10: 15.3 | K10: 127 | L10: A6 | P10: 0 | Q10: 327 | R10: =Q10*(1-$D$3) -> 186.39
A11: 1011301710000 | B11: 8059971617283 | C11: PN MIT 10.5 - 18 PR10 MPT-02 TL | D11: 10518MPT02TLEPPR10 | E11: TRAVAUX PUBLICS | F11: EP MPT-02 | G11: 10.5 | I11: - | J11: 18 | K11: 129 | L11: D | P11: 0 | Q11: 570 | R11: 324.9
A12: 1011303100000 | B12: 8059971612646 | C12: PN MIT 340/80-18 131D MPT 04 | D12: 3408018MPT04131D | E12: TRAVAUX PUBLICS | F12: EP MPT-04 | G12: 340 | H12: 80 | I12: - | J12: 18 | K12: 131 | L12: D | P12: 0 | Q12: 764 | R12: 435.48
A13: 1011303960000 | B13: 8059971617290 | C13: PN MIT 12.5 -18 128G MPT-03 M+ | D13: 12518MPT03M+128G | E13: TRAVAUX PUBLICS | F13: EP MPT-03 | G13: 12.5 | I13: - | J13: 18 | K13: 128 | L13: G | P13: 0 | Q13: 640 | R13: 364.8
A14: 1011303980000 | B14: 8059971613339 | C14: PN MIT 12.5 - 18 PR12 MPT-03 TL | D14: 12518MPT03TLEPPR12 | E14: TRAVAUX PUBLICS | F14: EP MPT-03 | G14: 12.5 | I14: - | J14: 18 | K14: 131 | L14: G | P14: 0 | Q14: 622 | R14: 354.54
A15: 1011304100000 | B15: 8059971616293 | C15: PN MIT 340/80-18 134D MPT 04 | D15: 3408018MPT04134D | E15: TRAVAUX PUBLICS | F15: EP MPT-04 | G15: 340 | H15: 80 | I15: - | J15: 18 | K15: 134 | L15: D | P15: 0 | Q15: 792 | R15: 451.44
A16: 1011304170000 | B16: 8059971614503 | C16: PN MIT 340/80-18 144D MPT 04 | D16: 3408018MPT04144D | E16: TRAVAUX PUBLICS | F16: EP MPT-04 | G16: 340 | H16: 80 | I16: - | J16: 18 | K16: 144 | L16: D | P16: 0 | Q16: 830 | R16: 473.1
A17: 1011304470000 | B17: 8059971618020 | C17: PN MIT 10.5 - 20 10PR MPT-04 | D17: 10520MPT04TLEPPR10 | E17: TRAVAUX PUBLICS | F17: EP MPT-04 | G17: 10.5 | I17: - | J17: 20 | K17: 131 | L17: D | P17: 0 | Q17: 554 | R17: 315.78
A18: 1011304930000 | B18: 8059971616040 | C18: PN MIT 10.5 - 20 10PR MPT-05 | D18: 10520MPT05TLPR10 | E18: TRAVAUX PUBLICS | F18: EP MPT-05 | G18: 10.5 | I18: - | J18: 20 | K18: 128 | L18: G | P18: 0 | Q18: 500 | R18: 285
A19: 1011305150000 | B19: 8059971615623 | C19: PN MIT 10.5 -20 128G MPT-07 M+ TT | D19: 10520MPT07M+TT128G | E19: TRAVAUX PUBLICS | F19: EP MPT-07 | G19: 10.5 | I19: - | J19: 20 | K19: 128 | L19: G | P19: 0 | Q19: 515 | R19: 293.55
A20: 1011309080000 | B20: 8059971613254 | C20: PN MIT 340/80-20 135D MPT 04 | D20: 3408020MPT04135D | E20: TRAVAUX PUBLICS | F20: EP MPT-04 | G20: 340 | H20: 80 | I20: - | J20: 20 | K20: 135 | L20: D | P20: 0 | Q20: 870 | R20: 495.9
A21: 1011309530000 | B21: 8059971618785 | C21: PN MIT 12.5 - 20 12PR MPT-05 | D21: 12520MPT05TLEPPR12 | E21: TRAVAUX PUBLICS | F21: EP MPT-05 | G21: 12.5 | I21: - | J21: 20 | K21: 132 | L21: G | P21: 0 | Q21: 850 | R21: 484.5
A22: 1011310450000 | B22: 8059971617849 | C22: PN MIT 12.5 -20 16P MPT 03 | D22: 12520MPT03162 | E22: TRAVAUX PUBLICS | F22: EP MPT-03 | G22: 12.5 | I22: - | J22: 20 | K22: 16PR | P22: 0 | Q22: 893 | R22: 509.01
A23: 1011310460000 | B23: 8059971615296 | C23: PN MIT 12.5 - 20 PR12 MPT-03 TL | D23: 12520MPT03TLEPPR12 | E23: TRAVAUX PUBLICS | F23: EP MPT-03 | G23: 12.5 | I23: - | J23: 20 | K23: 132 | L23: G | P23: 0 | Q23: 870 | R23: 495.9
A24: 1011312750000 | B24: 8059971613131 | C24: PN MIT 14.5 - 20 12PR MPT-05 | D24: 14520MPT05TLEPPR12 | E24: TRAVAUX PUBLICS | F24: EP MPT-05 | G24: 14.5 | I24: - | J24: 20 | K24: 136 | L24: G | P24: 0 | Q24: 954 | R24: 543.78
A25: 1011313210000 | B25: 8059971617863 | C25: PN MIT 14.5 - 20 PR12 MPT-03 TL | D25: 14520MPT03TLEPPR12 | E25: TRAVAUX PUBLICS | F25: EP MPT-03 | G25: 14.5 | I25: - | J25: 20 | K25: 136 | L25: G | P25: 0 | Q25: 903 | R25: 514.71
A26: 1011313680000 | B26: 8059971616705 | C26: PN MIT 360/85-20 142D MPT 04 | D26: 3608520MPT04142D | E26: TRAVAUX PUBLICS | F26: EP MPT-04 | G26: 360 | H26: 85 | I26: - | J26: 20 | K26: 142 | L26: D | P26: 0 | Q26: 961 | R26: 547.77
A27: 1011317360000 | B27: 8059971619089 | C27: PN MIT 400/70-20 14P MPT 04 ID | D27: 4007020MPT04ID148D | E27: TRAVAUX PUBLICS | F27: EP MPT-04 | G27: 400 | H27: 70 | I27: - | J27: 20 | K27: 148 | L27: D | P27: 0 | Q27: 984 | R27: 560.88
A28: 1011318270000 | B28: 8059971618532 | C28: PN MIT 16/70 - 20 PR14 MPT-05 TL | D28: 167020MPT0514145G | E28: TRAVAUX PUBLICS | F28: EP MPT-05 | G28: 16 | H28: 70 | I28: - | J28: 20 | K28: 145 | L28: G | P28: 0 | Q28: 984 | R28: 560.88
A29: 1011319190000 | B29: 8059971615289 | C29: PN MIT 16/70 - 20 14PR MPT-02 | D29: 167020MPT02TLEPPR14 | E29: TRAVAUX PUBLICS | F29: EP MPT-02 | G29: 16 | H29: 70 | I29: - | J29: 20 | K29: 148 | L29: D | P29: 0 | Q29: 919 | R29: 523.83
A30: 1011321170000 | B30: 8059971615272 | C30: PN MIT 405/70 - 20 145 G MPT-03 TL | D30: 4057020GMPT03TLEP145 | E30: TRAVAUX PUBLICS | F30: EP MPT-03 | G30: 405 | H30: 70 | I30: - | J30: 20 | K30: 145 | L30: G | P30: 0 | Q30: 844 | R30: 481.08
A31: 1011322280000 | B31: 8059971614046 | C31: PN MIT 400/70-24 151D IND MPT-04 | D31: 4007024MPT04151DMI | E31: TRAVAUX PUBLICS | F31: EP MPT-04 | G31: 400 | H31: 70 | I31: - | J31: 24 | K31: 151 | L31: D | P31: 0 | Q31: 1086 | R31: 619.02
A32: 1011322290000 | B32: 8059971615067 | C32: PN MIT 400/70-24 156B MPT 04 IND | D32: 4007024MPT04IN156B | E32: TRAVAUX PUBLICS | F32: EP MPT-04 | G32: 400 | H32: 70 | I32: - | J32: 24 | K32: 156 | L32: B | P32: 0 | Q32: 1148 | R32: 654.36
A33: 1011322300000 | B33: 8059971613513 | C33: PN MIT 405/70-24 156B MPT 04 | D33: 4057024MPT04156B | E33: TRAVAUX PUBLICS | F33: EP MPT-04 | G33: 405 | H33: 70 | I33: - | J33: 24 | K33: 156 | L33: B | P33: 0 | Q33: 1132 | R33: 645.24
A34: 1011323090000 | B34: 8059971615401 | C34: PN MIT 405/70 - 24 PR14 MPT-04 TL | D34: 4057024MPT04TLEPPR14 | E34: TRAVAUX PUBLICS | F34: EP MPT-04 | G34: 405 | H34: 70 | I34: - | J34: 24 | K34: 151 | L34: D | P34: 0 | Q34: 1007 | R34: 573.99
A35: 1012102160000 | B35: 8059971619409 | C35: PN MIT 9.00 - 20 14PR NB38 EXTRA TT | D35: 90020BNB38ETT140 | E35: TRAVAUX PUBLICS | F35: EP NB38-1 | G35: 9 | I35: - | J35: 20 | K35: 140 | L35: B | P35: 0 | Q35: 720 | R35: 410.4
A36: 1012102620000 | B36: 8059971615500 | C36: PN MIT 10.00 -20 145B NB38 EXTRA TT | D36: 100020NB38ETT145B | E36: TRAVAUX PUBLICS | F36: EP NB38-1 | G36: 10 | I36: - | J36: 20 | K36: 145 | L36: B | P36: 0 | Q36: 791 | R36: 450.87
A37: 1012102700000 | B37: 8059971615890 | C37: PN MIT 10.00 - 20 16PR EM-23 TT | D37: 100020EM23TTPR16 | E37: TRAVAUX PUBLICS | F37: EP EM-23 | G37: 10 | I37: - | J37: 20 | K37: 146 | L37: B | P37: 0 | Q37: 817 | R37: 465.69
A38: 1012103380000 | B38: 8059971612790 | C38: PN MIT 11.00 -20 16PR EM-22 TT | D38: 110021EM22TTB148 | E38: TRAVAUX PUBLICS | F38: EP EM-22 | G38: 11 | I38: - | J38: 20 | K38: 148 | L38: B | P38: 0 | Q38: 935 | R38: 532.95
A39: 1012200780000 | B39: 8059971617085 | C39: PN MIT 10.5/80-16 6PMPACTOR | D39: 1058016COMPACTL6PR | E39: TRAVAUX PUBLICS | F39: EP COMPACTOR-1 | G39: 10.5 | H39: 80 | I39: - | J39: 16 | K39: 6PR | P39: 0 | Q39: 659 | R39: 375.63
A40: 1012201020000 | B40: 8059971618815 | C40: PN MIT 11.00 -20 164A3 COMPACTOR TT | D40: 110020COMPACTT164A3 | E40: TRAVAUX PUBLICS | F40: EP COMPACTOR-1 | G40: 11 | I40: - | J40: 20 | K40: 164 | L40: A3 | P40: 0 | Q40: 988 | R40: 563.16
A41: 1012201240000 | B41: 8059971618792 | C41: PN MIT 11.00 - 20 PR18 COMP.EXTRA TT | D41: 110020COMPETLEPPR18 | E41: TRAVAUX PUBLICS | F41: EP COMPEXTRA | G41: 11 | I41: - | J41: 20 | K41: 170 | L41: A2 | P41: 0 | Q41: 1019 | R41: 580.83
A42: 1012201470000 | B42: 8059971616064 | C42: PN MIT 11.00 20 PR 18 COMP. SMOOTH T | D42: 110020COMPTTPR18 | E42: TRAVAUX PUBLICS | F42: EP COMPSMOOTH | G42: 11 | I42: - | J42: 20 | K42: 156 | L42: A5 | P42: 0 | Q42: 1109 | R42: 632.13
A43: 1012301940000 | B43: 8059971612622 | C43: PN MIT 15.5 - 25 149 B EM-20 TL | D43: 15525BEM20TL149 | E43: PETIT GENIE CIVIL | F43: EP EM-20 | G43: 15.5 | I43: - | J43: 25 | K43: 168 | L43: A2 | P43: 0 | Q43: 1492 | R43: 850.44
A44: 1012302620000 | B44: 8059971613360 | C44: PN MIT 15.5 - 25 PR12 EM-60 TL | D44: 15525EM60TLEPPR12 | E44: PETIT GENIE CIVIL | F44: EP EM-60 | G44: 15.5 | I44: - | J44: 25 | K44: 168 | L44: A2 | P44: 0 | Q44: 1464 | R44: 834.48
A45: 1012302710000 | B45: 8059971612806 | C45: PN MIT 15.5 - 25 PR16 EM-80 TL | D45: 15525EM80TLPR16 | E45: PETIT GENIE CIVIL | F45: EP EM-80 | G45: 15.5 | I45: - | J45: 25 | K45: 174 | L45: A2 | P45: 0 | Q45: 1723 | R45: 982.11
A46: 1012302860000 | B46: 8059971619164 | C46: PN MIT 17.5 - 25 158 B EM-20 TL | D46: 17525BEM20TL158 | E46: PETIT GENIE CIVIL | F46: EP EM-20 | G46: 17.5 | I46: - | J46: 25 | K46: 177 | L46: A2 | P46: 0 | Q46: 1861 | R46: 1060.77
A47: 1012303550000 | B47: 8059971614701 | C47: PN MIT 17.5 - 25 158 B EM-30 TL | D47: 17525BEM30TL158 | E47: PETIT GENIE CIVIL | F47: EP EM-30 | G47: 17.5 | I47: - | J47: 25 | K47: 177 | L47: A2 | P47: 0 | Q47: 1861 | R47: 1060.77
A48: 1012304000000 | B48: 8059971612813 | C48: PN MIT 17.5 - 25 PR16 EM-60 TL | D48: 17525EM60TLEPPR16 | E48: PETIT GENIE CIVIL | F48: EP EM-60 | G48: 17.5 | I48: - | J48: 25 | K48: 177 | L48: A2 | P48: 0 | Q48: 1861 | R48: 1060.77
A49: 1012304120000 | B49: 8059971618044 | C49: PN MIT 17.5 - 25 PR22 EM-20 TL | D49: 17525EM20TLEPPR22 | E49: PETIT GENIE CIVIL | F49: EP EM-20 | G49: 17.5 | I49: - | J49: 25 | K49: 188 | L49: A2 | P49: 0 | Q49: 2124 | R49: 1210.68
A50: 1012304140000 | B50: 8059971614152 | C50: PN MIT 17.5 - 25 PR22 EM-60 TL | D50: 17525EM60TLEPPR22 | E50: PETIT GENIE CIVIL | F50: EP EM-60 | G50: 17.5 | I50: - | J50: 25 | K50: 188 | L50: A2 | P50: 0 | Q50: 2124 | R50: 1210.68
A51: 1012304230000 | B51: 8059971614121 | C51: PN MIT 18.00 - 25 PR28 NB-38 TL | D51: 180025NB38TLEPPR28 | E51: PETIT GENIE CIVIL | F51: EP NB38-1 | G51: 18 | I51: - | J51: 25 | K51: 199 | L51: A2 | P51: 0 | Q51: 2572 | R51: 1466.04
A52: 1012305040000 | B52: 8059971617559 | C52: PN MIT 20 - 24 PR12 EM-70 TL | D52: 2024EM70TLEPPR12 | E52: PETIT GENIE CIVIL | F52: EP EM-70 | G52: 20 | I52: - | J52: 24 | K52: 173 | L52: A2 | P52: 0 | Q52: 2256 | R52: 1285.92
A53: 1012305620000 | B53: 8059971617764 | C53: PN MIT 20.5 - 25 167 B EM-20 TL | D53: 20525BEM20TL167 | E53: PETIT GENIE CIVIL | F53: EP EM-20 | G53: 20.5 | I53: - | J53: 25 | K53: 181 | L53: A2 | P53: 0 | Q53: 2376 | R53: 1354.32
A54: 1012305850000 | B54: 8059971616927 | C54: PN MIT 20.5 - 25 167 B EM-30 TL | D54: 20525BEM30TL167 | E54: PETIT GENIE CIVIL | F54: EP EM-30 | G54: 20.5 | I54: - | J54: 25 | K54: 181 | L54: A2 | P54: 0 | Q54: 2448 | R54: 1395.36
A55: 1012306060000 | B55: 8059971615791 | C55: PN MIT 20.5 - 25 PR20 EM-60 TL | D55: 20525EM60TLEPPR20 | E55: PETIT GENIE CIVIL | F55: EP EM-60 | G55: 20.5 | I55: - | J55: 25 | K55: 186 | L55: A2 | P55: 0 | Q55: 2519 | R55: 1435.83
A56: 1012307950000 | B56: 8590341005656 | C56: PN MIT 23.5 -25 199A2 EM-20 | D56: 23525EM2028199A2 | E56: PETIT GENIE CIVIL | F56: EP EM-20 | G56: 23.5 | I56: - | J56: 25 | K56: 199 | L56: A2 | P56: 0 | Q56: 4255 | R56: 2425.35
A57: 1012307970000 | B57: 8059971615470 | C57: PN MIT 23.5 - 25 183 B EM-30 TL | D57: 23525BEM30TL183 | E57: PETIT GENIE CIVIL | F57: EP EM-30 | G57: 23.5 | I57: - | J57: 25 | K57: 199 | L57: A2 | P57: 0 | Q57: 3959 | R57: 2256.63
A58: 1012307990000 | B58: 8059971618372 | C58: PN MIT 23.5 - 25 PR28 EM-60 TL | D58: 23525EM60TLEPPR28 | E58: PETIT GENIE CIVIL | F58: EP EM-60 | G58: 23.5 | I58: - | J58: 25 | K58: 199 | L58: A2 | P58: 0 | Q58: 3959 | R58: 2256.63
A59: 1012308410000 | B59: 8059971616903 | C59: PN MIT 26.5 - 25 192 B EM-30 TL | D59: 26525BEM30TL192 | E59: PETIT GENIE CIVIL | F59: EP EM-30 | G59: 26.5 | I59: - | J59: 25 | K59: 206 | L59: A2 | P59: 0 | Q59: 5133 | R59: 2925.81
A60: 1012308450000 | B60: 8059971613766 | C60: PN MIT 26.5 - 25 PR32 EM-60 TL | D60: 26525EM60TLEPPR32 | E60: GROS GENIE CIVIL | F60: EP EM-60 | G60: 26.5 | I60: - | J60: 25 | K60: 206 | L60: A2 | P60: 0 | Q60: 5133 | R60: 2925.81
A61: 1012308830000 | B61: 8059971612943 | C61: PN MIT 26.5 -29 204A2/189B EM3-0 | D61: 26529EM3026 | E61: PETIT GENIE CIVIL | F61: EP NB57-1 | G61: 26.5 | I61: - | J61: 29 | K61: 204 | L61: A2 | P61: 0 | Q61: 7327 | R61: 4176.39
A62: 1013082930000 | B62: 8059971616873 | C62: PN MIT 320/80-18 138/125A8 TR09 IND | D62: 3208018TR09IN138A8 | E62: TRAVAUX PUBLICS | F62: EP TR-09 | G62: 320 | H62: 80 | I62: - | J62: 18 | K62: 138/125 | L62: A8 | P62: 0 | Q62: 604 | R62: 344.28
A63: 1013082950000 | B63: 8059971613971 | C63: PN MIT 320/80-18 12P TR09 ID | D63: 3208018TR09ID12MI | E63: TRAVAUX PUBLICS | F63: EP TR-09 | G63: 320 | H63: 80 | I63: - | J63: 18 | K63: 138/125 | L63: A8 | P63: 0 | Q63: 618 | R63: 352.26
A64: 1013084770000 | B64: 8059971619836 | C64: PN MIT 400/75-20 14P IND TR09 | D64: 4007520TR0914MI | E64: TRAVAUX PUBLICS | F64: EP TR-09 | G64: 400 | H64: 75 | I64: - | J64: 20 | K64: 150/138 | L64: A8 | P64: 0 | Q64: 909 | R64: 518.13
A65: 1013101720000 | B65: 8059971617405 | C65: PN MIT 17.5 L 24 PR 10 TI-02 TL | D65: 17524TI02TLPR10 | E65: TRAVAUX PUBLICS | F65: EP TI-02 | G65: 17.5 | I65: - | J65: 24 | K65: 144 | L65: A8 | P65: 0 | Q65: 1035 | R65: 589.95
A66: 1013103310000 | B66: 8059971619379 | C66: PN MIT 21L -24 155A8 GRIP N RID IND | D66: 2124GRIPNRIDIN155A8 | E66: TRAVAUX PUBLICS | F66: EP GRIP-N-RIDE | G66: 21 | I66: - | J66: 24 | K66: 155 | L66: A8 | P66: 0 | Q66: 1648 | R66: 939.36
A67: 1013104240000 | B67: 8059971617887 | C67: PN MIT 16.9 - 28 PR12 TI-06 TL | D67: 16928TI06TLEPPR12 | E67: TRAVAUX PUBLICS | F67: EP TI-06 | G67: 16.9 | I67: - | J67: 28 | K67: 152 | L67: A8 | P67: 0 | Q67: 1128 | R67: 642.96
A68: 1013203130000 | B68: 8059971617351 | C68: PN MIT 440/80-30 154A8 TI-09 | D68: 4408030TI09154A8 | E68: TRAVAUX PUBLICS | F68: EP TI-09 | G68: 440 | H68: 80 | I68: - | J68: 30 | K68: 154 | L68: A8 | P68: 0 | Q68: 1372 | R68: 782.04
A69: 1014110010000 | B69: 8059971613926 | C69: PN MIT 500/45-20 160A8 TI-12 | D69: 5004520TI12160A8 | E69: TRAVAUX PUBLICS | F69: EP TI-12 | G69: 500 | H69: 45 | I69: - | J69: 20 | K69: 160 | L69: A8 | P69: 0 | Q69: 1256 | R69: 715.92
A70: 1014110930000 | B70: 8059971619591 | C70: PN MIT 500/60-22.5 152A8 TI-12 | D70: 50060225TI12152A8 | E70: TRAVAUX PUBLICS | F70: EP TI-12 | G70: 500 | H70: 60 | I70: - | J70: 22.5 | K70: 152 | L70: A8 | P70: 0 | Q70: 1325 | R70: 755.25
A71: 1014111880000 | B71: 8059971616613 | C71: PN MIT 600/40-22.5 169A8 TI-12 | D71: 60040225TI12169A8 | E71: TRAVAUX PUBLICS | F71: EP TI-12 | G71: 600 | H71: 40 | I71: - | J71: 22.5 | K71: 169 | L71: A8 | P71: 0 | Q71: 1582 | R71: 901.74
A72: 1014201500000 | B72: 8059971619492 | C72: PN MIT 18 - 19.5 PR16 MPT-03 TL | D72: 18195MPT03TLEPPR16 | E72: TRAVAUX PUBLICS | F72: EP MPT-03 | G72: 18 | I72: - | J72: 19.5 | K72: 156 | L72: D | P72: 0 | Q72: 1163 | R72: 662.91
A73: 1014201730000 | B73: 8059971615708 | C73: PN MIT 18 - 19.5 160 A8 MPT-06 TL | D73: 18195A8MPT06TLEP160 | E73: TRAVAUX PUBLICS | F73: EP MPT-06 | G73: 18 | I73: - | J73: 19.5 | K73: 160 | L73: A8 | P73: 0 | Q73: 1093 | R73: 623.01
A74: 1014202160000 | B74: 8059971619485 | C74: PN MIT 18 - 19.5 166 A8 MPT-06 | D74: 18195A8MPT06TL166 | E74: TRAVAUX PUBLICS | F74: EP MPT-06 | G74: 18 | I74: - | J74: 19.5 | K74: 166 | L74: A8 | P74: 0 | Q74: 1176 | R74: =Q74*(1-$D$3) -> 670.32
A75: 1014202690000 | B75: 8059971618709 | C75: PN MIT 480/65-22.5 16P IND MPT-06 | D75: 48065225MPT0616EP | E75: TRAVAUX PUBLICS | F75: EP MPT-06 | G75: 480 | H75: 65 | I75: - | J75: 22.5 | K75: 163 | L75: A8 | P75: 0 | Q75: 1302 | R75: 742.14
A76: 1014360810000 | B76: 8059971614251 | C76: PN MIT 440/70R24 147 B EM02 TL | D76: 4407024BEM02MTLEP147 | E76: PETIT GENIE CIVIL | F76: EP EM-02 | G76: 440 | H76: 70 | I76: R | J76: 24 | K76: 147 | L76: B | P76: 0 | Q76: 1381 | R76: 787.17
A77: 1014500920000 | B77: 8059971614534 | C77: PN MIT 13.00 - 24 12PR TG-02 | D77: 130024TG02TLEPPR12 | E77: TRAVAUX PUBLICS | F77: EP TG-02 | G77: 13 | I77: - | J77: 24 | K77: 143 | L77: A8 | P77: 0 | Q77: 1173 | R77: 668.61
A78: 1014503680000 | B78: 8059971614527 | C78: PN MIT 14.00 - 24 16PR TG-02 | D78: 140024TG02TLEPPR16 | E78: TRAVAUX PUBLICS | F78: EP TG-02 | G78: 14 | I78: - | J78: 24 | K78: 153 | L78: A8 | P78: 0 | Q78: 1363 | R78: 776.91
A79: 1016000100000 | B79: 8059971619768 | C79: PN MIT 9.00 - 20 14PR EM-22 TT | D79: 90020EM22TT14 | E79: TRAVAUX PUBLICS | F79: EP EM-22 | G79: 9 | I79: - | J79: 20 | K79: 140 | L79: B | P79: 0 | Q79: 700 | R79: 399
A80: 1016000101000 | B80: 8059971614077 | C80: PN MIT 10.00 -20 146B EM-22 SET TT | D80: 100020EM22SETT16146B | E80: TRAVAUX PUBLICS | F80: EP EM-22 | G80: 10 | I80: - | J80: 20 | K80: 146 | L80: B | P80: 0 | Q80: 660 | R80: 376.2
A81: 1016000105000 | B81: 8059971615753 | C81: PN MIT 11.00 -20 148B NB38 SET TT | D81: 110020NB38SETT16148B | E81: TRAVAUX PUBLICS | F81: EP NB38-1 | G81: 11 | I81: - | J81: 20 | K81: 148 | L81: B | P81: 0 | Q81: 976 | R81: 556.32
A82: 1016000107000 | B82: 8059971619027 | C82: PN MIT 8.25 -20 122B NB38 SET TT | D82: 82520NB38SETT14122B | E82: TRAVAUX PUBLICS | F82: EP NB38-1 | G82: 8.25 | I82: - | J82: 20 | K82: 122 | L82: B | P82: 0 | Q82: 599 | R82: 341.43
A83: 1016000108000 | B83: 8059971615760 | C83: PN MIT 9.00 -20 140B NB38 SET TT | D83: 90020NB38SETT14140B | E83: TRAVAUX PUBLICS | F83: EP NB38-1 | G83: 9 | I83: - | J83: 20 | K83: 140 | L83: B | P83: 0 | Q83: 697 | R83: 397.29
A84: 1016000109000 | B84: 8059971612837 | C84: PN MIT 10.00 -20 146B NB38 EXTRA SET | D84: 100020NB38ESETT16146 | E84: TRAVAUX PUBLICS | F84: EP NB38-1 | G84: 10 | I84: - | J84: 20 | K84: 146 | L84: B | P84: 0 | Q84: 828 | R84: 471.96
A85: 10520MPT04 | B85: 8059971618020 | C85: PN MIT 10.5 - 20 10PR MPT-04 | D85: 10520MPT0410PR | E85: TRAVAUX PUBLICS | F85: MIT MPT-04 | G85: 10.5 | I85: - | J85: 20 | K85: 131 | L85: D | P85: 0 | Q85: 554 | R85: 315.78
A86: 10520MPT05 | B86: 8059971616040 | C86: PN MIT 10.5 - 20 10PR MPT-05 | D86: 10520MPT0510PR | E86: TRAVAUX PUBLICS | F86: MIT MPT-05 | G86: 10.5 | I86: - | J86: 20 | K86: 128 | L86: G | P86: 0 | Q86: 500 | R86: 285
A87: 1058016COMPACTOR | B87: 8059971617085 | C87: PN MIT 10.5/80-16 6PMPACTOR | D87: 1058016COMPAC6PR | E87: TRAVAUX PUBLICS | F87: MIT COMPACTOR-1 | G87: 10.5 | H87: 80 | I87: - | J87: 16 | K87: 6PR | P87: 0 | Q87: 659 | R87: 375.63
A88: 110020COMPACTOR | B88: 8059971617078 | C88: PN MIT 11.00R20 157 A3 COMPACTOR TT | D88: 110020A3COMPACTT157 | E88: TRAVAUX PUBLICS | F88: MIT COMPACTOR-1 | G88: 11 | I88: R | J88: 20 | K88: 157 | L88: A3 | P88: 0 | Q88: 1430 | R88: 815.1
A89: 110020EM22 | B89: 8059971612790 | C89: PN MIT 11.00 -20 16PR EM-22 TT | D89: 110020EM22TT16PR | E89: TRAVAUX PUBLICS | F89: MIT EM-22 | G89: 11 | I89: - | J89: 20 | K89: 148 | L89: B | P89: 0 | Q89: 935 | R89: 532.95
A90: 12165SK02 | B90: 8059971616071 | C90: PN MIT 12 -16.5 140A3 SK-02 | D90: 12165SK0210140A3 | E90: TRAVAUX PUBLICS | F90: MIT SK-02 | G90: 12 | I90: - | J90: 16.5 | K90: 140 | L90: A3 | P90: 0 | Q90: 363 | R90: 206.91
A91: 12165SK0212PR | B91: 8059971613025 | C91: PN MIT 12 -16.5 144A3 SK 02 | D91: 12165SK0212144A3 | E91: TRAVAUX PUBLICS | F91: MIT SK-02 | G91: 12 | I91: - | J91: 16.5 | K91: 144 | L91: A3 | P91: 0 | Q91: 476 | R91: 271.32
A92: 12518MPT03 | B92: 8590341006998 | C92: PN MIT.C 12.5 - 18 12PR MPT-03 | D92: 12518MPT0312PR | E92: TRAVAUX PUBLICS | F92: MIT MPT-03 | G92: 12.5 | I92: - | J92: 18 | K92: 12PR | P92: 0 | Q92: 653 | R92: 372.21
A93: 12520MPT0316P | B93: 8059971617849 | C93: PN MIT 12.5 -20 16P MPT 03 | D93: 12520MPT0316 | E93: TRAVAUX PUBLICS | F93: MIT MPT-03 | G93: 12.5 | I93: - | J93: 20 | K93: 16PR | P93: 0 | Q93: 893 | R93: 509.01
A94: 12520MPT05 | B94: 8059971618785 | C94: PN MIT 12.5 - 20 12PR MPT-05 | D94: 12520MPT0512PR | E94: TRAVAUX PUBLICS | F94: MIT MPT-05 | G94: 12.5 | I94: - | J94: 20 | K94: 132 | L94: G | P94: 0 | Q94: 850 | R94: 484.5
A95: 130024TG02 | B95: 8059971614534 | C95: PN MIT 13.00 - 24 12PR TG-02 | D95: 130024TG0212PR | E95: TRAVAUX PUBLICS | F95: MIT TG-02 | G95: 13 | I95: - | J95: 24 | K95: 143 | L95: A8 | P95: 0 | Q95: 1173 | R95: 668.61
A96: 138020COMPACTOR | B96: 8059971614831 | C96: PN MIT 13/80R20 164 A3 COMPACTOR TT | D96: 138020A3COMPACTT164 | E96: TRAVAUX PUBLICS | F96: MIT COMPACTOR-1 | G96: 13 | H96: 80 | I96: R | J96: 20 | K96: 164 | L96: A3 | P96: 0 | Q96: 1233 | R96: 702.81
A97: 140024TG02 | B97: 8059971614527 | C97: PN MIT 14.00 - 24 16PR TG-02 | D97: 140024TG0216PR | E97: TRAVAUX PUBLICS | F97: MIT TG-02 | G97: 14 | I97: - | J97: 24 | K97: 153 | L97: A8 | P97: 0 | Q97: 1363 | R97: 776.91
A98: 14520MPT05 | B98: 8059971613131 | C98: PN MIT 14.5 - 20 12PR MPT-05 | D98: 14520MPT0512PR | E98: TRAVAUX PUBLICS | F98: MIT MPT-05 | G98: 14.5 | I98: - | J98: 20 | K98: 136 | L98: G | P98: 0 | Q98: 954 | R98: 543.78
A99: 14924UK5 | B99: 8059971614626 | C99: PN MIT 14.9 -24 128A8 UK 5 | D99: 14924UK5IN8128A8 | E99: TRAVAUX PUBLICS | F99: MIT UK55 | G99: 14.9 | I99: - | J99: 24 | K99: 128 | L99: A8 | P99: 0 | Q99: 1052 | R99: 599.64
A100: 15525EM20 | B100: 8590341006141 | C100: PN MIT.C 15.5 - 25 12PR EM-20 | D100: 15525EM2012PR | E100: PETIT GENIE CIVIL | F100: MIT EM-20 | G100: 15.5 | I100: - | J100: 25 | K100: 12PR | P100: 0 | Q100: 1492 | R100: 850.44
A101: 15525EM60 | B101: 8590341006080 | C101: PN MIT.C 15.5 - 25 12PR EM-60 | D101: 15525EM6012PR | E101: PETIT GENIE CIVIL | F101: MIT EM-60 | G101: 15.5 | I101: - | J101: 25 | K101: 12PR | P101: 0 | Q101: 1464 | R101: 834.48
A102: 15525EM8016PR | B102: 8590341066787 | C102: PN MIT.C 15.5 - 25 16PR EM-80 | D102: 15525EM8016PR | E102: PETIT GENIE CIVIL | F102: MIT EM-80 | G102: 15.5 | I102: - | J102: 25 | K102: 16PR | P102: 0 | Q102: 1723 | R102: 982.11
A103: 167020MPT02 | B103: 8059971615289 | C103: PN MIT 16/70 - 20 14PR MPT-02 | D103: 167020MPT0214PR | E103: TRAVAUX PUBLICS | F103: MIT MPT-02 | G103: 16 | H103: 70 | I103: - | J103: 20 | K103: 148 | L103: D | P103: 0 | Q103: 919 | R103: 523.83
A104: 16924UK10 | B104: 8059971618198 | C104: PN MIT 16.9 -24 129B UK-10 | D104: 16924UK10IN8129B | E104: TRAVAUX PUBLICS | F104: MIT UK-10 | G104: 16.9 | I104: - | J104: 24 | K104: 129 | L104: B | P104: 0 | Q104: 870 | R104: 495.9
A105: 17525EM20 | B105: 8590341006059 | C105: PN MIT.C 17.5 - 25 16PR EM-20 | D105: 17525EM2016PR | E105: PETIT GENIE CIVIL | F105: MIT EM-20 | G105: 17.5 | I105: - | J105: 25 | K105: 16PR | P105: 0 | Q105: 1861 | R105: 1060.77
A106: 17525EM2022PR | B106: 8590341005984 | C106: PN MIT.C 17.5 - 25 22PR EM-20 | D106: 17525EM2022PR | E106: PETIT GENIE CIVIL | F106: MIT EM-20 | G106: 17.5 | I106: - | J106: 25 | K106: 22PR | P106: 0 | Q106: 2124 | R106: 1210.68
A107: 17525EM30 | B107: 8590341006035 | C107: PN MIT.C 17.5 - 25 16PR EM-30 | D107: 17525EM3016PR | E107: PETIT GENIE CIVIL | F107: MIT EM-30 | G107: 17.5 | I107: - | J107: 25 | K107: 16PR | P107: 0 | Q107: 1861 | R107: 1060.77
A108: 17525EM60 | B108: 8590341006011 | C108: PN MIT.C 17.5 - 25 16PR EM-60 | D108: 17525EM6016PR | E108: PETIT GENIE CIVIL | F108: MIT EM-60 | G108: 17.5 | I108: - | J108: 25 | K108: 16PR | P108: 0 | Q108: 1861 | R108: 1060.77
A109: 17525EM6022PR | B109: 8590341036629 | C109: PN MIT.C 17.5 - 25 22PR EM-60 | D109: 17525EM6022PR | E109: PETIT GENIE CIVIL | F109: MIT EM-60 | G109: 17.5 | I109: - | J109: 25 | K109: 22PR | P109: 0 | Q109: 2124 | R109: 1210.68
A110: 180025NB38 | B110: 8590341005960 | C110: PN MIT.C 18.00 - 25 28PR NB38 / EM-20 | D110: 180025NB3828PR | E110: PETIT GENIE CIVIL | F110: MIT EM-20 | G110: 18 | I110: - | J110: 25 | K110: 28PR | P110: 0 | Q110: 2572 | R110: 1466.04
A111: 18195166A8MPT06 | B111: 8059971619485 | C111: PN MIT 18 - 19.5 166 A8 MPT-06 | D111: 18195A8MPT06166 | E111: TRAVAUX PUBLICS | F111: MIT MPT-06 | G111: 18 | I111: - | J111: 19.5 | K111: 166 | L111: A8 | P111: 0 | Q111: 1322 | R111: 753.54
A112: 1819516PRMPT06 | B112: 8590341003546 | C112: PN MIT.C 18 - 19.5 16PR MPT-06 | D112: 18195MPT0616PRMIT | E112: TRAVAUX PUBLICS | F112: MIT MPT-06 | G112: 18 | I112: - | J112: 19.5 | K112: 16PR | P112: 0 | Q112: 1231 | R112: 701.67
A113: 2000061037101 | B113: 8059971613049 | C113: PN MIT 23X8.50 -12 115A4 SK-02 | D113: 2385012SK02115A4 | E113: TRAVAUX PUBLICS | F113: EP SK-02 | G113: 8.5 | I113: - | J113: 12 | K113: 115 | L113: A4 | P113: 0 | Q113: 164 | R113: 93.48
A114: 2000061054101 | B114: 8059971618631 | C114: PN MIT 27X8.50 -15 111A4 SK-02 | D114: 2785015SK02111A4 | E114: TRAVAUX PUBLICS | F114: EP SK-02 | G114: 8.5 | I114: - | J114: 15 | K114: 111 | L114: A4 | P114: 0 | Q114: 209 | R114: 119.13
A115: 2000061056101 | B115: 8059971616026 | C115: PN MIT 27X10.50 - 15 8PR SK-02 | D115: 27105015SK02PR8 | E115: TRAVAUX PUBLICS | F115: EP SK-02 | G115: 10.5 | I115: - | J115: 15 | K115: 120 | L115: A2 | P115: 0 | Q115: 252 | R115: 143.64
A116: 2000061277101 | B116: 8059971615517 | C116: PN MIT 10.0/75 - 15.3 10PR SK-01 | D116: 10075153ASK01TL127 | E116: TRAVAUX PUBLICS | F116: EP SK-01 | G116: 10 | H116: 75 | I116: - | J116: 15.3 | K116: 127 | L116: A6 | P116: 0 | Q116: 327 | R116: 186.39
A117: 2024EM70 | B117: 8590341005878 | C117: PN MIT.C 20 - 24 158 B EM70 | D117: 2024BEM70158 | E117: PETIT GENIE CIVIL | F117: MIT EM-70 | G117: 20 | I117: - | J117: 24 | K117: 158 | L117: B | P117: 0 | Q117: 2256 | R117: 1285.92
A118: 20525EM20 | B118: 8590341005861 | C118: PN MIT.C 20.5 - 25 16PR EM-20 | D118: 20525EM2016PR | E118: PETIT GENIE CIVIL | F118: MIT EM-20 | G118: 20.5 | I118: - | J118: 25 | K118: 16PR | P118: 0 | Q118: 2376 | R118: 1354.32
A119: 20525EM30 | B119: 8590341005847 | C119: PN MIT.C 20.5 - 25 16PR EM-30 | D119: 20525EM3016PR | E119: PETIT GENIE CIVIL | F119: MIT EM-30 | G119: 20.5 | I119: - | J119: 25 | K119: 16PR | P119: 0 | Q119: 2448 | R119: 1395.36
A120: 20525EM60PR20 | B120: 8590341005809 | C120: PN MIT.C 20.5 - 25 170 B EM60 | D120: 20525BEM60170 | E120: PETIT GENIE CIVIL | F120: MIT EM-60 | G120: 20.5 | I120: - | J120: 25 | K120: 170 | L120: B | P120: 0 | Q120: 2519 | R120: 1435.83
A121: 21L24GRIPNRIDE | B121: 8059971619379 | C121: PN MIT 21L -24 155A8 GRIP N RID IND | D121: 2124GRIPNRIIN12155A8 | E121: TRAVAUX PUBLICS | F121: MIT GRIP-N-RIDE | G121: 21 | I121: - | J121: 24 | K121: 155 | L121: A8 | P121: 0 | Q121: 1648 | R121: 939.36
A122: 23126UK10 | B122: 8059971619270 | C122: PN MIT 23.1 - 26 162 A8 UK-10 | D122: 23126A8UK10162 | E122: TRAVAUX PUBLICS | F122: MIT UK-10 | G122: 23.1 | I122: - | J122: 26 | K122: 162 | L122: A8 | P122: 0 | Q122: 1961 | R122: 1117.77
A123: 23525EM2028PR | B123: 8590341005656 | C123: PN MIT 23.5 -25 199A2 EM-20 | D123: 23525EM2028199A2CD | E123: PETIT GENIE CIVIL | F123: MIT EM-20 | G123: 23.5 | I123: - | J123: 25 | K123: 199 | L123: A2 | P123: 0 | Q123: 4255 | R123: 2425.35
A124: 23525EM3028PR | B124: 8590341005649 | C124: PN MIT.C 23.5 - 25 28PR EM-30 | D124: 23525EM3028PR | E124: PETIT GENIE CIVIL | F124: MIT EM-30 | G124: 23.5 | I124: - | J124: 25 | K124: 28PR | P124: 0 | Q124: 3959 | R124: 2256.63
A125: 23525EM6028PR | B125: 8590341005632 | C125: PN MIT.C 23.5 - 25 28PR EM-60 | D125: 23525EM6028PRMIT | E125: PETIT GENIE CIVIL | F125: MIT EM-60 | G125: 23.5 | I125: - | J125: 25 | K125: 28PR | P125: 0 | Q125: 3959 | R125: 2256.63
A126: 25020820 | B126: 8590341018496 | C126: PN MIT 5.50 -12 10P ST TT | D126: 55012STTT10 | E126: PETIT GENIE CIVIL | F126: EP ST | G126: 5.5 | I126: - | J126: 12 | K126: 10PR | P126: 0 | Q126: 255 | R126: 145.35
A127: 26525EM3032PR | B127: 8590341005540 | C127: PN MIT.C 26.5 - 25 32PR EM-30 | D127: 26525EM3032PR | E127: PETIT GENIE CIVIL | F127: MIT EM-30 | G127: 26.5 | I127: - | J127: 25 | K127: 32PR | P127: 0 | Q127: 5133 | R127: 2925.81
A128: 26525EM6032PR | B128: 8590341005502 | C128: PN MIT.C 26.5 - 25 32PR EM-60 | D128: 26525EM6032PR | E128: GROS GENIE CIVIL | F128: MIT EM-60 | G128: 26.5 | I128: - | J128: 25 | K128: 32PR | P128: 0 | Q128: 5133 | R128: 2925.81
A129: 26529EM30 | B129: 8590341005458 | C129: PN MIT 26.5 -29 204A2/189B EM3-0 | D129: 26529EM3026COP | E129: PETIT GENIE CIVIL | F129: MIT NB57-1 | G129: 26.5 | I129: - | J129: 29 | K129: 204 | L129: A2 | P129: 0 | Q129: 7327 | R129: 4176.39
A130: 27105015SK02 | B130: 8059971616026 | C130: PN MIT 27X10.50 - 15 8PR SK-02 | D130: 27105015SK028PR | E130: TRAVAUX PUBLICS | F130: MIT SK-02 | G130: 10.5 | I130: - | J130: 15 | K130: 120 | L130: A2 | P130: 0 | Q130: 252 | R130: 143.64
A131: 27590225SRT2 | B131: 8059971614343 | C131: PN MIT 275/90R22.5 153G SRT2 | D131: 27590225SRT2153GCD | E131: TRAVAUX PUBLICS | F131: MIT SRT 2 | G131: 275 | H131: 90 | I131: R | J131: 22.5 | K131: 163 | L131: A5 | P131: 0 | Q131: 1220 | R131: 695.4
A132: 31580225EX01 | B132: 8059971613001 | C132: PN MIT 315/80R22.5 154A8 EX-01 | D132: 31580225EX01154A8CD | E132: TRAVAUX PUBLICS | F132: MIT EX-01 | G132: 315 | H132: 80 | I132: R | J132: 22.5 | K132: 154 | L132: A8 | P132: 0 | Q132: 1051 | R132: 599.07
A133: 3208018TR09 | B133: 8059971613971 | C133: PN MIT 320/80-18 12P TR09 ID | D133: 3208018TR09ID12 | E133: TRAVAUX PUBLICS | F133: MIT TR-09 | G133: 320 | H133: 80 | I133: - | J133: 18 | K133: 138/125 | L133: A8 | P133: 0 | Q133: 618 | R133: 352.26
A134: 3358018EM02 | B134: 8590341018687 | C134: PN MIT.C 335/80R18 139 B EM-02 | D134: 3358018BEM02139MIT | E134: PETIT GENIE CIVIL | F134: MIT EM-02 | G134: 335 | H134: 80 | I134: R | J134: 18 | K134: 139 | L134: B | P134: 0 | Q134: 957 | R134: 545.49
A135: 3358020EM01 | B135: 8590341018670 | C135: PN MIT.C 335/80R20 136 B EM-01 | D135: 3358020BEM01136 | E135: PETIT GENIE CIVIL | F135: MIT EM-01 | G135: 335 | H135: 80 | I135: R | J135: 20 | K135: 136 | L135: B | P135: 0 | Q135: 1028 | R135: 585.96
A136: 3657018EM01 | B136: 8590341018700 | C136: PN MIT 365/70R18 135 B EM-01 TL | D136: 3657018EM01 | E136: PETIT GENIE CIVIL | F136: MIT EM-01 | G136: 365 | H136: 70 | I136: R | J136: 18 | K136: 135 | L136: B | P136: 0 | Q136: 1087 | R136: 619.59
A137: 3658020EM01 | B137: 8590341018694 | C137: PN MIT.C 365/80R20 141 B EM-01 | D137: 3658020BEM01141 | E137: PETIT GENIE CIVIL | F137: MIT EM-01 | G137: 365 | H137: 80 | I137: R | J137: 20 | K137: 141 | L137: B | P137: 0 | Q137: 1028 | R137: 585.96
A138: 3859525CR01 | B138: 8590341071125 | C138: PN MIT 385/95R25 170 F CR-01 | D138: 3859525FCR01170MIT | E138: PETIT GENIE CIVIL | F138: MIT CR-01 | G138: 385 | H138: 95 | I138: R | J138: 25 | K138: 170 | L138: F | P138: 0 | Q138: 3555 | R138: =Q138*(1-$D$3) -> 2026.35
A139: 4006200300000 | B139: 8059971617078 | C139: PN MIT 11.00R20 157 A3 COMPACTOR TT | D139: 110020A3COMPETTEP157 | E139: TRAVAUX PUBLICS | F139: EP COMPACTOR-1 | G139: 11 | I139: R | J139: 20 | K139: 157 | L139: A3 | P139: 0 | Q139: 1430 | R139: 815.1
A140: 4006200320000 | B140: 8059971614831 | C140: PN MIT 13/80R20 164 A3 COMPACTOR TT | D140: 138020A3COMPACTTEP16 | E140: TRAVAUX PUBLICS | F140: EP COMPACTOR-1 | G140: 13 | H140: 80 | I140: R | J140: 20 | K140: 164 | L140: A3 | P140: 0 | Q140: 1233 | R140: 702.81
A141: 4006201000000 | B141: 8059971613070 | C141: PN MIT 405/70R18 141 B EM-01 TL | D141: 4057018BEM01TLEP141 | E141: TRAVAUX PUBLICS | F141: EP EM-01 | G141: 405 | H141: 70 | I141: R | J141: 18 | K141: 141 | L141: B | P141: 0 | Q141: 1166 | R141: 664.62
A142: 4006201020000 | B142: 8059971614367 | C142: PN MIT 405/70R18 156 B EM-01 | D142: 4057018BEM01156 | E142: TRAVAUX PUBLICS | F142: EP EM-01 | G142: 405 | H142: 70 | I142: R | J142: 18 | K142: 156 | L142: B | P142: 0 | Q142: 1215 | R142: 692.55
A143: 4006201200000 | B143: 8059971613186 | C143: PN MIT 365/70R18 135 B EM-01 TL | D143: 3657018BEM01TLEP135 | E143: PETIT GENIE CIVIL | F143: EP EM-01 | G143: 365 | H143: 70 | I143: R | J143: 18 | K143: 135 | L143: B | P143: 0 | Q143: 1087 | R143: 619.59
A144: 4006201280000 | B144: 8059971614893 | C144: PN MIT 365/80 - 20 141 B EM-01 TL | D144: 3658020BEM01TL141 | E144: PETIT GENIE CIVIL | F144: EP EM-01 | G144: 365 | H144: 80 | I144: R | J144: 20 | K144: 141 | L144: B | P144: 0 | Q144: 1028 | R144: 585.96
A145: 4006201380000 | B145: 8059971618884 | C145: PN MIT 335/80R18 139 B EM-02 | D145: 3358018BEM02139 | E145: PETIT GENIE CIVIL | F145: EP EM-02 | G145: 335 | H145: 80 | I145: R | J145: 18 | K145: 139 | L145: B | P145: 0 | Q145: 957 | R145: 545.49
A146: 4006201400000 | B146: 8059971615944 | C146: PN MIT 335/80 - 20 136 B EM-01 MIT T | D146: 3358020BEM01TT136 | E146: PETIT GENIE CIVIL | F146: EP EM-01 | G146: 335 | H146: 80 | I146: R | J146: 20 | K146: 136 | L146: B | P146: 0 | Q146: 1028 | R146: 585.96
A147: 4006201420000 | B147: 8059971615999 | C147: PN MIT 335/80R20 147 K MPT-20 TL | D147: 3358020KMPT20TLEP147 | E147: TRAVAUX PUBLICS | F147: EP MPT-20 | G147: 335 | H147: 80 | I147: R | J147: 20 | K147: 147 | L147: K | P147: 0 | Q147: 1288 | R147: 734.16
A148: 4006201460000 | B148: 8059971615593 | C148: PN MIT 405/70R20 143 B EM-01 | D148: 4057020BEM01143 | E148: TRAVAUX PUBLICS | F148: EP EM-01 | G148: 405 | H148: 70 | I148: R | J148: 20 | K148: 143 | L148: B | P148: 0 | Q148: 1300 | R148: 741
A149: 4006201500000 | B149: 8059971614374 | C149: PN MIT 12.5 - 18 PR12 MPT-04 TT | D149: 12518MPT04TTEPPR12 | E149: PETIT GENIE CIVIL | F149: EP EM-01 | G149: 405 | H149: 70 | I149: R | J149: 24 | K149: 146 | L149: B | P149: 0 | Q149: 1444 | R149: 823.08
A150: 4006202000000 | B150: 8059971615678 | C150: PN MIT 335/80R20 139 J MPT-21 TL | D150: 3358020JMPT21TLEP139 | E150: TRAVAUX PUBLICS | F150: EP MPT-21 | G150: 335 | H150: 80 | I150: R | J150: 20 | K150: 139 | L150: J | P150: 0 | Q150: 1226 | R150: 698.82
A151: 4006202100000 | B151: 8059971618587 | C151: PN MIT 365/80R20 152 J MPT-21 TL | D151: 3658020JMPT21TLEP152 | E151: TRAVAUX PUBLICS | F151: EP MPT-21 | G151: 365 | H151: 80 | I151: R | J151: 20 | K151: 152 | L151: J | P151: 0 | Q151: 1304 | R151: 743.28
A152: 4006202150000 | B152: 8059971613117 | C152: PN MIT 365/80R20 152 K MPT-20 TL | D152: 3658020KMPT20TLEP152 | E152: TRAVAUX PUBLICS | F152: EP MPT-20 | G152: 365 | H152: 80 | I152: R | J152: 20 | K152: 152 | L152: K | P152: 0 | Q152: 1439 | R152: 820.23
A153: 4006202250000 | B153: 8059971614879 | C153: PN MIT 405/70R20 152 J MPT-21 TL | D153: 4057020JMPT21TLEP152 | E153: TRAVAUX PUBLICS | F153: EP MPT-21 | G153: 405 | H153: 70 | I153: R | J153: 20 | K153: 152 | L153: J | P153: 0 | Q153: 1482 | R153: 844.74
A154: 4006202300000 | B154: 8059971613162 | C154: PN MIT 405/70R24 152 J MPT-21 TL | D154: 4057024JMPT21TLEP152 | E154: TRAVAUX PUBLICS | F154: EP MPT-21 | G154: 405 | H154: 70 | I154: R | J154: 24 | K154: 152 | L154: J | P154: 0 | Q154: 1726 | R154: 983.82
A155: 4006204090000 | B155: 8059971614343 | C155: PN MIT 275/90R22.5 153G SRT2 | D155: 27590225SRT2153G | E155: TRAVAUX PUBLICS | F155: EP SRT 2 | G155: 275 | H155: 90 | I155: R | J155: 22.5 | K155: 163 | L155: A5 | P155: 0 | Q155: 1220 | R155: 695.4
A156: 4006208420000 | B156: 8590341099822 | C156: PN MIT 500/70R24 164 A8 EM-01 | D156: 5007024A8EM01TL164 | E156: PETIT GENIE CIVIL | F156: EP EM-01 | G156: 500 | H156: 70 | I156: R | J156: 24 | K156: 164 | L156: A8 | P156: 0 | Q156: 1855 | R156: 1057.35
A157: 4006209310000 | B157: 8059971619454 | C157: PN MIT 385/95R25 170 F CR-01 | D157: 3859525FCR01170 | E157: PETIT GENIE CIVIL | F157: EP CR-01 | G157: 385 | H157: 95 | I157: R | J157: 25 | K157: 170 | L157: F | P157: 0 | Q157: 3555 | R157: 2026.35
A158: 4006209320000 | B158: 8590341044815 | C158: PN MIT 445/95R25 174 F CR-01 | D158: 4459525FCR01TL174 | E158: PETIT GENIE CIVIL | F158: EP CR-01 | G158: 445 | H158: 95 | I158: R | J158: 25 | K158: 174 | L158: F | P158: 0 | Q158: 3822 | R158: 2178.54
A159: 4006209330000 | B159: 8590341078438 | C159: PN MIT 525/80R25 176 F CR-01 | D159: 5258025ECR01179 | E159: PETIT GENIE CIVIL | F159: EP CR-01 | G159: 525 | H159: 80 | I159: R | J159: 25 | K159: 176 | L159: F | P159: 0 | Q159: 5643 | R159: 3216.51
A160: 4006209340000 | B160: 8059971619782 | C160: PN MIT 445/95R25 174 F CR-02 | D160: 4459525FCR02TL174 | E160: PETIT GENIE CIVIL | F160: EP CR-02 | G160: 445 | H160: 95 | I160: R | J160: 25 | K160: 174 | L160: F | P160: 0 | Q160: 3822 | R160: 2178.54
A161: 4006209620000 | B161: 8059971613001 | C161: PN MIT 315/80R22.5 154A8 EX-01 | D161: 31580225EX01154A8 | E161: TRAVAUX PUBLICS | F161: EP EX-01 | G161: 315 | H161: 80 | I161: R | J161: 22.5 | K161: 154 | L161: A8 | P161: 0 | Q161: 1051 | R161: 599.07
A162: 4007020MPT04 | B162: 8059971619089 | C162: PN MIT 400/70-20 14P MPT 04 ID | D162: 4007020MPT04ID14148D | E162: TRAVAUX PUBLICS | F162: MIT MPT-04 | G162: 400 | H162: 70 | I162: - | J162: 20 | K162: 148 | L162: D | P162: 0 | Q162: 984 | R162: 560.88
A163: 4007024INDMPT04 | B163: 8059971615067 | C163: PN MIT 400/70-24 156B MPT 04 IND | D163: 4007024MPT04IN156BCD | E163: TRAVAUX PUBLICS | F163: MIT MPT-04 | G163: 400 | H163: 70 | I163: - | J163: 24 | K163: 156 | L163: B | P163: 0 | Q163: 1148 | R163: 654.36
A164: 4007024MPT04 | B164: 8059971614046 | C164: PN MIT 400/70-24 151D IND MPT-04 | D164: 4007024MPT04151D | E164: TRAVAUX PUBLICS | F164: MIT MPT-04 | G164: 400 | H164: 70 | I164: - | J164: 24 | K164: 151 | L164: D | P164: 0 | Q164: 1086 | R164: 619.02
A165: 4007520TR09 | B165: 8059971619836 | C165: PN MIT 400/75-20 14P IND TR09 | D165: 4007520TR0914 | E165: TRAVAUX PUBLICS | F165: MIT TR-09 | G165: 400 | H165: 75 | I165: - | J165: 20 | K165: 150/138 | L165: A8 | P165: 0 | Q165: 1032 | R165: 588.24
A166: 4057018156BEM01 | B166: 8590341018717 | C166: PN MIT.C 405/70R18 156 B EM-01 | D166: 4057018BEM01156MIT | E166: PETIT GENIE CIVIL | F166: MIT EM-01 | G166: 405 | H166: 70 | I166: R | J166: 18 | K166: 156 | L166: B | P166: 0 | Q166: 1215 | R166: 692.55
A167: 4057018EM01 | B167: 3760079296618 | C167: PN MIT.C 405/70R18 141 B EM-01 | D167: 4057018BEM01141MIT | E167: TRAVAUX PUBLICS | F167: MIT EM-01 | G167: 405 | H167: 70 | I167: R | J167: 18 | K167: 141 | L167: B | P167: 0 | Q167: 1166 | R167: 664.62
A168: 4057020EM01 | B168: 8590341018649 | C168: PN MIT.C 405/70R20 143 B EM-01 | D168: 4057020BEM01143MIT | E168: TRAVAUX PUBLICS | F168: MIT EM-01 | G168: 405 | H168: 70 | I168: R | J168: 20 | K168: 143 | L168: B | P168: 0 | Q168: 1300 | R168: 741
A169: 4057020MPT03 | B169: 8590341006455 | C169: PN MIT.C 405/70 - 20 14PR MPT-03 | D169: 4057020MPT0314PR | E169: TRAVAUX PUBLICS | F169: MIT MPT-03 | G169: 405 | H169: 70 | I169: - | J169: 20 | K169: 14PR | P169: 0 | Q169: 895 | R169: 510.15
A170: 4057024EM01 | B170: 8590341018632 | C170: PN MIT.C 405/70R24 146 B EM-01 | D170: 4057024BEM01146 | E170: PETIT GENIE CIVIL | F170: MIT EM-01 | G170: 405 | H170: 70 | I170: R | J170: 24 | K170: 146 | L170: B | P170: 0 | Q170: 1444 | R170: 823.08
A171: 4407024EM02 | B171: 8590341003218 | C171: PN MIT.C 440/70R24 147 B EM-02 | D171: 4407024BEM02147 | E171: PETIT GENIE CIVIL | F171: MIT EM-02 | G171: 440 | H171: 70 | I171: R | J171: 24 | K171: 147 | L171: B | P171: 0 | Q171: 1381 | R171: 787.17
A172: 4459525CR01 | B172: 8590341044815 | C172: PN MIT 445/95R25 174 F CR-01 | D172: 4459525FCR01174 | E172: PETIT GENIE CIVIL | F172: MIT CR-01 | G172: 445 | H172: 95 | I172: R | J172: 25 | K172: 174 | L172: F | P172: 0 | Q172: 3822 | R172: 2178.54
A173: 4459525CR02 | B173: 8590341095299 | C173: PN MIT 445/95R25 174 F CR-02 | D173: 4459525FCR02174 | E173: PETIT GENIE CIVIL | F173: MIT CR-02 | G173: 445 | H173: 95 | I173: R | J173: 25 | K173: 174 | L173: F | P173: 0 | Q173: 3822 | R173: 2178.54
A174: 48065225MPT06 | B174: 8059971618709 | C174: PN MIT 480/65-22.5 16P IND MPT-06 | D174: 48065225MPT0616 | E174: TRAVAUX PUBLICS | F174: MIT MPT-06 | G174: 480 | H174: 65 | I174: - | J174: 22.5 | K174: 163 | L174: A8 | P174: 0 | Q174: 1466 | R174: 835.62
A175: 5001510488000 | B175: 8059971614626 | C175: PN MIT 14.9 -24 128A8 UK 5 | D175: 14924UK5128A8 | E175: TRAVAUX PUBLICS | F175: EP UK55 | G175: 14.9 | I175: - | J175: 24 | K175: 128 | L175: A8 | P175: 0 | Q175: 1052 | R175: 599.64
A176: 5001510710000 | B176: 8059971614800 | C176: PN MIT 10 -16.5 131A3 BIG BOY | D176: 10165BIGBOY131A3 | E176: TRAVAUX PUBLICS | F176: EP BIG BOY | G176: 10 | I176: - | J176: 16.5 | K176: 131 | L176: A3 | P176: 0 | Q176: 355 | R176: 202.35
A177: 5001510790000 | B177: 8059971613285 | C177: PN MIT 16.9 -24 149A8 TI-04 S1 | D177: 16924TI04S1149A8 | E177: TRAVAUX PUBLICS | F177: EP TI-04 | G177: 16.9 | I177: - | J177: 24 | K177: 149 | L177: A8 | P177: 0 | Q177: 965 | R177: 550.05
A178: 5001510810000 | B178: 8059971618365 | C178: PN MIT 12 -16.5 144A3 BIG BOY | D178: 12165BIGBOY144A3 | E178: TRAVAUX PUBLICS | F178: EP BIG BOY | G178: 12 | I178: - | J178: 16.5 | K178: 144 | L178: A3 | P178: 0 | Q178: 497 | R178: 283.29
A179: 5001510900000 | B179: 8059971614923 | C179: PN MIT 10.5/80-18 115A8 BIG BOY | D179: 1058018BIGBOY115A8 | E179: TRAVAUX PUBLICS | F179: EP BIG BOY | G179: 10.5 | H179: 80 | I179: - | J179: 18 | K179: 115 | L179: A8 | P179: 0 | Q179: 457 | R179: 260.49
A180: 5001510940000 | B180: 8059971618761 | C180: PN MIT 12.5/80-18 128A8 BIG BOY | D180: 1258018BIGBOY128A8 | E180: TRAVAUX PUBLICS | F180: EP BIG BOY | G180: 12.5 | H180: 80 | I180: - | J180: 18 | K180: 128 | L180: A8 | P180: 0 | Q180: 592 | R180: 337.44
A181: 5001510992000 | B181: 8059971617979 | C181: PN MIT 18.4 -26 156A8 TI-06 S1 | D181: 18426TI06S1156A8 | E181: TRAVAUX PUBLICS | F181: EP TI-06 | G181: 18.4 | I181: - | J181: 26 | K181: 156 | L181: A8 | P181: 0 | Q181: 1245 | R181: 709.65
A182: 5001511535000 | B182: 8059971615128 | C182: PN MIT 16.9 -28 151A6 TG-01 | D182: 16928TG01151A6 | E182: TRAVAUX PUBLICS | F182: EP TG-01 | G182: 16.9 | I182: - | J182: 28 | K182: 151 | L182: A6 | P182: 0 | Q182: 961 | R182: 547.77
A183: 5001511720000 | B183: 8059971616453 | C183: PN MIT 19.5 -24 151A8 GRIP-N-RIDE | D183: 19524GRIPNRIDE151A8 | E183: TRAVAUX PUBLICS | F183: EP GRIP-N-RIDE | G183: 19.5 | I183: - | J183: 24 | K183: 151 | L183: A8 | P183: 0 | Q183: 1320 | R183: 752.4
A184: 5001514320000 | B184: 8059971616668 | C184: PN MIT 16.9 -24 149A6 TG-01 | D184: 16924TG01149A6 | E184: TRAVAUX PUBLICS | F184: EP TG-01 | G184: 16.9 | I184: - | J184: 24 | K184: 149 | L184: A6 | P184: 0 | Q184: 922 | R184: 525.54
A185: 5001514560000 | B185: 8059971618198 | C185: PN MIT 16.9 -24 129B UK-10 | D185: 16924UK10129B | E185: TRAVAUX PUBLICS | F185: EP UK-10 | G185: 16.9 | I185: - | J185: 24 | K185: 129 | L185: B | P185: 0 | Q185: 870 | R185: 495.9
A186: 5001514690000 | B186: 8059971616071 | C186: PN MIT 12 -16.5 140A3 SK-02 | D186: 12165SK02140A3 | E186: TRAVAUX PUBLICS | F186: EP SK-02 | G186: 12 | I186: - | J186: 16.5 | K186: 140 | L186: A3 | P186: 0 | Q186: 363 | R186: 206.91
A187: 5001514700000 | B187: 8059971618907 | C187: PN MIT 10 -16.5 135A3 SK 02 | D187: 10165SK02135A3 | E187: TRAVAUX PUBLICS | F187: EP SK-02 | G187: 10 | I187: - | J187: 16.5 | K187: 135 | L187: A3 | P187: 0 | Q187: 305 | R187: 173.85
A188: 5001514710000 | B188: 8059971613025 | C188: PN MIT 12 -16.5 144A3 SK 02 | D188: 12165SK02144A3 | E188: TRAVAUX PUBLICS | F188: EP SK-02 | G188: 12 | I188: - | J188: 16.5 | K188: 144 | L188: A3 | P188: 0 | Q188: 476 | R188: 271.32
A189: 5001514740000 | B189: 8059971619584 | C189: PN MIT 18 -19.5 160A8 MPT-08 | D189: 18195MPT08160A8 | E189: TRAVAUX PUBLICS | F189: EP MPT-08 | G189: 18 | I189: - | J189: 19.5 | K189: 160 | L189: A8 | P189: 0 | Q189: 1372 | R189: 782.04
A190: 5001514750000 | B190: 8059971614220 | C190: PN MIT 10 -16.5 135A3 SK-05 | D190: 10165SK05135A3 | E190: TRAVAUX PUBLICS | F190: EP SK-05 | G190: 10 | I190: - | J190: 16.5 | K190: 135 | L190: A3 | P190: 0 | Q190: 436 | R190: 248.52
A191: 5001514760000 | B191: 8059971615906 | C191: PN MIT 12 -16.5 144A3 SK-05 | D191: 12165SK05144A3 | E191: TRAVAUX PUBLICS | F191: EP SK-05 | G191: 12 | I191: - | J191: 16.5 | K191: 144 | L191: A3 | P191: 0 | Q191: 525 | R191: 299.25
A192: 5001514830000 | B192: 8059971619270 | C192: PN MIT 23.1 - 26 162 A8 UK-10 | D192: 23126A8UK10TL162 | E192: TRAVAUX PUBLICS | F192: EP UK-10 | G192: 23.1 | I192: - | J192: 26 | K192: 162 | L192: A8 | P192: 0 | Q192: 1961 | R192: 1117.77
A193: 5001514840000 | B193: 8059971616125 | C193: PN MIT 23.1 -26 158A8 UK 5 | D193: 23126UK5158A8 | E193: TRAVAUX PUBLICS | F193: EP UK55 | G193: 23.1 | I193: - | J193: 26 | K193: 158 | L193: A8 | P193: 0 | Q193: 2234 | R193: 1273.38
A194: 5004520TI12 | B194: 8059971613926 | C194: PN MIT 500/45-20 160A8 TI-12 | D194: 5004520TI12160A8CD | E194: TRAVAUX PUBLICS | F194: MIT TI-12 | G194: 500 | H194: 45 | I194: - | J194: 20 | K194: 160 | L194: A8 | P194: 0 | Q194: 1256 | R194: 715.92
A195: 50060225TI12 | B195: 8059971619591 | C195: PN MIT 500/60-22.5 152A8 TI-12 | D195: 50060225TI12152A8CD | E195: TRAVAUX PUBLICS | F195: MIT TI-12 | G195: 500 | H195: 60 | I195: - | J195: 22.5 | K195: 152 | L195: A8 | P195: 0 | Q195: 1325 | R195: 755.25
A196: 5007024EM01 | B196: 8590341099822 | C196: PN MIT 500/70R24 164 A8 EM-01 | D196: 5007024A8EM01164 | E196: PETIT GENIE CIVIL | F196: MIT EM-01 | G196: 500 | H196: 70 | I196: R | J196: 24 | K196: 164 | L196: A8 | P196: 0 | Q196: 1855 | R196: 1057.35
A197: 5258025CR01 | B197: 8590341078438 | C197: PN MIT 525/80R25 176 F CR-01 | D197: 5258025FCR01176 | E197: PETIT GENIE CIVIL | F197: MIT CR-01 | G197: 525 | H197: 80 | I197: R | J197: 25 | K197: 176 | L197: F | P197: 0 | Q197: 5643 | R197: 3216.51
A198: 55012ST | B198: 8590341018496 | C198: PN MIT 5.50 - 12 10PR ST TT | D198: 55012STTT10PR | E198: PETIT GENIE CIVIL | F198: MIT ST | G198: 5.5 | I198: - | J198: 12 | K198: 93 | L198: A6 | P198: 0 | Q198: 255 | R198: 145.35
A199: 90020NB38EXTRA | B199: 8059971619409 | C199: PN MIT 9.00 - 20 14PR NB38 EXTRA TT | D199: 90020NB38ETT14PR | E199: TRAVAUX PUBLICS | F199: MIT NB38-1 | G199: 9 | I199: - | J199: 20 | K199: 140 | L199: B | P199: 0 | Q199: 720 | R199: 410.4
A200: PB201380COMP | C200: PN MIT.S 13/80 - 20 164 A3 COMPACTOR | D200: 138020A3COMPAC164 | E200: PETIT GENIE CIVIL | F200: MW COMPACTOR EXTRA | G200: 13 | H200: 80 | I200: R | J200: 20 | K200: 164 | L200: A3 | P200: 0 | Q200: 1405 | R200: 800.85

Sheet TRELLEBORG
D2: Remise
D3: =Remises!$J$12 -> 0.4
A5: Actualisation au 04/04/2024
A7: REFERENCES PNEUMATIQUES | Q7: TARIFS
A8: CAI | B8: EAN | C8: Désignation | D8: Appellation | E8: Catégorie | F8: Profil | G8: Largeur | H8: Hauteur | I8: Structure | J8: Diamètre | K8: IC | L8: IV | M8: Conso. | N8: Frein. | O8: Bruit. | P8: Décibels. | Q8: Prix BF | R8: Prix Remisé
A9: 1014600140000 | B9: 8059971584059 | C9: PN TRE 400/80-24 162A8 MPX | D9: 4008024MPX162A8 | E9: TRAVAUX PUBLICS | F9: TR MPX | G9: 400 | H9: 80 | I9: - | J9: 24 | K9: 162 | L9: A8 | P9: 0 | Q9: 1201 | R9: =Q9*(1-$D$3) -> 720.6
A10: 1014600150000 | B10: 8059971584066 | C10: PN TRE 460/70-24 159A8 MPX TB | D10: 4607024MPXTB159A8 | E10: TRAVAUX PUBLICS | F10: TR MPX TB | G10: 460 | H10: 70 | I10: - | J10: 24 | K10: 159 | L10: A8 | P10: 0 | Q10: 1217 | R10: =Q10*(1-$D$3) -> 730.2
A11: 1014600160000 | B11: 8059971584073 | C11: PN TRE 500/70-24 164A8 MPX TB | D11: 5007024MPXTB164A8 | E11: TRAVAUX PUBLICS | F11: TR MPX TB | G11: 500 | H11: 70 | I11: - | J11: 24 | K11: 164 | L11: A8 | P11: 0 | Q11: 1544 | R11: 926.4
A12: 1014600200000 | B12: 8059971583977 | C12: PN TRE 400/70-20 155A8/B MPX TB | D12: 4007020MPXTB155A8 | E12: TRAVAUX PUBLICS | F12: TR MPX TB | G12: 400 | H12: 70 | I12: - | J12: 20 | K12: 155 | L12: A8 | P12: 0 | Q12: 932 | R12: 559.2
A13: 1014600210000 | B13: 8059971583984 | C13: PN TRE 400/70-24 158A8/B MPX TB | D13: 4007024MPXTB158A8 | E13: TRAVAUX PUBLICS | F13: TR MPX TB | G13: 400 | H13: 70 | I13: - | J13: 24 | K13: 158 | L13: A8 | P13: 0 | Q13: 1073 | R13: 643.8
A14: 20005990 | B14: 8059971570885 | C14: PPS BRW 31X10-20/7.5 BRW HPS SS SM RE | D14: 31102075HPSSSSMRE | E14: TRAVAUX PUBLICS | F14: TR SMOOTH | G14: 10 | I14: - | J14: 20 | P14: 0 | Q14: 933 | R14: 559.8
A15: 4007110100000 | B15: 8059971597202 | C15: PN TRE 480/95R25 206A7 SR940 | D15: 4809525SR940206A7 | E15: GROS GENIE CIVIL | F15: TR SR940 | G15: 480 | H15: 95 | I15: R | J15: 25 | K15: 206 | L15: A7 | P15: 0 | Q15: 4703 | R15: 2821.8
A16: 4007112010000 | B16: 8059971597219 | C16: PN TRE 14.00 R24 153A8 EMR 1020 | D16: 140024EMR1020153A8 | E16: PETIT GENIE CIVIL | F16: TR EMR 1020 | G16: 14 | I16: R | J16: 24 | K16: 153 | L16: A8 | P16: 0 | Q16: 2432 | R16: 1459.2
A17: 4007112020000 | B17: 8059971597226 | C17: PN TRE 14.00 R24 153A8 EMR 1025 | D17: 140024EMR1025153A8 | E17: PETIT GENIE CIVIL | F17: TR EMR 1025 | G17: 14 | I17: R | J17: 24 | K17: 153 | L17: A8 | P17: 0 | Q17: 2919 | R17: 1751.4
A18: 4007112030000 | B18: 8059971597233 | C18: PN TRE 17.5 R25 176A2157B EMR 1020 | D18: 17525EMR1020176A2 | E18: PETIT GENIE CIVIL | F18: TR EMR 1020 | G18: 17.5 | I18: R | J18: 25 | K18: 176 | L18: A2 | P18: 0 | Q18: 2539 | R18: 1523.4
A19: 4007112040000 | B19: 8059971597240 | C19: PN TRE 17.5 R25 176A2157B EMR 1030 | D19: 17525EMR1030176A2 | E19: PETIT GENIE CIVIL | F19: TR EMR 1030 | G19: 17.5 | I19: R | J19: 25 | K19: 176 | L19: A2 | P19: 0 | Q19: 2662 | R19: 1597.2
A20: 4007112050000 | B20: 8059971597257 | C20: PN TRE 17.5 R25 176A2/153A8 EMR 1025 | D20: 17525EMR1025176A2 | E20: PETIT GENIE CIVIL | F20: TR EMR 1025 | G20: 17.5 | I20: R | J20: 25 | K20: 176 | L20: A2 | P20: 0 | Q20: 3049 | R20: 1829.4
A21: 4007112060000 | B21: 8059971597264 | C21: PN TRE 18.00 R33 191B EMR 1045 | D21: 180033EMR1045191B | E21: GROS GENIE CIVIL | F21: TR EMR 1045 | G21: 18 | I21: R | J21: 33 | K21: 191 | L21: B | P21: 0 | Q21: 7670 | R21: 4602
A22: 4007112070000 | B22: 8059971597271 | C22: PN TRE 750/65 R25 209A2/190B EMR 1030 | D22: 7506525EMR1030209A2 | E22: PETIT GENIE CIVIL | F22: TR EMR 1030 | G22: 750 | H22: 65 | I22: R | J22: 25 | K22: 209 | L22: A2 | P22: 0 | Q22: 6564 | R22: 3938.4
A23: 4007112080000 | B23: 8059971597288 | C23: PN TRE 20.5 R25 186A2/161A8 EMR 1025 | D23: 20525EMR1025186A2 | E23: PETIT GENIE CIVIL | F23: TR EMR 1025 | G23: 20.5 | I23: R | J23: 25 | K23: 186 | L23: A2 | P23: 0 | Q23: 4166 | R23: 2499.6
A24: 4007112090000 | B24: 8059971597295 | C24: PN TRE 20.5 R25 193A2/177B EMR 1020 | D24: 20525EMR1020193A2 | E24: PETIT GENIE CIVIL | F24: TR EMR 1020 | G24: 20.5 | I24: R | J24: 25 | K24: 193 | L24: A2 | P24: 0 | Q24: 3382 | R24: 2029.2
A25: 4007112100000 | B25: 8059971597301 | C25: PN TRE 20.5 R25 193A2/177B EMR 1030 | D25: 20525EMR1030193A2 | E25: PETIT GENIE CIVIL | F25: TR EMR 1030 | G25: 20.5 | I25: R | J25: 25 | K25: 193 | L25: A2 | P25: 0 | Q25: 3746 | R25: 2247.6
A26: 4007112110000 | B26: 8059971597318 | C26: PN TRE 20.5 R25 193A2 EMR 1030V | D26: 20525EMR1030V193A2 | E26: PETIT GENIE CIVIL | F26: TR EMR 1030V | G26: 20.5 | I26: R | J26: 25 | K26: 193 | L26: A2 | P26: 0 | Q26: 3685 | R26: 2211
A27: 4007112120000 | B27: 8059971597325 | C27: PN TRE 20.5 R25 193A2 EMR 1051 | D27: 20525EMR1051193A2 | E27: PETIT GENIE CIVIL | F27: TR EMR 1051 | G27: 20.5 | I27: R | J27: 25 | K27: 193 | L27: A2 | P27: 0 | Q27: 5732 | R27: 3439.2
A28: 4007112130000 | B28: 8059971597332 | C28: PN TRE 20.5 R25 193A2 EMR 1050 | D28: 20525EMR1050193A2 | E28: PETIT GENIE CIVIL | F28: TR EMR 1050 | G28: 20.5 | I28: R | J28: 25 | K28: 193 | L28: A2 | P28: 0 | Q28: 6366 | R28: 3819.6
A29: 4007112140000 | B29: 8059971597349 | C29: PN TRE 23.5 R25 195A2/170A8 EMR 1025 | D29: 23525EMR1025195A2 | E29: PETIT GENIE CIVIL | F29: TR EMR 1025 | G29: 23.5 | I29: R | J29: 25 | K29: 195 | L29: A2 | P29: 0 | Q29: 5628 | R29: 3376.8
A30: 4007112150000 | B30: 8059971597356 | C30: PN TRE 23.5 R25 201A2/185B EMR 1020 | D30: 23525EMR1020201A2 | E30: PETIT GENIE CIVIL | F30: TR EMR 1020 | G30: 23.5 | I30: R | J30: 25 | K30: 201 | L30: A2 | P30: 0 | Q30: 5014 | R30: 3008.4
A31: 4007112160000 | B31: 8059971597103 | C31: PN TRE 23.5 R25 201A2/185B EMR 1030 | D31: 23525EMR1030201A2 | E31: PETIT GENIE CIVIL | F31: TR EMR 1030 | G31: 23.5 | I31: R | J31: 25 | K31: 201 | L31: A2 | P31: 0 | Q31: 5360 | R31: 3216
A32: 4007112170000 | B32: 8059971597363 | C32: PN TRE 23.5 R25 185B/201A2 EMR1042 | D32: 23525EMR1042185B | E32: PETIT GENIE CIVIL | F32: TR EMR 1042 | G32: 23.5 | I32: R | J32: 25 | K32: 201 | L32: A2 | P32: 0 | Q32: 6179 | R32: 3707.4
A33: 4007112180000 | B33: 8059971597370 | C33: PN TRE 23.5 R25 201A2/185B EMR 1040 | D33: 23525EMR1040201A2 | E33: PETIT GENIE CIVIL | F33: TR EMR 1040 | G33: 23.5 | I33: R | J33: 25 | K33: 201 | L33: A2 | P33: 0 | Q33: 6718 | R33: 4030.8
A34: 4007112190000 | B34: 8059971597387 | C34: PN TRE 23.5 R25 201A2 EMR 1051 | D34: 23525EMR1051201A2 | E34: PETIT GENIE CIVIL | F34: TR EMR 1051 | G34: 23.5 | I34: R | J34: 25 | K34: 201 | L34: A2 | P34: 0 | Q34: 7439 | R34: 4463.4
A35: 4007112200000 | B35: 8059971597394 | C35: PN TRE 23.5 R25 201A2 EMR 1050 | D35: 23525EMR1050201A2 | E35: PETIT GENIE CIVIL | F35: TR EMR 1050 | G35: 23.5 | I35: R | J35: 25 | K35: 201 | L35: A2 | P35: 0 | Q35: 8087 | R35: 4852.2
A36: 4007112210000 | B36: 8059971597400 | C36: PN TRE 26.5 R25 209A2/193B EMR 1030 | D36: 26525EMR1030209A2 | E36: PETIT GENIE CIVIL | F36: TR EMR 1030 | G36: 26.5 | I36: R | J36: 25 | K36: 209 | L36: A2 | P36: 0 | Q36: 6621 | R36: 3972.6
A37: 4007112220000 | B37: 8059971598032 | C37: PN TRE 26.5 R25 193B/209A2 EMR1042 | D37: 26525EMR1042193B | E37: PETIT GENIE CIVIL | F37: TR EMR 1042 | G37: 26.5 | I37: R | J37: 25 | K37: 209 | L37: A2 | P37: 0 | Q37: 7386 | R37: 4431.6
A38: 4007112230000 | B38: 8059971597417 | C38: PN TRE 26.5 R25 209A2/193B EMR 1040 | D38: 26525EMR1040209A2 | E38: PETIT GENIE CIVIL | F38: TR EMR 1040 | G38: 26.5 | I38: R | J38: 25 | K38: 209 | L38: A2 | P38: 0 | Q38: 8029 | R38: 4817.4
A39: 4007112240000 | B39: 8059971597998 | C39: PN TRE 26.5 R25 209A2 EMR 1051 | D39: 26525EMR1051209A2 | E39: PETIT GENIE CIVIL | F39: TR EMR 1051 | G39: 26.5 | I39: R | J39: 25 | K39: 209 | L39: A2 | P39: 0 | Q39: 9296 | R39: 5577.6
A40: 4007112250000 | B40: 8059971597424 | C40: PN TRE 26.5 R25 209A2 EMR 1050 | D40: 26525EMR1050209A2 | E40: PETIT GENIE CIVIL | F40: TR EMR 1050 | G40: 26.5 | I40: R | J40: 25 | K40: 209 | L40: A2 | P40: 0 | Q40: 10330 | R40: 6198
A41: 4007112260000 | B41: 8059971597431 | C41: PN TRE 29.5 R25 216A2/200B EMR 1030 | D41: 29525EMR1030216A2 | E41: PETIT GENIE CIVIL | F41: TR EMR 1030 | G41: 29.5 | I41: R | J41: 25 | K41: 216 | L41: A2 | P41: 0 | Q41: 9296 | R41: 5577.6
A42: 4007112270000 | B42: 8059971597448 | C42: PN TRE 29.5 R25 216A2/200B EMR 1040 | D42: 29525EMR1040216A2 | E42: PETIT GENIE CIVIL | F42: TR EMR 1040 | G42: 29.5 | I42: R | J42: 25 | K42: 216 | L42: A2 | P42: 0 | Q42: 11154 | R42: 6692.4
A43: 4007112280000 | B43: 8059971597455 | C43: PN TRE 29.5 R25 200B/216A2 EMR1042 | D43: 29525EMR1042200B | E43: PETIT GENIE CIVIL | F43: TR EMR 1042 | G43: 29.5 | I43: R | J43: 25 | K43: 216 | L43: A2 | P43: 0 | Q43: 10297 | R43: 6178.2
A44: 4007112290000 | B44: 8059971598049 | C44: PN TRE 29.5 R25 216A2 EMR1051 | D44: 29525EMR1051216A2 | E44: PETIT GENIE CIVIL | F44: TR EMR 1051 | G44: 29.5 | I44: R | J44: 25 | K44: 216 | L44: A2 | P44: 0 | Q44: 12588 | R44: 7552.8
A45: 4007112300000 | B45: 8059971597462 | C45: PN TRE 29.5 R25 216A2 EMR 1050 | D45: 29525EMR1050216A2 | E45: PETIT GENIE CIVIL | F45: TR EMR 1050 | G45: 29.5 | I45: R | J45: 25 | K45: 216 | L45: A2 | P45: 0 | Q45: 13987 | R45: 8392.2
A46: 4007112310000 | B46: 8059971598872 | C46: PN TRE 17.5 R25 176A2/157B EMR1031 | D46: 17525EMR1031176A2 | E46: PETIT GENIE CIVIL | F46: TR EMR1031 | G46: 17.5 | I46: R | J46: 25 | K46: 176 | L46: A2 | P46: 0 | Q46: 2741 | R46: 1644.6
A47: 4007112320000 | B47: 8059971598896 | C47: PN TRE 20.5 R25 193A2 EMR1031 | D47: 20525EMR1031193A2 | E47: GROS GENIE CIVIL | F47: TR EMR1031 | G47: 20.5 | I47: R | J47: 25 | K47: 193 | L47: A2 | P47: 0 | Q47: 3859 | R47: 2315.4
A48: 4007112330000 | B48: 8059971598919 | C48: PN TRE 23.5 R25 201A2/185B EMR1031 | D48: 23525EMR1031201A2 | E48: GROS GENIE CIVIL | F48: TR EMR1031 | G48: 23.5 | I48: R | J48: 25 | K48: 201 | L48: A2 | P48: 0 | Q48: 5521 | R48: 3312.6
A49: P180171245420 | B49: 8059971501216 | C49: PN TRE 12.5/80 - 18 12PR C-800 TL | D49: 1258018C80012R | E49: TRAVAUX PUBLICS | F49: TR C-800 | G49: 12.5 | H49: 80 | I49: - | J49: 18 | K49: 12PR | P49: 0 | Q49: 427 | R49: 256.2
A50: P200071473421 | B50: 8059971589467 | C50: PN TRE 9.00 -20 14P C800 | D50: 90020C800142 | E50: PETIT GENIE CIVIL | F50: TR C-800 | G50: 9 | I50: - | J50: 20 | K50: 14PR | P50: 0 | Q50: 449 | R50: 269.4
A51: P200081673421 | B51: 8059971589443 | C51: PN TRE 10.00 -20 16P C800 | D51: 100020C80016 | E51: PETIT GENIE CIVIL | F51: TR C-800 | G51: 10 | I51: - | J51: 20 | K51: 16PR | P51: 0 | Q51: 478 | R51: 286.8
A52: P240251273420 | B52: 8059971503135 | C52: PN TRE 16.9 - 24 12PR C-800 TL | D52: 16924C80012R | E52: TRAVAUX PUBLICS | F52: TR C-800 | G52: 16.9 | I52: - | J52: 24 | K52: 12PR | P52: 0 | Q52: 836 | R52: 501.6
A53: P240501622420 | B53: 8059971550252 | C53: PN TRE 15.5/80-24 16P C800 TRAC R1 | D53: 1558024C800R116 | E53: TRAVAUX PUBLICS | F53: TR C-800 | G53: 15.5 | H53: 80 | I53: - | J53: 24 | K53: 16PR | P53: 0 | Q53: 676 | R53: 405.6
A54: P260311273420 | B54: 8059971543858 | C54: PN TRE 18.4 - 26 12PR C-800 TL | D54: 18426C80012R | E54: TRAVAUX PUBLICS | F54: TR C-800 | G54: 18.4 | I54: - | J54: 26 | K54: 12PR | P54: 0 | Q54: 1218 | R54: 730.8
A55: P280251273420 | B55: 8059971544275 | C55: PN TRE 16.9 - 28 12PR C-800 TL | D55: 16928C80012R | E55: TRAVAUX PUBLICS | F55: TR C-800 | G55: 16.9 | I55: - | J55: 28 | K55: 12PR | P55: 0 | Q55: 1078 | R55: 646.8
A56: P814281017 | B56: 8059971583601 | C56: PN TRE 12.00 -20 28P T-900 | D56: 120020T90028 | E56: PETIT GENIE CIVIL | F56: TR T-900 | G56: 12 | I56: - | J56: 20 | K56: 28PR | P56: 0 | Q56: 1923 | R56: 1153.8
A57: P869143013 | B57: 8059971507614 | C57: PN TRE 27X10-12 14PR SK-900 TL | D57: 271012800SK900TL | E57: TRAVAUX PUBLICS | F57: TR SK 900 TL | G57: 10 | I57: - | J57: 12 | K57: 14PR | P57: 0 | Q57: 411 | R57: 246.6
A58: P901083013 | B58: 8059971522501 | C58: PN TRE 10X16.5 8PR TB SK 800 | D58: 10165SK8008PR | E58: TRAVAUX PUBLICS | F58: TR SK800 | G58: 10 | I58: - | J58: 16.5 | K58: 8PR | P58: 0 | Q58: 300 | R58: 180
A59: P901083113 | B59: 8059971527117 | C59: PN TRE 10-16.5 8PR SK-800 TL | D59: 1016510SK800TL | E59: TRAVAUX PUBLICS | F59: TR SK 800 TL | G59: 10 | I59: - | J59: 16.5 | K59: 8PR | P59: 0 | Q59: 270 | R59: 162
A60: P901103013 | B60: 8059971569391 | C60: PN TRE 10 - 16,5 10PR SK-900 | D60: 10165SK90010PR | E60: TRAVAUX PUBLICS | F60: TR SK 900 | G60: 10 | I60: - | J60: 16.5 | K60: 10PR | P60: 0 | Q60: 233 | R60: 139.8
A61: P901103113 | B61: 8059971574609 | C61: PN TRE 10X16.5 10PR TBSK 800 | D61: 10165TBSK810PRTR | E61: TRAVAUX PUBLICS | F61: TR SK800 | G61: 10 | I61: - | J61: 16.5 | K61: 10PR | P61: 0 | Q61: 189 | R61: 113.4
A62: P901107013 | B62: 8059971500295 | C62: PN TRE 10 -16.5 10PR SK 900 ND | D62: 10165SK90010 | E62: TRAVAUX PUBLICS | F62: TR SK 900 ND | G62: 10 | I62: - | J62: 16.5 | K62: 10PR | P62: 0 | Q62: 344 | R62: 206.4
A63: P902103013 | B63: 8059971546873 | C63: PN TRE 12X16.5 10PR TB SK 900 | D63: 12165SK80010PR | E63: TRAVAUX PUBLICS | F63: TR SK 900 ND | G63: 12 | I63: - | J63: 16.5 | K63: 10PR | P63: 0 | Q63: 322 | R63: 193.2
A64: P902103113 | B64: 8059971568356 | C64: PN TRE 12X16.5 10PR TBSK 800 | D64: 12165TBSK8TR | E64: TRAVAUX PUBLICS | F64: TR SK800 | G64: 12 | I64: - | J64: 16.5 | K64: 10PR | P64: 0 | Q64: 278 | R64: 166.8
A65: P902123013 | B65: 8059971571967 | C65: PN TRE 12-16.5 12PR SK-900 TL | D65: 1216512SK900TL12 | E65: TRAVAUX PUBLICS | F65: TR SK 900 TL | G65: 12 | I65: - | J65: 16.5 | K65: 12PR | P65: 0 | Q65: 458 | R65: 274.8
A66: P902127013 | B66: 8059971500066 | C66: PN TRE 12 - 16.5 12PR SK 900 ND | D66: 12165SK900ND12P | E66: TRAVAUX PUBLICS | F66: TR SK 900 ND | G66: 12 | I66: - | J66: 16.5 | K66: 12PR | P66: 0 | Q66: 433 | R66: 259.8
A67: P903063113 | B67: 8059971569988 | C67: PN TRE 23X8.5X12 6PR TBSK 800 | D67: 2385012SK800 | E67: TRAVAUX PUBLICS | F67: TR SK800 | G67: 8.5 | I67: - | J67: 12 | K67: 6PR | P67: 0 | Q67: 138 | R67: 82.8
A68: P903123013 | B68: 8059971559408 | C68: PN TRE 23X8.5-12 12PR SK-900 | D68: 2385012SK900 | E68: TRAVAUX PUBLICS | F68: TR SK 900 | G68: 8.5 | I68: - | J68: 12 | K68: 12PR | P68: 0 | Q68: 197 | R68: 118.2
A69: P904083113 | B69: 8059971551389 | C69: PN TRE 27X8.5X15 8PR TBSK 800 | D69: 278515SK8008P | E69: TRAVAUX PUBLICS | F69: TR SK800 | G69: 8.5 | I69: - | J69: 15 | K69: 8PR | P69: 0 | Q69: 190 | R69: 114
A70: P905143013 | B70: 8059971501780 | C70: PN TRE 14X17.5 14PR TB SK 900 ND | D70: 14175SK900 | E70: TRAVAUX PUBLICS | F70: TR SK 900 ND | G70: 14 | I70: - | J70: 17.5 | K70: 14PR | P70: 0 | Q70: 663 | R70: 397.8
A71: P906143013 | B71: 8059971515343 | C71: PN TRE 15X19.5 14PR TB SK 900 ND | D71: 15195SK900 | E71: TRAVAUX PUBLICS | F71: TR SK 900 ND | G71: 15 | I71: - | J71: 19.5 | K71: 14PR | P71: 0 | Q71: 870 | R71: 522
A72: P909163013 | B72: 8059971525731 | C72: PN TRE 27X10.5-15 16PR SK-900 | D72: 271050159SK900 | E72: TRAVAUX PUBLICS | F72: TR SK 900 | G72: 10.5 | I72: - | J72: 15 | K72: 16PR | P72: 0 | Q72: 346 | R72: 207.6
A73: P910103013 | B73: 8059971526417 | C73: PN TRE 31.5X13-16.5 10PR SK-900 | D73: 315130016SK900 | E73: TRAVAUX PUBLICS | F73: TR SK 900 | G73: 13 | I73: - | J73: 16.5 | K73: 10PR | P73: 0 | Q73: 617 | R73: 370.2
A74: P912063113 | B74: 8059971588026 | C74: PN TRE 5.70 -12 6P SK-800 | D74: 57012SK8006 | E74: PETIT GENIE CIVIL | F74: TR SK-800 | G74: 5.7 | I74: - | J74: 12 | K74: 6PR | P74: 0 | Q74: 103 | R74: =Q74*(1-$D$3) -> 61.8

Sheet LAURENT
D2: Remise
D3: =Remises!$O$8 -> 0.23
A5: Actualisation au 04/04/2024
A7: REFERENCES PNEUMATIQUES | Q7: Nominatif | T7: Complet
A8: CAI | B8: EAN | C8: Désignation | D8: Appellation | E8: Catégorie | F8: Profil | G8: Largeur | H8: Hauteur | I8: Structure | J8: Diamètre | K8: IC | L8: IV | M8: Conso. | N8: Frein. | O8: Bruit. | P8: Décibels. | Q8: Prix BF | R8: Prix TD | S8: Prix Remisé | T8: Prix BF | U8: Prix TD | V8: Prix Remisé
A9: 004335 | C9: PRN LAU 26.5R25 GLDD1 R1 G1 C1 | D9: R26525GLDD1R1G1C1 | E9: PETIT GENIE CIVIL | F9: LA GLDD1 | G9: 26.5 | I9: R | J9: 25 | P9: 0 | Q9: 5783 | R9: 7517.9 | S9: =R9*(1-$D$3) -> 5788.783 | V9: =U9*(1-$D$3) -> 0
A10: 004335C | B10: 3528700043358 | C10: PRC LAU 26.5R25 GLDD1 R1 G1 CC | D10: R26525GLDD1R1G1CC | E10: PETIT GENIE CIVIL | F10: LA GLDD1 | G10: 26.5 | I10: R | J10: 25 | P10: 0 | S10: =R10*(1-$D$3) -> 0 | T10: 6813 | U10: 8856.9 | V10: =U10*(1-$D$3) -> 6819.813
A11: 072208 | C11: PRN LAU 23.5R25 GLHA2 R1 G2 C1 | D11: R23525GLHA2R1G2C1 | E11: PETIT GENIE CIVIL | F11: LA GLHA2 | G11: 23.5 | I11: R | J11: 25 | P11: 0 | Q11: 3439 | R11: 4470.7 | S11: 3442.439 | V11: 0
A12: 072208C | B12: 3528700722086 | C12: PRC LAU 23.5R25 GLHA2 R1 G2 CC | D12: R23525GLHA2R1G2CC | E12: PETIT GENIE CIVIL | F12: LA GLHA2 | G12: 23.5 | I12: R | J12: 25 | P12: 0 | S12: 0 | T12: 4156 | U12: 5402.8 | V12: 4160.156
A13: 076923 | C13: PRN LAU 23.5R25 GLDD1 R1 G2 C1 | D13: R23525GLDD1R1G2C1 | E13: PETIT GENIE CIVIL | F13: LA GLDD1 | G13: 23.5 | I13: R | J13: 25 | P13: 0 | Q13: 5070 | R13: 6591 | S13: 5075.07 | V13: 0
A14: 076923C | B14: 3528700769234 | C14: PRC LAU 23.5R25 GLDD1 R1 G2 CC | D14: R23525GLDD1R1G2CC | E14: PETIT GENIE CIVIL | F14: LA GLDD1 | G14: 23.5 | I14: R | J14: 25 | P14: 0 | S14: 0 | T14: 5787 | U14: 7523.1 | V14: 5792.787
A15: 112386 | C15: PRN LAU 17.5R25 GLH R1 G2 C1 | D15: R17525GLHR1G2C1 | E15: PETIT GENIE CIVIL | F15: LA GLH | G15: 17.5 | I15: R | J15: 25 | P15: 0 | Q15: 1743 | R15: 2265.9 | S15: 1744.743 | V15: 0
A16: 112386C | B16: 3528701123868 | C16: PRC LAU 17.5R25 GLH R1 G2 CC | D16: R17525GLHR1G2CC | E16: PETIT GENIE CIVIL | F16: LA GLH | G16: 17.5 | I16: R | J16: 25 | P16: 0 | S16: 0 | T16: 2101 | U16: 2731.3 | V16: 2103.101
A17: 127376 | C17: PRN LAU 26.5R25 GLHA2 R1 G1 C1 | D17: R26525GLHA2R1G1C1 | E17: PETIT GENIE CIVIL | F17: LA GLHA2 | G17: 26.5 | I17: R | J17: 25 | P17: 0 | Q17: 4824 | R17: 6271.2 | S17: 4828.824 | V17: 0
A18: 127376C | B18: 3528701273761 | C18: PRC LAU 26.5R25 GLHA2 R1 G1 CC | D18: R26525GLHA2R1G1CC | E18: PETIT GENIE CIVIL | F18: LA GLHA2 | G18: 26.5 | I18: R | J18: 25 | P18: 0 | S18: 0 | T18: 5854 | U18: 7610.2 | V18: 5859.854
A19: 146196 | C19: PRN LAU 17.5R25 MINE D2 R1 G2 C1 | D19: R17525MINED2R1G2C1 | E19: PETIT GENIE CIVIL | F19: LA MINE D2 | G19: 17.5 | I19: R | J19: 25 | P19: 0 | Q19: 3419 | R19: 4444.7 | S19: 3422.419 | V19: 0
A20: 146196C | B20: 3528701461960 | C20: PRC LAU 17.5R25 MINE D2 R1 G2 CC | D20: R17525MINED2R1G2CC | E20: PETIT GENIE CIVIL | F20: LA MINE D2 | G20: 17.5 | I20: R | J20: 25 | P20: 0 | S20: 0 | T20: 3777 | U20: 4910.1 | V20: 3780.777
A21: 183923 | C21: PRN LAU 18.00R33 GLDT R1 G1 C1 | D21: R180033GLDTR1G1C1 | E21: GROS GENIE CIVIL | F21: LA GLDT | G21: 18 | I21: R | J21: 33 | P21: 0 | Q21: 4735 | R21: 6155.5 | S21: 4739.735 | V21: 0
A22: 183923C | B22: 3528701839233 | C22: PRC LAU 18.00R33 GLDT R1 G1 CC | D22: R180033GLDTR1G1CC | E22: GROS GENIE CIVIL | F22: LA GLDT | G22: 18 | I22: R | J22: 33 | P22: 0 | S22: 0 | T22: 5788 | U22: 7524.4 | V22: 5793.788
A23: 243210 | C23: PRN LAU 23.5R25 LISSE D2 R1 G1 C1 | D23: R23525LISSED2R1G1C1 | E23: PETIT GENIE CIVIL | F23: LA LISSE D2 | G23: 23.5 | I23: R | J23: 25 | P23: 0 | Q23: 6382 | R23: 8296.6 | S23: 6388.382 | V23: 0
A24: 243210C | B24: 3528702432105 | C24: PRC LAU 23.5R25 LISSE D2 R1 G1 CC | D24: R23525LISSED2R1G1CC | E24: PETIT GENIE CIVIL | F24: LA LISSE D2 | G24: 23.5 | I24: R | J24: 25 | P24: 0 | S24: 0 | T24: 7099 | U24: 9228.7 | V24: 7106.099
A25: 294701 | C25: PRN LAU 24.00R35 GLDT R1 G2 C1 | D25: R240035GLDTR1G2C1 | E25: GROS GENIE CIVIL | F25: LA GLDT | G25: 24 | I25: R | J25: 35 | P25: 0 | Q25: 8541 | R25: 11103.3 | S25: 8549.541 | V25: 0
A26: 294701C | B26: 3528702947012 | C26: PRC LAU 24.00R35 GLDT R1 G2 CC | D26: R240035GLDTR1G2CC | E26: GROS GENIE CIVIL | F26: LA GLDT | G26: 24 | I26: R | J26: 35 | P26: 0 | S26: 0 | T26: 10479 | U26: 13622.7 | V26: 10489.479
A27: 325542 | C27: PRN LAU 29.5R25 GLADT R1 G1 C1 | D27: R29525GLADTR1G1C1 | E27: PETIT GENIE CIVIL | F27: LA GLADT | G27: 29.5 | I27: R | J27: 25 | P27: 0 | Q27: 7060 | R27: 9178 | S27: 7067.06 | V27: 0
A28: 325542C | B28: 3528703255420 | C28: PRC LAU 29.5R25 GLADT R1 G1 CC | D28: R29525GLADTR1G1CC | E28: PETIT GENIE CIVIL | F28: LA GLADT | G28: 29.5 | I28: R | J28: 25 | P28: 0 | S28: 0 | T28: 8550 | U28: 11115 | V28: 8558.55
A29: 328191 | C29: PRN LAU 29.5R25 GLDD R1 G1 C1 | D29: R29525GLDDR1G1C1 | E29: PETIT GENIE CIVIL | F29: LA GLDD | G29: 29.5 | I29: R | J29: 25 | P29: 0 | Q29: 7963 | R29: 10351.9 | S29: 7970.963 | V29: 0
A30: 328191C | B30: 3528703281917 | C30: PRC LAU 29.5R25 GLDD R1 G1 CC | D30: R29525GLDDR1G1CC | E30: PETIT GENIE CIVIL | F30: LA GLDD | G30: 29.5 | I30: R | J30: 25 | P30: 0 | S30: 0 | T30: 9453 | U30: 12288.9 | V30: 9462.453
A31: 347255 | C31: PRN LAU 18.00R25 GLDT R1 G2 C1 | D31: R180025GLDTR1G2C1 | E31: PETIT GENIE CIVIL | F31: LA GLDT | G31: 18 | I31: R | J31: 25 | P31: 0 | Q31: 4324 | R31: 5621.2 | S31: 4328.324 | V31: 0
A32: 347255C | B32: 3528703472551 | C32: PRC LAU 18.00R25 GLDT R1 G2 CC | D32: R180025GLDTR1G2CC | E32: PETIT GENIE CIVIL | F32: LA GLDT | G32: 18 | I32: R | J32: 25 | P32: 0 | S32: 0 | T32: 5455 | U32: 7091.5 | V32: 5460.455
A33: 393627 | C33: PRN LAU 18.00R25 GLDT R1 G1 C1 | D33: R180025GLDTR1G1C1 | E33: PETIT GENIE CIVIL | F33: LA GLDT | G33: 18 | I33: R | J33: 25 | P33: 0 | Q33: 4324 | R33: 5621.2 | S33: 4328.324 | V33: 0
A34: 393627C | B34: 3528703936275 | C34: PRC LAU 18.00R25 GLDT R1 G1 CC | D34: R180025GLDTR1G1CC | E34: PETIT GENIE CIVIL | F34: LA GLDT | G34: 18 | I34: R | J34: 25 | P34: 0 | S34: 0 | T34: 5455 | U34: 7091.5 | V34: 5460.455
A35: 420746 | C35: PRN LAU 15.5R25 GLH R1 G2 C1 | D35: R15525GLHR1G2C1 | E35: PETIT GENIE CIVIL | F35: LA GLH | G35: 15.5 | I35: R | J35: 25 | P35: 0 | Q35: 1307 | R35: 1699.1 | S35: 1308.307 | V35: 0
A36: 420746C | B36: 3528704207466 | C36: PRC LAU 15.5R25 GLH R1 G2 CC | D36: R15525GLHR1G2CC | E36: PETIT GENIE CIVIL | F36: LA GLH | G36: 15.5 | I36: R | J36: 25 | P36: 0 | S36: 0 | T36: 1587 | U36: 2063.1 | V36: 1588.587
A37: 421233 | C37: PRN LAU 23.5R25 GLADN R1 G2 C1 | D37: R23525GLADNR1G2C1 | E37: PETIT GENIE CIVIL | F37: LA GLADN | G37: 23.5 | I37: R | J37: 25 | P37: 0 | Q37: 3158 | R37: 4105.4 | S37: 3161.158 | V37: 0
A38: 421233C | B38: 3528704212330 | C38: PRC LAU 23.5R25 GLADN R1 G2 CC | D38: R23525GLADNR1G2CC | E38: PETIT GENIE CIVIL | F38: LA GLADN | G38: 23.5 | I38: R | J38: 25 | P38: 0 | S38: 0 | T38: 3875 | U38: 5037.5 | V38: 3878.875
A39: 469239 | C39: PRN LAU 750/65R25 GLAD R1 G2 C1 | D39: R7506525GLADR1G2C1 | E39: PETIT GENIE CIVIL | F39: LA GLAD | G39: 750 | H39: 65 | I39: R | J39: 25 | P39: 0 | Q39: 3852 | R39: 5007.6 | S39: 3855.852 | V39: 0
A40: 469239C | B40: 3528704692392 | C40: PRC LAU 750/65R25 GLAD R1 G2 CC | D40: R7506525GLADR1G2CC | E40: PETIT GENIE CIVIL | F40: LA GLAD | G40: 750 | H40: 65 | I40: R | J40: 25 | P40: 0 | S40: 0 | T40: 4748 | U40: 6172.4 | V40: 4752.748
A41: 482926 | C41: PRN LAU 14.00R24 GLA2 R1 G1 C1 | D41: R140024GLA2R1G1C1 | E41: PETIT GENIE CIVIL | F41: LA GLA2 | G41: 14 | I41: R | J41: 24 | P41: 0 | Q41: 1616 | R41: 2100.8 | S41: 1617.616 | V41: 0
A42: 482926C | B42: 3528704829262 | C42: PRC LAU 14.00R24 GLA2 R1 G1 CC | D42: R140024GLA2R1G1CC | E42: PETIT GENIE CIVIL | F42: LA GLA2 | G42: 14 | I42: R | J42: 24 | P42: 0 | S42: 0 | T42: 1918 | U42: 2493.4 | V42: 1919.918
A43: 502868 | C43: PRN LAU 14.00R24 GLA2 R1 G2 C1 | D43: R140024GLA2R1G2C1 | E43: PETIT GENIE CIVIL | F43: LA GLA2 | G43: 14 | I43: R | J43: 24 | P43: 0 | Q43: 1616 | R43: 2100.8 | S43: 1617.616 | V43: 0
A44: 502868C | B44: 3528705028688 | C44: PRC LAU 14.00R24 GLA2 R1 G2 CC | D44: R140024GLA2R1G2CC | E44: PETIT GENIE CIVIL | F44: LA GLA2 | G44: 14 | I44: R | J44: 24 | P44: 0 | S44: 0 | T44: 1918 | U44: 2493.4 | V44: 1919.918
A45: 512198 | C45: PRN LAU 20.5R25 GLH R1 G1 C1 | D45: R20525GLHR1G1C1 | E45: PETIT GENIE CIVIL | F45: LA GLH | G45: 20.5 | I45: R | J45: 25 | P45: 0 | Q45: 2612 | R45: 3395.6 | S45: 2614.612 | V45: 0
A46: 512198C | B46: 3528705121983 | C46: PRC LAU 20.5R25 GLH R1 G1 CC | D46: R20525GLHR1G1CC | E46: PETIT GENIE CIVIL | F46: LA GLH | G46: 20.5 | I46: R | J46: 25 | P46: 0 | S46: 0 | T46: 3150 | U46: 4095 | V46: 3153.15
A47: 519585 | C47: PRN LAU 20.5R25 MINE D2 R1 G1 C1 | D47: R20525MINED2R1G1C1 | E47: PETIT GENIE CIVIL | F47: LA MINE D2 | G47: 20.5 | I47: R | J47: 25 | P47: 0 | Q47: 4682 | R47: 6086.6 | S47: 4686.682 | V47: 0
A48: 519585C | B48: 3528705195854 | C48: PRC LAU 20.5R25 MINE D2 R1 G1 CC | D48: R20525MINED2R1G1CC | E48: PETIT GENIE CIVIL | F48: LA MINE D2 | G48: 20.5 | I48: R | J48: 25 | P48: 0 | S48: 0 | T48: 5220 | U48: 6786 | V48: 5225.22
A49: 561816 | C49: PRN LAU 460/70R24 GLCL R1 G1 C1 | D49: R4607024GLCLR1G1C1 | E49: PETIT GENIE CIVIL | F49: LA GLCL | G49: 460 | H49: 70 | I49: R | J49: 24 | P49: 0 | Q49: 918 | R49: 1193.4 | S49: 918.918 | V49: 0
A50: 561816C | B50: 3528705618162 | C50: PRC LAU 460/70R24 GLCL R1 G1 CC | D50: R4607024GLCLR1G1CC | E50: PETIT GENIE CIVIL | F50: LA GLCL | G50: 460 | H50: 70 | I50: R | J50: 24 | P50: 0 | S50: 0 | T50: 1024 | U50: 1331.2 | V50: 1025.024
A51: 569194 | C51: PRN LAU 23.5R25 GLDD1 R1 G1 C1 | D51: R23525GLDD1R1G1C1 | E51: PETIT GENIE CIVIL | F51: LA GLDD1 | G51: 23.5 | I51: R | J51: 25 | P51: 0 | Q51: 5070 | R51: 6591 | S51: 5075.07 | V51: 0
A52: 569194C | B52: 3528705691943 | C52: PRC LAU 23.5R25 GLDD1 R1 G1 CC | D52: R23525GLDD1R1G1CC | E52: PETIT GENIE CIVIL | F52: LA GLDD1 | G52: 23.5 | I52: R | J52: 25 | P52: 0 | S52: 0 | T52: 5787 | U52: 7523.1 | V52: 5792.787
A53: 571029 | C53: PRN LAU 750/65R25 GLAD R1 G1 C1 | D53: R7506525GLADR1G1C1 | E53: PETIT GENIE CIVIL | F53: LA GLAD | G53: 750 | H53: 65 | I53: R | J53: 25 | P53: 0 | Q53: 3852 | R53: 5007.6 | S53: 3855.852 | V53: 0
A54: 571029C | B54: 3528705710293 | C54: PRC LAU 750/65R25 GLAD R1 G1 CC | D54: R7506525GLADR1G1CC | E54: PETIT GENIE CIVIL | F54: LA GLAD | G54: 750 | H54: 65 | I54: R | J54: 25 | P54: 0 | S54: 0 | T54: 4748 | U54: 6172.4 | V54: 4752.748
A55: 598203 | C55: PRN LAU 24.00R35 GLDT R1 G1 C1 | D55: R240035GLDTR1G1C1 | E55: GROS GENIE CIVIL | F55: LA GLDT | G55: 24 | I55: R | J55: 35 | P55: 0 | Q55: 8541 | R55: 11103.3 | S55: 8549.541 | V55: 0
A56: 598203C | B56: 3528705982034 | C56: PRC LAU 24.00R35 GLDT R1 G1 CC | D56: R240035GLDTR1G1CC | E56: GROS GENIE CIVIL | F56: LA GLDT | G56: 24 | I56: R | J56: 35 | P56: 0 | S56: 0 | T56: 10479 | U56: 13622.7 | V56: 10489.479
A57: 605326 | C57: PRN LAU 20.5R25 MINE D2 R1 G2 C1 | D57: R20525MINED2R1G2C1 | E57: PETIT GENIE CIVIL | F57: LA MINE D2 | G57: 20.5 | I57: R | J57: 25 | P57: 0 | Q57: 4682 | R57: 6086.6 | S57: 4686.682 | V57: 0
A58: 605326C | B58: 3528706053269 | C58: PRC LAU 20.5R25 MINE D2 R1 G2 CC | D58: R20525MINED2R1G2CC | E58: PETIT GENIE CIVIL | F58: LA MINE D2 | G58: 20.5 | I58: R | J58: 25 | P58: 0 | S58: 0 | T58: 5220 | U58: 6786 | V58: 5225.22
A59: 620725 | C59: PRN LAUR 445/70 R19.5 GLF R1 G1 C1 | D59: R44570195GLFG11 | E59: PETIT GENIE CIVIL | F59: LA GLF | G59: 445 | H59: 70 | I59: R | J59: 19.5 | P59: 0 | Q59: 1120 | R59: 1456 | S59: 1121.12 | V59: 0
A60: 620725C | B60: 3528706207259 | C60: PRC LAU 445/70R19.5 GLF R1 G1 CC | D60: R44570195GLFG1C | E60: PETIT GENIE CIVIL | F60: LA GLF | G60: 445 | H60: 70 | I60: R | J60: 19.5 | P60: 0 | S60: 0 | T60: 1372 | U60: 1783.6 | V60: 1373.372
A61: 649996 | C61: PRN LAU 26.5R25 GLDD1 R1 G2 C1 | D61: R26525GLDD1R1G2C1 | E61: PETIT GENIE CIVIL | F61: LA GLDD1 | G61: 26.5 | I61: R | J61: 25 | P61: 0 | Q61: 5783 | R61: 7517.9 | S61: 5788.783 | V61: 0
A62: 649996C | B62: 3528706499968 | C62: PRC LAU 26.5R25 GLDD1 R1 G2 CC | D62: R26525GLDD1R1G2CC | E62: PETIT GENIE CIVIL | F62: LA GLDD1 | G62: 26.5 | I62: R | J62: 25 | P62: 0 | S62: 0 | T62: 6813 | U62: 8856.9 | V62: 6819.813
A63: 650608 | C63: PRN LAU 17.5R25 GLH R1 G1 C1 | D63: R17525GLHR1G1C1 | E63: PETIT GENIE CIVIL | F63: LA GLH | G63: 17.5 | I63: R | J63: 25 | P63: 0 | Q63: 1743 | R63: 2265.9 | S63: 1744.743 | V63: 0
A64: 650608C | B64: 3528706506086 | C64: PRC LAU 17.5R25 GLH R1 G1 CC | D64: R17525GLHR1G1CC | E64: PETIT GENIE CIVIL | F64: LA GLH | G64: 17.5 | I64: R | J64: 25 | P64: 0 | S64: 0 | T64: 2101 | U64: 2731.3 | V64: 2103.101
A65: 662811 | C65: PRN LAU 18.00R33 GLDT R1 G2 C1 | D65: R180033GLDTR1G2C1 | E65: GROS GENIE CIVIL | F65: LA GLDT | G65: 18 | I65: R | J65: 33 | P65: 0 | Q65: 4735 | R65: 6155.5 | S65: 4739.735 | V65: 0
A66: 662811C | B66: 3528706628115 | C66: PRC LAU 18.00R33 GLDT R1 G2 CC | D66: R180033GLDTR1G2CC | E66: GROS GENIE CIVIL | F66: LA GLDT | G66: 18 | I66: R | J66: 33 | P66: 0 | S66: 0 | T66: 5788 | U66: 7524.4 | V66: 5793.788
A67: 677150 | C67: PRN LAU 26.5R25 GLADT R1 G2 C1 | D67: R26525GLADTR1G2C1 | E67: PETIT GENIE CIVIL | F67: LA GLADT | G67: 26.5 | I67: R | J67: 25 | P67: 0 | Q67: 5377 | R67: 6990.1 | S67: 5382.377 | V67: 0
A68: 677150C | B68: 3528706771507 | C68: PRC LAU 26.5R25 GLADT R1 G2 CC | D68: R26525GLADTR1G2CC | E68: PETIT GENIE CIVIL | F68: LA GLADT | G68: 26.5 | I68: R | J68: 25 | P68: 0 | S68: 0 | T68: 6407 | U68: 8329.1 | V68: 6413.407
A69: 712327 | C69: PRN LAU 23.5R25 GLHA2 R1 G1 C1 | D69: R23525GLHA2R1G1C1 | E69: PETIT GENIE CIVIL | F69: LA GLHA2 | G69: 23.5 | I69: R | J69: 25 | P69: 0 | Q69: 3439 | R69: 4470.7 | S69: 3442.439 | V69: 0
A70: 712327C | B70: 3528707123275 | C70: PRC LAU 23.5R25 GLHA2 R1 G1 CC | D70: R23525GLHA2R1G1CC | E70: PETIT GENIE CIVIL | F70: LA GLHA2 | G70: 23.5 | I70: R | J70: 25 | P70: 0 | S70: 0 | T70: 4156 | U70: 5402.8 | V70: 4160.156
A71: 729381 | C71: PRN LAU 20.5R25 GLH R1 G2 C1 | D71: R20525GLHR1G2C1 | E71: PETIT GENIE CIVIL | F71: LA GLH | G71: 20.5 | I71: R | J71: 25 | P71: 0 | Q71: 2612 | R71: 3395.6 | S71: 2614.612 | V71: 0
A72: 729381C | B72: 3528707293817 | C72: PRC LAU 20.5R25 GLH R1 G2 CC | D72: R20525GLHR1G2CC | E72: PETIT GENIE CIVIL | F72: LA GLH | G72: 20.5 | I72: R | J72: 25 | P72: 0 | S72: 0 | T72: 3150 | U72: 4095 | V72: 3153.15
A73: 740971 | C73: PRN LAU 29.5R25 GLADT R1 G2 C1 | D73: R29525GLADTR1G2C1 | E73: PETIT GENIE CIVIL | F73: LA GLADT | G73: 29.5 | I73: R | J73: 25 | P73: 0 | Q73: 7060 | R73: 9178 | S73: 7067.06 | V73: 0
A74: 740971C | B74: 3528707409713 | C74: PRC LAU 29.5R25 GLADT R1 G2 CC | D74: R29525GLADTR1G2CC | E74: PETIT GENIE CIVIL | F74: LA GLADT | G74: 29.5 | I74: R | J74: 25 | P74: 0 | S74: =R74*(1-$D$3) -> 0 | T74: 8550 | U74: 11115 | V74: =U74*(1-$D$3) -> 8558.55
A75: 744638 | C75: PRN LAU 29.5R25 GLH R1 G1 C1 | D75: R29525GLHR1G1C1 | E75: PETIT GENIE CIVIL | F75: LA GLH | G75: 29.5 | I75: R | J75: 25 | P75: 0 | Q75: 6624 | R75: 8611.2 | S75: 6630.624 | V75: 0
A76: 744638C | B76: 3528707446381 | C76: PRC LAU 29.5R25 GLH R1 G1 CC | D76: R29525GLHR1G1CC | E76: PETIT GENIE CIVIL | F76: LA GLH | G76: 29.5 | I76: R | J76: 25 | P76: 0 | S76: 0 | T76: 8114 | U76: 10548.2 | V76: 8122.114
A77: 755284 | C77: PRN LAU 15.5R25 GLH R1 G1 C1 | D77: R15525GLHR1G1C1 | E77: PETIT GENIE CIVIL | F77: LA GLH | G77: 15.5 | I77: R | J77: 25 | P77: 0 | Q77: 1307 | R77: 1699.1 | S77: 1308.307 | V77: 0
A78: 755284C | B78: 3528707552846 | C78: PRC LAU 15.5R25 GLH R1 G1 CC | D78: R15525GLHR1G1CC | E78: PETIT GENIE CIVIL | F78: LA GLH | G78: 15.5 | I78: R | J78: 25 | P78: 0 | S78: 0 | T78: 1587 | U78: 2063.1 | V78: 1588.587
A79: 760276 | C79: PRN LAU 23.5R25 LISSE D2 R1 G2 C1 | D79: R23525LISSED2R1G2C1 | E79: PETIT GENIE CIVIL | F79: LA LISSE D2 | G79: 23.5 | I79: R | J79: 25 | P79: 0 | Q79: 6382 | R79: 8296.6 | S79: 6388.382 | V79: 0
A80: 760276C | B80: 3528707602763 | C80: PRC LAU 23.5R25 LISSE D2 R1 G2 CC | D80: R23525LISSED2R1G2CC | E80: PETIT GENIE CIVIL | F80: LA LISSE D2 | G80: 23.5 | I80: R | J80: 25 | P80: 0 | S80: 0 | T80: 7099 | U80: 9228.7 | V80: 7106.099
A81: 773362 | C81: PRN LAU 17.5R25 MINE D2 R1 G1 C1 | D81: R17525MINED2R1G1C1 | E81: PETIT GENIE CIVIL | F81: LA MINE D2 | G81: 17.5 | I81: R | J81: 25 | P81: 0 | Q81: 3419 | R81: 4444.7 | S81: 3422.419 | V81: 0
A82: 773362C | B82: 3528707733627 | C82: PRC LAU 17.5R25 MINE D2 R1 G1 CC | D82: R17525MINED2R1G1CC | E82: PETIT GENIE CIVIL | F82: LA MINE D2 | G82: 17.5 | I82: R | J82: 25 | P82: 0 | S82: 0 | T82: 3777 | U82: 4910.1 | V82: 3780.777
A83: 817281 | C83: PRN LAU 18R19.5 GLF R1 G1 C1 | D83: R18195GLFR1G1C1 | E83: PETIT GENIE CIVIL | F83: LA GLF | G83: 18 | I83: R | J83: 19.5 | P83: 0 | Q83: 1120 | R83: 1456 | S83: 1121.12 | V83: 0
A84: 817281C | B84: 3528708172814 | C84: PRC LAU 18R19.5 GLF R1 G1 CC | D84: R18195GLFR1G1CC | E84: PETIT GENIE CIVIL | F84: LA GLF | G84: 18 | I84: R | J84: 19.5 | P84: 0 | S84: 0 | T84: 1372 | U84: 1783.6 | V84: 1373.372
A85: 831194 | C85: PRN LAU 29.5R25 GLDD R1 G2 C1 | D85: R29525GLDDR1G2C1 | E85: PETIT GENIE CIVIL | F85: LA GLDD | G85: 29.5 | I85: R | J85: 25 | P85: 0 | Q85: 7963 | R85: 10351.9 | S85: 7970.963 | V85: 0
A86: 831194C | B86: 3528708311947 | C86: PRC LAU 29.5R25 GLDD R1 G2 CC | D86: R29525GLDDR1G2CC | E86: PETIT GENIE CIVIL | F86: LA GLDD | G86: 29.5 | I86: R | J86: 25 | P86: 0 | S86: 0 | T86: 9453 | U86: 12288.9 | V86: 9462.453
A87: 838047 | C87: PRN LAU 26.5R25 MINE D2 R1 G2 C1 | D87: R26525MINED2R1G2C1 | E87: PETIT GENIE CIVIL | F87: LA MINE D2 | G87: 26.5 | I87: R | J87: 25 | P87: 0 | Q87: 8085 | R87: 10510.5 | S87: 8093.085 | V87: 0
A88: 838047C | B88: 3528708380479 | C88: PRC LAU 26.5R25 MINE D2 R1 G2 CC | D88: R26525MINED2R1G2CC | E88: PETIT GENIE CIVIL | F88: LA MINE D2 | G88: 26.5 | I88: R | J88: 25 | P88: 0 | S88: 0 | T88: 9115 | U88: 11849.5 | V88: 9124.115
A89: 844921 | C89: PRN LAU 26.5R25 GLADT R1 G1 C1 | D89: R26525GLADTR1G1C1 | E89: PETIT GENIE CIVIL | F89: LA GLADT | G89: 26.5 | I89: R | J89: 25 | P89: 0 | Q89: 5377 | R89: 6990.1 | S89: 5382.377 | V89: 0
A90: 844921C | B90: 3528708449213 | C90: PRC LAU 26.5R25 GLADT R1 G1 CC | D90: R26525GLADTR1G1CC | E90: PETIT GENIE CIVIL | F90: LA GLADT | G90: 26.5 | I90: R | J90: 25 | P90: 0 | S90: 0 | T90: 6407 | U90: 8329.1 | V90: 6413.407
A91: 865670 | C91: PRN LAU 26.5R25 MINE D2 R1 G1 C1 | D91: R26525MINED2R1G1C1 | E91: PETIT GENIE CIVIL | F91: LA MINE D2 | G91: 26.5 | I91: R | J91: 25 | P91: 0 | Q91: 8085 | R91: 10510.5 | S91: 8093.085 | V91: 0
A92: 865670C | B92: 3528708656703 | C92: PRC LAU 26.5R25 MINE D2 R1 G1 CC | D92: R26525MINED2R1G1CC | E92: PETIT GENIE CIVIL | F92: LA MINE D2 | G92: 26.5 | I92: R | J92: 25 | P92: 0 | S92: 0 | T92: 9115 | U92: 11849.5 | V92: 9124.115
A93: 906191 | C93: PRN LAU 29.5R25 GLH R1 G2 C1 | D93: R29525GLHR1G2C1 | E93: PETIT GENIE CIVIL | F93: LA GLH | G93: 29.5 | I93: R | J93: 25 | P93: 0 | Q93: 6624 | R93: 8611.2 | S93: 6630.624 | V93: 0
A94: 906191C | B94: 3528709061919 | C94: PRC LAU 29.5R25 GLH R1 G2 CC | D94: R29525GLHR1G2CC | E94: PETIT GENIE CIVIL | F94: LA GLH | G94: 29.5 | I94: R | J94: 25 | P94: 0 | S94: 0 | T94: 8114 | U94: 10548.2 | V94: 8122.114
A95: 994396 | C95: PRN LAU 26.5R25 GLHA2 R1 G2 C1 | D95: R26525GLHA2R1G2C1 | E95: PETIT GENIE CIVIL | F95: LA GLHA2 | G95: 26.5 | I95: R | J95: 25 | P95: 0 | Q95: 4824 | R95: 6271.2 | S95: 4828.824 | V95: 0
A96: 994396C | B96: 3528709943963 | C96: PRC LAU 26.5R25 GLHA2 R1 G2 CC | D96: R26525GLHA2R1G2CC | E96: PETIT GENIE CIVIL | F96: LA GLHA2 | G96: 26.5 | I96: R | J96: 25 | P96: 0 | S96: 0 | T96: 5854 | U96: 7610.2 | V96: 5859.854
A97: 999400 | C97: PRN LAU 23.5R25 GLADN R1 G1 C1 | D97: R23525GLADNR1G1C1 | E97: PETIT GENIE CIVIL | F97: LA GLADN | G97: 23.5 | I97: R | J97: 25 | P97: 0 | Q97: 3158 | R97: 4105.4 | S97: 3161.158 | V97: 0
A98: 999400C | B98: 3528709994002 | C98: PRC LAU 23.5R25 GLADN R1 G1 CC | D98: R23525GLADNR1G1CC | E98: PETIT GENIE CIVIL | F98: LA GLADN | G98: 23.5 | I98: R | J98: 25 | P98: 0 | S98: 0 | T98: 3875 | U98: 5037.5 | V98: 3878.875

Sheet Datas (hidden)
A1: Nom Onglet | B1: Manuf | C1: Code Marque | D1: Code Catégorie | E1: Remise | F1: Nb Occu | G1: Pos1Ocu | I1: CLEART | J1: MARQUE | K1: FAMILLE | L1: CATEG | M1: ZONAPP | N1: LIBEL | O1: MANUF | P1: GENCOD | Q1: DIM | R1: PROFIL | S1: INDCH | T1: INDVIT | U1: DIAMJ | V1: PBF | W1: DAV | X1: NBF | Y1: GAM | Z1: LARGEUR | AA1: SERIE | AB1: R | AC1: LIBELLE MARQUE | AD1: CONSOMMATION | AE1: FREINAGE | AF1: BRUIT | AG1: DECIBELS | AI1: Code CATEGORIE | AJ1: Désignation
A2: BRIDGESTONE | B2: BRIDGESTONE | C2: BS | D2: PN | E2: =Remises!$E$8 -> 0.4 | F2: =COUNTIF(Datas_Marque,C2) -> 205 | G2: 56 | I2: 6540215 | J2: A72 | K2: PN | L2: PG | M2: 15525A30712142A8 | N2: PN ALL 15.5 -25 142A8 A307 | O2: 30700030 | P2: 8903635017806 | Q2: 15525A72 | R2: A72 A307 | S2: 142 | T2: A8 | U2: 25 | V2: 488 | X2: 0 | Y2: 1 | Z2: 15.5 | AB2: - | AC2: ALLIANCE (HEUVER) | AG2: 0 | AI2: 44 | AJ2: 4x4
A3: GOOD YEAR | B3: GOOD YEAR | C3: GY | D3: PN | E3: =Remises!$J$8 -> 0.28 | F3: =COUNTIF(Datas_Marque,C3) -> 213 | G3: 831 | I3: 6539604 | J3: A72 | K3: PN | L3: PG | M3: 202432614163B | N3: PN ALL.S 20 - 24 14PR 326 | O3: 32600808 | P3: 7291050038980 | Q3: 2024A72 | R3: A72 326 | S3: 163 | T3: B | U3: 24 | V3: 1901 | X3: 0 | Y3: 1 | Z3: 20 | AB3: - | AC3: ALLIANCE (HEUVER) | AG3: 0 | AI3: 4H | AJ3: 4x4 HIVER
A4: MAGNA | B4: MAGNA TYRES | C4: M15 | D4: PN | E4: =Remises!$E$10 -> 0.28 | F4: 133 | G4: 1178 | I4: 6540214 | J4: A72 | K4: PN | L4: PG | M4: 140024A307162A | N4: PN ALL 14.00 -24 16P A307 | O4: 30700019 | P4: 8903635017790 | Q4: 140024A72 | R4: A72 A307 | S4: 16PR | U4: 24 | V4: 529 | X4: 0 | Y4: 1 | Z4: 14.00 | AB4: - | AC4: ALLIANCE (HEUVER) | AG4: 0 | AI4: 4TS | AJ4: 4x4 TOUTES SAISONS
A5: MICHELIN | B5: MICHELIN | C5: MI | D5: PN | E5: =Remises!$J$10 -> 0.31 | F5: 209 | G5: 1407 | I5: 6539935 | J5: A72 | K5: PN | L5: PG | M5: 15525A30212149B2 | N5: PN ALL.S 15,5 - 25 12PR 302 | O5: 30215508 | P5: 8903635000020 | Q5: 15525A72 | R5: A72 A302 | S5: 149 | T5: B | U5: 25 | V5: 483 | X5: 0 | Y5: 1 | Z5: 15.5 | AB5: - | AC5: ALLIANCE (HEUVER) | AG5: 0 | AI5: CE | AJ5: CAMIONNETTE ETE
A6: MITAS | B6: MITAS GROUPE | C6: EP | D6: PN | E6: =Remises!$E$12 -> 0.43 | F6: 145 | G6: 629 | I6: 6540022 | J6: A72 | K6: PN | L6: TP | M6: 10002022516148B | N6: PN ALL.S 10,00 - 20 148 B A225 | O6: 22502910 | P6: 8903635004165 | Q6: 100020A72 | R6: A72 225 | S6: 148 | T6: B | U6: 20 | V6: 359 | X6: 0 | Y6: 1 | Z6: 10.00 | AB6: - | AC6: ALLIANCE (HEUVER) | AG6: 0 | AI6: CH | AJ6: CAMIONNETTE HIVER
A7: MITAS | B7: MITAS GROUPE | C7: MIT | D7: PN | E7: =Remises!$E$12 -> 0.43 | F7: 70 | G7: 1779 | I7: 6540216 | J7: A72 | K7: PN | L7: PG | M7: 17525A30716153B2 | N7: PN ALL 17.5 -25 16P153B A307 | O7: 30700050 | P7: 8903635017813 | Q7: 17525A72 | R7: A72 A307 | S7: 153 | T7: B | U7: 25 | V7: 619 | X7: 0 | Y7: 1 | Z7: 17.5 | AB7: - | AC7: ALLIANCE (HEUVER) | AG7: 0 | AI7: CTS | AJ7: CAMIONNETTE TOUTES SAISONS
A8: MITAS | B8: MITAS GROUPE | C8: MW | D8: PN | E8: =Remises!$E$12 -> 0.43 | F8: 1 | G8: 1849 | I8: 6540213 | J8: A72 | K8: PN | L8: PG | M8: 140024A30712147A82 | N8: PN ALL 14.00 -24 12P147A8 A307 | O8: 30700018 | P8: 8903635017783 | Q8: 140024A72 | R8: A72 A307 | S8: 147 | T8: A8 | U8: 24 | V8: 490 | X8: 0 | Y8: 1 | Z8: 14.00 | AB8: - | AC8: ALLIANCE (HEUVER) | AG8: 0 | AI8: TE | AJ8: TOURISME ÉTÉ
A9: TRELLEBORG | B9: TRELLEBORG | C9: TR | D9: PN | E9: =Remises!$J$12 -> 0.4 | F9: 66 | G9: 2161 | I9: 4080706 | J9: AC | K9: PN | L9: PG | M9: 17525A2A655TL176 | N9: PN ALL.S 17.5R25 176 A2 A655 TL | O9: PB25175655L | P9: 7291050061247 | Q9: 17525AC | R9: AC A655 | S9: 176 | T9: A2 | U9: 25 | V9: 2554.5 | W9: 20230101 | X9: 2554.5 | Y9: 1 | Z9: 17.5 | AB9: R | AC9: ALLIANCE SOCAH | AG9: 0 | AI9: TH | AJ9: TOURISME HIVER
A10: LAURENT | B10: LAURENT | C10: LA | D10: PR,RC | E10: =Remises!$O$8 -> 0.23 | F10: 90 | G10: 1047 | I10: 4080715 | J10: AC | K10: PN | L10: TP | M10: 44570195A2A624TL180 | N10: PN ALL.S 445/70R19,5 180 A2 A624 TL | O10: PB19518624L | Q10: 44570195AC | R10: AC A624 ACIER | S10: 180 | T10: A2 | U10: 19.5 | V10: 1681.3 | W10: 20230101 | X10: 1673.9 | Y10: 1 | Z10: 445 | AA10: 70 | AB10: R | AC10: ALLIANCE SOCAH | AG10: 0 | AI10: TTS | AJ10: TOURISME TOUTES SAISONS
F11: 0 | G11: 1 | I11: 4080707 | J11: AC | K11: PN | L11: PG | M11: 20525A2A655TL186 | N11: PN ALL.S 20.5R25 186 A2 A655 TL | O11: PB25205655L | P11: 7291050062091 | Q11: 20525AC | R11: AC A655 | S11: 186 | T11: A2 | U11: 25 | V11: 4038.4 | W11: 20230101 | X11: 4038.4 | Y11: 1 | Z11: 20.5 | AB11: R | AC11: ALLIANCE SOCAH | AG11: 0 | AI11: CL | AJ11: COLLECTION (TC4)
F12: 0 | G12: 1 | I12: 204878 | J12: AC | K12: PN | L12: PG | M12: 2052531820PRAC | N12: PN ALL.S 20,5 - 25 20PR 318 | O12: PA2520520318L | P12: 8903635000334 | Q12: 20525AC | R12: AC A318 | S12: 170 | T12: B | U12: 25 | V12: 1932.6 | W12: 20230101 | X12: 1884.4 | Y12: 1 | Z12: 20.5 | AB12: - | AC12: ALLIANCE SOCAH | AG12: 0 | AI12: GC | AJ12: GENIE CIVIL
F13: 0 | G13: 1 | I13: 814896 | J13: AC | K13: PN | L13: PG | M13: 18002531840PR | N13: PN ALL.S 18,00 - 25 40PR 318 | O13: PA25180040318L | P13: 8903635002345 | Q13: 180025AC | R13: AC A318 | S13: 187 | T13: B | U13: 25 | V13: 3334.5 | W13: 20230101 | X13: 3334.5 | Y13: 1 | Z13: 18.00 | AB13: - | AC13: ALLIANCE SOCAH | AG13: 0 | AI13: GG | AJ13: GROS GENIE CIVIL
F14: 0 | G14: 1 | I14: 4080705 | J14: AC | K14: PN | L14: PG | M14: 15525A2A655TL169 | N14: PN ALL.S 15.5R25 169 A2 A655 TL | O14: PB25155655L | P14: 7291050063821 | Q14: 15525AC | R14: AC A655 | S14: 169 | T14: A2 | U14: 25 | V14: 2041.3 | W14: 20230101 | X14: 2041.3 | Y14: 1 | Z14: 15.5 | AB14: R | AC14: ALLIANCE SOCAH | AG14: 0 | AI14: PG | AJ14: PETIT GENIE CIVIL
F15: 0 | G15: 1 | I15: 4080703 | J15: AC | K15: PN | L15: TP | M15: 100020BA225148 | N15: PN ALL.S 10,00 - 20 148 B A225 | O15: PA20100016225 | P15: 8903635004165 | Q15: 100020AC | R15: AC A225 | S15: 148 | T15: B | U15: 20 | V15: 508.9 | W15: 20230101 | X15: 496.3 | Y15: 1 | Z15: 10.00 | AB15: - | AC15: ALLIANCE SOCAH | AG15: 0 | AI15: PL | AJ15: POIDS LOURDS
F16: 0 | G16: 1 | I16: 3643248 | J16: AC | K16: PN | L16: PG | M16: 140025A31120PR | N16: PN ALL.S 14.00 - 25 20PR A311 | O16: PA25140020311 | P16: 8903635005407 | Q16: 140025AC | R16: AC A311 | S16: 182 | T16: A2 | U16: 25 | V16: 1474.1 | W16: 20220601 | X16: 1474.1 | Y16: 1 | Z16: 14.00 | AB16: - | AC16: ALLIANCE SOCAH | AG16: 0 | AI16: T6 | AJ16: TP CONSTRUCTION (MICHELIN)
F17: 0 | G17: 1 | I17: 814884 | J17: AC | K17: PN | L17: PG | M17: 160024A31024PR | N17: PN ALL.S 16.00 - 24 24PR A310 | O17: PA24160024310L | P17: 7291050031707 | Q17: 160024AC | R17: AC 310-1 | S17: 190 | T17: A2 | U17: 24 | V17: 2638.5 | W17: 20230101 | X17: 2626.9 | Y17: 1 | Z17: 16.00 | AB17: - | AC17: ALLIANCE SOCAH | AG17: 0 | AI17: TP | AJ17: TRAVAUX PUBLICS
F18: 0 | G18: 1 | I18: 814888 | J18: AC | K18: PN | L18: TP | M18: 12002521218PR | N18: PN ALL.S 12.00 - 25 18PR 212 | O18: PA25120018212L | P18: 8903635002178 | Q18: 120025AC | R18: AC A212 | S18: 149 | T18: B | U18: 25 | V18: 1139.7 | W18: 20220601 | X18: 1139.7 | Y18: 1 | Z18: 12.00 | AB18: - | AC18: ALLIANCE SOCAH | AG18: 0 | AI18: AG | AJ18: AGRAIRE
F19: 0 | G19: 1 | I19: 3643307 | J19: AC | K19: PN | L19: TP | M19: 31580225A8A528154 | N19: PN ALL.S 315/80R22.5 154 A8 A528 | O19: PB22531580528L | P19: 7291050061148 | Q19: 31580225AC | R19: AC A528 | S19: 154 | T19: A8 | U19: 22.5 | V19: 1269.5 | W19: 20230101 | X19: 1261.3 | Y19: 1 | Z19: 315 | AA19: 80 | AB19: R | AC19: ALLIANCE SOCAH | AG19: 0 | AI19: FO | AJ19: FORESTIER
